Workbook

Sheet BİLGİ GİRİŞİ
B1: =CONCATENATE(KATSAYILAR!F3," ","--- Ücretli Öğretmenlere Ek Ders Ücreti Ödenmesine Esas Bilgiler") -> OKUL KURUM ADI GİRİNİZ!!! --- Ücretli Öğretmenlere Ek Ders Ücreti Ödenmesine Esas Bilgiler
A3: SIRA | B3: KİMLİK NO | C3: ADI SOYADI | D3: Çalışma Durumu (Ücretli - Emekli çalışan) | E3: İBAN NO | F3: Önceki Aylar Gelir Vergisi Matrahı | G3: Engellilik İndirimi | H3: Şahıs (Özel) Sigorta Prim Tutarı (ödenen primin en fazla %15'i yazılabilir) | I3: İCRA KESİNTİSİ ve DOSYA BİLGİSİ | L3: NOTLAR
I4: İcra - Nafaka Kesintisi (TL.) | J4: İcra Dairesi Adı | K4: İcra Dosyası No
A5: 1 | B5: 12345678910 | C5: İBRAHİM KUTLUDAĞ | D5: Ücretli Öğretmen | E5: TR150000000000000000000000
A6: 2 | B6: 12345678910 | C6: SAMET YAĞMUR | D6: Ücretli Öğretmen | E6: TR150000000000000000000000
A7: 3 | B7: 12345678910 | C7: SAMET YAĞMUR | D7: Ücretli Öğretmen | E7: TR150000000000000000000000
A8: 4 | B8: 12345678910 | C8: SAMET YAĞMUR | D8: Ücretli Öğretmen | E8: TR150000000000000000000000
A9: 5 | B9: 12345678910 | C9: SAMET YAĞMUR | D9: Ücretli Öğretmen | E9: TR150000000000000000000000
A10: 6 | B10: 12345678910 | C10: SAMET YAĞMUR | D10: Ücretli Öğretmen (Emekli çalışan) | E10: TR150000000000000000000000
A11: 7
A12: 8
A13: 9
A14: 10
A15: 11
A16: 12
A17: 13
A18: 14
A19: 15
A20: 16
A21: 17
A22: 18
A23: 19
A24: 20
A25: 21
A26: 22
A27: 23
A28: 24
A29: 25
A30: 26
A31: 27
A32: 28
A33: 29
A34: 30
A35: 31
A36: 32
A37: 33
A38: 34
A39: 35
A40: 36
A41: 37
A42: 38
A43: 39
A44: 40
A45: 41
A46: 42
A47: 43
A48: 44
A49: 45
A50: 46
A51: 47
A52: 48
A53: 49
A54: 50
A55: 51
A56: 52
A57: 53
A58: 54
A59: 55
A60: 56
A61: 57
A62: 58
A63: 59
A64: 60
A65: 61
A66: 62
A67: 63
A68: 64
A69: 65
A70: 66
A71: 67
A72: 68
A73: 69
A74: 70
A75: 71
A76: 72
A77: 73
A78: 74
A79: 75
A80: 76
A81: 77
A82: 78
A83: 79
A84: 80
A85: 81
A86: 82
A87: 83
A88: 84
A89: 85
A90: 86
A91: 87
A92: 88
A93: 89
A94: 90
A95: 91
A96: 92
A97: 93
A98: 94
A99: 95
A100: 96
A101: 97
A102: 98
A103: 99
A104: 100

Sheet EK DERS VERİ GİRİŞİ
A1: Ücretli Öğretmenlerin Ek Ders Bordrosu Veri Girişi | I1: 1
C2: E-BİLDİRGE GİRİŞLERİNİ YAPARKEN SGK KONTROL LİSTESİ SAYFASINI KULLANINIZ | I2: 2024
A4: SIRA | B4: KİMLİK NO | C4: ADI SOYADI | D4: Çalışma Durumu (Ücretli - Emekli çalışan) | E4: Gündüz Saat | F4: Gece Saat | G4: DYK Kursu (gündüz) Saat | H4: DYK Kursu (H.S.- Gece) Saat | I4: =CONCATENATE("TOPLAM SAAT",CHAR(10),CHAR(10),'EK DERS Ücret Hesaplama'!M106) -> TOPLAM SAAT 615
A5: 1 | B5: =IF('BİLGİ GİRİŞİ'!B5="","",'BİLGİ GİRİŞİ'!B5) -> 12345678910 | C5: =IF('BİLGİ GİRİŞİ'!C5="","",'BİLGİ GİRİŞİ'!C5) -> İBRAHİM KUTLUDAĞ | D5: =IF('BİLGİ GİRİŞİ'!D5="","",'BİLGİ GİRİŞİ'!D5) -> Ücretli Öğretmen | E5: 180 | I5: =IF(AND(E5="",F5="",G5="",H5=""),"",SUM(E5:H5)) -> 180
A6: 2 | B6: =IF('BİLGİ GİRİŞİ'!B6="","",'BİLGİ GİRİŞİ'!B6) -> 12345678910 | C6: =IF('BİLGİ GİRİŞİ'!C6="","",'BİLGİ GİRİŞİ'!C6) -> SAMET YAĞMUR | D6: =IF('BİLGİ GİRİŞİ'!D6="","",'BİLGİ GİRİŞİ'!D6) -> Ücretli Öğretmen | E6: 180 | I6: =IF(AND(E6="",F6="",G6="",H6=""),"",SUM(E6:H6)) -> 180
A7: 3 | B7: =IF('BİLGİ GİRİŞİ'!B7="","",'BİLGİ GİRİŞİ'!B7) -> 12345678910 | C7: =IF('BİLGİ GİRİŞİ'!C7="","",'BİLGİ GİRİŞİ'!C7) -> SAMET YAĞMUR | D7: =IF('BİLGİ GİRİŞİ'!D7="","",'BİLGİ GİRİŞİ'!D7) -> Ücretli Öğretmen | E7: 155 | I7: 155
A8: 4 | B8: =IF('BİLGİ GİRİŞİ'!B8="","",'BİLGİ GİRİŞİ'!B8) -> 12345678910 | C8: =IF('BİLGİ GİRİŞİ'!C8="","",'BİLGİ GİRİŞİ'!C8) -> SAMET YAĞMUR | D8: =IF('BİLGİ GİRİŞİ'!D8="","",'BİLGİ GİRİŞİ'!D8) -> Ücretli Öğretmen | E8: 100 | I8: 100
A9: 5 | B9: =IF('BİLGİ GİRİŞİ'!B9="","",'BİLGİ GİRİŞİ'!B9) -> 12345678910 | C9: =IF('BİLGİ GİRİŞİ'!C9="","",'BİLGİ GİRİŞİ'!C9) -> SAMET YAĞMUR | D9: =IF('BİLGİ GİRİŞİ'!D9="","",'BİLGİ GİRİŞİ'!D9) -> Ücretli Öğretmen
A10: 6 | B10: =IF('BİLGİ GİRİŞİ'!B10="","",'BİLGİ GİRİŞİ'!B10) -> 12345678910 | C10: =IF('BİLGİ GİRİŞİ'!C10="","",'BİLGİ GİRİŞİ'!C10) -> SAMET YAĞMUR | D10: =IF('BİLGİ GİRİŞİ'!D10="","",'BİLGİ GİRİŞİ'!D10) -> Ücretli Öğretmen (Emekli çalışan)
A11: 7 | B11: =IF('BİLGİ GİRİŞİ'!B11="","",'BİLGİ GİRİŞİ'!B11) ->  | C11: =IF('BİLGİ GİRİŞİ'!C11="","",'BİLGİ GİRİŞİ'!C11) ->  | D11: =IF('BİLGİ GİRİŞİ'!D11="","",'BİLGİ GİRİŞİ'!D11) -> 
A12: 8 | B12: =IF('BİLGİ GİRİŞİ'!B12="","",'BİLGİ GİRİŞİ'!B12) ->  | C12: =IF('BİLGİ GİRİŞİ'!C12="","",'BİLGİ GİRİŞİ'!C12) ->  | D12: =IF('BİLGİ GİRİŞİ'!D12="","",'BİLGİ GİRİŞİ'!D12) -> 
A13: 9 | B13: =IF('BİLGİ GİRİŞİ'!B13="","",'BİLGİ GİRİŞİ'!B13) ->  | C13: =IF('BİLGİ GİRİŞİ'!C13="","",'BİLGİ GİRİŞİ'!C13) ->  | D13: =IF('BİLGİ GİRİŞİ'!D13="","",'BİLGİ GİRİŞİ'!D13) -> 
A14: 10 | B14: =IF('BİLGİ GİRİŞİ'!B14="","",'BİLGİ GİRİŞİ'!B14) ->  | C14: =IF('BİLGİ GİRİŞİ'!C14="","",'BİLGİ GİRİŞİ'!C14) ->  | D14: =IF('BİLGİ GİRİŞİ'!D14="","",'BİLGİ GİRİŞİ'!D14) -> 
A15: 11 | B15: =IF('BİLGİ GİRİŞİ'!B15="","",'BİLGİ GİRİŞİ'!B15) ->  | C15: =IF('BİLGİ GİRİŞİ'!C15="","",'BİLGİ GİRİŞİ'!C15) ->  | D15: =IF('BİLGİ GİRİŞİ'!D15="","",'BİLGİ GİRİŞİ'!D15) -> 
A16: 12 | B16: =IF('BİLGİ GİRİŞİ'!B16="","",'BİLGİ GİRİŞİ'!B16) ->  | C16: =IF('BİLGİ GİRİŞİ'!C16="","",'BİLGİ GİRİŞİ'!C16) ->  | D16: =IF('BİLGİ GİRİŞİ'!D16="","",'BİLGİ GİRİŞİ'!D16) -> 
A17: 13 | B17: =IF('BİLGİ GİRİŞİ'!B17="","",'BİLGİ GİRİŞİ'!B17) ->  | C17: =IF('BİLGİ GİRİŞİ'!C17="","",'BİLGİ GİRİŞİ'!C17) ->  | D17: =IF('BİLGİ GİRİŞİ'!D17="","",'BİLGİ GİRİŞİ'!D17) -> 
A18: 14 | B18: =IF('BİLGİ GİRİŞİ'!B18="","",'BİLGİ GİRİŞİ'!B18) ->  | C18: =IF('BİLGİ GİRİŞİ'!C18="","",'BİLGİ GİRİŞİ'!C18) ->  | D18: =IF('BİLGİ GİRİŞİ'!D18="","",'BİLGİ GİRİŞİ'!D18) -> 
A19: 15 | B19: =IF('BİLGİ GİRİŞİ'!B19="","",'BİLGİ GİRİŞİ'!B19) ->  | C19: =IF('BİLGİ GİRİŞİ'!C19="","",'BİLGİ GİRİŞİ'!C19) ->  | D19: =IF('BİLGİ GİRİŞİ'!D19="","",'BİLGİ GİRİŞİ'!D19) -> 
A20: 16 | B20: =IF('BİLGİ GİRİŞİ'!B20="","",'BİLGİ GİRİŞİ'!B20) ->  | C20: =IF('BİLGİ GİRİŞİ'!C20="","",'BİLGİ GİRİŞİ'!C20) ->  | D20: =IF('BİLGİ GİRİŞİ'!D20="","",'BİLGİ GİRİŞİ'!D20) -> 
A21: 17 | B21: =IF('BİLGİ GİRİŞİ'!B21="","",'BİLGİ GİRİŞİ'!B21) ->  | C21: =IF('BİLGİ GİRİŞİ'!C21="","",'BİLGİ GİRİŞİ'!C21) ->  | D21: =IF('BİLGİ GİRİŞİ'!D21="","",'BİLGİ GİRİŞİ'!D21) -> 
A22: 18 | B22: =IF('BİLGİ GİRİŞİ'!B22="","",'BİLGİ GİRİŞİ'!B22) ->  | C22: =IF('BİLGİ GİRİŞİ'!C22="","",'BİLGİ GİRİŞİ'!C22) ->  | D22: =IF('BİLGİ GİRİŞİ'!D22="","",'BİLGİ GİRİŞİ'!D22) -> 
A23: 19 | B23: =IF('BİLGİ GİRİŞİ'!B23="","",'BİLGİ GİRİŞİ'!B23) ->  | C23: =IF('BİLGİ GİRİŞİ'!C23="","",'BİLGİ GİRİŞİ'!C23) ->  | D23: =IF('BİLGİ GİRİŞİ'!D23="","",'BİLGİ GİRİŞİ'!D23) -> 
A24: 20 | B24: =IF('BİLGİ GİRİŞİ'!B24="","",'BİLGİ GİRİŞİ'!B24) ->  | C24: =IF('BİLGİ GİRİŞİ'!C24="","",'BİLGİ GİRİŞİ'!C24) ->  | D24: =IF('BİLGİ GİRİŞİ'!D24="","",'BİLGİ GİRİŞİ'!D24) -> 
A25: 21 | B25: =IF('BİLGİ GİRİŞİ'!B25="","",'BİLGİ GİRİŞİ'!B25) ->  | C25: =IF('BİLGİ GİRİŞİ'!C25="","",'BİLGİ GİRİŞİ'!C25) ->  | D25: =IF('BİLGİ GİRİŞİ'!D25="","",'BİLGİ GİRİŞİ'!D25) -> 
A26: 22 | B26: =IF('BİLGİ GİRİŞİ'!B26="","",'BİLGİ GİRİŞİ'!B26) ->  | C26: =IF('BİLGİ GİRİŞİ'!C26="","",'BİLGİ GİRİŞİ'!C26) ->  | D26: =IF('BİLGİ GİRİŞİ'!D26="","",'BİLGİ GİRİŞİ'!D26) -> 
A27: 23 | B27: =IF('BİLGİ GİRİŞİ'!B27="","",'BİLGİ GİRİŞİ'!B27) ->  | C27: =IF('BİLGİ GİRİŞİ'!C27="","",'BİLGİ GİRİŞİ'!C27) ->  | D27: =IF('BİLGİ GİRİŞİ'!D27="","",'BİLGİ GİRİŞİ'!D27) -> 
A28: 24 | B28: =IF('BİLGİ GİRİŞİ'!B28="","",'BİLGİ GİRİŞİ'!B28) ->  | C28: =IF('BİLGİ GİRİŞİ'!C28="","",'BİLGİ GİRİŞİ'!C28) ->  | D28: =IF('BİLGİ GİRİŞİ'!D28="","",'BİLGİ GİRİŞİ'!D28) -> 
A29: 25 | B29: =IF('BİLGİ GİRİŞİ'!B29="","",'BİLGİ GİRİŞİ'!B29) ->  | C29: =IF('BİLGİ GİRİŞİ'!C29="","",'BİLGİ GİRİŞİ'!C29) ->  | D29: =IF('BİLGİ GİRİŞİ'!D29="","",'BİLGİ GİRİŞİ'!D29) -> 
A30: 26 | B30: =IF('BİLGİ GİRİŞİ'!B30="","",'BİLGİ GİRİŞİ'!B30) ->  | C30: =IF('BİLGİ GİRİŞİ'!C30="","",'BİLGİ GİRİŞİ'!C30) ->  | D30: =IF('BİLGİ GİRİŞİ'!D30="","",'BİLGİ GİRİŞİ'!D30) -> 
A31: 27 | B31: =IF('BİLGİ GİRİŞİ'!B31="","",'BİLGİ GİRİŞİ'!B31) ->  | C31: =IF('BİLGİ GİRİŞİ'!C31="","",'BİLGİ GİRİŞİ'!C31) ->  | D31: =IF('BİLGİ GİRİŞİ'!D31="","",'BİLGİ GİRİŞİ'!D31) -> 
A32: 28 | B32: =IF('BİLGİ GİRİŞİ'!B32="","",'BİLGİ GİRİŞİ'!B32) ->  | C32: =IF('BİLGİ GİRİŞİ'!C32="","",'BİLGİ GİRİŞİ'!C32) ->  | D32: =IF('BİLGİ GİRİŞİ'!D32="","",'BİLGİ GİRİŞİ'!D32) -> 
A33: 29 | B33: =IF('BİLGİ GİRİŞİ'!B33="","",'BİLGİ GİRİŞİ'!B33) ->  | C33: =IF('BİLGİ GİRİŞİ'!C33="","",'BİLGİ GİRİŞİ'!C33) ->  | D33: =IF('BİLGİ GİRİŞİ'!D33="","",'BİLGİ GİRİŞİ'!D33) -> 
A34: 30 | B34: =IF('BİLGİ GİRİŞİ'!B34="","",'BİLGİ GİRİŞİ'!B34) ->  | C34: =IF('BİLGİ GİRİŞİ'!C34="","",'BİLGİ GİRİŞİ'!C34) ->  | D34: =IF('BİLGİ GİRİŞİ'!D34="","",'BİLGİ GİRİŞİ'!D34) -> 
A35: 31 | B35: =IF('BİLGİ GİRİŞİ'!B35="","",'BİLGİ GİRİŞİ'!B35) ->  | C35: =IF('BİLGİ GİRİŞİ'!C35="","",'BİLGİ GİRİŞİ'!C35) ->  | D35: =IF('BİLGİ GİRİŞİ'!D35="","",'BİLGİ GİRİŞİ'!D35) -> 
A36: 32 | B36: =IF('BİLGİ GİRİŞİ'!B36="","",'BİLGİ GİRİŞİ'!B36) ->  | C36: =IF('BİLGİ GİRİŞİ'!C36="","",'BİLGİ GİRİŞİ'!C36) ->  | D36: =IF('BİLGİ GİRİŞİ'!D36="","",'BİLGİ GİRİŞİ'!D36) -> 
A37: 33 | B37: =IF('BİLGİ GİRİŞİ'!B37="","",'BİLGİ GİRİŞİ'!B37) ->  | C37: =IF('BİLGİ GİRİŞİ'!C37="","",'BİLGİ GİRİŞİ'!C37) ->  | D37: =IF('BİLGİ GİRİŞİ'!D37="","",'BİLGİ GİRİŞİ'!D37) -> 
A38: 34 | B38: =IF('BİLGİ GİRİŞİ'!B38="","",'BİLGİ GİRİŞİ'!B38) ->  | C38: =IF('BİLGİ GİRİŞİ'!C38="","",'BİLGİ GİRİŞİ'!C38) ->  | D38: =IF('BİLGİ GİRİŞİ'!D38="","",'BİLGİ GİRİŞİ'!D38) -> 
A39: 35 | B39: =IF('BİLGİ GİRİŞİ'!B39="","",'BİLGİ GİRİŞİ'!B39) ->  | C39: =IF('BİLGİ GİRİŞİ'!C39="","",'BİLGİ GİRİŞİ'!C39) ->  | D39: =IF('BİLGİ GİRİŞİ'!D39="","",'BİLGİ GİRİŞİ'!D39) -> 
A40: 36 | B40: =IF('BİLGİ GİRİŞİ'!B40="","",'BİLGİ GİRİŞİ'!B40) ->  | C40: =IF('BİLGİ GİRİŞİ'!C40="","",'BİLGİ GİRİŞİ'!C40) ->  | D40: =IF('BİLGİ GİRİŞİ'!D40="","",'BİLGİ GİRİŞİ'!D40) -> 
A41: 37 | B41: =IF('BİLGİ GİRİŞİ'!B41="","",'BİLGİ GİRİŞİ'!B41) ->  | C41: =IF('BİLGİ GİRİŞİ'!C41="","",'BİLGİ GİRİŞİ'!C41) ->  | D41: =IF('BİLGİ GİRİŞİ'!D41="","",'BİLGİ GİRİŞİ'!D41) -> 
A42: 38 | B42: =IF('BİLGİ GİRİŞİ'!B42="","",'BİLGİ GİRİŞİ'!B42) ->  | C42: =IF('BİLGİ GİRİŞİ'!C42="","",'BİLGİ GİRİŞİ'!C42) ->  | D42: =IF('BİLGİ GİRİŞİ'!D42="","",'BİLGİ GİRİŞİ'!D42) -> 
A43: 39 | B43: =IF('BİLGİ GİRİŞİ'!B43="","",'BİLGİ GİRİŞİ'!B43) ->  | C43: =IF('BİLGİ GİRİŞİ'!C43="","",'BİLGİ GİRİŞİ'!C43) ->  | D43: =IF('BİLGİ GİRİŞİ'!D43="","",'BİLGİ GİRİŞİ'!D43) -> 
A44: 40 | B44: =IF('BİLGİ GİRİŞİ'!B44="","",'BİLGİ GİRİŞİ'!B44) ->  | C44: =IF('BİLGİ GİRİŞİ'!C44="","",'BİLGİ GİRİŞİ'!C44) ->  | D44: =IF('BİLGİ GİRİŞİ'!D44="","",'BİLGİ GİRİŞİ'!D44) -> 
A45: 41 | B45: =IF('BİLGİ GİRİŞİ'!B45="","",'BİLGİ GİRİŞİ'!B45) ->  | C45: =IF('BİLGİ GİRİŞİ'!C45="","",'BİLGİ GİRİŞİ'!C45) ->  | D45: =IF('BİLGİ GİRİŞİ'!D45="","",'BİLGİ GİRİŞİ'!D45) -> 
A46: 42 | B46: =IF('BİLGİ GİRİŞİ'!B46="","",'BİLGİ GİRİŞİ'!B46) ->  | C46: =IF('BİLGİ GİRİŞİ'!C46="","",'BİLGİ GİRİŞİ'!C46) ->  | D46: =IF('BİLGİ GİRİŞİ'!D46="","",'BİLGİ GİRİŞİ'!D46) -> 
A47: 43 | B47: =IF('BİLGİ GİRİŞİ'!B47="","",'BİLGİ GİRİŞİ'!B47) ->  | C47: =IF('BİLGİ GİRİŞİ'!C47="","",'BİLGİ GİRİŞİ'!C47) ->  | D47: =IF('BİLGİ GİRİŞİ'!D47="","",'BİLGİ GİRİŞİ'!D47) -> 
A48: 44 | B48: =IF('BİLGİ GİRİŞİ'!B48="","",'BİLGİ GİRİŞİ'!B48) ->  | C48: =IF('BİLGİ GİRİŞİ'!C48="","",'BİLGİ GİRİŞİ'!C48) ->  | D48: =IF('BİLGİ GİRİŞİ'!D48="","",'BİLGİ GİRİŞİ'!D48) -> 
A49: 45 | B49: =IF('BİLGİ GİRİŞİ'!B49="","",'BİLGİ GİRİŞİ'!B49) ->  | C49: =IF('BİLGİ GİRİŞİ'!C49="","",'BİLGİ GİRİŞİ'!C49) ->  | D49: =IF('BİLGİ GİRİŞİ'!D49="","",'BİLGİ GİRİŞİ'!D49) -> 
A50: 46 | B50: =IF('BİLGİ GİRİŞİ'!B50="","",'BİLGİ GİRİŞİ'!B50) ->  | C50: =IF('BİLGİ GİRİŞİ'!C50="","",'BİLGİ GİRİŞİ'!C50) ->  | D50: =IF('BİLGİ GİRİŞİ'!D50="","",'BİLGİ GİRİŞİ'!D50) -> 
A51: 47 | B51: =IF('BİLGİ GİRİŞİ'!B51="","",'BİLGİ GİRİŞİ'!B51) ->  | C51: =IF('BİLGİ GİRİŞİ'!C51="","",'BİLGİ GİRİŞİ'!C51) ->  | D51: =IF('BİLGİ GİRİŞİ'!D51="","",'BİLGİ GİRİŞİ'!D51) -> 
A52: 48 | B52: =IF('BİLGİ GİRİŞİ'!B52="","",'BİLGİ GİRİŞİ'!B52) ->  | C52: =IF('BİLGİ GİRİŞİ'!C52="","",'BİLGİ GİRİŞİ'!C52) ->  | D52: =IF('BİLGİ GİRİŞİ'!D52="","",'BİLGİ GİRİŞİ'!D52) -> 
A53: 49 | B53: =IF('BİLGİ GİRİŞİ'!B53="","",'BİLGİ GİRİŞİ'!B53) ->  | C53: =IF('BİLGİ GİRİŞİ'!C53="","",'BİLGİ GİRİŞİ'!C53) ->  | D53: =IF('BİLGİ GİRİŞİ'!D53="","",'BİLGİ GİRİŞİ'!D53) -> 
A54: 50 | B54: =IF('BİLGİ GİRİŞİ'!B54="","",'BİLGİ GİRİŞİ'!B54) ->  | C54: =IF('BİLGİ GİRİŞİ'!C54="","",'BİLGİ GİRİŞİ'!C54) ->  | D54: =IF('BİLGİ GİRİŞİ'!D54="","",'BİLGİ GİRİŞİ'!D54) -> 
A55: 51 | B55: =IF('BİLGİ GİRİŞİ'!B55="","",'BİLGİ GİRİŞİ'!B55) ->  | C55: =IF('BİLGİ GİRİŞİ'!C55="","",'BİLGİ GİRİŞİ'!C55) ->  | D55: =IF('BİLGİ GİRİŞİ'!D55="","",'BİLGİ GİRİŞİ'!D55) -> 
A56: 52 | B56: =IF('BİLGİ GİRİŞİ'!B56="","",'BİLGİ GİRİŞİ'!B56) ->  | C56: =IF('BİLGİ GİRİŞİ'!C56="","",'BİLGİ GİRİŞİ'!C56) ->  | D56: =IF('BİLGİ GİRİŞİ'!D56="","",'BİLGİ GİRİŞİ'!D56) -> 
A57: 53 | B57: =IF('BİLGİ GİRİŞİ'!B57="","",'BİLGİ GİRİŞİ'!B57) ->  | C57: =IF('BİLGİ GİRİŞİ'!C57="","",'BİLGİ GİRİŞİ'!C57) ->  | D57: =IF('BİLGİ GİRİŞİ'!D57="","",'BİLGİ GİRİŞİ'!D57) -> 
A58: 54 | B58: =IF('BİLGİ GİRİŞİ'!B58="","",'BİLGİ GİRİŞİ'!B58) ->  | C58: =IF('BİLGİ GİRİŞİ'!C58="","",'BİLGİ GİRİŞİ'!C58) ->  | D58: =IF('BİLGİ GİRİŞİ'!D58="","",'BİLGİ GİRİŞİ'!D58) -> 
A59: 55 | B59: =IF('BİLGİ GİRİŞİ'!B59="","",'BİLGİ GİRİŞİ'!B59) ->  | C59: =IF('BİLGİ GİRİŞİ'!C59="","",'BİLGİ GİRİŞİ'!C59) ->  | D59: =IF('BİLGİ GİRİŞİ'!D59="","",'BİLGİ GİRİŞİ'!D59) -> 
A60: 56 | B60: =IF('BİLGİ GİRİŞİ'!B60="","",'BİLGİ GİRİŞİ'!B60) ->  | C60: =IF('BİLGİ GİRİŞİ'!C60="","",'BİLGİ GİRİŞİ'!C60) ->  | D60: =IF('BİLGİ GİRİŞİ'!D60="","",'BİLGİ GİRİŞİ'!D60) -> 
A61: 57 | B61: =IF('BİLGİ GİRİŞİ'!B61="","",'BİLGİ GİRİŞİ'!B61) ->  | C61: =IF('BİLGİ GİRİŞİ'!C61="","",'BİLGİ GİRİŞİ'!C61) ->  | D61: =IF('BİLGİ GİRİŞİ'!D61="","",'BİLGİ GİRİŞİ'!D61) -> 
A62: 58 | B62: =IF('BİLGİ GİRİŞİ'!B62="","",'BİLGİ GİRİŞİ'!B62) ->  | C62: =IF('BİLGİ GİRİŞİ'!C62="","",'BİLGİ GİRİŞİ'!C62) ->  | D62: =IF('BİLGİ GİRİŞİ'!D62="","",'BİLGİ GİRİŞİ'!D62) -> 
A63: 59 | B63: =IF('BİLGİ GİRİŞİ'!B63="","",'BİLGİ GİRİŞİ'!B63) ->  | C63: =IF('BİLGİ GİRİŞİ'!C63="","",'BİLGİ GİRİŞİ'!C63) ->  | D63: =IF('BİLGİ GİRİŞİ'!D63="","",'BİLGİ GİRİŞİ'!D63) -> 
A64: 60 | B64: =IF('BİLGİ GİRİŞİ'!B64="","",'BİLGİ GİRİŞİ'!B64) ->  | C64: =IF('BİLGİ GİRİŞİ'!C64="","",'BİLGİ GİRİŞİ'!C64) ->  | D64: =IF('BİLGİ GİRİŞİ'!D64="","",'BİLGİ GİRİŞİ'!D64) -> 
A65: 61 | B65: =IF('BİLGİ GİRİŞİ'!B65="","",'BİLGİ GİRİŞİ'!B65) ->  | C65: =IF('BİLGİ GİRİŞİ'!C65="","",'BİLGİ GİRİŞİ'!C65) ->  | D65: =IF('BİLGİ GİRİŞİ'!D65="","",'BİLGİ GİRİŞİ'!D65) -> 
A66: 62 | B66: =IF('BİLGİ GİRİŞİ'!B66="","",'BİLGİ GİRİŞİ'!B66) ->  | C66: =IF('BİLGİ GİRİŞİ'!C66="","",'BİLGİ GİRİŞİ'!C66) ->  | D66: =IF('BİLGİ GİRİŞİ'!D66="","",'BİLGİ GİRİŞİ'!D66) -> 
A67: 63 | B67: =IF('BİLGİ GİRİŞİ'!B67="","",'BİLGİ GİRİŞİ'!B67) ->  | C67: =IF('BİLGİ GİRİŞİ'!C67="","",'BİLGİ GİRİŞİ'!C67) ->  | D67: =IF('BİLGİ GİRİŞİ'!D67="","",'BİLGİ GİRİŞİ'!D67) -> 
A68: 64 | B68: =IF('BİLGİ GİRİŞİ'!B68="","",'BİLGİ GİRİŞİ'!B68) ->  | C68: =IF('BİLGİ GİRİŞİ'!C68="","",'BİLGİ GİRİŞİ'!C68) ->  | D68: =IF('BİLGİ GİRİŞİ'!D68="","",'BİLGİ GİRİŞİ'!D68) -> 
A69: 65 | B69: =IF('BİLGİ GİRİŞİ'!B69="","",'BİLGİ GİRİŞİ'!B69) ->  | C69: =IF('BİLGİ GİRİŞİ'!C69="","",'BİLGİ GİRİŞİ'!C69) ->  | D69: =IF('BİLGİ GİRİŞİ'!D69="","",'BİLGİ GİRİŞİ'!D69) -> 
A70: 66 | B70: =IF('BİLGİ GİRİŞİ'!B70="","",'BİLGİ GİRİŞİ'!B70) ->  | C70: =IF('BİLGİ GİRİŞİ'!C70="","",'BİLGİ GİRİŞİ'!C70) ->  | D70: =IF('BİLGİ GİRİŞİ'!D70="","",'BİLGİ GİRİŞİ'!D70) -> 
A71: 67 | B71: =IF('BİLGİ GİRİŞİ'!B71="","",'BİLGİ GİRİŞİ'!B71) ->  | C71: =IF('BİLGİ GİRİŞİ'!C71="","",'BİLGİ GİRİŞİ'!C71) ->  | D71: =IF('BİLGİ GİRİŞİ'!D71="","",'BİLGİ GİRİŞİ'!D71) -> 
A72: 68 | B72: =IF('BİLGİ GİRİŞİ'!B72="","",'BİLGİ GİRİŞİ'!B72) ->  | C72: =IF('BİLGİ GİRİŞİ'!C72="","",'BİLGİ GİRİŞİ'!C72) ->  | D72: =IF('BİLGİ GİRİŞİ'!D72="","",'BİLGİ GİRİŞİ'!D72) -> 
A73: 69 | B73: =IF('BİLGİ GİRİŞİ'!B73="","",'BİLGİ GİRİŞİ'!B73) ->  | C73: =IF('BİLGİ GİRİŞİ'!C73="","",'BİLGİ GİRİŞİ'!C73) ->  | D73: =IF('BİLGİ GİRİŞİ'!D73="","",'BİLGİ GİRİŞİ'!D73) -> 
A74: 70 | B74: =IF('BİLGİ GİRİŞİ'!B74="","",'BİLGİ GİRİŞİ'!B74) ->  | C74: =IF('BİLGİ GİRİŞİ'!C74="","",'BİLGİ GİRİŞİ'!C74) ->  | D74: =IF('BİLGİ GİRİŞİ'!D74="","",'BİLGİ GİRİŞİ'!D74) -> 
A75: 71 | B75: =IF('BİLGİ GİRİŞİ'!B75="","",'BİLGİ GİRİŞİ'!B75) ->  | C75: =IF('BİLGİ GİRİŞİ'!C75="","",'BİLGİ GİRİŞİ'!C75) ->  | D75: =IF('BİLGİ GİRİŞİ'!D75="","",'BİLGİ GİRİŞİ'!D75) -> 
A76: 72 | B76: =IF('BİLGİ GİRİŞİ'!B76="","",'BİLGİ GİRİŞİ'!B76) ->  | C76: =IF('BİLGİ GİRİŞİ'!C76="","",'BİLGİ GİRİŞİ'!C76) ->  | D76: =IF('BİLGİ GİRİŞİ'!D76="","",'BİLGİ GİRİŞİ'!D76) -> 
A77: 73 | B77: =IF('BİLGİ GİRİŞİ'!B77="","",'BİLGİ GİRİŞİ'!B77) ->  | C77: =IF('BİLGİ GİRİŞİ'!C77="","",'BİLGİ GİRİŞİ'!C77) ->  | D77: =IF('BİLGİ GİRİŞİ'!D77="","",'BİLGİ GİRİŞİ'!D77) -> 
A78: 74 | B78: =IF('BİLGİ GİRİŞİ'!B78="","",'BİLGİ GİRİŞİ'!B78) ->  | C78: =IF('BİLGİ GİRİŞİ'!C78="","",'BİLGİ GİRİŞİ'!C78) ->  | D78: =IF('BİLGİ GİRİŞİ'!D78="","",'BİLGİ GİRİŞİ'!D78) -> 
A79: 75 | B79: =IF('BİLGİ GİRİŞİ'!B79="","",'BİLGİ GİRİŞİ'!B79) ->  | C79: =IF('BİLGİ GİRİŞİ'!C79="","",'BİLGİ GİRİŞİ'!C79) ->  | D79: =IF('BİLGİ GİRİŞİ'!D79="","",'BİLGİ GİRİŞİ'!D79) -> 
A80: 76 | B80: =IF('BİLGİ GİRİŞİ'!B80="","",'BİLGİ GİRİŞİ'!B80) ->  | C80: =IF('BİLGİ GİRİŞİ'!C80="","",'BİLGİ GİRİŞİ'!C80) ->  | D80: =IF('BİLGİ GİRİŞİ'!D80="","",'BİLGİ GİRİŞİ'!D80) -> 
A81: 77 | B81: =IF('BİLGİ GİRİŞİ'!B81="","",'BİLGİ GİRİŞİ'!B81) ->  | C81: =IF('BİLGİ GİRİŞİ'!C81="","",'BİLGİ GİRİŞİ'!C81) ->  | D81: =IF('BİLGİ GİRİŞİ'!D81="","",'BİLGİ GİRİŞİ'!D81) -> 
A82: 78 | B82: =IF('BİLGİ GİRİŞİ'!B82="","",'BİLGİ GİRİŞİ'!B82) ->  | C82: =IF('BİLGİ GİRİŞİ'!C82="","",'BİLGİ GİRİŞİ'!C82) ->  | D82: =IF('BİLGİ GİRİŞİ'!D82="","",'BİLGİ GİRİŞİ'!D82) -> 
A83: 79 | B83: =IF('BİLGİ GİRİŞİ'!B83="","",'BİLGİ GİRİŞİ'!B83) ->  | C83: =IF('BİLGİ GİRİŞİ'!C83="","",'BİLGİ GİRİŞİ'!C83) ->  | D83: =IF('BİLGİ GİRİŞİ'!D83="","",'BİLGİ GİRİŞİ'!D83) -> 
A84: 80 | B84: =IF('BİLGİ GİRİŞİ'!B84="","",'BİLGİ GİRİŞİ'!B84) ->  | C84: =IF('BİLGİ GİRİŞİ'!C84="","",'BİLGİ GİRİŞİ'!C84) ->  | D84: =IF('BİLGİ GİRİŞİ'!D84="","",'BİLGİ GİRİŞİ'!D84) -> 
A85: 81 | B85: =IF('BİLGİ GİRİŞİ'!B85="","",'BİLGİ GİRİŞİ'!B85) ->  | C85: =IF('BİLGİ GİRİŞİ'!C85="","",'BİLGİ GİRİŞİ'!C85) ->  | D85: =IF('BİLGİ GİRİŞİ'!D85="","",'BİLGİ GİRİŞİ'!D85) -> 
A86: 82 | B86: =IF('BİLGİ GİRİŞİ'!B86="","",'BİLGİ GİRİŞİ'!B86) ->  | C86: =IF('BİLGİ GİRİŞİ'!C86="","",'BİLGİ GİRİŞİ'!C86) ->  | D86: =IF('BİLGİ GİRİŞİ'!D86="","",'BİLGİ GİRİŞİ'!D86) -> 
A87: 83 | B87: =IF('BİLGİ GİRİŞİ'!B87="","",'BİLGİ GİRİŞİ'!B87) ->  | C87: =IF('BİLGİ GİRİŞİ'!C87="","",'BİLGİ GİRİŞİ'!C87) ->  | D87: =IF('BİLGİ GİRİŞİ'!D87="","",'BİLGİ GİRİŞİ'!D87) -> 
A88: 84 | B88: =IF('BİLGİ GİRİŞİ'!B88="","",'BİLGİ GİRİŞİ'!B88) ->  | C88: =IF('BİLGİ GİRİŞİ'!C88="","",'BİLGİ GİRİŞİ'!C88) ->  | D88: =IF('BİLGİ GİRİŞİ'!D88="","",'BİLGİ GİRİŞİ'!D88) -> 
A89: 85 | B89: =IF('BİLGİ GİRİŞİ'!B89="","",'BİLGİ GİRİŞİ'!B89) ->  | C89: =IF('BİLGİ GİRİŞİ'!C89="","",'BİLGİ GİRİŞİ'!C89) ->  | D89: =IF('BİLGİ GİRİŞİ'!D89="","",'BİLGİ GİRİŞİ'!D89) -> 
A90: 86 | B90: =IF('BİLGİ GİRİŞİ'!B90="","",'BİLGİ GİRİŞİ'!B90) ->  | C90: =IF('BİLGİ GİRİŞİ'!C90="","",'BİLGİ GİRİŞİ'!C90) ->  | D90: =IF('BİLGİ GİRİŞİ'!D90="","",'BİLGİ GİRİŞİ'!D90) -> 
A91: 87 | B91: =IF('BİLGİ GİRİŞİ'!B91="","",'BİLGİ GİRİŞİ'!B91) ->  | C91: =IF('BİLGİ GİRİŞİ'!C91="","",'BİLGİ GİRİŞİ'!C91) ->  | D91: =IF('BİLGİ GİRİŞİ'!D91="","",'BİLGİ GİRİŞİ'!D91) -> 
A92: 88 | B92: =IF('BİLGİ GİRİŞİ'!B92="","",'BİLGİ GİRİŞİ'!B92) ->  | C92: =IF('BİLGİ GİRİŞİ'!C92="","",'BİLGİ GİRİŞİ'!C92) ->  | D92: =IF('BİLGİ GİRİŞİ'!D92="","",'BİLGİ GİRİŞİ'!D92) -> 
A93: 89 | B93: =IF('BİLGİ GİRİŞİ'!B93="","",'BİLGİ GİRİŞİ'!B93) ->  | C93: =IF('BİLGİ GİRİŞİ'!C93="","",'BİLGİ GİRİŞİ'!C93) ->  | D93: =IF('BİLGİ GİRİŞİ'!D93="","",'BİLGİ GİRİŞİ'!D93) -> 
A94: 90 | B94: =IF('BİLGİ GİRİŞİ'!B94="","",'BİLGİ GİRİŞİ'!B94) ->  | C94: =IF('BİLGİ GİRİŞİ'!C94="","",'BİLGİ GİRİŞİ'!C94) ->  | D94: =IF('BİLGİ GİRİŞİ'!D94="","",'BİLGİ GİRİŞİ'!D94) -> 
A95: 91 | B95: =IF('BİLGİ GİRİŞİ'!B95="","",'BİLGİ GİRİŞİ'!B95) ->  | C95: =IF('BİLGİ GİRİŞİ'!C95="","",'BİLGİ GİRİŞİ'!C95) ->  | D95: =IF('BİLGİ GİRİŞİ'!D95="","",'BİLGİ GİRİŞİ'!D95) -> 
A96: 92 | B96: =IF('BİLGİ GİRİŞİ'!B96="","",'BİLGİ GİRİŞİ'!B96) ->  | C96: =IF('BİLGİ GİRİŞİ'!C96="","",'BİLGİ GİRİŞİ'!C96) ->  | D96: =IF('BİLGİ GİRİŞİ'!D96="","",'BİLGİ GİRİŞİ'!D96) -> 
A97: 93 | B97: =IF('BİLGİ GİRİŞİ'!B97="","",'BİLGİ GİRİŞİ'!B97) ->  | C97: =IF('BİLGİ GİRİŞİ'!C97="","",'BİLGİ GİRİŞİ'!C97) ->  | D97: =IF('BİLGİ GİRİŞİ'!D97="","",'BİLGİ GİRİŞİ'!D97) -> 
A98: 94 | B98: =IF('BİLGİ GİRİŞİ'!B98="","",'BİLGİ GİRİŞİ'!B98) ->  | C98: =IF('BİLGİ GİRİŞİ'!C98="","",'BİLGİ GİRİŞİ'!C98) ->  | D98: =IF('BİLGİ GİRİŞİ'!D98="","",'BİLGİ GİRİŞİ'!D98) -> 
A99: 95 | B99: =IF('BİLGİ GİRİŞİ'!B99="","",'BİLGİ GİRİŞİ'!B99) ->  | C99: =IF('BİLGİ GİRİŞİ'!C99="","",'BİLGİ GİRİŞİ'!C99) ->  | D99: =IF('BİLGİ GİRİŞİ'!D99="","",'BİLGİ GİRİŞİ'!D99) -> 
A100: 96 | B100: =IF('BİLGİ GİRİŞİ'!B100="","",'BİLGİ GİRİŞİ'!B100) ->  | C100: =IF('BİLGİ GİRİŞİ'!C100="","",'BİLGİ GİRİŞİ'!C100) ->  | D100: =IF('BİLGİ GİRİŞİ'!D100="","",'BİLGİ GİRİŞİ'!D100) -> 
A101: 97 | B101: =IF('BİLGİ GİRİŞİ'!B101="","",'BİLGİ GİRİŞİ'!B101) ->  | C101: =IF('BİLGİ GİRİŞİ'!C101="","",'BİLGİ GİRİŞİ'!C101) ->  | D101: =IF('BİLGİ GİRİŞİ'!D101="","",'BİLGİ GİRİŞİ'!D101) -> 
A102: 98 | B102: =IF('BİLGİ GİRİŞİ'!B102="","",'BİLGİ GİRİŞİ'!B102) ->  | C102: =IF('BİLGİ GİRİŞİ'!C102="","",'BİLGİ GİRİŞİ'!C102) ->  | D102: =IF('BİLGİ GİRİŞİ'!D102="","",'BİLGİ GİRİŞİ'!D102) -> 
A103: 99 | B103: =IF('BİLGİ GİRİŞİ'!B103="","",'BİLGİ GİRİŞİ'!B103) ->  | C103: =IF('BİLGİ GİRİŞİ'!C103="","",'BİLGİ GİRİŞİ'!C103) ->  | D103: =IF('BİLGİ GİRİŞİ'!D103="","",'BİLGİ GİRİŞİ'!D103) -> 
A104: 100 | B104: =IF('BİLGİ GİRİŞİ'!B104="","",'BİLGİ GİRİŞİ'!B104) ->  | C104: =IF('BİLGİ GİRİŞİ'!C104="","",'BİLGİ GİRİŞİ'!C104) ->  | D104: =IF('BİLGİ GİRİŞİ'!D104="","",'BİLGİ GİRİŞİ'!D104) -> 

Sheet EK DERS Ücret Hesaplama (hidden)
A5: SIRA | B5: KİMLİK NO | C5: ADI SOYADI | D5: Çalışma Durumu (Ücretli - Emekli çalışan) | E5: Gündüz Saat | F5: Gündüz Tutar | G5: Gece Saat | H5: Gece Tutar | I5: DYK Kursu (gündüz) Saat | J5: DYK Kursu (gündüz) Tutar | K5: DYK Kursu (H.S. gece) Saat | L5: DYK Kursu (gece) Tutar | M5: Toplam Çalışma Saati | N5: Sigortalı Gün Saysı | O5: Gelir Toplamı | P5: SGK Matrahı | Q5: SGK Devlet Kat. % 20.5 | R5: Sosyal Des. Primi %24.5 | S5: TAHAKKUK TOPLAMI | T5: Geçen Aylar Gelir Vergisi Matrahı Toplamı | U5: Engellilik İndirimi | V5: Şahıs (Özel) Sigorta Prim Tutarı | W5: Bu Ay Gelir Vergisi Matrahı | X5: Gelir Vergisi | Y5: Vergi Muafiyeti | Z5: Muafiyet Sonrası Gelir Vergisi | AA5: Damga Vergisi Matrahı | AB5: Damga Vergisi | AC5: Damga Vergisi Muafiyeti | AD5: Muafiyet Sonrası Damga Vergisi | AE5: Sigorta Keseneği %20.5 (İşveren) | AF5: Sigorta Keseneği %14 (Çalışan) | AG5: Sosyal Destek Primi %24.5 (İşveren) | AH5: Sosyal Destek Primi %7.5 (Çalışan) | AI5: İcra - Nafaka Kesintisi | AJ5: Kesinti Toplamı | AK5: Net Odenecek Ucret | AM5: ÜCRET ÖDENİYORSA | AO5: İBAN
A6: ='EK DERS VERİ GİRİŞİ'!A5 -> 1 | B6: ='EK DERS VERİ GİRİŞİ'!B5 -> 12345678910 | C6: ='EK DERS VERİ GİRİŞİ'!C5 -> İBRAHİM KUTLUDAĞ | D6: ='BİLGİ GİRİŞİ'!D5 -> Ücretli Öğretmen | E6: ='EK DERS VERİ GİRİŞİ'!E5 -> 180 | F6: =ROUND(E6*KATSAYILAR!$C$3*KATSAYILAR!$B$37,2) -> 19173.95 | G6: ='EK DERS VERİ GİRİŞİ'!F5 -> 0 | H6: =ROUND(G6*KATSAYILAR!$C$3*KATSAYILAR!$B$38,2) -> 0 | I6: ='EK DERS VERİ GİRİŞİ'!G5 -> 0 | J6: =ROUND(I6*KATSAYILAR!$C$3*KATSAYILAR!$B$39,2) -> 0 | K6: ='EK DERS VERİ GİRİŞİ'!H5 -> 0 | L6: =ROUND(K6*KATSAYILAR!$C$3*KATSAYILAR!$B$40,2) -> 0 | M6: =E6+G6+I6+K6 -> 180 | N6: =ROUNDUP(M6/7.5,0) -> 24 | O6: =F6+H6+J6+L6 -> 19173.95 | P6: =IF(O6=0,0,IF(O6<KATSAYILAR!$C$9*N6,KATSAYILAR!$C$9*N6,O6)) -> 19173.95 | Q6: =ROUND(IF('BİLGİ GİRİŞİ'!D5="Ücretli Öğretmen",P6*KATSAYILAR!$C$22,0),2)+'SGK KONTROL LİSTESİ'!G115-'SGK KONTROL LİSTESİ'!J115 -> 3930.66 | R6: =ROUND(IF('BİLGİ GİRİŞİ'!D5="Ücretli Öğretmen (Emekli çalışan)",P6*KATSAYILAR!$C$24,0),2) -> 0 | S6: =O6+Q6+R6 -> 23104.61 | T6: ='BİLGİ GİRİŞİ'!F5 -> 0 | U6: =IF('BİLGİ GİRİŞİ'!G5=KATSAYILAR!$B$16,KATSAYILAR!$C$16, IF('BİLGİ GİRİŞİ'!G5=KATSAYILAR!$B$17,KATSAYILAR!$C$17, IF('BİLGİ GİRİŞİ'!G5=KATSAYILAR!$B$18,KATSAYILAR!$C$18,0))) -> 0 | V6: ='BİLGİ GİRİŞİ'!H5 -> 0 | W6: =IF(O6-U6-V6-AF6-AH6<=0,0,O6-U6-V6-AF6-AH6) -> 16489.6 | X6: =hesaplamalar!J3 -> 2473.44 | Y6: =hesaplamalar!M3 -> 2473.44 | Z6: =hesaplamalar!N3 -> 0 | AA6: =hesaplamalar!P3 -> 19173.95 | AB6: =hesaplamalar!Q3 -> 145.53 | AC6: =hesaplamalar!T3 -> 145.53 | AD6: =hesaplamalar!U3 -> 0 | AE6: =Q6 -> 3930.66 | AF6: =ROUND(IF('BİLGİ GİRİŞİ'!D5="Ücretli Öğretmen",P6*KATSAYILAR!$C$23,0),2) -> 2684.35 | AG6: =R6 -> 0 | AH6: =ROUND(IF('BİLGİ GİRİŞİ'!D5="Ücretli Öğretmen (Emekli çalışan)",P6*KATSAYILAR!$C$34,0),2) -> 0 | AI6: ='BİLGİ GİRİŞİ'!I5 -> 0 | AJ6: =Z6+AD6+AE6+AF6+AG6+AH6+AI6 -> 6615.01 | AK6: =S6-AJ6 -> 16489.6 | AM6: =IF(AK6<>0,1,0) -> 1 | AO6: ='BİLGİ GİRİŞİ'!E5 -> TR150000000000000000000000
A7: ='EK DERS VERİ GİRİŞİ'!A6 -> 2 | B7: ='EK DERS VERİ GİRİŞİ'!B6 -> 12345678910 | C7: ='EK DERS VERİ GİRİŞİ'!C6 -> SAMET YAĞMUR | D7: ='BİLGİ GİRİŞİ'!D6 -> Ücretli Öğretmen | E7: ='EK DERS VERİ GİRİŞİ'!E6 -> 180 | F7: =ROUND(E7*KATSAYILAR!$C$3*KATSAYILAR!$B$37,2) -> 19173.95 | G7: ='EK DERS VERİ GİRİŞİ'!F6 -> 0 | H7: =ROUND(G7*KATSAYILAR!$C$3*KATSAYILAR!$B$38,2) -> 0 | I7: ='EK DERS VERİ GİRİŞİ'!G6 -> 0 | J7: =ROUND(I7*KATSAYILAR!$C$3*KATSAYILAR!$B$39,2) -> 0 | K7: ='EK DERS VERİ GİRİŞİ'!H6 -> 0 | L7: =ROUND(K7*KATSAYILAR!$C$3*KATSAYILAR!$B$40,2) -> 0 | M7: =E7+G7+I7+K7 -> 180 | N7: =ROUNDUP(M7/7.5,0) -> 24 | O7: =F7+H7+J7+L7 -> 19173.95 | P7: =IF(O7=0,0,IF(O7<KATSAYILAR!$C$9*N7,KATSAYILAR!$C$9*N7,O7)) -> 19173.95 | Q7: =ROUND(IF('BİLGİ GİRİŞİ'!D6="Ücretli Öğretmen",P7*KATSAYILAR!$C$22,0),2) -> 3930.66 | R7: =ROUND(IF('BİLGİ GİRİŞİ'!D6="Ücretli Öğretmen (Emekli çalışan)",P7*KATSAYILAR!$C$24,0),2) -> 0 | S7: =O7+Q7+R7 -> 23104.61 | T7: ='BİLGİ GİRİŞİ'!F6 -> 0 | U7: =IF('BİLGİ GİRİŞİ'!G6=KATSAYILAR!$B$16,KATSAYILAR!$C$16, IF('BİLGİ GİRİŞİ'!G6=KATSAYILAR!$B$17,KATSAYILAR!$C$17, IF('BİLGİ GİRİŞİ'!G6=KATSAYILAR!$B$18,KATSAYILAR!$C$18,0))) -> 0 | V7: ='BİLGİ GİRİŞİ'!H6 -> 0 | W7: =IF(O7-U7-V7-AF7-AH7<=0,0,O7-U7-V7-AF7-AH7) -> 16489.6 | X7: =hesaplamalar!J4 -> 2473.44 | Y7: =hesaplamalar!M4 -> 2473.44 | Z7: =hesaplamalar!N4 -> 0 | AA7: =hesaplamalar!P4 -> 19173.95 | AB7: =hesaplamalar!Q4 -> 145.53 | AC7: =hesaplamalar!T4 -> 145.53 | AD7: =hesaplamalar!U4 -> 0 | AE7: =Q7 -> 3930.66 | AF7: =ROUND(IF('BİLGİ GİRİŞİ'!D6="Ücretli Öğretmen",P7*KATSAYILAR!$C$23,0),2) -> 2684.35 | AG7: =R7 -> 0 | AH7: =ROUND(IF('BİLGİ GİRİŞİ'!D6="Ücretli Öğretmen (Emekli çalışan)",P7*KATSAYILAR!$C$34,0),2) -> 0 | AI7: ='BİLGİ GİRİŞİ'!I6 -> 0 | AJ7: =Z7+AD7+AE7+AF7+AG7+AH7+AI7 -> 6615.01 | AK7: =S7-AJ7 -> 16489.6 | AM7: =IF(AK7<>0,1,0) -> 1 | AO7: ='BİLGİ GİRİŞİ'!E6 -> TR150000000000000000000000
A8: ='EK DERS VERİ GİRİŞİ'!A7 -> 3 | B8: ='EK DERS VERİ GİRİŞİ'!B7 -> 12345678910 | C8: ='EK DERS VERİ GİRİŞİ'!C7 -> SAMET YAĞMUR | D8: ='BİLGİ GİRİŞİ'!D7 -> Ücretli Öğretmen | E8: ='EK DERS VERİ GİRİŞİ'!E7 -> 155 | F8: =ROUND(E8*KATSAYILAR!$C$3*KATSAYILAR!$B$37,2) -> 16510.9 | G8: ='EK DERS VERİ GİRİŞİ'!F7 -> 0 | H8: =ROUND(G8*KATSAYILAR!$C$3*KATSAYILAR!$B$38,2) -> 0 | I8: ='EK DERS VERİ GİRİŞİ'!G7 -> 0 | J8: =ROUND(I8*KATSAYILAR!$C$3*KATSAYILAR!$B$39,2) -> 0 | K8: ='EK DERS VERİ GİRİŞİ'!H7 -> 0 | L8: =ROUND(K8*KATSAYILAR!$C$3*KATSAYILAR!$B$40,2) -> 0 | M8: 155 | N8: 21 | O8: 16510.9 | P8: =IF(O8=0,0,IF(O8<KATSAYILAR!$C$9*N8,KATSAYILAR!$C$9*N8,O8)) -> 16510.9 | Q8: =ROUND(IF('BİLGİ GİRİŞİ'!D7="Ücretli Öğretmen",P8*KATSAYILAR!$C$22,0),2) -> 3384.73 | R8: =ROUND(IF('BİLGİ GİRİŞİ'!D7="Ücretli Öğretmen (Emekli çalışan)",P8*KATSAYILAR!$C$24,0),2) -> 0 | S8: 19895.63 | T8: ='BİLGİ GİRİŞİ'!F7 -> 0 | U8: =IF('BİLGİ GİRİŞİ'!G7=KATSAYILAR!$B$16,KATSAYILAR!$C$16, IF('BİLGİ GİRİŞİ'!G7=KATSAYILAR!$B$17,KATSAYILAR!$C$17, IF('BİLGİ GİRİŞİ'!G7=KATSAYILAR!$B$18,KATSAYILAR!$C$18,0))) -> 0 | V8: ='BİLGİ GİRİŞİ'!H7 -> 0 | W8: 14199.37 | X8: =hesaplamalar!J5 -> 2129.91 | Y8: =hesaplamalar!M5 -> 2129.91 | Z8: =hesaplamalar!N5 -> 0 | AA8: =hesaplamalar!P5 -> 16510.9 | AB8: =hesaplamalar!Q5 -> 125.32 | AC8: =hesaplamalar!T5 -> 125.32 | AD8: =hesaplamalar!U5 -> 0 | AE8: 3384.73 | AF8: =ROUND(IF('BİLGİ GİRİŞİ'!D7="Ücretli Öğretmen",P8*KATSAYILAR!$C$23,0),2) -> 2311.53 | AG8: 0 | AH8: =ROUND(IF('BİLGİ GİRİŞİ'!D7="Ücretli Öğretmen (Emekli çalışan)",P8*KATSAYILAR!$C$34,0),2) -> 0 | AI8: ='BİLGİ GİRİŞİ'!I7 -> 0 | AJ8: 5696.26 | AK8: 14199.37 | AM8: 1 | AO8: ='BİLGİ GİRİŞİ'!E7 -> TR150000000000000000000000
A9: ='EK DERS VERİ GİRİŞİ'!A8 -> 4 | B9: ='EK DERS VERİ GİRİŞİ'!B8 -> 12345678910 | C9: ='EK DERS VERİ GİRİŞİ'!C8 -> SAMET YAĞMUR | D9: ='BİLGİ GİRİŞİ'!D8 -> Ücretli Öğretmen | E9: ='EK DERS VERİ GİRİŞİ'!E8 -> 100 | F9: =ROUND(E9*KATSAYILAR!$C$3*KATSAYILAR!$B$37,2) -> 10652.19 | G9: ='EK DERS VERİ GİRİŞİ'!F8 -> 0 | H9: =ROUND(G9*KATSAYILAR!$C$3*KATSAYILAR!$B$38,2) -> 0 | I9: ='EK DERS VERİ GİRİŞİ'!G8 -> 0 | J9: =ROUND(I9*KATSAYILAR!$C$3*KATSAYILAR!$B$39,2) -> 0 | K9: ='EK DERS VERİ GİRİŞİ'!H8 -> 0 | L9: =ROUND(K9*KATSAYILAR!$C$3*KATSAYILAR!$B$40,2) -> 0 | M9: 100 | N9: 14 | O9: 10652.19 | P9: =IF(O9=0,0,IF(O9<KATSAYILAR!$C$9*N9,KATSAYILAR!$C$9*N9,O9)) -> 10652.19 | Q9: =ROUND(IF('BİLGİ GİRİŞİ'!D8="Ücretli Öğretmen",P9*KATSAYILAR!$C$22,0),2) -> 2183.7 | R9: =ROUND(IF('BİLGİ GİRİŞİ'!D8="Ücretli Öğretmen (Emekli çalışan)",P9*KATSAYILAR!$C$24,0),2) -> 0 | S9: 12835.89 | T9: ='BİLGİ GİRİŞİ'!F8 -> 0 | U9: =IF('BİLGİ GİRİŞİ'!G8=KATSAYILAR!$B$16,KATSAYILAR!$C$16, IF('BİLGİ GİRİŞİ'!G8=KATSAYILAR!$B$17,KATSAYILAR!$C$17, IF('BİLGİ GİRİŞİ'!G8=KATSAYILAR!$B$18,KATSAYILAR!$C$18,0))) -> 0 | V9: ='BİLGİ GİRİŞİ'!H8 -> 0 | W9: 9160.88 | X9: =hesaplamalar!J6 -> 1374.13 | Y9: =hesaplamalar!M6 -> 1374.13 | Z9: =hesaplamalar!N6 -> 0 | AA9: =hesaplamalar!P6 -> 10652.19 | AB9: =hesaplamalar!Q6 -> 80.85 | AC9: =hesaplamalar!T6 -> 80.85 | AD9: =hesaplamalar!U6 -> 0 | AE9: 2183.7 | AF9: =ROUND(IF('BİLGİ GİRİŞİ'!D8="Ücretli Öğretmen",P9*KATSAYILAR!$C$23,0),2) -> 1491.31 | AG9: 0 | AH9: =ROUND(IF('BİLGİ GİRİŞİ'!D8="Ücretli Öğretmen (Emekli çalışan)",P9*KATSAYILAR!$C$34,0),2) -> 0 | AI9: ='BİLGİ GİRİŞİ'!I8 -> 0 | AJ9: 3675.01 | AK9: 9160.88 | AM9: 1 | AO9: ='BİLGİ GİRİŞİ'!E8 -> TR150000000000000000000000
A10: ='EK DERS VERİ GİRİŞİ'!A9 -> 5 | B10: ='EK DERS VERİ GİRİŞİ'!B9 -> 12345678910 | C10: ='EK DERS VERİ GİRİŞİ'!C9 -> SAMET YAĞMUR | D10: ='BİLGİ GİRİŞİ'!D9 -> Ücretli Öğretmen | E10: ='EK DERS VERİ GİRİŞİ'!E9 -> 0 | F10: =ROUND(E10*KATSAYILAR!$C$3*KATSAYILAR!$B$37,2) -> 0 | G10: ='EK DERS VERİ GİRİŞİ'!F9 -> 0 | H10: =ROUND(G10*KATSAYILAR!$C$3*KATSAYILAR!$B$38,2) -> 0 | I10: ='EK DERS VERİ GİRİŞİ'!G9 -> 0 | J10: =ROUND(I10*KATSAYILAR!$C$3*KATSAYILAR!$B$39,2) -> 0 | K10: ='EK DERS VERİ GİRİŞİ'!H9 -> 0 | L10: =ROUND(K10*KATSAYILAR!$C$3*KATSAYILAR!$B$40,2) -> 0 | M10: 0 | N10: 0 | O10: 0 | P10: =IF(O10=0,0,IF(O10<KATSAYILAR!$C$9*N10,KATSAYILAR!$C$9*N10,O10)) -> 0 | Q10: =ROUND(IF('BİLGİ GİRİŞİ'!D9="Ücretli Öğretmen",P10*KATSAYILAR!$C$22,0),2) -> 0 | R10: =ROUND(IF('BİLGİ GİRİŞİ'!D9="Ücretli Öğretmen (Emekli çalışan)",P10*KATSAYILAR!$C$24,0),2) -> 0 | S10: 0 | T10: ='BİLGİ GİRİŞİ'!F9 -> 0 | U10: =IF('BİLGİ GİRİŞİ'!G9=KATSAYILAR!$B$16,KATSAYILAR!$C$16, IF('BİLGİ GİRİŞİ'!G9=KATSAYILAR!$B$17,KATSAYILAR!$C$17, IF('BİLGİ GİRİŞİ'!G9=KATSAYILAR!$B$18,KATSAYILAR!$C$18,0))) -> 0 | V10: ='BİLGİ GİRİŞİ'!H9 -> 0 | W10: 0 | X10: =hesaplamalar!J7 -> 0 | Y10: =hesaplamalar!M7 -> 0 | Z10: =hesaplamalar!N7 -> 0 | AA10: =hesaplamalar!P7 -> 0 | AB10: =hesaplamalar!Q7 -> 0 | AC10: =hesaplamalar!T7 -> 0 | AD10: =hesaplamalar!U7 -> 0 | AE10: 0 | AF10: =ROUND(IF('BİLGİ GİRİŞİ'!D9="Ücretli Öğretmen",P10*KATSAYILAR!$C$23,0),2) -> 0 | AG10: 0 | AH10: =ROUND(IF('BİLGİ GİRİŞİ'!D9="Ücretli Öğretmen (Emekli çalışan)",P10*KATSAYILAR!$C$34,0),2) -> 0 | AI10: ='BİLGİ GİRİŞİ'!I9 -> 0 | AJ10: 0 | AK10: 0 | AM10: 0 | AO10: ='BİLGİ GİRİŞİ'!E9 -> TR150000000000000000000000
A11: ='EK DERS VERİ GİRİŞİ'!A10 -> 6 | B11: ='EK DERS VERİ GİRİŞİ'!B10 -> 12345678910 | C11: ='EK DERS VERİ GİRİŞİ'!C10 -> SAMET YAĞMUR | D11: ='BİLGİ GİRİŞİ'!D10 -> Ücretli Öğretmen (Emekli çalışan) | E11: ='EK DERS VERİ GİRİŞİ'!E10 -> 0 | F11: =ROUND(E11*KATSAYILAR!$C$3*KATSAYILAR!$B$37,2) -> 0 | G11: ='EK DERS VERİ GİRİŞİ'!F10 -> 0 | H11: =ROUND(G11*KATSAYILAR!$C$3*KATSAYILAR!$B$38,2) -> 0 | I11: ='EK DERS VERİ GİRİŞİ'!G10 -> 0 | J11: =ROUND(I11*KATSAYILAR!$C$3*KATSAYILAR!$B$39,2) -> 0 | K11: ='EK DERS VERİ GİRİŞİ'!H10 -> 0 | L11: =ROUND(K11*KATSAYILAR!$C$3*KATSAYILAR!$B$40,2) -> 0 | M11: 0 | N11: 0 | O11: 0 | P11: =IF(O11=0,0,IF(O11<KATSAYILAR!$C$9*N11,KATSAYILAR!$C$9*N11,O11)) -> 0 | Q11: =ROUND(IF('BİLGİ GİRİŞİ'!D10="Ücretli Öğretmen",P11*KATSAYILAR!$C$22,0),2) -> 0 | R11: =ROUND(IF('BİLGİ GİRİŞİ'!D10="Ücretli Öğretmen (Emekli çalışan)",P11*KATSAYILAR!$C$24,0),2) -> 0 | S11: 0 | T11: ='BİLGİ GİRİŞİ'!F10 -> 0 | U11: =IF('BİLGİ GİRİŞİ'!G10=KATSAYILAR!$B$16,KATSAYILAR!$C$16, IF('BİLGİ GİRİŞİ'!G10=KATSAYILAR!$B$17,KATSAYILAR!$C$17, IF('BİLGİ GİRİŞİ'!G10=KATSAYILAR!$B$18,KATSAYILAR!$C$18,0))) -> 0 | V11: ='BİLGİ GİRİŞİ'!H10 -> 0 | W11: 0 | X11: =hesaplamalar!J8 -> 0 | Y11: =hesaplamalar!M8 -> 0 | Z11: =hesaplamalar!N8 -> 0 | AA11: =hesaplamalar!P8 -> 0 | AB11: =hesaplamalar!Q8 -> 0 | AC11: =hesaplamalar!T8 -> 0 | AD11: =hesaplamalar!U8 -> 0 | AE11: 0 | AF11: =ROUND(IF('BİLGİ GİRİŞİ'!D10="Ücretli Öğretmen",P11*KATSAYILAR!$C$23,0),2) -> 0 | AG11: 0 | AH11: =ROUND(IF('BİLGİ GİRİŞİ'!D10="Ücretli Öğretmen (Emekli çalışan)",P11*KATSAYILAR!$C$34,0),2) -> 0 | AI11: ='BİLGİ GİRİŞİ'!I10 -> 0 | AJ11: 0 | AK11: 0 | AM11: 0 | AO11: ='BİLGİ GİRİŞİ'!E10 -> TR150000000000000000000000
A12: ='EK DERS VERİ GİRİŞİ'!A11 -> 7 | B12: ='EK DERS VERİ GİRİŞİ'!B11 ->  | C12: ='EK DERS VERİ GİRİŞİ'!C11 ->  | D12: ='BİLGİ GİRİŞİ'!D11 -> 0 | E12: ='EK DERS VERİ GİRİŞİ'!E11 -> 0 | F12: =ROUND(E12*KATSAYILAR!$C$3*KATSAYILAR!$B$37,2) -> 0 | G12: ='EK DERS VERİ GİRİŞİ'!F11 -> 0 | H12: =ROUND(G12*KATSAYILAR!$C$3*KATSAYILAR!$B$38,2) -> 0 | I12: ='EK DERS VERİ GİRİŞİ'!G11 -> 0 | J12: =ROUND(I12*KATSAYILAR!$C$3*KATSAYILAR!$B$39,2) -> 0 | K12: ='EK DERS VERİ GİRİŞİ'!H11 -> 0 | L12: =ROUND(K12*KATSAYILAR!$C$3*KATSAYILAR!$B$40,2) -> 0 | M12: 0 | N12: 0 | O12: 0 | P12: =IF(O12=0,0,IF(O12<KATSAYILAR!$C$9*N12,KATSAYILAR!$C$9*N12,O12)) -> 0 | Q12: =ROUND(IF('BİLGİ GİRİŞİ'!D11="Ücretli Öğretmen",P12*KATSAYILAR!$C$22,0),2) -> 0 | R12: =ROUND(IF('BİLGİ GİRİŞİ'!D11="Ücretli Öğretmen (Emekli çalışan)",P12*KATSAYILAR!$C$24,0),2) -> 0 | S12: 0 | T12: ='BİLGİ GİRİŞİ'!F11 -> 0 | U12: =IF('BİLGİ GİRİŞİ'!G11=KATSAYILAR!$B$16,KATSAYILAR!$C$16, IF('BİLGİ GİRİŞİ'!G11=KATSAYILAR!$B$17,KATSAYILAR!$C$17, IF('BİLGİ GİRİŞİ'!G11=KATSAYILAR!$B$18,KATSAYILAR!$C$18,0))) -> 0 | V12: ='BİLGİ GİRİŞİ'!H11 -> 0 | W12: 0 | X12: =hesaplamalar!J9 -> 0 | Y12: =hesaplamalar!M9 -> 0 | Z12: =hesaplamalar!N9 -> 0 | AA12: =hesaplamalar!P9 -> 0 | AB12: =hesaplamalar!Q9 -> 0 | AC12: =hesaplamalar!T9 -> 0 | AD12: =hesaplamalar!U9 -> 0 | AE12: 0 | AF12: =ROUND(IF('BİLGİ GİRİŞİ'!D11="Ücretli Öğretmen",P12*KATSAYILAR!$C$23,0),2) -> 0 | AG12: 0 | AH12: =ROUND(IF('BİLGİ GİRİŞİ'!D11="Ücretli Öğretmen (Emekli çalışan)",P12*KATSAYILAR!$C$34,0),2) -> 0 | AI12: ='BİLGİ GİRİŞİ'!I11 -> 0 | AJ12: 0 | AK12: 0 | AM12: 0 | AO12: ='BİLGİ GİRİŞİ'!E11 -> 0
A13: ='EK DERS VERİ GİRİŞİ'!A12 -> 8 | B13: ='EK DERS VERİ GİRİŞİ'!B12 ->  | C13: ='EK DERS VERİ GİRİŞİ'!C12 ->  | D13: ='BİLGİ GİRİŞİ'!D12 -> 0 | E13: ='EK DERS VERİ GİRİŞİ'!E12 -> 0 | F13: =ROUND(E13*KATSAYILAR!$C$3*KATSAYILAR!$B$37,2) -> 0 | G13: ='EK DERS VERİ GİRİŞİ'!F12 -> 0 | H13: =ROUND(G13*KATSAYILAR!$C$3*KATSAYILAR!$B$38,2) -> 0 | I13: ='EK DERS VERİ GİRİŞİ'!G12 -> 0 | J13: =ROUND(I13*KATSAYILAR!$C$3*KATSAYILAR!$B$39,2) -> 0 | K13: ='EK DERS VERİ GİRİŞİ'!H12 -> 0 | L13: =ROUND(K13*KATSAYILAR!$C$3*KATSAYILAR!$B$40,2) -> 0 | M13: 0 | N13: 0 | O13: 0 | P13: =IF(O13=0,0,IF(O13<KATSAYILAR!$C$9*N13,KATSAYILAR!$C$9*N13,O13)) -> 0 | Q13: =ROUND(IF('BİLGİ GİRİŞİ'!D12="Ücretli Öğretmen",P13*KATSAYILAR!$C$22,0),2) -> 0 | R13: =ROUND(IF('BİLGİ GİRİŞİ'!D12="Ücretli Öğretmen (Emekli çalışan)",P13*KATSAYILAR!$C$24,0),2) -> 0 | S13: 0 | T13: ='BİLGİ GİRİŞİ'!F12 -> 0 | U13: =IF('BİLGİ GİRİŞİ'!G12=KATSAYILAR!$B$16,KATSAYILAR!$C$16, IF('BİLGİ GİRİŞİ'!G12=KATSAYILAR!$B$17,KATSAYILAR!$C$17, IF('BİLGİ GİRİŞİ'!G12=KATSAYILAR!$B$18,KATSAYILAR!$C$18,0))) -> 0 | V13: ='BİLGİ GİRİŞİ'!H12 -> 0 | W13: 0 | X13: =hesaplamalar!J10 -> 0 | Y13: =hesaplamalar!M10 -> 0 | Z13: =hesaplamalar!N10 -> 0 | AA13: =hesaplamalar!P10 -> 0 | AB13: =hesaplamalar!Q10 -> 0 | AC13: =hesaplamalar!T10 -> 0 | AD13: =hesaplamalar!U10 -> 0 | AE13: 0 | AF13: =ROUND(IF('BİLGİ GİRİŞİ'!D12="Ücretli Öğretmen",P13*KATSAYILAR!$C$23,0),2) -> 0 | AG13: 0 | AH13: =ROUND(IF('BİLGİ GİRİŞİ'!D12="Ücretli Öğretmen (Emekli çalışan)",P13*KATSAYILAR!$C$34,0),2) -> 0 | AI13: ='BİLGİ GİRİŞİ'!I12 -> 0 | AJ13: 0 | AK13: 0 | AM13: 0 | AO13: ='BİLGİ GİRİŞİ'!E12 -> 0
A14: ='EK DERS VERİ GİRİŞİ'!A13 -> 9 | B14: ='EK DERS VERİ GİRİŞİ'!B13 ->  | C14: ='EK DERS VERİ GİRİŞİ'!C13 ->  | D14: ='BİLGİ GİRİŞİ'!D13 -> 0 | E14: ='EK DERS VERİ GİRİŞİ'!E13 -> 0 | F14: =ROUND(E14*KATSAYILAR!$C$3*KATSAYILAR!$B$37,2) -> 0 | G14: ='EK DERS VERİ GİRİŞİ'!F13 -> 0 | H14: =ROUND(G14*KATSAYILAR!$C$3*KATSAYILAR!$B$38,2) -> 0 | I14: ='EK DERS VERİ GİRİŞİ'!G13 -> 0 | J14: =ROUND(I14*KATSAYILAR!$C$3*KATSAYILAR!$B$39,2) -> 0 | K14: ='EK DERS VERİ GİRİŞİ'!H13 -> 0 | L14: =ROUND(K14*KATSAYILAR!$C$3*KATSAYILAR!$B$40,2) -> 0 | M14: 0 | N14: 0 | O14: 0 | P14: =IF(O14=0,0,IF(O14<KATSAYILAR!$C$9*N14,KATSAYILAR!$C$9*N14,O14)) -> 0 | Q14: =ROUND(IF('BİLGİ GİRİŞİ'!D13="Ücretli Öğretmen",P14*KATSAYILAR!$C$22,0),2) -> 0 | R14: =ROUND(IF('BİLGİ GİRİŞİ'!D13="Ücretli Öğretmen (Emekli çalışan)",P14*KATSAYILAR!$C$24,0),2) -> 0 | S14: 0 | T14: ='BİLGİ GİRİŞİ'!F13 -> 0 | U14: =IF('BİLGİ GİRİŞİ'!G13=KATSAYILAR!$B$16,KATSAYILAR!$C$16, IF('BİLGİ GİRİŞİ'!G13=KATSAYILAR!$B$17,KATSAYILAR!$C$17, IF('BİLGİ GİRİŞİ'!G13=KATSAYILAR!$B$18,KATSAYILAR!$C$18,0))) -> 0 | V14: ='BİLGİ GİRİŞİ'!H13 -> 0 | W14: 0 | X14: =hesaplamalar!J11 -> 0 | Y14: =hesaplamalar!M11 -> 0 | Z14: =hesaplamalar!N11 -> 0 | AA14: =hesaplamalar!P11 -> 0 | AB14: =hesaplamalar!Q11 -> 0 | AC14: =hesaplamalar!T11 -> 0 | AD14: =hesaplamalar!U11 -> 0 | AE14: 0 | AF14: =ROUND(IF('BİLGİ GİRİŞİ'!D13="Ücretli Öğretmen",P14*KATSAYILAR!$C$23,0),2) -> 0 | AG14: 0 | AH14: =ROUND(IF('BİLGİ GİRİŞİ'!D13="Ücretli Öğretmen (Emekli çalışan)",P14*KATSAYILAR!$C$34,0),2) -> 0 | AI14: ='BİLGİ GİRİŞİ'!I13 -> 0 | AJ14: 0 | AK14: 0 | AM14: 0 | AO14: ='BİLGİ GİRİŞİ'!E13 -> 0
A15: ='EK DERS VERİ GİRİŞİ'!A14 -> 10 | B15: ='EK DERS VERİ GİRİŞİ'!B14 ->  | C15: ='EK DERS VERİ GİRİŞİ'!C14 ->  | D15: ='BİLGİ GİRİŞİ'!D14 -> 0 | E15: ='EK DERS VERİ GİRİŞİ'!E14 -> 0 | F15: =ROUND(E15*KATSAYILAR!$C$3*KATSAYILAR!$B$37,2) -> 0 | G15: ='EK DERS VERİ GİRİŞİ'!F14 -> 0 | H15: =ROUND(G15*KATSAYILAR!$C$3*KATSAYILAR!$B$38,2) -> 0 | I15: ='EK DERS VERİ GİRİŞİ'!G14 -> 0 | J15: =ROUND(I15*KATSAYILAR!$C$3*KATSAYILAR!$B$39,2) -> 0 | K15: ='EK DERS VERİ GİRİŞİ'!H14 -> 0 | L15: =ROUND(K15*KATSAYILAR!$C$3*KATSAYILAR!$B$40,2) -> 0 | M15: 0 | N15: 0 | O15: 0 | P15: =IF(O15=0,0,IF(O15<KATSAYILAR!$C$9*N15,KATSAYILAR!$C$9*N15,O15)) -> 0 | Q15: =ROUND(IF('BİLGİ GİRİŞİ'!D14="Ücretli Öğretmen",P15*KATSAYILAR!$C$22,0),2) -> 0 | R15: =ROUND(IF('BİLGİ GİRİŞİ'!D14="Ücretli Öğretmen (Emekli çalışan)",P15*KATSAYILAR!$C$24,0),2) -> 0 | S15: 0 | T15: ='BİLGİ GİRİŞİ'!F14 -> 0 | U15: =IF('BİLGİ GİRİŞİ'!G14=KATSAYILAR!$B$16,KATSAYILAR!$C$16, IF('BİLGİ GİRİŞİ'!G14=KATSAYILAR!$B$17,KATSAYILAR!$C$17, IF('BİLGİ GİRİŞİ'!G14=KATSAYILAR!$B$18,KATSAYILAR!$C$18,0))) -> 0 | V15: ='BİLGİ GİRİŞİ'!H14 -> 0 | W15: 0 | X15: =hesaplamalar!J12 -> 0 | Y15: =hesaplamalar!M12 -> 0 | Z15: =hesaplamalar!N12 -> 0 | AA15: =hesaplamalar!P12 -> 0 | AB15: =hesaplamalar!Q12 -> 0 | AC15: =hesaplamalar!T12 -> 0 | AD15: =hesaplamalar!U12 -> 0 | AE15: 0 | AF15: =ROUND(IF('BİLGİ GİRİŞİ'!D14="Ücretli Öğretmen",P15*KATSAYILAR!$C$23,0),2) -> 0 | AG15: 0 | AH15: =ROUND(IF('BİLGİ GİRİŞİ'!D14="Ücretli Öğretmen (Emekli çalışan)",P15*KATSAYILAR!$C$34,0),2) -> 0 | AI15: ='BİLGİ GİRİŞİ'!I14 -> 0 | AJ15: 0 | AK15: 0 | AM15: 0 | AO15: ='BİLGİ GİRİŞİ'!E14 -> 0
A16: ='EK DERS VERİ GİRİŞİ'!A15 -> 11 | B16: ='EK DERS VERİ GİRİŞİ'!B15 ->  | C16: ='EK DERS VERİ GİRİŞİ'!C15 ->  | D16: ='BİLGİ GİRİŞİ'!D15 -> 0 | E16: ='EK DERS VERİ GİRİŞİ'!E15 -> 0 | F16: =ROUND(E16*KATSAYILAR!$C$3*KATSAYILAR!$B$37,2) -> 0 | G16: ='EK DERS VERİ GİRİŞİ'!F15 -> 0 | H16: =ROUND(G16*KATSAYILAR!$C$3*KATSAYILAR!$B$38,2) -> 0 | I16: ='EK DERS VERİ GİRİŞİ'!G15 -> 0 | J16: =ROUND(I16*KATSAYILAR!$C$3*KATSAYILAR!$B$39,2) -> 0 | K16: ='EK DERS VERİ GİRİŞİ'!H15 -> 0 | L16: =ROUND(K16*KATSAYILAR!$C$3*KATSAYILAR!$B$40,2) -> 0 | M16: 0 | N16: 0 | O16: 0 | P16: =IF(O16=0,0,IF(O16<KATSAYILAR!$C$9*N16,KATSAYILAR!$C$9*N16,O16)) -> 0 | Q16: =ROUND(IF('BİLGİ GİRİŞİ'!D15="Ücretli Öğretmen",P16*KATSAYILAR!$C$22,0),2) -> 0 | R16: =ROUND(IF('BİLGİ GİRİŞİ'!D15="Ücretli Öğretmen (Emekli çalışan)",P16*KATSAYILAR!$C$24,0),2) -> 0 | S16: 0 | T16: ='BİLGİ GİRİŞİ'!F15 -> 0 | U16: =IF('BİLGİ GİRİŞİ'!G15=KATSAYILAR!$B$16,KATSAYILAR!$C$16, IF('BİLGİ GİRİŞİ'!G15=KATSAYILAR!$B$17,KATSAYILAR!$C$17, IF('BİLGİ GİRİŞİ'!G15=KATSAYILAR!$B$18,KATSAYILAR!$C$18,0))) -> 0 | V16: ='BİLGİ GİRİŞİ'!H15 -> 0 | W16: 0 | X16: =hesaplamalar!J13 -> 0 | Y16: =hesaplamalar!M13 -> 0 | Z16: =hesaplamalar!N13 -> 0 | AA16: =hesaplamalar!P13 -> 0 | AB16: =hesaplamalar!Q13 -> 0 | AC16: =hesaplamalar!T13 -> 0 | AD16: =hesaplamalar!U13 -> 0 | AE16: 0 | AF16: =ROUND(IF('BİLGİ GİRİŞİ'!D15="Ücretli Öğretmen",P16*KATSAYILAR!$C$23,0),2) -> 0 | AG16: 0 | AH16: =ROUND(IF('BİLGİ GİRİŞİ'!D15="Ücretli Öğretmen (Emekli çalışan)",P16*KATSAYILAR!$C$34,0),2) -> 0 | AI16: ='BİLGİ GİRİŞİ'!I15 -> 0 | AJ16: 0 | AK16: 0 | AM16: 0 | AO16: ='BİLGİ GİRİŞİ'!E15 -> 0
A17: ='EK DERS VERİ GİRİŞİ'!A16 -> 12 | B17: ='EK DERS VERİ GİRİŞİ'!B16 ->  | C17: ='EK DERS VERİ GİRİŞİ'!C16 ->  | D17: ='BİLGİ GİRİŞİ'!D16 -> 0 | E17: ='EK DERS VERİ GİRİŞİ'!E16 -> 0 | F17: =ROUND(E17*KATSAYILAR!$C$3*KATSAYILAR!$B$37,2) -> 0 | G17: ='EK DERS VERİ GİRİŞİ'!F16 -> 0 | H17: =ROUND(G17*KATSAYILAR!$C$3*KATSAYILAR!$B$38,2) -> 0 | I17: ='EK DERS VERİ GİRİŞİ'!G16 -> 0 | J17: =ROUND(I17*KATSAYILAR!$C$3*KATSAYILAR!$B$39,2) -> 0 | K17: ='EK DERS VERİ GİRİŞİ'!H16 -> 0 | L17: =ROUND(K17*KATSAYILAR!$C$3*KATSAYILAR!$B$40,2) -> 0 | M17: 0 | N17: 0 | O17: 0 | P17: =IF(O17=0,0,IF(O17<KATSAYILAR!$C$9*N17,KATSAYILAR!$C$9*N17,O17)) -> 0 | Q17: =ROUND(IF('BİLGİ GİRİŞİ'!D16="Ücretli Öğretmen",P17*KATSAYILAR!$C$22,0),2) -> 0 | R17: =ROUND(IF('BİLGİ GİRİŞİ'!D16="Ücretli Öğretmen (Emekli çalışan)",P17*KATSAYILAR!$C$24,0),2) -> 0 | S17: 0 | T17: ='BİLGİ GİRİŞİ'!F16 -> 0 | U17: =IF('BİLGİ GİRİŞİ'!G16=KATSAYILAR!$B$16,KATSAYILAR!$C$16, IF('BİLGİ GİRİŞİ'!G16=KATSAYILAR!$B$17,KATSAYILAR!$C$17, IF('BİLGİ GİRİŞİ'!G16=KATSAYILAR!$B$18,KATSAYILAR!$C$18,0))) -> 0 | V17: ='BİLGİ GİRİŞİ'!H16 -> 0 | W17: 0 | X17: =hesaplamalar!J14 -> 0 | Y17: =hesaplamalar!M14 -> 0 | Z17: =hesaplamalar!N14 -> 0 | AA17: =hesaplamalar!P14 -> 0 | AB17: =hesaplamalar!Q14 -> 0 | AC17: =hesaplamalar!T14 -> 0 | AD17: =hesaplamalar!U14 -> 0 | AE17: 0 | AF17: =ROUND(IF('BİLGİ GİRİŞİ'!D16="Ücretli Öğretmen",P17*KATSAYILAR!$C$23,0),2) -> 0 | AG17: 0 | AH17: =ROUND(IF('BİLGİ GİRİŞİ'!D16="Ücretli Öğretmen (Emekli çalışan)",P17*KATSAYILAR!$C$34,0),2) -> 0 | AI17: ='BİLGİ GİRİŞİ'!I16 -> 0 | AJ17: 0 | AK17: 0 | AM17: 0 | AO17: ='BİLGİ GİRİŞİ'!E16 -> 0
A18: ='EK DERS VERİ GİRİŞİ'!A17 -> 13 | B18: ='EK DERS VERİ GİRİŞİ'!B17 ->  | C18: ='EK DERS VERİ GİRİŞİ'!C17 ->  | D18: ='BİLGİ GİRİŞİ'!D17 -> 0 | E18: ='EK DERS VERİ GİRİŞİ'!E17 -> 0 | F18: =ROUND(E18*KATSAYILAR!$C$3*KATSAYILAR!$B$37,2) -> 0 | G18: ='EK DERS VERİ GİRİŞİ'!F17 -> 0 | H18: =ROUND(G18*KATSAYILAR!$C$3*KATSAYILAR!$B$38,2) -> 0 | I18: ='EK DERS VERİ GİRİŞİ'!G17 -> 0 | J18: =ROUND(I18*KATSAYILAR!$C$3*KATSAYILAR!$B$39,2) -> 0 | K18: ='EK DERS VERİ GİRİŞİ'!H17 -> 0 | L18: =ROUND(K18*KATSAYILAR!$C$3*KATSAYILAR!$B$40,2) -> 0 | M18: 0 | N18: 0 | O18: 0 | P18: =IF(O18=0,0,IF(O18<KATSAYILAR!$C$9*N18,KATSAYILAR!$C$9*N18,O18)) -> 0 | Q18: =ROUND(IF('BİLGİ GİRİŞİ'!D17="Ücretli Öğretmen",P18*KATSAYILAR!$C$22,0),2) -> 0 | R18: =ROUND(IF('BİLGİ GİRİŞİ'!D17="Ücretli Öğretmen (Emekli çalışan)",P18*KATSAYILAR!$C$24,0),2) -> 0 | S18: 0 | T18: ='BİLGİ GİRİŞİ'!F17 -> 0 | U18: =IF('BİLGİ GİRİŞİ'!G17=KATSAYILAR!$B$16,KATSAYILAR!$C$16, IF('BİLGİ GİRİŞİ'!G17=KATSAYILAR!$B$17,KATSAYILAR!$C$17, IF('BİLGİ GİRİŞİ'!G17=KATSAYILAR!$B$18,KATSAYILAR!$C$18,0))) -> 0 | V18: ='BİLGİ GİRİŞİ'!H17 -> 0 | W18: 0 | X18: =hesaplamalar!J15 -> 0 | Y18: =hesaplamalar!M15 -> 0 | Z18: =hesaplamalar!N15 -> 0 | AA18: =hesaplamalar!P15 -> 0 | AB18: =hesaplamalar!Q15 -> 0 | AC18: =hesaplamalar!T15 -> 0 | AD18: =hesaplamalar!U15 -> 0 | AE18: 0 | AF18: =ROUND(IF('BİLGİ GİRİŞİ'!D17="Ücretli Öğretmen",P18*KATSAYILAR!$C$23,0),2) -> 0 | AG18: 0 | AH18: =ROUND(IF('BİLGİ GİRİŞİ'!D17="Ücretli Öğretmen (Emekli çalışan)",P18*KATSAYILAR!$C$34,0),2) -> 0 | AI18: ='BİLGİ GİRİŞİ'!I17 -> 0 | AJ18: 0 | AK18: 0 | AM18: 0 | AO18: ='BİLGİ GİRİŞİ'!E17 -> 0
A19: ='EK DERS VERİ GİRİŞİ'!A18 -> 14 | B19: ='EK DERS VERİ GİRİŞİ'!B18 ->  | C19: ='EK DERS VERİ GİRİŞİ'!C18 ->  | D19: ='BİLGİ GİRİŞİ'!D18 -> 0 | E19: ='EK DERS VERİ GİRİŞİ'!E18 -> 0 | F19: =ROUND(E19*KATSAYILAR!$C$3*KATSAYILAR!$B$37,2) -> 0 | G19: ='EK DERS VERİ GİRİŞİ'!F18 -> 0 | H19: =ROUND(G19*KATSAYILAR!$C$3*KATSAYILAR!$B$38,2) -> 0 | I19: ='EK DERS VERİ GİRİŞİ'!G18 -> 0 | J19: =ROUND(I19*KATSAYILAR!$C$3*KATSAYILAR!$B$39,2) -> 0 | K19: ='EK DERS VERİ GİRİŞİ'!H18 -> 0 | L19: =ROUND(K19*KATSAYILAR!$C$3*KATSAYILAR!$B$40,2) -> 0 | M19: 0 | N19: 0 | O19: 0 | P19: =IF(O19=0,0,IF(O19<KATSAYILAR!$C$9*N19,KATSAYILAR!$C$9*N19,O19)) -> 0 | Q19: =ROUND(IF('BİLGİ GİRİŞİ'!D18="Ücretli Öğretmen",P19*KATSAYILAR!$C$22,0),2) -> 0 | R19: =ROUND(IF('BİLGİ GİRİŞİ'!D18="Ücretli Öğretmen (Emekli çalışan)",P19*KATSAYILAR!$C$24,0),2) -> 0 | S19: 0 | T19: ='BİLGİ GİRİŞİ'!F18 -> 0 | U19: =IF('BİLGİ GİRİŞİ'!G18=KATSAYILAR!$B$16,KATSAYILAR!$C$16, IF('BİLGİ GİRİŞİ'!G18=KATSAYILAR!$B$17,KATSAYILAR!$C$17, IF('BİLGİ GİRİŞİ'!G18=KATSAYILAR!$B$18,KATSAYILAR!$C$18,0))) -> 0 | V19: ='BİLGİ GİRİŞİ'!H18 -> 0 | W19: 0 | X19: =hesaplamalar!J16 -> 0 | Y19: =hesaplamalar!M16 -> 0 | Z19: =hesaplamalar!N16 -> 0 | AA19: =hesaplamalar!P16 -> 0 | AB19: =hesaplamalar!Q16 -> 0 | AC19: =hesaplamalar!T16 -> 0 | AD19: =hesaplamalar!U16 -> 0 | AE19: 0 | AF19: =ROUND(IF('BİLGİ GİRİŞİ'!D18="Ücretli Öğretmen",P19*KATSAYILAR!$C$23,0),2) -> 0 | AG19: 0 | AH19: =ROUND(IF('BİLGİ GİRİŞİ'!D18="Ücretli Öğretmen (Emekli çalışan)",P19*KATSAYILAR!$C$34,0),2) -> 0 | AI19: ='BİLGİ GİRİŞİ'!I18 -> 0 | AJ19: 0 | AK19: 0 | AM19: 0 | AO19: ='BİLGİ GİRİŞİ'!E18 -> 0
A20: ='EK DERS VERİ GİRİŞİ'!A19 -> 15 | B20: ='EK DERS VERİ GİRİŞİ'!B19 ->  | C20: ='EK DERS VERİ GİRİŞİ'!C19 ->  | D20: ='BİLGİ GİRİŞİ'!D19 -> 0 | E20: ='EK DERS VERİ GİRİŞİ'!E19 -> 0 | F20: =ROUND(E20*KATSAYILAR!$C$3*KATSAYILAR!$B$37,2) -> 0 | G20: ='EK DERS VERİ GİRİŞİ'!F19 -> 0 | H20: =ROUND(G20*KATSAYILAR!$C$3*KATSAYILAR!$B$38,2) -> 0 | I20: ='EK DERS VERİ GİRİŞİ'!G19 -> 0 | J20: =ROUND(I20*KATSAYILAR!$C$3*KATSAYILAR!$B$39,2) -> 0 | K20: ='EK DERS VERİ GİRİŞİ'!H19 -> 0 | L20: =ROUND(K20*KATSAYILAR!$C$3*KATSAYILAR!$B$40,2) -> 0 | M20: 0 | N20: 0 | O20: 0 | P20: =IF(O20=0,0,IF(O20<KATSAYILAR!$C$9*N20,KATSAYILAR!$C$9*N20,O20)) -> 0 | Q20: =ROUND(IF('BİLGİ GİRİŞİ'!D19="Ücretli Öğretmen",P20*KATSAYILAR!$C$22,0),2) -> 0 | R20: =ROUND(IF('BİLGİ GİRİŞİ'!D19="Ücretli Öğretmen (Emekli çalışan)",P20*KATSAYILAR!$C$24,0),2) -> 0 | S20: 0 | T20: ='BİLGİ GİRİŞİ'!F19 -> 0 | U20: =IF('BİLGİ GİRİŞİ'!G19=KATSAYILAR!$B$16,KATSAYILAR!$C$16, IF('BİLGİ GİRİŞİ'!G19=KATSAYILAR!$B$17,KATSAYILAR!$C$17, IF('BİLGİ GİRİŞİ'!G19=KATSAYILAR!$B$18,KATSAYILAR!$C$18,0))) -> 0 | V20: ='BİLGİ GİRİŞİ'!H19 -> 0 | W20: 0 | X20: =hesaplamalar!J17 -> 0 | Y20: =hesaplamalar!M17 -> 0 | Z20: =hesaplamalar!N17 -> 0 | AA20: =hesaplamalar!P17 -> 0 | AB20: =hesaplamalar!Q17 -> 0 | AC20: =hesaplamalar!T17 -> 0 | AD20: =hesaplamalar!U17 -> 0 | AE20: 0 | AF20: =ROUND(IF('BİLGİ GİRİŞİ'!D19="Ücretli Öğretmen",P20*KATSAYILAR!$C$23,0),2) -> 0 | AG20: 0 | AH20: =ROUND(IF('BİLGİ GİRİŞİ'!D19="Ücretli Öğretmen (Emekli çalışan)",P20*KATSAYILAR!$C$34,0),2) -> 0 | AI20: ='BİLGİ GİRİŞİ'!I19 -> 0 | AJ20: 0 | AK20: 0 | AM20: 0 | AO20: ='BİLGİ GİRİŞİ'!E19 -> 0
A21: ='EK DERS VERİ GİRİŞİ'!A20 -> 16 | B21: ='EK DERS VERİ GİRİŞİ'!B20 ->  | C21: ='EK DERS VERİ GİRİŞİ'!C20 ->  | D21: ='BİLGİ GİRİŞİ'!D20 -> 0 | E21: ='EK DERS VERİ GİRİŞİ'!E20 -> 0 | F21: =ROUND(E21*KATSAYILAR!$C$3*KATSAYILAR!$B$37,2) -> 0 | G21: ='EK DERS VERİ GİRİŞİ'!F20 -> 0 | H21: =ROUND(G21*KATSAYILAR!$C$3*KATSAYILAR!$B$38,2) -> 0 | I21: ='EK DERS VERİ GİRİŞİ'!G20 -> 0 | J21: =ROUND(I21*KATSAYILAR!$C$3*KATSAYILAR!$B$39,2) -> 0 | K21: ='EK DERS VERİ GİRİŞİ'!H20 -> 0 | L21: =ROUND(K21*KATSAYILAR!$C$3*KATSAYILAR!$B$40,2) -> 0 | M21: 0 | N21: 0 | O21: 0 | P21: =IF(O21=0,0,IF(O21<KATSAYILAR!$C$9*N21,KATSAYILAR!$C$9*N21,O21)) -> 0 | Q21: =ROUND(IF('BİLGİ GİRİŞİ'!D20="Ücretli Öğretmen",P21*KATSAYILAR!$C$22,0),2) -> 0 | R21: =ROUND(IF('BİLGİ GİRİŞİ'!D20="Ücretli Öğretmen (Emekli çalışan)",P21*KATSAYILAR!$C$24,0),2) -> 0 | S21: 0 | T21: ='BİLGİ GİRİŞİ'!F20 -> 0 | U21: =IF('BİLGİ GİRİŞİ'!G20=KATSAYILAR!$B$16,KATSAYILAR!$C$16, IF('BİLGİ GİRİŞİ'!G20=KATSAYILAR!$B$17,KATSAYILAR!$C$17, IF('BİLGİ GİRİŞİ'!G20=KATSAYILAR!$B$18,KATSAYILAR!$C$18,0))) -> 0 | V21: ='BİLGİ GİRİŞİ'!H20 -> 0 | W21: 0 | X21: =hesaplamalar!J18 -> 0 | Y21: =hesaplamalar!M18 -> 0 | Z21: =hesaplamalar!N18 -> 0 | AA21: =hesaplamalar!P18 -> 0 | AB21: =hesaplamalar!Q18 -> 0 | AC21: =hesaplamalar!T18 -> 0 | AD21: =hesaplamalar!U18 -> 0 | AE21: 0 | AF21: =ROUND(IF('BİLGİ GİRİŞİ'!D20="Ücretli Öğretmen",P21*KATSAYILAR!$C$23,0),2) -> 0 | AG21: 0 | AH21: =ROUND(IF('BİLGİ GİRİŞİ'!D20="Ücretli Öğretmen (Emekli çalışan)",P21*KATSAYILAR!$C$34,0),2) -> 0 | AI21: ='BİLGİ GİRİŞİ'!I20 -> 0 | AJ21: 0 | AK21: 0 | AM21: 0 | AO21: ='BİLGİ GİRİŞİ'!E20 -> 0
A22: ='EK DERS VERİ GİRİŞİ'!A21 -> 17 | B22: ='EK DERS VERİ GİRİŞİ'!B21 ->  | C22: ='EK DERS VERİ GİRİŞİ'!C21 ->  | D22: ='BİLGİ GİRİŞİ'!D21 -> 0 | E22: ='EK DERS VERİ GİRİŞİ'!E21 -> 0 | F22: =ROUND(E22*KATSAYILAR!$C$3*KATSAYILAR!$B$37,2) -> 0 | G22: ='EK DERS VERİ GİRİŞİ'!F21 -> 0 | H22: =ROUND(G22*KATSAYILAR!$C$3*KATSAYILAR!$B$38,2) -> 0 | I22: ='EK DERS VERİ GİRİŞİ'!G21 -> 0 | J22: =ROUND(I22*KATSAYILAR!$C$3*KATSAYILAR!$B$39,2) -> 0 | K22: ='EK DERS VERİ GİRİŞİ'!H21 -> 0 | L22: =ROUND(K22*KATSAYILAR!$C$3*KATSAYILAR!$B$40,2) -> 0 | M22: 0 | N22: 0 | O22: 0 | P22: =IF(O22=0,0,IF(O22<KATSAYILAR!$C$9*N22,KATSAYILAR!$C$9*N22,O22)) -> 0 | Q22: =ROUND(IF('BİLGİ GİRİŞİ'!D21="Ücretli Öğretmen",P22*KATSAYILAR!$C$22,0),2) -> 0 | R22: =ROUND(IF('BİLGİ GİRİŞİ'!D21="Ücretli Öğretmen (Emekli çalışan)",P22*KATSAYILAR!$C$24,0),2) -> 0 | S22: 0 | T22: ='BİLGİ GİRİŞİ'!F21 -> 0 | U22: =IF('BİLGİ GİRİŞİ'!G21=KATSAYILAR!$B$16,KATSAYILAR!$C$16, IF('BİLGİ GİRİŞİ'!G21=KATSAYILAR!$B$17,KATSAYILAR!$C$17, IF('BİLGİ GİRİŞİ'!G21=KATSAYILAR!$B$18,KATSAYILAR!$C$18,0))) -> 0 | V22: ='BİLGİ GİRİŞİ'!H21 -> 0 | W22: 0 | X22: =hesaplamalar!J19 -> 0 | Y22: =hesaplamalar!M19 -> 0 | Z22: =hesaplamalar!N19 -> 0 | AA22: =hesaplamalar!P19 -> 0 | AB22: =hesaplamalar!Q19 -> 0 | AC22: =hesaplamalar!T19 -> 0 | AD22: =hesaplamalar!U19 -> 0 | AE22: 0 | AF22: =ROUND(IF('BİLGİ GİRİŞİ'!D21="Ücretli Öğretmen",P22*KATSAYILAR!$C$23,0),2) -> 0 | AG22: 0 | AH22: =ROUND(IF('BİLGİ GİRİŞİ'!D21="Ücretli Öğretmen (Emekli çalışan)",P22*KATSAYILAR!$C$34,0),2) -> 0 | AI22: ='BİLGİ GİRİŞİ'!I21 -> 0 | AJ22: 0 | AK22: 0 | AM22: 0 | AO22: ='BİLGİ GİRİŞİ'!E21 -> 0
A23: ='EK DERS VERİ GİRİŞİ'!A22 -> 18 | B23: ='EK DERS VERİ GİRİŞİ'!B22 ->  | C23: ='EK DERS VERİ GİRİŞİ'!C22 ->  | D23: ='BİLGİ GİRİŞİ'!D22 -> 0 | E23: ='EK DERS VERİ GİRİŞİ'!E22 -> 0 | F23: =ROUND(E23*KATSAYILAR!$C$3*KATSAYILAR!$B$37,2) -> 0 | G23: ='EK DERS VERİ GİRİŞİ'!F22 -> 0 | H23: =ROUND(G23*KATSAYILAR!$C$3*KATSAYILAR!$B$38,2) -> 0 | I23: ='EK DERS VERİ GİRİŞİ'!G22 -> 0 | J23: =ROUND(I23*KATSAYILAR!$C$3*KATSAYILAR!$B$39,2) -> 0 | K23: ='EK DERS VERİ GİRİŞİ'!H22 -> 0 | L23: =ROUND(K23*KATSAYILAR!$C$3*KATSAYILAR!$B$40,2) -> 0 | M23: 0 | N23: 0 | O23: 0 | P23: =IF(O23=0,0,IF(O23<KATSAYILAR!$C$9*N23,KATSAYILAR!$C$9*N23,O23)) -> 0 | Q23: =ROUND(IF('BİLGİ GİRİŞİ'!D22="Ücretli Öğretmen",P23*KATSAYILAR!$C$22,0),2) -> 0 | R23: =ROUND(IF('BİLGİ GİRİŞİ'!D22="Ücretli Öğretmen (Emekli çalışan)",P23*KATSAYILAR!$C$24,0),2) -> 0 | S23: 0 | T23: ='BİLGİ GİRİŞİ'!F22 -> 0 | U23: =IF('BİLGİ GİRİŞİ'!G22=KATSAYILAR!$B$16,KATSAYILAR!$C$16, IF('BİLGİ GİRİŞİ'!G22=KATSAYILAR!$B$17,KATSAYILAR!$C$17, IF('BİLGİ GİRİŞİ'!G22=KATSAYILAR!$B$18,KATSAYILAR!$C$18,0))) -> 0 | V23: ='BİLGİ GİRİŞİ'!H22 -> 0 | W23: 0 | X23: =hesaplamalar!J20 -> 0 | Y23: =hesaplamalar!M20 -> 0 | Z23: =hesaplamalar!N20 -> 0 | AA23: =hesaplamalar!P20 -> 0 | AB23: =hesaplamalar!Q20 -> 0 | AC23: =hesaplamalar!T20 -> 0 | AD23: =hesaplamalar!U20 -> 0 | AE23: 0 | AF23: =ROUND(IF('BİLGİ GİRİŞİ'!D22="Ücretli Öğretmen",P23*KATSAYILAR!$C$23,0),2) -> 0 | AG23: 0 | AH23: =ROUND(IF('BİLGİ GİRİŞİ'!D22="Ücretli Öğretmen (Emekli çalışan)",P23*KATSAYILAR!$C$34,0),2) -> 0 | AI23: ='BİLGİ GİRİŞİ'!I22 -> 0 | AJ23: 0 | AK23: 0 | AM23: 0 | AO23: ='BİLGİ GİRİŞİ'!E22 -> 0
A24: ='EK DERS VERİ GİRİŞİ'!A23 -> 19 | B24: ='EK DERS VERİ GİRİŞİ'!B23 ->  | C24: ='EK DERS VERİ GİRİŞİ'!C23 ->  | D24: ='BİLGİ GİRİŞİ'!D23 -> 0 | E24: ='EK DERS VERİ GİRİŞİ'!E23 -> 0 | F24: =ROUND(E24*KATSAYILAR!$C$3*KATSAYILAR!$B$37,2) -> 0 | G24: ='EK DERS VERİ GİRİŞİ'!F23 -> 0 | H24: =ROUND(G24*KATSAYILAR!$C$3*KATSAYILAR!$B$38,2) -> 0 | I24: ='EK DERS VERİ GİRİŞİ'!G23 -> 0 | J24: =ROUND(I24*KATSAYILAR!$C$3*KATSAYILAR!$B$39,2) -> 0 | K24: ='EK DERS VERİ GİRİŞİ'!H23 -> 0 | L24: =ROUND(K24*KATSAYILAR!$C$3*KATSAYILAR!$B$40,2) -> 0 | M24: 0 | N24: 0 | O24: 0 | P24: =IF(O24=0,0,IF(O24<KATSAYILAR!$C$9*N24,KATSAYILAR!$C$9*N24,O24)) -> 0 | Q24: =ROUND(IF('BİLGİ GİRİŞİ'!D23="Ücretli Öğretmen",P24*KATSAYILAR!$C$22,0),2) -> 0 | R24: =ROUND(IF('BİLGİ GİRİŞİ'!D23="Ücretli Öğretmen (Emekli çalışan)",P24*KATSAYILAR!$C$24,0),2) -> 0 | S24: 0 | T24: ='BİLGİ GİRİŞİ'!F23 -> 0 | U24: =IF('BİLGİ GİRİŞİ'!G23=KATSAYILAR!$B$16,KATSAYILAR!$C$16, IF('BİLGİ GİRİŞİ'!G23=KATSAYILAR!$B$17,KATSAYILAR!$C$17, IF('BİLGİ GİRİŞİ'!G23=KATSAYILAR!$B$18,KATSAYILAR!$C$18,0))) -> 0 | V24: ='BİLGİ GİRİŞİ'!H23 -> 0 | W24: 0 | X24: =hesaplamalar!J21 -> 0 | Y24: =hesaplamalar!M21 -> 0 | Z24: =hesaplamalar!N21 -> 0 | AA24: =hesaplamalar!P21 -> 0 | AB24: =hesaplamalar!Q21 -> 0 | AC24: =hesaplamalar!T21 -> 0 | AD24: =hesaplamalar!U21 -> 0 | AE24: 0 | AF24: =ROUND(IF('BİLGİ GİRİŞİ'!D23="Ücretli Öğretmen",P24*KATSAYILAR!$C$23,0),2) -> 0 | AG24: 0 | AH24: =ROUND(IF('BİLGİ GİRİŞİ'!D23="Ücretli Öğretmen (Emekli çalışan)",P24*KATSAYILAR!$C$34,0),2) -> 0 | AI24: ='BİLGİ GİRİŞİ'!I23 -> 0 | AJ24: 0 | AK24: 0 | AM24: 0 | AO24: ='BİLGİ GİRİŞİ'!E23 -> 0
A25: ='EK DERS VERİ GİRİŞİ'!A24 -> 20 | B25: ='EK DERS VERİ GİRİŞİ'!B24 ->  | C25: ='EK DERS VERİ GİRİŞİ'!C24 ->  | D25: ='BİLGİ GİRİŞİ'!D24 -> 0 | E25: ='EK DERS VERİ GİRİŞİ'!E24 -> 0 | F25: =ROUND(E25*KATSAYILAR!$C$3*KATSAYILAR!$B$37,2) -> 0 | G25: ='EK DERS VERİ GİRİŞİ'!F24 -> 0 | H25: =ROUND(G25*KATSAYILAR!$C$3*KATSAYILAR!$B$38,2) -> 0 | I25: ='EK DERS VERİ GİRİŞİ'!G24 -> 0 | J25: =ROUND(I25*KATSAYILAR!$C$3*KATSAYILAR!$B$39,2) -> 0 | K25: ='EK DERS VERİ GİRİŞİ'!H24 -> 0 | L25: =ROUND(K25*KATSAYILAR!$C$3*KATSAYILAR!$B$40,2) -> 0 | M25: 0 | N25: 0 | O25: 0 | P25: =IF(O25=0,0,IF(O25<KATSAYILAR!$C$9*N25,KATSAYILAR!$C$9*N25,O25)) -> 0 | Q25: =ROUND(IF('BİLGİ GİRİŞİ'!D24="Ücretli Öğretmen",P25*KATSAYILAR!$C$22,0),2) -> 0 | R25: =ROUND(IF('BİLGİ GİRİŞİ'!D24="Ücretli Öğretmen (Emekli çalışan)",P25*KATSAYILAR!$C$24,0),2) -> 0 | S25: 0 | T25: ='BİLGİ GİRİŞİ'!F24 -> 0 | U25: =IF('BİLGİ GİRİŞİ'!G24=KATSAYILAR!$B$16,KATSAYILAR!$C$16, IF('BİLGİ GİRİŞİ'!G24=KATSAYILAR!$B$17,KATSAYILAR!$C$17, IF('BİLGİ GİRİŞİ'!G24=KATSAYILAR!$B$18,KATSAYILAR!$C$18,0))) -> 0 | V25: ='BİLGİ GİRİŞİ'!H24 -> 0 | W25: 0 | X25: =hesaplamalar!J22 -> 0 | Y25: =hesaplamalar!M22 -> 0 | Z25: =hesaplamalar!N22 -> 0 | AA25: =hesaplamalar!P22 -> 0 | AB25: =hesaplamalar!Q22 -> 0 | AC25: =hesaplamalar!T22 -> 0 | AD25: =hesaplamalar!U22 -> 0 | AE25: 0 | AF25: =ROUND(IF('BİLGİ GİRİŞİ'!D24="Ücretli Öğretmen",P25*KATSAYILAR!$C$23,0),2) -> 0 | AG25: 0 | AH25: =ROUND(IF('BİLGİ GİRİŞİ'!D24="Ücretli Öğretmen (Emekli çalışan)",P25*KATSAYILAR!$C$34,0),2) -> 0 | AI25: ='BİLGİ GİRİŞİ'!I24 -> 0 | AJ25: 0 | AK25: 0 | AM25: 0 | AO25: ='BİLGİ GİRİŞİ'!E24 -> 0
A26: ='EK DERS VERİ GİRİŞİ'!A25 -> 21 | B26: ='EK DERS VERİ GİRİŞİ'!B25 ->  | C26: ='EK DERS VERİ GİRİŞİ'!C25 ->  | D26: ='BİLGİ GİRİŞİ'!D25 -> 0 | E26: ='EK DERS VERİ GİRİŞİ'!E25 -> 0 | F26: =ROUND(E26*KATSAYILAR!$C$3*KATSAYILAR!$B$37,2) -> 0 | G26: ='EK DERS VERİ GİRİŞİ'!F25 -> 0 | H26: =ROUND(G26*KATSAYILAR!$C$3*KATSAYILAR!$B$38,2) -> 0 | I26: ='EK DERS VERİ GİRİŞİ'!G25 -> 0 | J26: =ROUND(I26*KATSAYILAR!$C$3*KATSAYILAR!$B$39,2) -> 0 | K26: ='EK DERS VERİ GİRİŞİ'!H25 -> 0 | L26: =ROUND(K26*KATSAYILAR!$C$3*KATSAYILAR!$B$40,2) -> 0 | M26: 0 | N26: 0 | O26: 0 | P26: =IF(O26=0,0,IF(O26<KATSAYILAR!$C$9*N26,KATSAYILAR!$C$9*N26,O26)) -> 0 | Q26: =ROUND(IF('BİLGİ GİRİŞİ'!D25="Ücretli Öğretmen",P26*KATSAYILAR!$C$22,0),2) -> 0 | R26: =ROUND(IF('BİLGİ GİRİŞİ'!D25="Ücretli Öğretmen (Emekli çalışan)",P26*KATSAYILAR!$C$24,0),2) -> 0 | S26: 0 | T26: ='BİLGİ GİRİŞİ'!F25 -> 0 | U26: =IF('BİLGİ GİRİŞİ'!G25=KATSAYILAR!$B$16,KATSAYILAR!$C$16, IF('BİLGİ GİRİŞİ'!G25=KATSAYILAR!$B$17,KATSAYILAR!$C$17, IF('BİLGİ GİRİŞİ'!G25=KATSAYILAR!$B$18,KATSAYILAR!$C$18,0))) -> 0 | V26: ='BİLGİ GİRİŞİ'!H25 -> 0 | W26: 0 | X26: =hesaplamalar!J23 -> 0 | Y26: =hesaplamalar!M23 -> 0 | Z26: =hesaplamalar!N23 -> 0 | AA26: =hesaplamalar!P23 -> 0 | AB26: =hesaplamalar!Q23 -> 0 | AC26: =hesaplamalar!T23 -> 0 | AD26: =hesaplamalar!U23 -> 0 | AE26: 0 | AF26: =ROUND(IF('BİLGİ GİRİŞİ'!D25="Ücretli Öğretmen",P26*KATSAYILAR!$C$23,0),2) -> 0 | AG26: 0 | AH26: =ROUND(IF('BİLGİ GİRİŞİ'!D25="Ücretli Öğretmen (Emekli çalışan)",P26*KATSAYILAR!$C$34,0),2) -> 0 | AI26: ='BİLGİ GİRİŞİ'!I25 -> 0 | AJ26: 0 | AK26: 0 | AM26: 0 | AO26: ='BİLGİ GİRİŞİ'!E25 -> 0
A27: ='EK DERS VERİ GİRİŞİ'!A26 -> 22 | B27: ='EK DERS VERİ GİRİŞİ'!B26 ->  | C27: ='EK DERS VERİ GİRİŞİ'!C26 ->  | D27: ='BİLGİ GİRİŞİ'!D26 -> 0 | E27: ='EK DERS VERİ GİRİŞİ'!E26 -> 0 | F27: =ROUND(E27*KATSAYILAR!$C$3*KATSAYILAR!$B$37,2) -> 0 | G27: ='EK DERS VERİ GİRİŞİ'!F26 -> 0 | H27: =ROUND(G27*KATSAYILAR!$C$3*KATSAYILAR!$B$38,2) -> 0 | I27: ='EK DERS VERİ GİRİŞİ'!G26 -> 0 | J27: =ROUND(I27*KATSAYILAR!$C$3*KATSAYILAR!$B$39,2) -> 0 | K27: ='EK DERS VERİ GİRİŞİ'!H26 -> 0 | L27: =ROUND(K27*KATSAYILAR!$C$3*KATSAYILAR!$B$40,2) -> 0 | M27: 0 | N27: 0 | O27: 0 | P27: =IF(O27=0,0,IF(O27<KATSAYILAR!$C$9*N27,KATSAYILAR!$C$9*N27,O27)) -> 0 | Q27: =ROUND(IF('BİLGİ GİRİŞİ'!D26="Ücretli Öğretmen",P27*KATSAYILAR!$C$22,0),2) -> 0 | R27: =ROUND(IF('BİLGİ GİRİŞİ'!D26="Ücretli Öğretmen (Emekli çalışan)",P27*KATSAYILAR!$C$24,0),2) -> 0 | S27: 0 | T27: ='BİLGİ GİRİŞİ'!F26 -> 0 | U27: =IF('BİLGİ GİRİŞİ'!G26=KATSAYILAR!$B$16,KATSAYILAR!$C$16, IF('BİLGİ GİRİŞİ'!G26=KATSAYILAR!$B$17,KATSAYILAR!$C$17, IF('BİLGİ GİRİŞİ'!G26=KATSAYILAR!$B$18,KATSAYILAR!$C$18,0))) -> 0 | V27: ='BİLGİ GİRİŞİ'!H26 -> 0 | W27: 0 | X27: =hesaplamalar!J24 -> 0 | Y27: =hesaplamalar!M24 -> 0 | Z27: =hesaplamalar!N24 -> 0 | AA27: =hesaplamalar!P24 -> 0 | AB27: =hesaplamalar!Q24 -> 0 | AC27: =hesaplamalar!T24 -> 0 | AD27: =hesaplamalar!U24 -> 0 | AE27: 0 | AF27: =ROUND(IF('BİLGİ GİRİŞİ'!D26="Ücretli Öğretmen",P27*KATSAYILAR!$C$23,0),2) -> 0 | AG27: 0 | AH27: =ROUND(IF('BİLGİ GİRİŞİ'!D26="Ücretli Öğretmen (Emekli çalışan)",P27*KATSAYILAR!$C$34,0),2) -> 0 | AI27: ='BİLGİ GİRİŞİ'!I26 -> 0 | AJ27: 0 | AK27: 0 | AM27: 0 | AO27: ='BİLGİ GİRİŞİ'!E26 -> 0
A28: ='EK DERS VERİ GİRİŞİ'!A27 -> 23 | B28: ='EK DERS VERİ GİRİŞİ'!B27 ->  | C28: ='EK DERS VERİ GİRİŞİ'!C27 ->  | D28: ='BİLGİ GİRİŞİ'!D27 -> 0 | E28: ='EK DERS VERİ GİRİŞİ'!E27 -> 0 | F28: =ROUND(E28*KATSAYILAR!$C$3*KATSAYILAR!$B$37,2) -> 0 | G28: ='EK DERS VERİ GİRİŞİ'!F27 -> 0 | H28: =ROUND(G28*KATSAYILAR!$C$3*KATSAYILAR!$B$38,2) -> 0 | I28: ='EK DERS VERİ GİRİŞİ'!G27 -> 0 | J28: =ROUND(I28*KATSAYILAR!$C$3*KATSAYILAR!$B$39,2) -> 0 | K28: ='EK DERS VERİ GİRİŞİ'!H27 -> 0 | L28: =ROUND(K28*KATSAYILAR!$C$3*KATSAYILAR!$B$40,2) -> 0 | M28: 0 | N28: 0 | O28: 0 | P28: =IF(O28=0,0,IF(O28<KATSAYILAR!$C$9*N28,KATSAYILAR!$C$9*N28,O28)) -> 0 | Q28: =ROUND(IF('BİLGİ GİRİŞİ'!D27="Ücretli Öğretmen",P28*KATSAYILAR!$C$22,0),2) -> 0 | R28: =ROUND(IF('BİLGİ GİRİŞİ'!D27="Ücretli Öğretmen (Emekli çalışan)",P28*KATSAYILAR!$C$24,0),2) -> 0 | S28: 0 | T28: ='BİLGİ GİRİŞİ'!F27 -> 0 | U28: =IF('BİLGİ GİRİŞİ'!G27=KATSAYILAR!$B$16,KATSAYILAR!$C$16, IF('BİLGİ GİRİŞİ'!G27=KATSAYILAR!$B$17,KATSAYILAR!$C$17, IF('BİLGİ GİRİŞİ'!G27=KATSAYILAR!$B$18,KATSAYILAR!$C$18,0))) -> 0 | V28: ='BİLGİ GİRİŞİ'!H27 -> 0 | W28: 0 | X28: =hesaplamalar!J25 -> 0 | Y28: =hesaplamalar!M25 -> 0 | Z28: =hesaplamalar!N25 -> 0 | AA28: =hesaplamalar!P25 -> 0 | AB28: =hesaplamalar!Q25 -> 0 | AC28: =hesaplamalar!T25 -> 0 | AD28: =hesaplamalar!U25 -> 0 | AE28: 0 | AF28: =ROUND(IF('BİLGİ GİRİŞİ'!D27="Ücretli Öğretmen",P28*KATSAYILAR!$C$23,0),2) -> 0 | AG28: 0 | AH28: =ROUND(IF('BİLGİ GİRİŞİ'!D27="Ücretli Öğretmen (Emekli çalışan)",P28*KATSAYILAR!$C$34,0),2) -> 0 | AI28: ='BİLGİ GİRİŞİ'!I27 -> 0 | AJ28: 0 | AK28: 0 | AM28: 0 | AO28: ='BİLGİ GİRİŞİ'!E27 -> 0
A29: ='EK DERS VERİ GİRİŞİ'!A28 -> 24 | B29: ='EK DERS VERİ GİRİŞİ'!B28 ->  | C29: ='EK DERS VERİ GİRİŞİ'!C28 ->  | D29: ='BİLGİ GİRİŞİ'!D28 -> 0 | E29: ='EK DERS VERİ GİRİŞİ'!E28 -> 0 | F29: =ROUND(E29*KATSAYILAR!$C$3*KATSAYILAR!$B$37,2) -> 0 | G29: ='EK DERS VERİ GİRİŞİ'!F28 -> 0 | H29: =ROUND(G29*KATSAYILAR!$C$3*KATSAYILAR!$B$38,2) -> 0 | I29: ='EK DERS VERİ GİRİŞİ'!G28 -> 0 | J29: =ROUND(I29*KATSAYILAR!$C$3*KATSAYILAR!$B$39,2) -> 0 | K29: ='EK DERS VERİ GİRİŞİ'!H28 -> 0 | L29: =ROUND(K29*KATSAYILAR!$C$3*KATSAYILAR!$B$40,2) -> 0 | M29: 0 | N29: 0 | O29: 0 | P29: =IF(O29=0,0,IF(O29<KATSAYILAR!$C$9*N29,KATSAYILAR!$C$9*N29,O29)) -> 0 | Q29: =ROUND(IF('BİLGİ GİRİŞİ'!D28="Ücretli Öğretmen",P29*KATSAYILAR!$C$22,0),2) -> 0 | R29: =ROUND(IF('BİLGİ GİRİŞİ'!D28="Ücretli Öğretmen (Emekli çalışan)",P29*KATSAYILAR!$C$24,0),2) -> 0 | S29: 0 | T29: ='BİLGİ GİRİŞİ'!F28 -> 0 | U29: =IF('BİLGİ GİRİŞİ'!G28=KATSAYILAR!$B$16,KATSAYILAR!$C$16, IF('BİLGİ GİRİŞİ'!G28=KATSAYILAR!$B$17,KATSAYILAR!$C$17, IF('BİLGİ GİRİŞİ'!G28=KATSAYILAR!$B$18,KATSAYILAR!$C$18,0))) -> 0 | V29: ='BİLGİ GİRİŞİ'!H28 -> 0 | W29: 0 | X29: =hesaplamalar!J26 -> 0 | Y29: =hesaplamalar!M26 -> 0 | Z29: =hesaplamalar!N26 -> 0 | AA29: =hesaplamalar!P26 -> 0 | AB29: =hesaplamalar!Q26 -> 0 | AC29: =hesaplamalar!T26 -> 0 | AD29: =hesaplamalar!U26 -> 0 | AE29: 0 | AF29: =ROUND(IF('BİLGİ GİRİŞİ'!D28="Ücretli Öğretmen",P29*KATSAYILAR!$C$23,0),2) -> 0 | AG29: 0 | AH29: =ROUND(IF('BİLGİ GİRİŞİ'!D28="Ücretli Öğretmen (Emekli çalışan)",P29*KATSAYILAR!$C$34,0),2) -> 0 | AI29: ='BİLGİ GİRİŞİ'!I28 -> 0 | AJ29: 0 | AK29: 0 | AM29: 0 | AO29: ='BİLGİ GİRİŞİ'!E28 -> 0
A30: ='EK DERS VERİ GİRİŞİ'!A29 -> 25 | B30: ='EK DERS VERİ GİRİŞİ'!B29 ->  | C30: ='EK DERS VERİ GİRİŞİ'!C29 ->  | D30: ='BİLGİ GİRİŞİ'!D29 -> 0 | E30: ='EK DERS VERİ GİRİŞİ'!E29 -> 0 | F30: =ROUND(E30*KATSAYILAR!$C$3*KATSAYILAR!$B$37,2) -> 0 | G30: ='EK DERS VERİ GİRİŞİ'!F29 -> 0 | H30: =ROUND(G30*KATSAYILAR!$C$3*KATSAYILAR!$B$38,2) -> 0 | I30: ='EK DERS VERİ GİRİŞİ'!G29 -> 0 | J30: =ROUND(I30*KATSAYILAR!$C$3*KATSAYILAR!$B$39,2) -> 0 | K30: ='EK DERS VERİ GİRİŞİ'!H29 -> 0 | L30: =ROUND(K30*KATSAYILAR!$C$3*KATSAYILAR!$B$40,2) -> 0 | M30: 0 | N30: 0 | O30: 0 | P30: =IF(O30=0,0,IF(O30<KATSAYILAR!$C$9*N30,KATSAYILAR!$C$9*N30,O30)) -> 0 | Q30: =ROUND(IF('BİLGİ GİRİŞİ'!D29="Ücretli Öğretmen",P30*KATSAYILAR!$C$22,0),2) -> 0 | R30: =ROUND(IF('BİLGİ GİRİŞİ'!D29="Ücretli Öğretmen (Emekli çalışan)",P30*KATSAYILAR!$C$24,0),2) -> 0 | S30: 0 | T30: ='BİLGİ GİRİŞİ'!F29 -> 0 | U30: =IF('BİLGİ GİRİŞİ'!G29=KATSAYILAR!$B$16,KATSAYILAR!$C$16, IF('BİLGİ GİRİŞİ'!G29=KATSAYILAR!$B$17,KATSAYILAR!$C$17, IF('BİLGİ GİRİŞİ'!G29=KATSAYILAR!$B$18,KATSAYILAR!$C$18,0))) -> 0 | V30: ='BİLGİ GİRİŞİ'!H29 -> 0 | W30: 0 | X30: =hesaplamalar!J27 -> 0 | Y30: =hesaplamalar!M27 -> 0 | Z30: =hesaplamalar!N27 -> 0 | AA30: =hesaplamalar!P27 -> 0 | AB30: =hesaplamalar!Q27 -> 0 | AC30: =hesaplamalar!T27 -> 0 | AD30: =hesaplamalar!U27 -> 0 | AE30: 0 | AF30: =ROUND(IF('BİLGİ GİRİŞİ'!D29="Ücretli Öğretmen",P30*KATSAYILAR!$C$23,0),2) -> 0 | AG30: 0 | AH30: =ROUND(IF('BİLGİ GİRİŞİ'!D29="Ücretli Öğretmen (Emekli çalışan)",P30*KATSAYILAR!$C$34,0),2) -> 0 | AI30: ='BİLGİ GİRİŞİ'!I29 -> 0 | AJ30: 0 | AK30: 0 | AM30: 0 | AO30: ='BİLGİ GİRİŞİ'!E29 -> 0
A31: ='EK DERS VERİ GİRİŞİ'!A30 -> 26 | B31: ='EK DERS VERİ GİRİŞİ'!B30 ->  | C31: ='EK DERS VERİ GİRİŞİ'!C30 ->  | D31: ='BİLGİ GİRİŞİ'!D30 -> 0 | E31: ='EK DERS VERİ GİRİŞİ'!E30 -> 0 | F31: =ROUND(E31*KATSAYILAR!$C$3*KATSAYILAR!$B$37,2) -> 0 | G31: ='EK DERS VERİ GİRİŞİ'!F30 -> 0 | H31: =ROUND(G31*KATSAYILAR!$C$3*KATSAYILAR!$B$38,2) -> 0 | I31: ='EK DERS VERİ GİRİŞİ'!G30 -> 0 | J31: =ROUND(I31*KATSAYILAR!$C$3*KATSAYILAR!$B$39,2) -> 0 | K31: ='EK DERS VERİ GİRİŞİ'!H30 -> 0 | L31: =ROUND(K31*KATSAYILAR!$C$3*KATSAYILAR!$B$40,2) -> 0 | M31: 0 | N31: 0 | O31: 0 | P31: =IF(O31=0,0,IF(O31<KATSAYILAR!$C$9*N31,KATSAYILAR!$C$9*N31,O31)) -> 0 | Q31: =ROUND(IF('BİLGİ GİRİŞİ'!D30="Ücretli Öğretmen",P31*KATSAYILAR!$C$22,0),2) -> 0 | R31: =ROUND(IF('BİLGİ GİRİŞİ'!D30="Ücretli Öğretmen (Emekli çalışan)",P31*KATSAYILAR!$C$24,0),2) -> 0 | S31: 0 | T31: ='BİLGİ GİRİŞİ'!F30 -> 0 | U31: =IF('BİLGİ GİRİŞİ'!G30=KATSAYILAR!$B$16,KATSAYILAR!$C$16, IF('BİLGİ GİRİŞİ'!G30=KATSAYILAR!$B$17,KATSAYILAR!$C$17, IF('BİLGİ GİRİŞİ'!G30=KATSAYILAR!$B$18,KATSAYILAR!$C$18,0))) -> 0 | V31: ='BİLGİ GİRİŞİ'!H30 -> 0 | W31: 0 | X31: =hesaplamalar!J28 -> 0 | Y31: =hesaplamalar!M28 -> 0 | Z31: =hesaplamalar!N28 -> 0 | AA31: =hesaplamalar!P28 -> 0 | AB31: =hesaplamalar!Q28 -> 0 | AC31: =hesaplamalar!T28 -> 0 | AD31: =hesaplamalar!U28 -> 0 | AE31: 0 | AF31: =ROUND(IF('BİLGİ GİRİŞİ'!D30="Ücretli Öğretmen",P31*KATSAYILAR!$C$23,0),2) -> 0 | AG31: 0 | AH31: =ROUND(IF('BİLGİ GİRİŞİ'!D30="Ücretli Öğretmen (Emekli çalışan)",P31*KATSAYILAR!$C$34,0),2) -> 0 | AI31: ='BİLGİ GİRİŞİ'!I30 -> 0 | AJ31: 0 | AK31: 0 | AM31: 0 | AO31: ='BİLGİ GİRİŞİ'!E30 -> 0
A32: ='EK DERS VERİ GİRİŞİ'!A31 -> 27 | B32: ='EK DERS VERİ GİRİŞİ'!B31 ->  | C32: ='EK DERS VERİ GİRİŞİ'!C31 ->  | D32: ='BİLGİ GİRİŞİ'!D31 -> 0 | E32: ='EK DERS VERİ GİRİŞİ'!E31 -> 0 | F32: =ROUND(E32*KATSAYILAR!$C$3*KATSAYILAR!$B$37,2) -> 0 | G32: ='EK DERS VERİ GİRİŞİ'!F31 -> 0 | H32: =ROUND(G32*KATSAYILAR!$C$3*KATSAYILAR!$B$38,2) -> 0 | I32: ='EK DERS VERİ GİRİŞİ'!G31 -> 0 | J32: =ROUND(I32*KATSAYILAR!$C$3*KATSAYILAR!$B$39,2) -> 0 | K32: ='EK DERS VERİ GİRİŞİ'!H31 -> 0 | L32: =ROUND(K32*KATSAYILAR!$C$3*KATSAYILAR!$B$40,2) -> 0 | M32: 0 | N32: 0 | O32: 0 | P32: =IF(O32=0,0,IF(O32<KATSAYILAR!$C$9*N32,KATSAYILAR!$C$9*N32,O32)) -> 0 | Q32: =ROUND(IF('BİLGİ GİRİŞİ'!D31="Ücretli Öğretmen",P32*KATSAYILAR!$C$22,0),2) -> 0 | R32: =ROUND(IF('BİLGİ GİRİŞİ'!D31="Ücretli Öğretmen (Emekli çalışan)",P32*KATSAYILAR!$C$24,0),2) -> 0 | S32: 0 | T32: ='BİLGİ GİRİŞİ'!F31 -> 0 | U32: =IF('BİLGİ GİRİŞİ'!G31=KATSAYILAR!$B$16,KATSAYILAR!$C$16, IF('BİLGİ GİRİŞİ'!G31=KATSAYILAR!$B$17,KATSAYILAR!$C$17, IF('BİLGİ GİRİŞİ'!G31=KATSAYILAR!$B$18,KATSAYILAR!$C$18,0))) -> 0 | V32: ='BİLGİ GİRİŞİ'!H31 -> 0 | W32: 0 | X32: =hesaplamalar!J29 -> 0 | Y32: =hesaplamalar!M29 -> 0 | Z32: =hesaplamalar!N29 -> 0 | AA32: =hesaplamalar!P29 -> 0 | AB32: =hesaplamalar!Q29 -> 0 | AC32: =hesaplamalar!T29 -> 0 | AD32: =hesaplamalar!U29 -> 0 | AE32: 0 | AF32: =ROUND(IF('BİLGİ GİRİŞİ'!D31="Ücretli Öğretmen",P32*KATSAYILAR!$C$23,0),2) -> 0 | AG32: 0 | AH32: =ROUND(IF('BİLGİ GİRİŞİ'!D31="Ücretli Öğretmen (Emekli çalışan)",P32*KATSAYILAR!$C$34,0),2) -> 0 | AI32: ='BİLGİ GİRİŞİ'!I31 -> 0 | AJ32: 0 | AK32: 0 | AM32: 0 | AO32: ='BİLGİ GİRİŞİ'!E31 -> 0
A33: ='EK DERS VERİ GİRİŞİ'!A32 -> 28 | B33: ='EK DERS VERİ GİRİŞİ'!B32 ->  | C33: ='EK DERS VERİ GİRİŞİ'!C32 ->  | D33: ='BİLGİ GİRİŞİ'!D32 -> 0 | E33: ='EK DERS VERİ GİRİŞİ'!E32 -> 0 | F33: =ROUND(E33*KATSAYILAR!$C$3*KATSAYILAR!$B$37,2) -> 0 | G33: ='EK DERS VERİ GİRİŞİ'!F32 -> 0 | H33: =ROUND(G33*KATSAYILAR!$C$3*KATSAYILAR!$B$38,2) -> 0 | I33: ='EK DERS VERİ GİRİŞİ'!G32 -> 0 | J33: =ROUND(I33*KATSAYILAR!$C$3*KATSAYILAR!$B$39,2) -> 0 | K33: ='EK DERS VERİ GİRİŞİ'!H32 -> 0 | L33: =ROUND(K33*KATSAYILAR!$C$3*KATSAYILAR!$B$40,2) -> 0 | M33: 0 | N33: 0 | O33: 0 | P33: =IF(O33=0,0,IF(O33<KATSAYILAR!$C$9*N33,KATSAYILAR!$C$9*N33,O33)) -> 0 | Q33: =ROUND(IF('BİLGİ GİRİŞİ'!D32="Ücretli Öğretmen",P33*KATSAYILAR!$C$22,0),2) -> 0 | R33: =ROUND(IF('BİLGİ GİRİŞİ'!D32="Ücretli Öğretmen (Emekli çalışan)",P33*KATSAYILAR!$C$24,0),2) -> 0 | S33: 0 | T33: ='BİLGİ GİRİŞİ'!F32 -> 0 | U33: =IF('BİLGİ GİRİŞİ'!G32=KATSAYILAR!$B$16,KATSAYILAR!$C$16, IF('BİLGİ GİRİŞİ'!G32=KATSAYILAR!$B$17,KATSAYILAR!$C$17, IF('BİLGİ GİRİŞİ'!G32=KATSAYILAR!$B$18,KATSAYILAR!$C$18,0))) -> 0 | V33: ='BİLGİ GİRİŞİ'!H32 -> 0 | W33: 0 | X33: =hesaplamalar!J30 -> 0 | Y33: =hesaplamalar!M30 -> 0 | Z33: =hesaplamalar!N30 -> 0 | AA33: =hesaplamalar!P30 -> 0 | AB33: =hesaplamalar!Q30 -> 0 | AC33: =hesaplamalar!T30 -> 0 | AD33: =hesaplamalar!U30 -> 0 | AE33: 0 | AF33: =ROUND(IF('BİLGİ GİRİŞİ'!D32="Ücretli Öğretmen",P33*KATSAYILAR!$C$23,0),2) -> 0 | AG33: 0 | AH33: =ROUND(IF('BİLGİ GİRİŞİ'!D32="Ücretli Öğretmen (Emekli çalışan)",P33*KATSAYILAR!$C$34,0),2) -> 0 | AI33: ='BİLGİ GİRİŞİ'!I32 -> 0 | AJ33: 0 | AK33: 0 | AM33: 0 | AO33: ='BİLGİ GİRİŞİ'!E32 -> 0
A34: ='EK DERS VERİ GİRİŞİ'!A33 -> 29 | B34: ='EK DERS VERİ GİRİŞİ'!B33 ->  | C34: ='EK DERS VERİ GİRİŞİ'!C33 ->  | D34: ='BİLGİ GİRİŞİ'!D33 -> 0 | E34: ='EK DERS VERİ GİRİŞİ'!E33 -> 0 | F34: =ROUND(E34*KATSAYILAR!$C$3*KATSAYILAR!$B$37,2) -> 0 | G34: ='EK DERS VERİ GİRİŞİ'!F33 -> 0 | H34: =ROUND(G34*KATSAYILAR!$C$3*KATSAYILAR!$B$38,2) -> 0 | I34: ='EK DERS VERİ GİRİŞİ'!G33 -> 0 | J34: =ROUND(I34*KATSAYILAR!$C$3*KATSAYILAR!$B$39,2) -> 0 | K34: ='EK DERS VERİ GİRİŞİ'!H33 -> 0 | L34: =ROUND(K34*KATSAYILAR!$C$3*KATSAYILAR!$B$40,2) -> 0 | M34: 0 | N34: 0 | O34: 0 | P34: =IF(O34=0,0,IF(O34<KATSAYILAR!$C$9*N34,KATSAYILAR!$C$9*N34,O34)) -> 0 | Q34: =ROUND(IF('BİLGİ GİRİŞİ'!D33="Ücretli Öğretmen",P34*KATSAYILAR!$C$22,0),2) -> 0 | R34: =ROUND(IF('BİLGİ GİRİŞİ'!D33="Ücretli Öğretmen (Emekli çalışan)",P34*KATSAYILAR!$C$24,0),2) -> 0 | S34: 0 | T34: ='BİLGİ GİRİŞİ'!F33 -> 0 | U34: =IF('BİLGİ GİRİŞİ'!G33=KATSAYILAR!$B$16,KATSAYILAR!$C$16, IF('BİLGİ GİRİŞİ'!G33=KATSAYILAR!$B$17,KATSAYILAR!$C$17, IF('BİLGİ GİRİŞİ'!G33=KATSAYILAR!$B$18,KATSAYILAR!$C$18,0))) -> 0 | V34: ='BİLGİ GİRİŞİ'!H33 -> 0 | W34: 0 | X34: =hesaplamalar!J31 -> 0 | Y34: =hesaplamalar!M31 -> 0 | Z34: =hesaplamalar!N31 -> 0 | AA34: =hesaplamalar!P31 -> 0 | AB34: =hesaplamalar!Q31 -> 0 | AC34: =hesaplamalar!T31 -> 0 | AD34: =hesaplamalar!U31 -> 0 | AE34: 0 | AF34: =ROUND(IF('BİLGİ GİRİŞİ'!D33="Ücretli Öğretmen",P34*KATSAYILAR!$C$23,0),2) -> 0 | AG34: 0 | AH34: =ROUND(IF('BİLGİ GİRİŞİ'!D33="Ücretli Öğretmen (Emekli çalışan)",P34*KATSAYILAR!$C$34,0),2) -> 0 | AI34: ='BİLGİ GİRİŞİ'!I33 -> 0 | AJ34: 0 | AK34: 0 | AM34: 0 | AO34: ='BİLGİ GİRİŞİ'!E33 -> 0
A35: ='EK DERS VERİ GİRİŞİ'!A34 -> 30 | B35: ='EK DERS VERİ GİRİŞİ'!B34 ->  | C35: ='EK DERS VERİ GİRİŞİ'!C34 ->  | D35: ='BİLGİ GİRİŞİ'!D34 -> 0 | E35: ='EK DERS VERİ GİRİŞİ'!E34 -> 0 | F35: =ROUND(E35*KATSAYILAR!$C$3*KATSAYILAR!$B$37,2) -> 0 | G35: ='EK DERS VERİ GİRİŞİ'!F34 -> 0 | H35: =ROUND(G35*KATSAYILAR!$C$3*KATSAYILAR!$B$38,2) -> 0 | I35: ='EK DERS VERİ GİRİŞİ'!G34 -> 0 | J35: =ROUND(I35*KATSAYILAR!$C$3*KATSAYILAR!$B$39,2) -> 0 | K35: ='EK DERS VERİ GİRİŞİ'!H34 -> 0 | L35: =ROUND(K35*KATSAYILAR!$C$3*KATSAYILAR!$B$40,2) -> 0 | M35: 0 | N35: 0 | O35: 0 | P35: =IF(O35=0,0,IF(O35<KATSAYILAR!$C$9*N35,KATSAYILAR!$C$9*N35,O35)) -> 0 | Q35: =ROUND(IF('BİLGİ GİRİŞİ'!D34="Ücretli Öğretmen",P35*KATSAYILAR!$C$22,0),2) -> 0 | R35: =ROUND(IF('BİLGİ GİRİŞİ'!D34="Ücretli Öğretmen (Emekli çalışan)",P35*KATSAYILAR!$C$24,0),2) -> 0 | S35: 0 | T35: ='BİLGİ GİRİŞİ'!F34 -> 0 | U35: =IF('BİLGİ GİRİŞİ'!G34=KATSAYILAR!$B$16,KATSAYILAR!$C$16, IF('BİLGİ GİRİŞİ'!G34=KATSAYILAR!$B$17,KATSAYILAR!$C$17, IF('BİLGİ GİRİŞİ'!G34=KATSAYILAR!$B$18,KATSAYILAR!$C$18,0))) -> 0 | V35: ='BİLGİ GİRİŞİ'!H34 -> 0 | W35: 0 | X35: =hesaplamalar!J32 -> 0 | Y35: =hesaplamalar!M32 -> 0 | Z35: =hesaplamalar!N32 -> 0 | AA35: =hesaplamalar!P32 -> 0 | AB35: =hesaplamalar!Q32 -> 0 | AC35: =hesaplamalar!T32 -> 0 | AD35: =hesaplamalar!U32 -> 0 | AE35: 0 | AF35: =ROUND(IF('BİLGİ GİRİŞİ'!D34="Ücretli Öğretmen",P35*KATSAYILAR!$C$23,0),2) -> 0 | AG35: 0 | AH35: =ROUND(IF('BİLGİ GİRİŞİ'!D34="Ücretli Öğretmen (Emekli çalışan)",P35*KATSAYILAR!$C$34,0),2) -> 0 | AI35: ='BİLGİ GİRİŞİ'!I34 -> 0 | AJ35: 0 | AK35: 0 | AM35: 0 | AO35: ='BİLGİ GİRİŞİ'!E34 -> 0
A36: ='EK DERS VERİ GİRİŞİ'!A35 -> 31 | B36: ='EK DERS VERİ GİRİŞİ'!B35 ->  | C36: ='EK DERS VERİ GİRİŞİ'!C35 ->  | D36: ='BİLGİ GİRİŞİ'!D35 -> 0 | E36: ='EK DERS VERİ GİRİŞİ'!E35 -> 0 | F36: =ROUND(E36*KATSAYILAR!$C$3*KATSAYILAR!$B$37,2) -> 0 | G36: ='EK DERS VERİ GİRİŞİ'!F35 -> 0 | H36: =ROUND(G36*KATSAYILAR!$C$3*KATSAYILAR!$B$38,2) -> 0 | I36: ='EK DERS VERİ GİRİŞİ'!G35 -> 0 | J36: =ROUND(I36*KATSAYILAR!$C$3*KATSAYILAR!$B$39,2) -> 0 | K36: ='EK DERS VERİ GİRİŞİ'!H35 -> 0 | L36: =ROUND(K36*KATSAYILAR!$C$3*KATSAYILAR!$B$40,2) -> 0 | M36: 0 | N36: 0 | O36: 0 | P36: =IF(O36=0,0,IF(O36<KATSAYILAR!$C$9*N36,KATSAYILAR!$C$9*N36,O36)) -> 0 | Q36: =ROUND(IF('BİLGİ GİRİŞİ'!D35="Ücretli Öğretmen",P36*KATSAYILAR!$C$22,0),2) -> 0 | R36: =ROUND(IF('BİLGİ GİRİŞİ'!D35="Ücretli Öğretmen (Emekli çalışan)",P36*KATSAYILAR!$C$24,0),2) -> 0 | S36: 0 | T36: ='BİLGİ GİRİŞİ'!F35 -> 0 | U36: =IF('BİLGİ GİRİŞİ'!G35=KATSAYILAR!$B$16,KATSAYILAR!$C$16, IF('BİLGİ GİRİŞİ'!G35=KATSAYILAR!$B$17,KATSAYILAR!$C$17, IF('BİLGİ GİRİŞİ'!G35=KATSAYILAR!$B$18,KATSAYILAR!$C$18,0))) -> 0 | V36: ='BİLGİ GİRİŞİ'!H35 -> 0 | W36: 0 | X36: =hesaplamalar!J33 -> 0 | Y36: =hesaplamalar!M33 -> 0 | Z36: =hesaplamalar!N33 -> 0 | AA36: =hesaplamalar!P33 -> 0 | AB36: =hesaplamalar!Q33 -> 0 | AC36: =hesaplamalar!T33 -> 0 | AD36: =hesaplamalar!U33 -> 0 | AE36: 0 | AF36: =ROUND(IF('BİLGİ GİRİŞİ'!D35="Ücretli Öğretmen",P36*KATSAYILAR!$C$23,0),2) -> 0 | AG36: 0 | AH36: =ROUND(IF('BİLGİ GİRİŞİ'!D35="Ücretli Öğretmen (Emekli çalışan)",P36*KATSAYILAR!$C$34,0),2) -> 0 | AI36: ='BİLGİ GİRİŞİ'!I35 -> 0 | AJ36: 0 | AK36: 0 | AM36: 0 | AO36: ='BİLGİ GİRİŞİ'!E35 -> 0
A37: ='EK DERS VERİ GİRİŞİ'!A36 -> 32 | B37: ='EK DERS VERİ GİRİŞİ'!B36 ->  | C37: ='EK DERS VERİ GİRİŞİ'!C36 ->  | D37: ='BİLGİ GİRİŞİ'!D36 -> 0 | E37: ='EK DERS VERİ GİRİŞİ'!E36 -> 0 | F37: =ROUND(E37*KATSAYILAR!$C$3*KATSAYILAR!$B$37,2) -> 0 | G37: ='EK DERS VERİ GİRİŞİ'!F36 -> 0 | H37: =ROUND(G37*KATSAYILAR!$C$3*KATSAYILAR!$B$38,2) -> 0 | I37: ='EK DERS VERİ GİRİŞİ'!G36 -> 0 | J37: =ROUND(I37*KATSAYILAR!$C$3*KATSAYILAR!$B$39,2) -> 0 | K37: ='EK DERS VERİ GİRİŞİ'!H36 -> 0 | L37: =ROUND(K37*KATSAYILAR!$C$3*KATSAYILAR!$B$40,2) -> 0 | M37: 0 | N37: 0 | O37: 0 | P37: =IF(O37=0,0,IF(O37<KATSAYILAR!$C$9*N37,KATSAYILAR!$C$9*N37,O37)) -> 0 | Q37: =ROUND(IF('BİLGİ GİRİŞİ'!D36="Ücretli Öğretmen",P37*KATSAYILAR!$C$22,0),2) -> 0 | R37: =ROUND(IF('BİLGİ GİRİŞİ'!D36="Ücretli Öğretmen (Emekli çalışan)",P37*KATSAYILAR!$C$24,0),2) -> 0 | S37: 0 | T37: ='BİLGİ GİRİŞİ'!F36 -> 0 | U37: =IF('BİLGİ GİRİŞİ'!G36=KATSAYILAR!$B$16,KATSAYILAR!$C$16, IF('BİLGİ GİRİŞİ'!G36=KATSAYILAR!$B$17,KATSAYILAR!$C$17, IF('BİLGİ GİRİŞİ'!G36=KATSAYILAR!$B$18,KATSAYILAR!$C$18,0))) -> 0 | V37: ='BİLGİ GİRİŞİ'!H36 -> 0 | W37: 0 | X37: =hesaplamalar!J34 -> 0 | Y37: =hesaplamalar!M34 -> 0 | Z37: =hesaplamalar!N34 -> 0 | AA37: =hesaplamalar!P34 -> 0 | AB37: =hesaplamalar!Q34 -> 0 | AC37: =hesaplamalar!T34 -> 0 | AD37: =hesaplamalar!U34 -> 0 | AE37: 0 | AF37: =ROUND(IF('BİLGİ GİRİŞİ'!D36="Ücretli Öğretmen",P37*KATSAYILAR!$C$23,0),2) -> 0 | AG37: 0 | AH37: =ROUND(IF('BİLGİ GİRİŞİ'!D36="Ücretli Öğretmen (Emekli çalışan)",P37*KATSAYILAR!$C$34,0),2) -> 0 | AI37: ='BİLGİ GİRİŞİ'!I36 -> 0 | AJ37: 0 | AK37: 0 | AM37: 0 | AO37: ='BİLGİ GİRİŞİ'!E36 -> 0
A38: ='EK DERS VERİ GİRİŞİ'!A37 -> 33 | B38: ='EK DERS VERİ GİRİŞİ'!B37 ->  | C38: ='EK DERS VERİ GİRİŞİ'!C37 ->  | D38: ='BİLGİ GİRİŞİ'!D37 -> 0 | E38: ='EK DERS VERİ GİRİŞİ'!E37 -> 0 | F38: =ROUND(E38*KATSAYILAR!$C$3*KATSAYILAR!$B$37,2) -> 0 | G38: ='EK DERS VERİ GİRİŞİ'!F37 -> 0 | H38: =ROUND(G38*KATSAYILAR!$C$3*KATSAYILAR!$B$38,2) -> 0 | I38: ='EK DERS VERİ GİRİŞİ'!G37 -> 0 | J38: =ROUND(I38*KATSAYILAR!$C$3*KATSAYILAR!$B$39,2) -> 0 | K38: ='EK DERS VERİ GİRİŞİ'!H37 -> 0 | L38: =ROUND(K38*KATSAYILAR!$C$3*KATSAYILAR!$B$40,2) -> 0 | M38: 0 | N38: 0 | O38: 0 | P38: =IF(O38=0,0,IF(O38<KATSAYILAR!$C$9*N38,KATSAYILAR!$C$9*N38,O38)) -> 0 | Q38: =ROUND(IF('BİLGİ GİRİŞİ'!D37="Ücretli Öğretmen",P38*KATSAYILAR!$C$22,0),2) -> 0 | R38: =ROUND(IF('BİLGİ GİRİŞİ'!D37="Ücretli Öğretmen (Emekli çalışan)",P38*KATSAYILAR!$C$24,0),2) -> 0 | S38: 0 | T38: ='BİLGİ GİRİŞİ'!F37 -> 0 | U38: =IF('BİLGİ GİRİŞİ'!G37=KATSAYILAR!$B$16,KATSAYILAR!$C$16, IF('BİLGİ GİRİŞİ'!G37=KATSAYILAR!$B$17,KATSAYILAR!$C$17, IF('BİLGİ GİRİŞİ'!G37=KATSAYILAR!$B$18,KATSAYILAR!$C$18,0))) -> 0 | V38: ='BİLGİ GİRİŞİ'!H37 -> 0 | W38: 0 | X38: =hesaplamalar!J35 -> 0 | Y38: =hesaplamalar!M35 -> 0 | Z38: =hesaplamalar!N35 -> 0 | AA38: =hesaplamalar!P35 -> 0 | AB38: =hesaplamalar!Q35 -> 0 | AC38: =hesaplamalar!T35 -> 0 | AD38: =hesaplamalar!U35 -> 0 | AE38: 0 | AF38: =ROUND(IF('BİLGİ GİRİŞİ'!D37="Ücretli Öğretmen",P38*KATSAYILAR!$C$23,0),2) -> 0 | AG38: 0 | AH38: =ROUND(IF('BİLGİ GİRİŞİ'!D37="Ücretli Öğretmen (Emekli çalışan)",P38*KATSAYILAR!$C$34,0),2) -> 0 | AI38: ='BİLGİ GİRİŞİ'!I37 -> 0 | AJ38: 0 | AK38: 0 | AM38: 0 | AO38: ='BİLGİ GİRİŞİ'!E37 -> 0
A39: ='EK DERS VERİ GİRİŞİ'!A38 -> 34 | B39: ='EK DERS VERİ GİRİŞİ'!B38 ->  | C39: ='EK DERS VERİ GİRİŞİ'!C38 ->  | D39: ='BİLGİ GİRİŞİ'!D38 -> 0 | E39: ='EK DERS VERİ GİRİŞİ'!E38 -> 0 | F39: =ROUND(E39*KATSAYILAR!$C$3*KATSAYILAR!$B$37,2) -> 0 | G39: ='EK DERS VERİ GİRİŞİ'!F38 -> 0 | H39: =ROUND(G39*KATSAYILAR!$C$3*KATSAYILAR!$B$38,2) -> 0 | I39: ='EK DERS VERİ GİRİŞİ'!G38 -> 0 | J39: =ROUND(I39*KATSAYILAR!$C$3*KATSAYILAR!$B$39,2) -> 0 | K39: ='EK DERS VERİ GİRİŞİ'!H38 -> 0 | L39: =ROUND(K39*KATSAYILAR!$C$3*KATSAYILAR!$B$40,2) -> 0 | M39: 0 | N39: 0 | O39: 0 | P39: =IF(O39=0,0,IF(O39<KATSAYILAR!$C$9*N39,KATSAYILAR!$C$9*N39,O39)) -> 0 | Q39: =ROUND(IF('BİLGİ GİRİŞİ'!D38="Ücretli Öğretmen",P39*KATSAYILAR!$C$22,0),2) -> 0 | R39: =ROUND(IF('BİLGİ GİRİŞİ'!D38="Ücretli Öğretmen (Emekli çalışan)",P39*KATSAYILAR!$C$24,0),2) -> 0 | S39: 0 | T39: ='BİLGİ GİRİŞİ'!F38 -> 0 | U39: =IF('BİLGİ GİRİŞİ'!G38=KATSAYILAR!$B$16,KATSAYILAR!$C$16, IF('BİLGİ GİRİŞİ'!G38=KATSAYILAR!$B$17,KATSAYILAR!$C$17, IF('BİLGİ GİRİŞİ'!G38=KATSAYILAR!$B$18,KATSAYILAR!$C$18,0))) -> 0 | V39: ='BİLGİ GİRİŞİ'!H38 -> 0 | W39: 0 | X39: =hesaplamalar!J36 -> 0 | Y39: =hesaplamalar!M36 -> 0 | Z39: =hesaplamalar!N36 -> 0 | AA39: =hesaplamalar!P36 -> 0 | AB39: =hesaplamalar!Q36 -> 0 | AC39: =hesaplamalar!T36 -> 0 | AD39: =hesaplamalar!U36 -> 0 | AE39: 0 | AF39: =ROUND(IF('BİLGİ GİRİŞİ'!D38="Ücretli Öğretmen",P39*KATSAYILAR!$C$23,0),2) -> 0 | AG39: 0 | AH39: =ROUND(IF('BİLGİ GİRİŞİ'!D38="Ücretli Öğretmen (Emekli çalışan)",P39*KATSAYILAR!$C$34,0),2) -> 0 | AI39: ='BİLGİ GİRİŞİ'!I38 -> 0 | AJ39: 0 | AK39: 0 | AM39: 0 | AO39: ='BİLGİ GİRİŞİ'!E38 -> 0
A40: ='EK DERS VERİ GİRİŞİ'!A39 -> 35 | B40: ='EK DERS VERİ GİRİŞİ'!B39 ->  | C40: ='EK DERS VERİ GİRİŞİ'!C39 ->  | D40: ='BİLGİ GİRİŞİ'!D39 -> 0 | E40: ='EK DERS VERİ GİRİŞİ'!E39 -> 0 | F40: =ROUND(E40*KATSAYILAR!$C$3*KATSAYILAR!$B$37,2) -> 0 | G40: ='EK DERS VERİ GİRİŞİ'!F39 -> 0 | H40: =ROUND(G40*KATSAYILAR!$C$3*KATSAYILAR!$B$38,2) -> 0 | I40: ='EK DERS VERİ GİRİŞİ'!G39 -> 0 | J40: =ROUND(I40*KATSAYILAR!$C$3*KATSAYILAR!$B$39,2) -> 0 | K40: ='EK DERS VERİ GİRİŞİ'!H39 -> 0 | L40: =ROUND(K40*KATSAYILAR!$C$3*KATSAYILAR!$B$40,2) -> 0 | M40: 0 | N40: 0 | O40: 0 | P40: =IF(O40=0,0,IF(O40<KATSAYILAR!$C$9*N40,KATSAYILAR!$C$9*N40,O40)) -> 0 | Q40: =ROUND(IF('BİLGİ GİRİŞİ'!D39="Ücretli Öğretmen",P40*KATSAYILAR!$C$22,0),2) -> 0 | R40: =ROUND(IF('BİLGİ GİRİŞİ'!D39="Ücretli Öğretmen (Emekli çalışan)",P40*KATSAYILAR!$C$24,0),2) -> 0 | S40: 0 | T40: ='BİLGİ GİRİŞİ'!F39 -> 0 | U40: =IF('BİLGİ GİRİŞİ'!G39=KATSAYILAR!$B$16,KATSAYILAR!$C$16, IF('BİLGİ GİRİŞİ'!G39=KATSAYILAR!$B$17,KATSAYILAR!$C$17, IF('BİLGİ GİRİŞİ'!G39=KATSAYILAR!$B$18,KATSAYILAR!$C$18,0))) -> 0 | V40: ='BİLGİ GİRİŞİ'!H39 -> 0 | W40: 0 | X40: =hesaplamalar!J37 -> 0 | Y40: =hesaplamalar!M37 -> 0 | Z40: =hesaplamalar!N37 -> 0 | AA40: =hesaplamalar!P37 -> 0 | AB40: =hesaplamalar!Q37 -> 0 | AC40: =hesaplamalar!T37 -> 0 | AD40: =hesaplamalar!U37 -> 0 | AE40: 0 | AF40: =ROUND(IF('BİLGİ GİRİŞİ'!D39="Ücretli Öğretmen",P40*KATSAYILAR!$C$23,0),2) -> 0 | AG40: 0 | AH40: =ROUND(IF('BİLGİ GİRİŞİ'!D39="Ücretli Öğretmen (Emekli çalışan)",P40*KATSAYILAR!$C$34,0),2) -> 0 | AI40: ='BİLGİ GİRİŞİ'!I39 -> 0 | AJ40: 0 | AK40: 0 | AM40: 0 | AO40: ='BİLGİ GİRİŞİ'!E39 -> 0
A41: ='EK DERS VERİ GİRİŞİ'!A40 -> 36 | B41: ='EK DERS VERİ GİRİŞİ'!B40 ->  | C41: ='EK DERS VERİ GİRİŞİ'!C40 ->  | D41: ='BİLGİ GİRİŞİ'!D40 -> 0 | E41: ='EK DERS VERİ GİRİŞİ'!E40 -> 0 | F41: =ROUND(E41*KATSAYILAR!$C$3*KATSAYILAR!$B$37,2) -> 0 | G41: ='EK DERS VERİ GİRİŞİ'!F40 -> 0 | H41: =ROUND(G41*KATSAYILAR!$C$3*KATSAYILAR!$B$38,2) -> 0 | I41: ='EK DERS VERİ GİRİŞİ'!G40 -> 0 | J41: =ROUND(I41*KATSAYILAR!$C$3*KATSAYILAR!$B$39,2) -> 0 | K41: ='EK DERS VERİ GİRİŞİ'!H40 -> 0 | L41: =ROUND(K41*KATSAYILAR!$C$3*KATSAYILAR!$B$40,2) -> 0 | M41: 0 | N41: 0 | O41: 0 | P41: =IF(O41=0,0,IF(O41<KATSAYILAR!$C$9*N41,KATSAYILAR!$C$9*N41,O41)) -> 0 | Q41: =ROUND(IF('BİLGİ GİRİŞİ'!D40="Ücretli Öğretmen",P41*KATSAYILAR!$C$22,0),2) -> 0 | R41: =ROUND(IF('BİLGİ GİRİŞİ'!D40="Ücretli Öğretmen (Emekli çalışan)",P41*KATSAYILAR!$C$24,0),2) -> 0 | S41: 0 | T41: ='BİLGİ GİRİŞİ'!F40 -> 0 | U41: =IF('BİLGİ GİRİŞİ'!G40=KATSAYILAR!$B$16,KATSAYILAR!$C$16, IF('BİLGİ GİRİŞİ'!G40=KATSAYILAR!$B$17,KATSAYILAR!$C$17, IF('BİLGİ GİRİŞİ'!G40=KATSAYILAR!$B$18,KATSAYILAR!$C$18,0))) -> 0 | V41: ='BİLGİ GİRİŞİ'!H40 -> 0 | W41: 0 | X41: =hesaplamalar!J38 -> 0 | Y41: =hesaplamalar!M38 -> 0 | Z41: =hesaplamalar!N38 -> 0 | AA41: =hesaplamalar!P38 -> 0 | AB41: =hesaplamalar!Q38 -> 0 | AC41: =hesaplamalar!T38 -> 0 | AD41: =hesaplamalar!U38 -> 0 | AE41: 0 | AF41: =ROUND(IF('BİLGİ GİRİŞİ'!D40="Ücretli Öğretmen",P41*KATSAYILAR!$C$23,0),2) -> 0 | AG41: 0 | AH41: =ROUND(IF('BİLGİ GİRİŞİ'!D40="Ücretli Öğretmen (Emekli çalışan)",P41*KATSAYILAR!$C$34,0),2) -> 0 | AI41: ='BİLGİ GİRİŞİ'!I40 -> 0 | AJ41: 0 | AK41: 0 | AM41: 0 | AO41: ='BİLGİ GİRİŞİ'!E40 -> 0
A42: ='EK DERS VERİ GİRİŞİ'!A41 -> 37 | B42: ='EK DERS VERİ GİRİŞİ'!B41 ->  | C42: ='EK DERS VERİ GİRİŞİ'!C41 ->  | D42: ='BİLGİ GİRİŞİ'!D41 -> 0 | E42: ='EK DERS VERİ GİRİŞİ'!E41 -> 0 | F42: =ROUND(E42*KATSAYILAR!$C$3*KATSAYILAR!$B$37,2) -> 0 | G42: ='EK DERS VERİ GİRİŞİ'!F41 -> 0 | H42: =ROUND(G42*KATSAYILAR!$C$3*KATSAYILAR!$B$38,2) -> 0 | I42: ='EK DERS VERİ GİRİŞİ'!G41 -> 0 | J42: =ROUND(I42*KATSAYILAR!$C$3*KATSAYILAR!$B$39,2) -> 0 | K42: ='EK DERS VERİ GİRİŞİ'!H41 -> 0 | L42: =ROUND(K42*KATSAYILAR!$C$3*KATSAYILAR!$B$40,2) -> 0 | M42: 0 | N42: 0 | O42: 0 | P42: =IF(O42=0,0,IF(O42<KATSAYILAR!$C$9*N42,KATSAYILAR!$C$9*N42,O42)) -> 0 | Q42: =ROUND(IF('BİLGİ GİRİŞİ'!D41="Ücretli Öğretmen",P42*KATSAYILAR!$C$22,0),2) -> 0 | R42: =ROUND(IF('BİLGİ GİRİŞİ'!D41="Ücretli Öğretmen (Emekli çalışan)",P42*KATSAYILAR!$C$24,0),2) -> 0 | S42: 0 | T42: ='BİLGİ GİRİŞİ'!F41 -> 0 | U42: =IF('BİLGİ GİRİŞİ'!G41=KATSAYILAR!$B$16,KATSAYILAR!$C$16, IF('BİLGİ GİRİŞİ'!G41=KATSAYILAR!$B$17,KATSAYILAR!$C$17, IF('BİLGİ GİRİŞİ'!G41=KATSAYILAR!$B$18,KATSAYILAR!$C$18,0))) -> 0 | V42: ='BİLGİ GİRİŞİ'!H41 -> 0 | W42: 0 | X42: =hesaplamalar!J39 -> 0 | Y42: =hesaplamalar!M39 -> 0 | Z42: =hesaplamalar!N39 -> 0 | AA42: =hesaplamalar!P39 -> 0 | AB42: =hesaplamalar!Q39 -> 0 | AC42: =hesaplamalar!T39 -> 0 | AD42: =hesaplamalar!U39 -> 0 | AE42: 0 | AF42: =ROUND(IF('BİLGİ GİRİŞİ'!D41="Ücretli Öğretmen",P42*KATSAYILAR!$C$23,0),2) -> 0 | AG42: 0 | AH42: =ROUND(IF('BİLGİ GİRİŞİ'!D41="Ücretli Öğretmen (Emekli çalışan)",P42*KATSAYILAR!$C$34,0),2) -> 0 | AI42: ='BİLGİ GİRİŞİ'!I41 -> 0 | AJ42: 0 | AK42: 0 | AM42: 0 | AO42: ='BİLGİ GİRİŞİ'!E41 -> 0
A43: ='EK DERS VERİ GİRİŞİ'!A42 -> 38 | B43: ='EK DERS VERİ GİRİŞİ'!B42 ->  | C43: ='EK DERS VERİ GİRİŞİ'!C42 ->  | D43: ='BİLGİ GİRİŞİ'!D42 -> 0 | E43: ='EK DERS VERİ GİRİŞİ'!E42 -> 0 | F43: =ROUND(E43*KATSAYILAR!$C$3*KATSAYILAR!$B$37,2) -> 0 | G43: ='EK DERS VERİ GİRİŞİ'!F42 -> 0 | H43: =ROUND(G43*KATSAYILAR!$C$3*KATSAYILAR!$B$38,2) -> 0 | I43: ='EK DERS VERİ GİRİŞİ'!G42 -> 0 | J43: =ROUND(I43*KATSAYILAR!$C$3*KATSAYILAR!$B$39,2) -> 0 | K43: ='EK DERS VERİ GİRİŞİ'!H42 -> 0 | L43: =ROUND(K43*KATSAYILAR!$C$3*KATSAYILAR!$B$40,2) -> 0 | M43: 0 | N43: 0 | O43: 0 | P43: =IF(O43=0,0,IF(O43<KATSAYILAR!$C$9*N43,KATSAYILAR!$C$9*N43,O43)) -> 0 | Q43: =ROUND(IF('BİLGİ GİRİŞİ'!D42="Ücretli Öğretmen",P43*KATSAYILAR!$C$22,0),2) -> 0 | R43: =ROUND(IF('BİLGİ GİRİŞİ'!D42="Ücretli Öğretmen (Emekli çalışan)",P43*KATSAYILAR!$C$24,0),2) -> 0 | S43: 0 | T43: ='BİLGİ GİRİŞİ'!F42 -> 0 | U43: =IF('BİLGİ GİRİŞİ'!G42=KATSAYILAR!$B$16,KATSAYILAR!$C$16, IF('BİLGİ GİRİŞİ'!G42=KATSAYILAR!$B$17,KATSAYILAR!$C$17, IF('BİLGİ GİRİŞİ'!G42=KATSAYILAR!$B$18,KATSAYILAR!$C$18,0))) -> 0 | V43: ='BİLGİ GİRİŞİ'!H42 -> 0 | W43: 0 | X43: =hesaplamalar!J40 -> 0 | Y43: =hesaplamalar!M40 -> 0 | Z43: =hesaplamalar!N40 -> 0 | AA43: =hesaplamalar!P40 -> 0 | AB43: =hesaplamalar!Q40 -> 0 | AC43: =hesaplamalar!T40 -> 0 | AD43: =hesaplamalar!U40 -> 0 | AE43: 0 | AF43: =ROUND(IF('BİLGİ GİRİŞİ'!D42="Ücretli Öğretmen",P43*KATSAYILAR!$C$23,0),2) -> 0 | AG43: 0 | AH43: =ROUND(IF('BİLGİ GİRİŞİ'!D42="Ücretli Öğretmen (Emekli çalışan)",P43*KATSAYILAR!$C$34,0),2) -> 0 | AI43: ='BİLGİ GİRİŞİ'!I42 -> 0 | AJ43: 0 | AK43: 0 | AM43: 0 | AO43: ='BİLGİ GİRİŞİ'!E42 -> 0
A44: ='EK DERS VERİ GİRİŞİ'!A43 -> 39 | B44: ='EK DERS VERİ GİRİŞİ'!B43 ->  | C44: ='EK DERS VERİ GİRİŞİ'!C43 ->  | D44: ='BİLGİ GİRİŞİ'!D43 -> 0 | E44: ='EK DERS VERİ GİRİŞİ'!E43 -> 0 | F44: =ROUND(E44*KATSAYILAR!$C$3*KATSAYILAR!$B$37,2) -> 0 | G44: ='EK DERS VERİ GİRİŞİ'!F43 -> 0 | H44: =ROUND(G44*KATSAYILAR!$C$3*KATSAYILAR!$B$38,2) -> 0 | I44: ='EK DERS VERİ GİRİŞİ'!G43 -> 0 | J44: =ROUND(I44*KATSAYILAR!$C$3*KATSAYILAR!$B$39,2) -> 0 | K44: ='EK DERS VERİ GİRİŞİ'!H43 -> 0 | L44: =ROUND(K44*KATSAYILAR!$C$3*KATSAYILAR!$B$40,2) -> 0 | M44: 0 | N44: 0 | O44: 0 | P44: =IF(O44=0,0,IF(O44<KATSAYILAR!$C$9*N44,KATSAYILAR!$C$9*N44,O44)) -> 0 | Q44: =ROUND(IF('BİLGİ GİRİŞİ'!D43="Ücretli Öğretmen",P44*KATSAYILAR!$C$22,0),2) -> 0 | R44: =ROUND(IF('BİLGİ GİRİŞİ'!D43="Ücretli Öğretmen (Emekli çalışan)",P44*KATSAYILAR!$C$24,0),2) -> 0 | S44: 0 | T44: ='BİLGİ GİRİŞİ'!F43 -> 0 | U44: =IF('BİLGİ GİRİŞİ'!G43=KATSAYILAR!$B$16,KATSAYILAR!$C$16, IF('BİLGİ GİRİŞİ'!G43=KATSAYILAR!$B$17,KATSAYILAR!$C$17, IF('BİLGİ GİRİŞİ'!G43=KATSAYILAR!$B$18,KATSAYILAR!$C$18,0))) -> 0 | V44: ='BİLGİ GİRİŞİ'!H43 -> 0 | W44: 0 | X44: =hesaplamalar!J41 -> 0 | Y44: =hesaplamalar!M41 -> 0 | Z44: =hesaplamalar!N41 -> 0 | AA44: =hesaplamalar!P41 -> 0 | AB44: =hesaplamalar!Q41 -> 0 | AC44: =hesaplamalar!T41 -> 0 | AD44: =hesaplamalar!U41 -> 0 | AE44: 0 | AF44: =ROUND(IF('BİLGİ GİRİŞİ'!D43="Ücretli Öğretmen",P44*KATSAYILAR!$C$23,0),2) -> 0 | AG44: 0 | AH44: =ROUND(IF('BİLGİ GİRİŞİ'!D43="Ücretli Öğretmen (Emekli çalışan)",P44*KATSAYILAR!$C$34,0),2) -> 0 | AI44: ='BİLGİ GİRİŞİ'!I43 -> 0 | AJ44: 0 | AK44: 0 | AM44: 0 | AO44: ='BİLGİ GİRİŞİ'!E43 -> 0
A45: ='EK DERS VERİ GİRİŞİ'!A44 -> 40 | B45: ='EK DERS VERİ GİRİŞİ'!B44 ->  | C45: ='EK DERS VERİ GİRİŞİ'!C44 ->  | D45: ='BİLGİ GİRİŞİ'!D44 -> 0 | E45: ='EK DERS VERİ GİRİŞİ'!E44 -> 0 | F45: =ROUND(E45*KATSAYILAR!$C$3*KATSAYILAR!$B$37,2) -> 0 | G45: ='EK DERS VERİ GİRİŞİ'!F44 -> 0 | H45: =ROUND(G45*KATSAYILAR!$C$3*KATSAYILAR!$B$38,2) -> 0 | I45: ='EK DERS VERİ GİRİŞİ'!G44 -> 0 | J45: =ROUND(I45*KATSAYILAR!$C$3*KATSAYILAR!$B$39,2) -> 0 | K45: ='EK DERS VERİ GİRİŞİ'!H44 -> 0 | L45: =ROUND(K45*KATSAYILAR!$C$3*KATSAYILAR!$B$40,2) -> 0 | M45: 0 | N45: 0 | O45: 0 | P45: =IF(O45=0,0,IF(O45<KATSAYILAR!$C$9*N45,KATSAYILAR!$C$9*N45,O45)) -> 0 | Q45: =ROUND(IF('BİLGİ GİRİŞİ'!D44="Ücretli Öğretmen",P45*KATSAYILAR!$C$22,0),2) -> 0 | R45: =ROUND(IF('BİLGİ GİRİŞİ'!D44="Ücretli Öğretmen (Emekli çalışan)",P45*KATSAYILAR!$C$24,0),2) -> 0 | S45: 0 | T45: ='BİLGİ GİRİŞİ'!F44 -> 0 | U45: =IF('BİLGİ GİRİŞİ'!G44=KATSAYILAR!$B$16,KATSAYILAR!$C$16, IF('BİLGİ GİRİŞİ'!G44=KATSAYILAR!$B$17,KATSAYILAR!$C$17, IF('BİLGİ GİRİŞİ'!G44=KATSAYILAR!$B$18,KATSAYILAR!$C$18,0))) -> 0 | V45: ='BİLGİ GİRİŞİ'!H44 -> 0 | W45: 0 | X45: =hesaplamalar!J42 -> 0 | Y45: =hesaplamalar!M42 -> 0 | Z45: =hesaplamalar!N42 -> 0 | AA45: =hesaplamalar!P42 -> 0 | AB45: =hesaplamalar!Q42 -> 0 | AC45: =hesaplamalar!T42 -> 0 | AD45: =hesaplamalar!U42 -> 0 | AE45: 0 | AF45: =ROUND(IF('BİLGİ GİRİŞİ'!D44="Ücretli Öğretmen",P45*KATSAYILAR!$C$23,0),2) -> 0 | AG45: 0 | AH45: =ROUND(IF('BİLGİ GİRİŞİ'!D44="Ücretli Öğretmen (Emekli çalışan)",P45*KATSAYILAR!$C$34,0),2) -> 0 | AI45: ='BİLGİ GİRİŞİ'!I44 -> 0 | AJ45: 0 | AK45: 0 | AM45: 0 | AO45: ='BİLGİ GİRİŞİ'!E44 -> 0
A46: ='EK DERS VERİ GİRİŞİ'!A45 -> 41 | B46: ='EK DERS VERİ GİRİŞİ'!B45 ->  | C46: ='EK DERS VERİ GİRİŞİ'!C45 ->  | D46: ='BİLGİ GİRİŞİ'!D45 -> 0 | E46: ='EK DERS VERİ GİRİŞİ'!E45 -> 0 | F46: =ROUND(E46*KATSAYILAR!$C$3*KATSAYILAR!$B$37,2) -> 0 | G46: ='EK DERS VERİ GİRİŞİ'!F45 -> 0 | H46: =ROUND(G46*KATSAYILAR!$C$3*KATSAYILAR!$B$38,2) -> 0 | I46: ='EK DERS VERİ GİRİŞİ'!G45 -> 0 | J46: =ROUND(I46*KATSAYILAR!$C$3*KATSAYILAR!$B$39,2) -> 0 | K46: ='EK DERS VERİ GİRİŞİ'!H45 -> 0 | L46: =ROUND(K46*KATSAYILAR!$C$3*KATSAYILAR!$B$40,2) -> 0 | M46: 0 | N46: 0 | O46: 0 | P46: =IF(O46=0,0,IF(O46<KATSAYILAR!$C$9*N46,KATSAYILAR!$C$9*N46,O46)) -> 0 | Q46: =ROUND(IF('BİLGİ GİRİŞİ'!D45="Ücretli Öğretmen",P46*KATSAYILAR!$C$22,0),2) -> 0 | R46: =ROUND(IF('BİLGİ GİRİŞİ'!D45="Ücretli Öğretmen (Emekli çalışan)",P46*KATSAYILAR!$C$24,0),2) -> 0 | S46: 0 | T46: ='BİLGİ GİRİŞİ'!F45 -> 0 | U46: =IF('BİLGİ GİRİŞİ'!G45=KATSAYILAR!$B$16,KATSAYILAR!$C$16, IF('BİLGİ GİRİŞİ'!G45=KATSAYILAR!$B$17,KATSAYILAR!$C$17, IF('BİLGİ GİRİŞİ'!G45=KATSAYILAR!$B$18,KATSAYILAR!$C$18,0))) -> 0 | V46: ='BİLGİ GİRİŞİ'!H45 -> 0 | W46: 0 | X46: =hesaplamalar!J43 -> 0 | Y46: =hesaplamalar!M43 -> 0 | Z46: =hesaplamalar!N43 -> 0 | AA46: =hesaplamalar!P43 -> 0 | AB46: =hesaplamalar!Q43 -> 0 | AC46: =hesaplamalar!T43 -> 0 | AD46: =hesaplamalar!U43 -> 0 | AE46: 0 | AF46: =ROUND(IF('BİLGİ GİRİŞİ'!D45="Ücretli Öğretmen",P46*KATSAYILAR!$C$23,0),2) -> 0 | AG46: 0 | AH46: =ROUND(IF('BİLGİ GİRİŞİ'!D45="Ücretli Öğretmen (Emekli çalışan)",P46*KATSAYILAR!$C$34,0),2) -> 0 | AI46: ='BİLGİ GİRİŞİ'!I45 -> 0 | AJ46: 0 | AK46: 0 | AM46: 0 | AO46: ='BİLGİ GİRİŞİ'!E45 -> 0
A47: ='EK DERS VERİ GİRİŞİ'!A46 -> 42 | B47: ='EK DERS VERİ GİRİŞİ'!B46 ->  | C47: ='EK DERS VERİ GİRİŞİ'!C46 ->  | D47: ='BİLGİ GİRİŞİ'!D46 -> 0 | E47: ='EK DERS VERİ GİRİŞİ'!E46 -> 0 | F47: =ROUND(E47*KATSAYILAR!$C$3*KATSAYILAR!$B$37,2) -> 0 | G47: ='EK DERS VERİ GİRİŞİ'!F46 -> 0 | H47: =ROUND(G47*KATSAYILAR!$C$3*KATSAYILAR!$B$38,2) -> 0 | I47: ='EK DERS VERİ GİRİŞİ'!G46 -> 0 | J47: =ROUND(I47*KATSAYILAR!$C$3*KATSAYILAR!$B$39,2) -> 0 | K47: ='EK DERS VERİ GİRİŞİ'!H46 -> 0 | L47: =ROUND(K47*KATSAYILAR!$C$3*KATSAYILAR!$B$40,2) -> 0 | M47: 0 | N47: 0 | O47: 0 | P47: =IF(O47=0,0,IF(O47<KATSAYILAR!$C$9*N47,KATSAYILAR!$C$9*N47,O47)) -> 0 | Q47: =ROUND(IF('BİLGİ GİRİŞİ'!D46="Ücretli Öğretmen",P47*KATSAYILAR!$C$22,0),2) -> 0 | R47: =ROUND(IF('BİLGİ GİRİŞİ'!D46="Ücretli Öğretmen (Emekli çalışan)",P47*KATSAYILAR!$C$24,0),2) -> 0 | S47: 0 | T47: ='BİLGİ GİRİŞİ'!F46 -> 0 | U47: =IF('BİLGİ GİRİŞİ'!G46=KATSAYILAR!$B$16,KATSAYILAR!$C$16, IF('BİLGİ GİRİŞİ'!G46=KATSAYILAR!$B$17,KATSAYILAR!$C$17, IF('BİLGİ GİRİŞİ'!G46=KATSAYILAR!$B$18,KATSAYILAR!$C$18,0))) -> 0 | V47: ='BİLGİ GİRİŞİ'!H46 -> 0 | W47: 0 | X47: =hesaplamalar!J44 -> 0 | Y47: =hesaplamalar!M44 -> 0 | Z47: =hesaplamalar!N44 -> 0 | AA47: =hesaplamalar!P44 -> 0 | AB47: =hesaplamalar!Q44 -> 0 | AC47: =hesaplamalar!T44 -> 0 | AD47: =hesaplamalar!U44 -> 0 | AE47: 0 | AF47: =ROUND(IF('BİLGİ GİRİŞİ'!D46="Ücretli Öğretmen",P47*KATSAYILAR!$C$23,0),2) -> 0 | AG47: 0 | AH47: =ROUND(IF('BİLGİ GİRİŞİ'!D46="Ücretli Öğretmen (Emekli çalışan)",P47*KATSAYILAR!$C$34,0),2) -> 0 | AI47: ='BİLGİ GİRİŞİ'!I46 -> 0 | AJ47: 0 | AK47: 0 | AM47: 0 | AO47: ='BİLGİ GİRİŞİ'!E46 -> 0
A48: ='EK DERS VERİ GİRİŞİ'!A47 -> 43 | B48: ='EK DERS VERİ GİRİŞİ'!B47 ->  | C48: ='EK DERS VERİ GİRİŞİ'!C47 ->  | D48: ='BİLGİ GİRİŞİ'!D47 -> 0 | E48: ='EK DERS VERİ GİRİŞİ'!E47 -> 0 | F48: =ROUND(E48*KATSAYILAR!$C$3*KATSAYILAR!$B$37,2) -> 0 | G48: ='EK DERS VERİ GİRİŞİ'!F47 -> 0 | H48: =ROUND(G48*KATSAYILAR!$C$3*KATSAYILAR!$B$38,2) -> 0 | I48: ='EK DERS VERİ GİRİŞİ'!G47 -> 0 | J48: =ROUND(I48*KATSAYILAR!$C$3*KATSAYILAR!$B$39,2) -> 0 | K48: ='EK DERS VERİ GİRİŞİ'!H47 -> 0 | L48: =ROUND(K48*KATSAYILAR!$C$3*KATSAYILAR!$B$40,2) -> 0 | M48: 0 | N48: 0 | O48: 0 | P48: =IF(O48=0,0,IF(O48<KATSAYILAR!$C$9*N48,KATSAYILAR!$C$9*N48,O48)) -> 0 | Q48: =ROUND(IF('BİLGİ GİRİŞİ'!D47="Ücretli Öğretmen",P48*KATSAYILAR!$C$22,0),2) -> 0 | R48: =ROUND(IF('BİLGİ GİRİŞİ'!D47="Ücretli Öğretmen (Emekli çalışan)",P48*KATSAYILAR!$C$24,0),2) -> 0 | S48: 0 | T48: ='BİLGİ GİRİŞİ'!F47 -> 0 | U48: =IF('BİLGİ GİRİŞİ'!G47=KATSAYILAR!$B$16,KATSAYILAR!$C$16, IF('BİLGİ GİRİŞİ'!G47=KATSAYILAR!$B$17,KATSAYILAR!$C$17, IF('BİLGİ GİRİŞİ'!G47=KATSAYILAR!$B$18,KATSAYILAR!$C$18,0))) -> 0 | V48: ='BİLGİ GİRİŞİ'!H47 -> 0 | W48: 0 | X48: =hesaplamalar!J45 -> 0 | Y48: =hesaplamalar!M45 -> 0 | Z48: =hesaplamalar!N45 -> 0 | AA48: =hesaplamalar!P45 -> 0 | AB48: =hesaplamalar!Q45 -> 0 | AC48: =hesaplamalar!T45 -> 0 | AD48: =hesaplamalar!U45 -> 0 | AE48: 0 | AF48: =ROUND(IF('BİLGİ GİRİŞİ'!D47="Ücretli Öğretmen",P48*KATSAYILAR!$C$23,0),2) -> 0 | AG48: 0 | AH48: =ROUND(IF('BİLGİ GİRİŞİ'!D47="Ücretli Öğretmen (Emekli çalışan)",P48*KATSAYILAR!$C$34,0),2) -> 0 | AI48: ='BİLGİ GİRİŞİ'!I47 -> 0 | AJ48: 0 | AK48: 0 | AM48: 0 | AO48: ='BİLGİ GİRİŞİ'!E47 -> 0
A49: ='EK DERS VERİ GİRİŞİ'!A48 -> 44 | B49: ='EK DERS VERİ GİRİŞİ'!B48 ->  | C49: ='EK DERS VERİ GİRİŞİ'!C48 ->  | D49: ='BİLGİ GİRİŞİ'!D48 -> 0 | E49: ='EK DERS VERİ GİRİŞİ'!E48 -> 0 | F49: =ROUND(E49*KATSAYILAR!$C$3*KATSAYILAR!$B$37,2) -> 0 | G49: ='EK DERS VERİ GİRİŞİ'!F48 -> 0 | H49: =ROUND(G49*KATSAYILAR!$C$3*KATSAYILAR!$B$38,2) -> 0 | I49: ='EK DERS VERİ GİRİŞİ'!G48 -> 0 | J49: =ROUND(I49*KATSAYILAR!$C$3*KATSAYILAR!$B$39,2) -> 0 | K49: ='EK DERS VERİ GİRİŞİ'!H48 -> 0 | L49: =ROUND(K49*KATSAYILAR!$C$3*KATSAYILAR!$B$40,2) -> 0 | M49: 0 | N49: 0 | O49: 0 | P49: =IF(O49=0,0,IF(O49<KATSAYILAR!$C$9*N49,KATSAYILAR!$C$9*N49,O49)) -> 0 | Q49: =ROUND(IF('BİLGİ GİRİŞİ'!D48="Ücretli Öğretmen",P49*KATSAYILAR!$C$22,0),2) -> 0 | R49: =ROUND(IF('BİLGİ GİRİŞİ'!D48="Ücretli Öğretmen (Emekli çalışan)",P49*KATSAYILAR!$C$24,0),2) -> 0 | S49: 0 | T49: ='BİLGİ GİRİŞİ'!F48 -> 0 | U49: =IF('BİLGİ GİRİŞİ'!G48=KATSAYILAR!$B$16,KATSAYILAR!$C$16, IF('BİLGİ GİRİŞİ'!G48=KATSAYILAR!$B$17,KATSAYILAR!$C$17, IF('BİLGİ GİRİŞİ'!G48=KATSAYILAR!$B$18,KATSAYILAR!$C$18,0))) -> 0 | V49: ='BİLGİ GİRİŞİ'!H48 -> 0 | W49: 0 | X49: =hesaplamalar!J46 -> 0 | Y49: =hesaplamalar!M46 -> 0 | Z49: =hesaplamalar!N46 -> 0 | AA49: =hesaplamalar!P46 -> 0 | AB49: =hesaplamalar!Q46 -> 0 | AC49: =hesaplamalar!T46 -> 0 | AD49: =hesaplamalar!U46 -> 0 | AE49: 0 | AF49: =ROUND(IF('BİLGİ GİRİŞİ'!D48="Ücretli Öğretmen",P49*KATSAYILAR!$C$23,0),2) -> 0 | AG49: 0 | AH49: =ROUND(IF('BİLGİ GİRİŞİ'!D48="Ücretli Öğretmen (Emekli çalışan)",P49*KATSAYILAR!$C$34,0),2) -> 0 | AI49: ='BİLGİ GİRİŞİ'!I48 -> 0 | AJ49: 0 | AK49: 0 | AM49: 0 | AO49: ='BİLGİ GİRİŞİ'!E48 -> 0
A50: ='EK DERS VERİ GİRİŞİ'!A49 -> 45 | B50: ='EK DERS VERİ GİRİŞİ'!B49 ->  | C50: ='EK DERS VERİ GİRİŞİ'!C49 ->  | D50: ='BİLGİ GİRİŞİ'!D49 -> 0 | E50: ='EK DERS VERİ GİRİŞİ'!E49 -> 0 | F50: =ROUND(E50*KATSAYILAR!$C$3*KATSAYILAR!$B$37,2) -> 0 | G50: ='EK DERS VERİ GİRİŞİ'!F49 -> 0 | H50: =ROUND(G50*KATSAYILAR!$C$3*KATSAYILAR!$B$38,2) -> 0 | I50: ='EK DERS VERİ GİRİŞİ'!G49 -> 0 | J50: =ROUND(I50*KATSAYILAR!$C$3*KATSAYILAR!$B$39,2) -> 0 | K50: ='EK DERS VERİ GİRİŞİ'!H49 -> 0 | L50: =ROUND(K50*KATSAYILAR!$C$3*KATSAYILAR!$B$40,2) -> 0 | M50: 0 | N50: 0 | O50: 0 | P50: =IF(O50=0,0,IF(O50<KATSAYILAR!$C$9*N50,KATSAYILAR!$C$9*N50,O50)) -> 0 | Q50: =ROUND(IF('BİLGİ GİRİŞİ'!D49="Ücretli Öğretmen",P50*KATSAYILAR!$C$22,0),2) -> 0 | R50: =ROUND(IF('BİLGİ GİRİŞİ'!D49="Ücretli Öğretmen (Emekli çalışan)",P50*KATSAYILAR!$C$24,0),2) -> 0 | S50: 0 | T50: ='BİLGİ GİRİŞİ'!F49 -> 0 | U50: =IF('BİLGİ GİRİŞİ'!G49=KATSAYILAR!$B$16,KATSAYILAR!$C$16, IF('BİLGİ GİRİŞİ'!G49=KATSAYILAR!$B$17,KATSAYILAR!$C$17, IF('BİLGİ GİRİŞİ'!G49=KATSAYILAR!$B$18,KATSAYILAR!$C$18,0))) -> 0 | V50: ='BİLGİ GİRİŞİ'!H49 -> 0 | W50: 0 | X50: =hesaplamalar!J47 -> 0 | Y50: =hesaplamalar!M47 -> 0 | Z50: =hesaplamalar!N47 -> 0 | AA50: =hesaplamalar!P47 -> 0 | AB50: =hesaplamalar!Q47 -> 0 | AC50: =hesaplamalar!T47 -> 0 | AD50: =hesaplamalar!U47 -> 0 | AE50: 0 | AF50: =ROUND(IF('BİLGİ GİRİŞİ'!D49="Ücretli Öğretmen",P50*KATSAYILAR!$C$23,0),2) -> 0 | AG50: 0 | AH50: =ROUND(IF('BİLGİ GİRİŞİ'!D49="Ücretli Öğretmen (Emekli çalışan)",P50*KATSAYILAR!$C$34,0),2) -> 0 | AI50: ='BİLGİ GİRİŞİ'!I49 -> 0 | AJ50: 0 | AK50: 0 | AM50: 0 | AO50: ='BİLGİ GİRİŞİ'!E49 -> 0
A51: ='EK DERS VERİ GİRİŞİ'!A50 -> 46 | B51: ='EK DERS VERİ GİRİŞİ'!B50 ->  | C51: ='EK DERS VERİ GİRİŞİ'!C50 ->  | D51: ='BİLGİ GİRİŞİ'!D50 -> 0 | E51: ='EK DERS VERİ GİRİŞİ'!E50 -> 0 | F51: =ROUND(E51*KATSAYILAR!$C$3*KATSAYILAR!$B$37,2) -> 0 | G51: ='EK DERS VERİ GİRİŞİ'!F50 -> 0 | H51: =ROUND(G51*KATSAYILAR!$C$3*KATSAYILAR!$B$38,2) -> 0 | I51: ='EK DERS VERİ GİRİŞİ'!G50 -> 0 | J51: =ROUND(I51*KATSAYILAR!$C$3*KATSAYILAR!$B$39,2) -> 0 | K51: ='EK DERS VERİ GİRİŞİ'!H50 -> 0 | L51: =ROUND(K51*KATSAYILAR!$C$3*KATSAYILAR!$B$40,2) -> 0 | M51: 0 | N51: 0 | O51: 0 | P51: =IF(O51=0,0,IF(O51<KATSAYILAR!$C$9*N51,KATSAYILAR!$C$9*N51,O51)) -> 0 | Q51: =ROUND(IF('BİLGİ GİRİŞİ'!D50="Ücretli Öğretmen",P51*KATSAYILAR!$C$22,0),2) -> 0 | R51: =ROUND(IF('BİLGİ GİRİŞİ'!D50="Ücretli Öğretmen (Emekli çalışan)",P51*KATSAYILAR!$C$24,0),2) -> 0 | S51: 0 | T51: ='BİLGİ GİRİŞİ'!F50 -> 0 | U51: =IF('BİLGİ GİRİŞİ'!G50=KATSAYILAR!$B$16,KATSAYILAR!$C$16, IF('BİLGİ GİRİŞİ'!G50=KATSAYILAR!$B$17,KATSAYILAR!$C$17, IF('BİLGİ GİRİŞİ'!G50=KATSAYILAR!$B$18,KATSAYILAR!$C$18,0))) -> 0 | V51: ='BİLGİ GİRİŞİ'!H50 -> 0 | W51: 0 | X51: =hesaplamalar!J48 -> 0 | Y51: =hesaplamalar!M48 -> 0 | Z51: =hesaplamalar!N48 -> 0 | AA51: =hesaplamalar!P48 -> 0 | AB51: =hesaplamalar!Q48 -> 0 | AC51: =hesaplamalar!T48 -> 0 | AD51: =hesaplamalar!U48 -> 0 | AE51: 0 | AF51: =ROUND(IF('BİLGİ GİRİŞİ'!D50="Ücretli Öğretmen",P51*KATSAYILAR!$C$23,0),2) -> 0 | AG51: 0 | AH51: =ROUND(IF('BİLGİ GİRİŞİ'!D50="Ücretli Öğretmen (Emekli çalışan)",P51*KATSAYILAR!$C$34,0),2) -> 0 | AI51: ='BİLGİ GİRİŞİ'!I50 -> 0 | AJ51: 0 | AK51: 0 | AM51: 0 | AO51: ='BİLGİ GİRİŞİ'!E50 -> 0
A52: ='EK DERS VERİ GİRİŞİ'!A51 -> 47 | B52: ='EK DERS VERİ GİRİŞİ'!B51 ->  | C52: ='EK DERS VERİ GİRİŞİ'!C51 ->  | D52: ='BİLGİ GİRİŞİ'!D51 -> 0 | E52: ='EK DERS VERİ GİRİŞİ'!E51 -> 0 | F52: =ROUND(E52*KATSAYILAR!$C$3*KATSAYILAR!$B$37,2) -> 0 | G52: ='EK DERS VERİ GİRİŞİ'!F51 -> 0 | H52: =ROUND(G52*KATSAYILAR!$C$3*KATSAYILAR!$B$38,2) -> 0 | I52: ='EK DERS VERİ GİRİŞİ'!G51 -> 0 | J52: =ROUND(I52*KATSAYILAR!$C$3*KATSAYILAR!$B$39,2) -> 0 | K52: ='EK DERS VERİ GİRİŞİ'!H51 -> 0 | L52: =ROUND(K52*KATSAYILAR!$C$3*KATSAYILAR!$B$40,2) -> 0 | M52: 0 | N52: 0 | O52: 0 | P52: =IF(O52=0,0,IF(O52<KATSAYILAR!$C$9*N52,KATSAYILAR!$C$9*N52,O52)) -> 0 | Q52: =ROUND(IF('BİLGİ GİRİŞİ'!D51="Ücretli Öğretmen",P52*KATSAYILAR!$C$22,0),2) -> 0 | R52: =ROUND(IF('BİLGİ GİRİŞİ'!D51="Ücretli Öğretmen (Emekli çalışan)",P52*KATSAYILAR!$C$24,0),2) -> 0 | S52: 0 | T52: ='BİLGİ GİRİŞİ'!F51 -> 0 | U52: =IF('BİLGİ GİRİŞİ'!G51=KATSAYILAR!$B$16,KATSAYILAR!$C$16, IF('BİLGİ GİRİŞİ'!G51=KATSAYILAR!$B$17,KATSAYILAR!$C$17, IF('BİLGİ GİRİŞİ'!G51=KATSAYILAR!$B$18,KATSAYILAR!$C$18,0))) -> 0 | V52: ='BİLGİ GİRİŞİ'!H51 -> 0 | W52: 0 | X52: =hesaplamalar!J49 -> 0 | Y52: =hesaplamalar!M49 -> 0 | Z52: =hesaplamalar!N49 -> 0 | AA52: =hesaplamalar!P49 -> 0 | AB52: =hesaplamalar!Q49 -> 0 | AC52: =hesaplamalar!T49 -> 0 | AD52: =hesaplamalar!U49 -> 0 | AE52: 0 | AF52: =ROUND(IF('BİLGİ GİRİŞİ'!D51="Ücretli Öğretmen",P52*KATSAYILAR!$C$23,0),2) -> 0 | AG52: 0 | AH52: =ROUND(IF('BİLGİ GİRİŞİ'!D51="Ücretli Öğretmen (Emekli çalışan)",P52*KATSAYILAR!$C$34,0),2) -> 0 | AI52: ='BİLGİ GİRİŞİ'!I51 -> 0 | AJ52: 0 | AK52: 0 | AM52: 0 | AO52: ='BİLGİ GİRİŞİ'!E51 -> 0
A53: ='EK DERS VERİ GİRİŞİ'!A52 -> 48 | B53: ='EK DERS VERİ GİRİŞİ'!B52 ->  | C53: ='EK DERS VERİ GİRİŞİ'!C52 ->  | D53: ='BİLGİ GİRİŞİ'!D52 -> 0 | E53: ='EK DERS VERİ GİRİŞİ'!E52 -> 0 | F53: =ROUND(E53*KATSAYILAR!$C$3*KATSAYILAR!$B$37,2) -> 0 | G53: ='EK DERS VERİ GİRİŞİ'!F52 -> 0 | H53: =ROUND(G53*KATSAYILAR!$C$3*KATSAYILAR!$B$38,2) -> 0 | I53: ='EK DERS VERİ GİRİŞİ'!G52 -> 0 | J53: =ROUND(I53*KATSAYILAR!$C$3*KATSAYILAR!$B$39,2) -> 0 | K53: ='EK DERS VERİ GİRİŞİ'!H52 -> 0 | L53: =ROUND(K53*KATSAYILAR!$C$3*KATSAYILAR!$B$40,2) -> 0 | M53: 0 | N53: 0 | O53: 0 | P53: =IF(O53=0,0,IF(O53<KATSAYILAR!$C$9*N53,KATSAYILAR!$C$9*N53,O53)) -> 0 | Q53: =ROUND(IF('BİLGİ GİRİŞİ'!D52="Ücretli Öğretmen",P53*KATSAYILAR!$C$22,0),2) -> 0 | R53: =ROUND(IF('BİLGİ GİRİŞİ'!D52="Ücretli Öğretmen (Emekli çalışan)",P53*KATSAYILAR!$C$24,0),2) -> 0 | S53: 0 | T53: ='BİLGİ GİRİŞİ'!F52 -> 0 | U53: =IF('BİLGİ GİRİŞİ'!G52=KATSAYILAR!$B$16,KATSAYILAR!$C$16, IF('BİLGİ GİRİŞİ'!G52=KATSAYILAR!$B$17,KATSAYILAR!$C$17, IF('BİLGİ GİRİŞİ'!G52=KATSAYILAR!$B$18,KATSAYILAR!$C$18,0))) -> 0 | V53: ='BİLGİ GİRİŞİ'!H52 -> 0 | W53: 0 | X53: =hesaplamalar!J50 -> 0 | Y53: =hesaplamalar!M50 -> 0 | Z53: =hesaplamalar!N50 -> 0 | AA53: =hesaplamalar!P50 -> 0 | AB53: =hesaplamalar!Q50 -> 0 | AC53: =hesaplamalar!T50 -> 0 | AD53: =hesaplamalar!U50 -> 0 | AE53: 0 | AF53: =ROUND(IF('BİLGİ GİRİŞİ'!D52="Ücretli Öğretmen",P53*KATSAYILAR!$C$23,0),2) -> 0 | AG53: 0 | AH53: =ROUND(IF('BİLGİ GİRİŞİ'!D52="Ücretli Öğretmen (Emekli çalışan)",P53*KATSAYILAR!$C$34,0),2) -> 0 | AI53: ='BİLGİ GİRİŞİ'!I52 -> 0 | AJ53: 0 | AK53: 0 | AM53: 0 | AO53: ='BİLGİ GİRİŞİ'!E52 -> 0
A54: ='EK DERS VERİ GİRİŞİ'!A53 -> 49 | B54: ='EK DERS VERİ GİRİŞİ'!B53 ->  | C54: ='EK DERS VERİ GİRİŞİ'!C53 ->  | D54: ='BİLGİ GİRİŞİ'!D53 -> 0 | E54: ='EK DERS VERİ GİRİŞİ'!E53 -> 0 | F54: =ROUND(E54*KATSAYILAR!$C$3*KATSAYILAR!$B$37,2) -> 0 | G54: ='EK DERS VERİ GİRİŞİ'!F53 -> 0 | H54: =ROUND(G54*KATSAYILAR!$C$3*KATSAYILAR!$B$38,2) -> 0 | I54: ='EK DERS VERİ GİRİŞİ'!G53 -> 0 | J54: =ROUND(I54*KATSAYILAR!$C$3*KATSAYILAR!$B$39,2) -> 0 | K54: ='EK DERS VERİ GİRİŞİ'!H53 -> 0 | L54: =ROUND(K54*KATSAYILAR!$C$3*KATSAYILAR!$B$40,2) -> 0 | M54: 0 | N54: 0 | O54: 0 | P54: =IF(O54=0,0,IF(O54<KATSAYILAR!$C$9*N54,KATSAYILAR!$C$9*N54,O54)) -> 0 | Q54: =ROUND(IF('BİLGİ GİRİŞİ'!D53="Ücretli Öğretmen",P54*KATSAYILAR!$C$22,0),2) -> 0 | R54: =ROUND(IF('BİLGİ GİRİŞİ'!D53="Ücretli Öğretmen (Emekli çalışan)",P54*KATSAYILAR!$C$24,0),2) -> 0 | S54: 0 | T54: ='BİLGİ GİRİŞİ'!F53 -> 0 | U54: =IF('BİLGİ GİRİŞİ'!G53=KATSAYILAR!$B$16,KATSAYILAR!$C$16, IF('BİLGİ GİRİŞİ'!G53=KATSAYILAR!$B$17,KATSAYILAR!$C$17, IF('BİLGİ GİRİŞİ'!G53=KATSAYILAR!$B$18,KATSAYILAR!$C$18,0))) -> 0 | V54: ='BİLGİ GİRİŞİ'!H53 -> 0 | W54: 0 | X54: =hesaplamalar!J51 -> 0 | Y54: =hesaplamalar!M51 -> 0 | Z54: =hesaplamalar!N51 -> 0 | AA54: =hesaplamalar!P51 -> 0 | AB54: =hesaplamalar!Q51 -> 0 | AC54: =hesaplamalar!T51 -> 0 | AD54: =hesaplamalar!U51 -> 0 | AE54: 0 | AF54: =ROUND(IF('BİLGİ GİRİŞİ'!D53="Ücretli Öğretmen",P54*KATSAYILAR!$C$23,0),2) -> 0 | AG54: 0 | AH54: =ROUND(IF('BİLGİ GİRİŞİ'!D53="Ücretli Öğretmen (Emekli çalışan)",P54*KATSAYILAR!$C$34,0),2) -> 0 | AI54: ='BİLGİ GİRİŞİ'!I53 -> 0 | AJ54: 0 | AK54: 0 | AM54: 0 | AO54: ='BİLGİ GİRİŞİ'!E53 -> 0
A55: ='EK DERS VERİ GİRİŞİ'!A54 -> 50 | B55: ='EK DERS VERİ GİRİŞİ'!B54 ->  | C55: ='EK DERS VERİ GİRİŞİ'!C54 ->  | D55: ='BİLGİ GİRİŞİ'!D54 -> 0 | E55: ='EK DERS VERİ GİRİŞİ'!E54 -> 0 | F55: =ROUND(E55*KATSAYILAR!$C$3*KATSAYILAR!$B$37,2) -> 0 | G55: ='EK DERS VERİ GİRİŞİ'!F54 -> 0 | H55: =ROUND(G55*KATSAYILAR!$C$3*KATSAYILAR!$B$38,2) -> 0 | I55: ='EK DERS VERİ GİRİŞİ'!G54 -> 0 | J55: =ROUND(I55*KATSAYILAR!$C$3*KATSAYILAR!$B$39,2) -> 0 | K55: ='EK DERS VERİ GİRİŞİ'!H54 -> 0 | L55: =ROUND(K55*KATSAYILAR!$C$3*KATSAYILAR!$B$40,2) -> 0 | M55: 0 | N55: 0 | O55: 0 | P55: =IF(O55=0,0,IF(O55<KATSAYILAR!$C$9*N55,KATSAYILAR!$C$9*N55,O55)) -> 0 | Q55: =ROUND(IF('BİLGİ GİRİŞİ'!D54="Ücretli Öğretmen",P55*KATSAYILAR!$C$22,0),2) -> 0 | R55: =ROUND(IF('BİLGİ GİRİŞİ'!D54="Ücretli Öğretmen (Emekli çalışan)",P55*KATSAYILAR!$C$24,0),2) -> 0 | S55: 0 | T55: ='BİLGİ GİRİŞİ'!F54 -> 0 | U55: =IF('BİLGİ GİRİŞİ'!G54=KATSAYILAR!$B$16,KATSAYILAR!$C$16, IF('BİLGİ GİRİŞİ'!G54=KATSAYILAR!$B$17,KATSAYILAR!$C$17, IF('BİLGİ GİRİŞİ'!G54=KATSAYILAR!$B$18,KATSAYILAR!$C$18,0))) -> 0 | V55: ='BİLGİ GİRİŞİ'!H54 -> 0 | W55: 0 | X55: =hesaplamalar!J52 -> 0 | Y55: =hesaplamalar!M52 -> 0 | Z55: =hesaplamalar!N52 -> 0 | AA55: =hesaplamalar!P52 -> 0 | AB55: =hesaplamalar!Q52 -> 0 | AC55: =hesaplamalar!T52 -> 0 | AD55: =hesaplamalar!U52 -> 0 | AE55: 0 | AF55: =ROUND(IF('BİLGİ GİRİŞİ'!D54="Ücretli Öğretmen",P55*KATSAYILAR!$C$23,0),2) -> 0 | AG55: 0 | AH55: =ROUND(IF('BİLGİ GİRİŞİ'!D54="Ücretli Öğretmen (Emekli çalışan)",P55*KATSAYILAR!$C$34,0),2) -> 0 | AI55: ='BİLGİ GİRİŞİ'!I54 -> 0 | AJ55: 0 | AK55: 0 | AM55: 0 | AO55: ='BİLGİ GİRİŞİ'!E54 -> 0
A56: ='EK DERS VERİ GİRİŞİ'!A55 -> 51 | B56: ='EK DERS VERİ GİRİŞİ'!B55 ->  | C56: ='EK DERS VERİ GİRİŞİ'!C55 ->  | D56: ='BİLGİ GİRİŞİ'!D55 -> 0 | E56: ='EK DERS VERİ GİRİŞİ'!E55 -> 0 | F56: =ROUND(E56*KATSAYILAR!$C$3*KATSAYILAR!$B$37,2) -> 0 | G56: ='EK DERS VERİ GİRİŞİ'!F55 -> 0 | H56: =ROUND(G56*KATSAYILAR!$C$3*KATSAYILAR!$B$38,2) -> 0 | I56: ='EK DERS VERİ GİRİŞİ'!G55 -> 0 | J56: =ROUND(I56*KATSAYILAR!$C$3*KATSAYILAR!$B$39,2) -> 0 | K56: ='EK DERS VERİ GİRİŞİ'!H55 -> 0 | L56: =ROUND(K56*KATSAYILAR!$C$3*KATSAYILAR!$B$40,2) -> 0 | M56: 0 | N56: 0 | O56: 0 | P56: =IF(O56=0,0,IF(O56<KATSAYILAR!$C$9*N56,KATSAYILAR!$C$9*N56,O56)) -> 0 | Q56: =ROUND(IF('BİLGİ GİRİŞİ'!D55="Ücretli Öğretmen",P56*KATSAYILAR!$C$22,0),2) -> 0 | R56: =ROUND(IF('BİLGİ GİRİŞİ'!D55="Ücretli Öğretmen (Emekli çalışan)",P56*KATSAYILAR!$C$24,0),2) -> 0 | S56: 0 | T56: ='BİLGİ GİRİŞİ'!F55 -> 0 | U56: =IF('BİLGİ GİRİŞİ'!G55=KATSAYILAR!$B$16,KATSAYILAR!$C$16, IF('BİLGİ GİRİŞİ'!G55=KATSAYILAR!$B$17,KATSAYILAR!$C$17, IF('BİLGİ GİRİŞİ'!G55=KATSAYILAR!$B$18,KATSAYILAR!$C$18,0))) -> 0 | V56: ='BİLGİ GİRİŞİ'!H55 -> 0 | W56: 0 | X56: =hesaplamalar!J53 -> 0 | Y56: =hesaplamalar!M53 -> 0 | Z56: =hesaplamalar!N53 -> 0 | AA56: =hesaplamalar!P53 -> 0 | AB56: =hesaplamalar!Q53 -> 0 | AC56: =hesaplamalar!T53 -> 0 | AD56: =hesaplamalar!U53 -> 0 | AE56: 0 | AF56: =ROUND(IF('BİLGİ GİRİŞİ'!D55="Ücretli Öğretmen",P56*KATSAYILAR!$C$23,0),2) -> 0 | AG56: 0 | AH56: =ROUND(IF('BİLGİ GİRİŞİ'!D55="Ücretli Öğretmen (Emekli çalışan)",P56*KATSAYILAR!$C$34,0),2) -> 0 | AI56: ='BİLGİ GİRİŞİ'!I55 -> 0 | AJ56: 0 | AK56: 0 | AM56: 0 | AO56: ='BİLGİ GİRİŞİ'!E55 -> 0
A57: ='EK DERS VERİ GİRİŞİ'!A56 -> 52 | B57: ='EK DERS VERİ GİRİŞİ'!B56 ->  | C57: ='EK DERS VERİ GİRİŞİ'!C56 ->  | D57: ='BİLGİ GİRİŞİ'!D56 -> 0 | E57: ='EK DERS VERİ GİRİŞİ'!E56 -> 0 | F57: =ROUND(E57*KATSAYILAR!$C$3*KATSAYILAR!$B$37,2) -> 0 | G57: ='EK DERS VERİ GİRİŞİ'!F56 -> 0 | H57: =ROUND(G57*KATSAYILAR!$C$3*KATSAYILAR!$B$38,2) -> 0 | I57: ='EK DERS VERİ GİRİŞİ'!G56 -> 0 | J57: =ROUND(I57*KATSAYILAR!$C$3*KATSAYILAR!$B$39,2) -> 0 | K57: ='EK DERS VERİ GİRİŞİ'!H56 -> 0 | L57: =ROUND(K57*KATSAYILAR!$C$3*KATSAYILAR!$B$40,2) -> 0 | M57: 0 | N57: 0 | O57: 0 | P57: =IF(O57=0,0,IF(O57<KATSAYILAR!$C$9*N57,KATSAYILAR!$C$9*N57,O57)) -> 0 | Q57: =ROUND(IF('BİLGİ GİRİŞİ'!D56="Ücretli Öğretmen",P57*KATSAYILAR!$C$22,0),2) -> 0 | R57: =ROUND(IF('BİLGİ GİRİŞİ'!D56="Ücretli Öğretmen (Emekli çalışan)",P57*KATSAYILAR!$C$24,0),2) -> 0 | S57: 0 | T57: ='BİLGİ GİRİŞİ'!F56 -> 0 | U57: =IF('BİLGİ GİRİŞİ'!G56=KATSAYILAR!$B$16,KATSAYILAR!$C$16, IF('BİLGİ GİRİŞİ'!G56=KATSAYILAR!$B$17,KATSAYILAR!$C$17, IF('BİLGİ GİRİŞİ'!G56=KATSAYILAR!$B$18,KATSAYILAR!$C$18,0))) -> 0 | V57: ='BİLGİ GİRİŞİ'!H56 -> 0 | W57: 0 | X57: =hesaplamalar!J54 -> 0 | Y57: =hesaplamalar!M54 -> 0 | Z57: =hesaplamalar!N54 -> 0 | AA57: =hesaplamalar!P54 -> 0 | AB57: =hesaplamalar!Q54 -> 0 | AC57: =hesaplamalar!T54 -> 0 | AD57: =hesaplamalar!U54 -> 0 | AE57: 0 | AF57: =ROUND(IF('BİLGİ GİRİŞİ'!D56="Ücretli Öğretmen",P57*KATSAYILAR!$C$23,0),2) -> 0 | AG57: 0 | AH57: =ROUND(IF('BİLGİ GİRİŞİ'!D56="Ücretli Öğretmen (Emekli çalışan)",P57*KATSAYILAR!$C$34,0),2) -> 0 | AI57: ='BİLGİ GİRİŞİ'!I56 -> 0 | AJ57: 0 | AK57: 0 | AM57: 0 | AO57: ='BİLGİ GİRİŞİ'!E56 -> 0
A58: ='EK DERS VERİ GİRİŞİ'!A57 -> 53 | B58: ='EK DERS VERİ GİRİŞİ'!B57 ->  | C58: ='EK DERS VERİ GİRİŞİ'!C57 ->  | D58: ='BİLGİ GİRİŞİ'!D57 -> 0 | E58: ='EK DERS VERİ GİRİŞİ'!E57 -> 0 | F58: =ROUND(E58*KATSAYILAR!$C$3*KATSAYILAR!$B$37,2) -> 0 | G58: ='EK DERS VERİ GİRİŞİ'!F57 -> 0 | H58: =ROUND(G58*KATSAYILAR!$C$3*KATSAYILAR!$B$38,2) -> 0 | I58: ='EK DERS VERİ GİRİŞİ'!G57 -> 0 | J58: =ROUND(I58*KATSAYILAR!$C$3*KATSAYILAR!$B$39,2) -> 0 | K58: ='EK DERS VERİ GİRİŞİ'!H57 -> 0 | L58: =ROUND(K58*KATSAYILAR!$C$3*KATSAYILAR!$B$40,2) -> 0 | M58: 0 | N58: 0 | O58: 0 | P58: =IF(O58=0,0,IF(O58<KATSAYILAR!$C$9*N58,KATSAYILAR!$C$9*N58,O58)) -> 0 | Q58: =ROUND(IF('BİLGİ GİRİŞİ'!D57="Ücretli Öğretmen",P58*KATSAYILAR!$C$22,0),2) -> 0 | R58: =ROUND(IF('BİLGİ GİRİŞİ'!D57="Ücretli Öğretmen (Emekli çalışan)",P58*KATSAYILAR!$C$24,0),2) -> 0 | S58: 0 | T58: ='BİLGİ GİRİŞİ'!F57 -> 0 | U58: =IF('BİLGİ GİRİŞİ'!G57=KATSAYILAR!$B$16,KATSAYILAR!$C$16, IF('BİLGİ GİRİŞİ'!G57=KATSAYILAR!$B$17,KATSAYILAR!$C$17, IF('BİLGİ GİRİŞİ'!G57=KATSAYILAR!$B$18,KATSAYILAR!$C$18,0))) -> 0 | V58: ='BİLGİ GİRİŞİ'!H57 -> 0 | W58: 0 | X58: =hesaplamalar!J55 -> 0 | Y58: =hesaplamalar!M55 -> 0 | Z58: =hesaplamalar!N55 -> 0 | AA58: =hesaplamalar!P55 -> 0 | AB58: =hesaplamalar!Q55 -> 0 | AC58: =hesaplamalar!T55 -> 0 | AD58: =hesaplamalar!U55 -> 0 | AE58: 0 | AF58: =ROUND(IF('BİLGİ GİRİŞİ'!D57="Ücretli Öğretmen",P58*KATSAYILAR!$C$23,0),2) -> 0 | AG58: 0 | AH58: =ROUND(IF('BİLGİ GİRİŞİ'!D57="Ücretli Öğretmen (Emekli çalışan)",P58*KATSAYILAR!$C$34,0),2) -> 0 | AI58: ='BİLGİ GİRİŞİ'!I57 -> 0 | AJ58: 0 | AK58: 0 | AM58: 0 | AO58: ='BİLGİ GİRİŞİ'!E57 -> 0
A59: ='EK DERS VERİ GİRİŞİ'!A58 -> 54 | B59: ='EK DERS VERİ GİRİŞİ'!B58 ->  | C59: ='EK DERS VERİ GİRİŞİ'!C58 ->  | D59: ='BİLGİ GİRİŞİ'!D58 -> 0 | E59: ='EK DERS VERİ GİRİŞİ'!E58 -> 0 | F59: =ROUND(E59*KATSAYILAR!$C$3*KATSAYILAR!$B$37,2) -> 0 | G59: ='EK DERS VERİ GİRİŞİ'!F58 -> 0 | H59: =ROUND(G59*KATSAYILAR!$C$3*KATSAYILAR!$B$38,2) -> 0 | I59: ='EK DERS VERİ GİRİŞİ'!G58 -> 0 | J59: =ROUND(I59*KATSAYILAR!$C$3*KATSAYILAR!$B$39,2) -> 0 | K59: ='EK DERS VERİ GİRİŞİ'!H58 -> 0 | L59: =ROUND(K59*KATSAYILAR!$C$3*KATSAYILAR!$B$40,2) -> 0 | M59: 0 | N59: 0 | O59: 0 | P59: =IF(O59=0,0,IF(O59<KATSAYILAR!$C$9*N59,KATSAYILAR!$C$9*N59,O59)) -> 0 | Q59: =ROUND(IF('BİLGİ GİRİŞİ'!D58="Ücretli Öğretmen",P59*KATSAYILAR!$C$22,0),2) -> 0 | R59: =ROUND(IF('BİLGİ GİRİŞİ'!D58="Ücretli Öğretmen (Emekli çalışan)",P59*KATSAYILAR!$C$24,0),2) -> 0 | S59: 0 | T59: ='BİLGİ GİRİŞİ'!F58 -> 0 | U59: =IF('BİLGİ GİRİŞİ'!G58=KATSAYILAR!$B$16,KATSAYILAR!$C$16, IF('BİLGİ GİRİŞİ'!G58=KATSAYILAR!$B$17,KATSAYILAR!$C$17, IF('BİLGİ GİRİŞİ'!G58=KATSAYILAR!$B$18,KATSAYILAR!$C$18,0))) -> 0 | V59: ='BİLGİ GİRİŞİ'!H58 -> 0 | W59: 0 | X59: =hesaplamalar!J56 -> 0 | Y59: =hesaplamalar!M56 -> 0 | Z59: =hesaplamalar!N56 -> 0 | AA59: =hesaplamalar!P56 -> 0 | AB59: =hesaplamalar!Q56 -> 0 | AC59: =hesaplamalar!T56 -> 0 | AD59: =hesaplamalar!U56 -> 0 | AE59: 0 | AF59: =ROUND(IF('BİLGİ GİRİŞİ'!D58="Ücretli Öğretmen",P59*KATSAYILAR!$C$23,0),2) -> 0 | AG59: 0 | AH59: =ROUND(IF('BİLGİ GİRİŞİ'!D58="Ücretli Öğretmen (Emekli çalışan)",P59*KATSAYILAR!$C$34,0),2) -> 0 | AI59: ='BİLGİ GİRİŞİ'!I58 -> 0 | AJ59: 0 | AK59: 0 | AM59: 0 | AO59: ='BİLGİ GİRİŞİ'!E58 -> 0
A60: ='EK DERS VERİ GİRİŞİ'!A59 -> 55 | B60: ='EK DERS VERİ GİRİŞİ'!B59 ->  | C60: ='EK DERS VERİ GİRİŞİ'!C59 ->  | D60: ='BİLGİ GİRİŞİ'!D59 -> 0 | E60: ='EK DERS VERİ GİRİŞİ'!E59 -> 0 | F60: =ROUND(E60*KATSAYILAR!$C$3*KATSAYILAR!$B$37,2) -> 0 | G60: ='EK DERS VERİ GİRİŞİ'!F59 -> 0 | H60: =ROUND(G60*KATSAYILAR!$C$3*KATSAYILAR!$B$38,2) -> 0 | I60: ='EK DERS VERİ GİRİŞİ'!G59 -> 0 | J60: =ROUND(I60*KATSAYILAR!$C$3*KATSAYILAR!$B$39,2) -> 0 | K60: ='EK DERS VERİ GİRİŞİ'!H59 -> 0 | L60: =ROUND(K60*KATSAYILAR!$C$3*KATSAYILAR!$B$40,2) -> 0 | M60: 0 | N60: 0 | O60: 0 | P60: =IF(O60=0,0,IF(O60<KATSAYILAR!$C$9*N60,KATSAYILAR!$C$9*N60,O60)) -> 0 | Q60: =ROUND(IF('BİLGİ GİRİŞİ'!D59="Ücretli Öğretmen",P60*KATSAYILAR!$C$22,0),2) -> 0 | R60: =ROUND(IF('BİLGİ GİRİŞİ'!D59="Ücretli Öğretmen (Emekli çalışan)",P60*KATSAYILAR!$C$24,0),2) -> 0 | S60: 0 | T60: ='BİLGİ GİRİŞİ'!F59 -> 0 | U60: =IF('BİLGİ GİRİŞİ'!G59=KATSAYILAR!$B$16,KATSAYILAR!$C$16, IF('BİLGİ GİRİŞİ'!G59=KATSAYILAR!$B$17,KATSAYILAR!$C$17, IF('BİLGİ GİRİŞİ'!G59=KATSAYILAR!$B$18,KATSAYILAR!$C$18,0))) -> 0 | V60: ='BİLGİ GİRİŞİ'!H59 -> 0 | W60: 0 | X60: =hesaplamalar!J57 -> 0 | Y60: =hesaplamalar!M57 -> 0 | Z60: =hesaplamalar!N57 -> 0 | AA60: =hesaplamalar!P57 -> 0 | AB60: =hesaplamalar!Q57 -> 0 | AC60: =hesaplamalar!T57 -> 0 | AD60: =hesaplamalar!U57 -> 0 | AE60: 0 | AF60: =ROUND(IF('BİLGİ GİRİŞİ'!D59="Ücretli Öğretmen",P60*KATSAYILAR!$C$23,0),2) -> 0 | AG60: 0 | AH60: =ROUND(IF('BİLGİ GİRİŞİ'!D59="Ücretli Öğretmen (Emekli çalışan)",P60*KATSAYILAR!$C$34,0),2) -> 0 | AI60: ='BİLGİ GİRİŞİ'!I59 -> 0 | AJ60: 0 | AK60: 0 | AM60: 0 | AO60: ='BİLGİ GİRİŞİ'!E59 -> 0
A61: ='EK DERS VERİ GİRİŞİ'!A60 -> 56 | B61: ='EK DERS VERİ GİRİŞİ'!B60 ->  | C61: ='EK DERS VERİ GİRİŞİ'!C60 ->  | D61: ='BİLGİ GİRİŞİ'!D60 -> 0 | E61: ='EK DERS VERİ GİRİŞİ'!E60 -> 0 | F61: =ROUND(E61*KATSAYILAR!$C$3*KATSAYILAR!$B$37,2) -> 0 | G61: ='EK DERS VERİ GİRİŞİ'!F60 -> 0 | H61: =ROUND(G61*KATSAYILAR!$C$3*KATSAYILAR!$B$38,2) -> 0 | I61: ='EK DERS VERİ GİRİŞİ'!G60 -> 0 | J61: =ROUND(I61*KATSAYILAR!$C$3*KATSAYILAR!$B$39,2) -> 0 | K61: ='EK DERS VERİ GİRİŞİ'!H60 -> 0 | L61: =ROUND(K61*KATSAYILAR!$C$3*KATSAYILAR!$B$40,2) -> 0 | M61: 0 | N61: 0 | O61: 0 | P61: =IF(O61=0,0,IF(O61<KATSAYILAR!$C$9*N61,KATSAYILAR!$C$9*N61,O61)) -> 0 | Q61: =ROUND(IF('BİLGİ GİRİŞİ'!D60="Ücretli Öğretmen",P61*KATSAYILAR!$C$22,0),2) -> 0 | R61: =ROUND(IF('BİLGİ GİRİŞİ'!D60="Ücretli Öğretmen (Emekli çalışan)",P61*KATSAYILAR!$C$24,0),2) -> 0 | S61: 0 | T61: ='BİLGİ GİRİŞİ'!F60 -> 0 | U61: =IF('BİLGİ GİRİŞİ'!G60=KATSAYILAR!$B$16,KATSAYILAR!$C$16, IF('BİLGİ GİRİŞİ'!G60=KATSAYILAR!$B$17,KATSAYILAR!$C$17, IF('BİLGİ GİRİŞİ'!G60=KATSAYILAR!$B$18,KATSAYILAR!$C$18,0))) -> 0 | V61: ='BİLGİ GİRİŞİ'!H60 -> 0 | W61: 0 | X61: =hesaplamalar!J58 -> 0 | Y61: =hesaplamalar!M58 -> 0 | Z61: =hesaplamalar!N58 -> 0 | AA61: =hesaplamalar!P58 -> 0 | AB61: =hesaplamalar!Q58 -> 0 | AC61: =hesaplamalar!T58 -> 0 | AD61: =hesaplamalar!U58 -> 0 | AE61: 0 | AF61: =ROUND(IF('BİLGİ GİRİŞİ'!D60="Ücretli Öğretmen",P61*KATSAYILAR!$C$23,0),2) -> 0 | AG61: 0 | AH61: =ROUND(IF('BİLGİ GİRİŞİ'!D60="Ücretli Öğretmen (Emekli çalışan)",P61*KATSAYILAR!$C$34,0),2) -> 0 | AI61: ='BİLGİ GİRİŞİ'!I60 -> 0 | AJ61: 0 | AK61: 0 | AM61: 0 | AO61: ='BİLGİ GİRİŞİ'!E60 -> 0
A62: ='EK DERS VERİ GİRİŞİ'!A61 -> 57 | B62: ='EK DERS VERİ GİRİŞİ'!B61 ->  | C62: ='EK DERS VERİ GİRİŞİ'!C61 ->  | D62: ='BİLGİ GİRİŞİ'!D61 -> 0 | E62: ='EK DERS VERİ GİRİŞİ'!E61 -> 0 | F62: =ROUND(E62*KATSAYILAR!$C$3*KATSAYILAR!$B$37,2) -> 0 | G62: ='EK DERS VERİ GİRİŞİ'!F61 -> 0 | H62: =ROUND(G62*KATSAYILAR!$C$3*KATSAYILAR!$B$38,2) -> 0 | I62: ='EK DERS VERİ GİRİŞİ'!G61 -> 0 | J62: =ROUND(I62*KATSAYILAR!$C$3*KATSAYILAR!$B$39,2) -> 0 | K62: ='EK DERS VERİ GİRİŞİ'!H61 -> 0 | L62: =ROUND(K62*KATSAYILAR!$C$3*KATSAYILAR!$B$40,2) -> 0 | M62: 0 | N62: 0 | O62: 0 | P62: =IF(O62=0,0,IF(O62<KATSAYILAR!$C$9*N62,KATSAYILAR!$C$9*N62,O62)) -> 0 | Q62: =ROUND(IF('BİLGİ GİRİŞİ'!D61="Ücretli Öğretmen",P62*KATSAYILAR!$C$22,0),2) -> 0 | R62: =ROUND(IF('BİLGİ GİRİŞİ'!D61="Ücretli Öğretmen (Emekli çalışan)",P62*KATSAYILAR!$C$24,0),2) -> 0 | S62: 0 | T62: ='BİLGİ GİRİŞİ'!F61 -> 0 | U62: =IF('BİLGİ GİRİŞİ'!G61=KATSAYILAR!$B$16,KATSAYILAR!$C$16, IF('BİLGİ GİRİŞİ'!G61=KATSAYILAR!$B$17,KATSAYILAR!$C$17, IF('BİLGİ GİRİŞİ'!G61=KATSAYILAR!$B$18,KATSAYILAR!$C$18,0))) -> 0 | V62: ='BİLGİ GİRİŞİ'!H61 -> 0 | W62: 0 | X62: =hesaplamalar!J59 -> 0 | Y62: =hesaplamalar!M59 -> 0 | Z62: =hesaplamalar!N59 -> 0 | AA62: =hesaplamalar!P59 -> 0 | AB62: =hesaplamalar!Q59 -> 0 | AC62: =hesaplamalar!T59 -> 0 | AD62: =hesaplamalar!U59 -> 0 | AE62: 0 | AF62: =ROUND(IF('BİLGİ GİRİŞİ'!D61="Ücretli Öğretmen",P62*KATSAYILAR!$C$23,0),2) -> 0 | AG62: 0 | AH62: =ROUND(IF('BİLGİ GİRİŞİ'!D61="Ücretli Öğretmen (Emekli çalışan)",P62*KATSAYILAR!$C$34,0),2) -> 0 | AI62: ='BİLGİ GİRİŞİ'!I61 -> 0 | AJ62: 0 | AK62: 0 | AM62: 0 | AO62: ='BİLGİ GİRİŞİ'!E61 -> 0
A63: ='EK DERS VERİ GİRİŞİ'!A62 -> 58 | B63: ='EK DERS VERİ GİRİŞİ'!B62 ->  | C63: ='EK DERS VERİ GİRİŞİ'!C62 ->  | D63: ='BİLGİ GİRİŞİ'!D62 -> 0 | E63: ='EK DERS VERİ GİRİŞİ'!E62 -> 0 | F63: =ROUND(E63*KATSAYILAR!$C$3*KATSAYILAR!$B$37,2) -> 0 | G63: ='EK DERS VERİ GİRİŞİ'!F62 -> 0 | H63: =ROUND(G63*KATSAYILAR!$C$3*KATSAYILAR!$B$38,2) -> 0 | I63: ='EK DERS VERİ GİRİŞİ'!G62 -> 0 | J63: =ROUND(I63*KATSAYILAR!$C$3*KATSAYILAR!$B$39,2) -> 0 | K63: ='EK DERS VERİ GİRİŞİ'!H62 -> 0 | L63: =ROUND(K63*KATSAYILAR!$C$3*KATSAYILAR!$B$40,2) -> 0 | M63: 0 | N63: 0 | O63: 0 | P63: =IF(O63=0,0,IF(O63<KATSAYILAR!$C$9*N63,KATSAYILAR!$C$9*N63,O63)) -> 0 | Q63: =ROUND(IF('BİLGİ GİRİŞİ'!D62="Ücretli Öğretmen",P63*KATSAYILAR!$C$22,0),2) -> 0 | R63: =ROUND(IF('BİLGİ GİRİŞİ'!D62="Ücretli Öğretmen (Emekli çalışan)",P63*KATSAYILAR!$C$24,0),2) -> 0 | S63: 0 | T63: ='BİLGİ GİRİŞİ'!F62 -> 0 | U63: =IF('BİLGİ GİRİŞİ'!G62=KATSAYILAR!$B$16,KATSAYILAR!$C$16, IF('BİLGİ GİRİŞİ'!G62=KATSAYILAR!$B$17,KATSAYILAR!$C$17, IF('BİLGİ GİRİŞİ'!G62=KATSAYILAR!$B$18,KATSAYILAR!$C$18,0))) -> 0 | V63: ='BİLGİ GİRİŞİ'!H62 -> 0 | W63: 0 | X63: =hesaplamalar!J60 -> 0 | Y63: =hesaplamalar!M60 -> 0 | Z63: =hesaplamalar!N60 -> 0 | AA63: =hesaplamalar!P60 -> 0 | AB63: =hesaplamalar!Q60 -> 0 | AC63: =hesaplamalar!T60 -> 0 | AD63: =hesaplamalar!U60 -> 0 | AE63: 0 | AF63: =ROUND(IF('BİLGİ GİRİŞİ'!D62="Ücretli Öğretmen",P63*KATSAYILAR!$C$23,0),2) -> 0 | AG63: 0 | AH63: =ROUND(IF('BİLGİ GİRİŞİ'!D62="Ücretli Öğretmen (Emekli çalışan)",P63*KATSAYILAR!$C$34,0),2) -> 0 | AI63: ='BİLGİ GİRİŞİ'!I62 -> 0 | AJ63: 0 | AK63: 0 | AM63: 0 | AO63: ='BİLGİ GİRİŞİ'!E62 -> 0
A64: ='EK DERS VERİ GİRİŞİ'!A63 -> 59 | B64: ='EK DERS VERİ GİRİŞİ'!B63 ->  | C64: ='EK DERS VERİ GİRİŞİ'!C63 ->  | D64: ='BİLGİ GİRİŞİ'!D63 -> 0 | E64: ='EK DERS VERİ GİRİŞİ'!E63 -> 0 | F64: =ROUND(E64*KATSAYILAR!$C$3*KATSAYILAR!$B$37,2) -> 0 | G64: ='EK DERS VERİ GİRİŞİ'!F63 -> 0 | H64: =ROUND(G64*KATSAYILAR!$C$3*KATSAYILAR!$B$38,2) -> 0 | I64: ='EK DERS VERİ GİRİŞİ'!G63 -> 0 | J64: =ROUND(I64*KATSAYILAR!$C$3*KATSAYILAR!$B$39,2) -> 0 | K64: ='EK DERS VERİ GİRİŞİ'!H63 -> 0 | L64: =ROUND(K64*KATSAYILAR!$C$3*KATSAYILAR!$B$40,2) -> 0 | M64: 0 | N64: 0 | O64: 0 | P64: =IF(O64=0,0,IF(O64<KATSAYILAR!$C$9*N64,KATSAYILAR!$C$9*N64,O64)) -> 0 | Q64: =ROUND(IF('BİLGİ GİRİŞİ'!D63="Ücretli Öğretmen",P64*KATSAYILAR!$C$22,0),2) -> 0 | R64: =ROUND(IF('BİLGİ GİRİŞİ'!D63="Ücretli Öğretmen (Emekli çalışan)",P64*KATSAYILAR!$C$24,0),2) -> 0 | S64: 0 | T64: ='BİLGİ GİRİŞİ'!F63 -> 0 | U64: =IF('BİLGİ GİRİŞİ'!G63=KATSAYILAR!$B$16,KATSAYILAR!$C$16, IF('BİLGİ GİRİŞİ'!G63=KATSAYILAR!$B$17,KATSAYILAR!$C$17, IF('BİLGİ GİRİŞİ'!G63=KATSAYILAR!$B$18,KATSAYILAR!$C$18,0))) -> 0 | V64: ='BİLGİ GİRİŞİ'!H63 -> 0 | W64: 0 | X64: =hesaplamalar!J61 -> 0 | Y64: =hesaplamalar!M61 -> 0 | Z64: =hesaplamalar!N61 -> 0 | AA64: =hesaplamalar!P61 -> 0 | AB64: =hesaplamalar!Q61 -> 0 | AC64: =hesaplamalar!T61 -> 0 | AD64: =hesaplamalar!U61 -> 0 | AE64: 0 | AF64: =ROUND(IF('BİLGİ GİRİŞİ'!D63="Ücretli Öğretmen",P64*KATSAYILAR!$C$23,0),2) -> 0 | AG64: 0 | AH64: =ROUND(IF('BİLGİ GİRİŞİ'!D63="Ücretli Öğretmen (Emekli çalışan)",P64*KATSAYILAR!$C$34,0),2) -> 0 | AI64: ='BİLGİ GİRİŞİ'!I63 -> 0 | AJ64: 0 | AK64: 0 | AM64: 0 | AO64: ='BİLGİ GİRİŞİ'!E63 -> 0
A65: ='EK DERS VERİ GİRİŞİ'!A64 -> 60 | B65: ='EK DERS VERİ GİRİŞİ'!B64 ->  | C65: ='EK DERS VERİ GİRİŞİ'!C64 ->  | D65: ='BİLGİ GİRİŞİ'!D64 -> 0 | E65: ='EK DERS VERİ GİRİŞİ'!E64 -> 0 | F65: =ROUND(E65*KATSAYILAR!$C$3*KATSAYILAR!$B$37,2) -> 0 | G65: ='EK DERS VERİ GİRİŞİ'!F64 -> 0 | H65: =ROUND(G65*KATSAYILAR!$C$3*KATSAYILAR!$B$38,2) -> 0 | I65: ='EK DERS VERİ GİRİŞİ'!G64 -> 0 | J65: =ROUND(I65*KATSAYILAR!$C$3*KATSAYILAR!$B$39,2) -> 0 | K65: ='EK DERS VERİ GİRİŞİ'!H64 -> 0 | L65: =ROUND(K65*KATSAYILAR!$C$3*KATSAYILAR!$B$40,2) -> 0 | M65: 0 | N65: 0 | O65: 0 | P65: =IF(O65=0,0,IF(O65<KATSAYILAR!$C$9*N65,KATSAYILAR!$C$9*N65,O65)) -> 0 | Q65: =ROUND(IF('BİLGİ GİRİŞİ'!D64="Ücretli Öğretmen",P65*KATSAYILAR!$C$22,0),2) -> 0 | R65: =ROUND(IF('BİLGİ GİRİŞİ'!D64="Ücretli Öğretmen (Emekli çalışan)",P65*KATSAYILAR!$C$24,0),2) -> 0 | S65: 0 | T65: ='BİLGİ GİRİŞİ'!F64 -> 0 | U65: =IF('BİLGİ GİRİŞİ'!G64=KATSAYILAR!$B$16,KATSAYILAR!$C$16, IF('BİLGİ GİRİŞİ'!G64=KATSAYILAR!$B$17,KATSAYILAR!$C$17, IF('BİLGİ GİRİŞİ'!G64=KATSAYILAR!$B$18,KATSAYILAR!$C$18,0))) -> 0 | V65: ='BİLGİ GİRİŞİ'!H64 -> 0 | W65: 0 | X65: =hesaplamalar!J62 -> 0 | Y65: =hesaplamalar!M62 -> 0 | Z65: =hesaplamalar!N62 -> 0 | AA65: =hesaplamalar!P62 -> 0 | AB65: =hesaplamalar!Q62 -> 0 | AC65: =hesaplamalar!T62 -> 0 | AD65: =hesaplamalar!U62 -> 0 | AE65: 0 | AF65: =ROUND(IF('BİLGİ GİRİŞİ'!D64="Ücretli Öğretmen",P65*KATSAYILAR!$C$23,0),2) -> 0 | AG65: 0 | AH65: =ROUND(IF('BİLGİ GİRİŞİ'!D64="Ücretli Öğretmen (Emekli çalışan)",P65*KATSAYILAR!$C$34,0),2) -> 0 | AI65: ='BİLGİ GİRİŞİ'!I64 -> 0 | AJ65: 0 | AK65: 0 | AM65: 0 | AO65: ='BİLGİ GİRİŞİ'!E64 -> 0
A66: ='EK DERS VERİ GİRİŞİ'!A65 -> 61 | B66: ='EK DERS VERİ GİRİŞİ'!B65 ->  | C66: ='EK DERS VERİ GİRİŞİ'!C65 ->  | D66: ='BİLGİ GİRİŞİ'!D65 -> 0 | E66: ='EK DERS VERİ GİRİŞİ'!E65 -> 0 | F66: =ROUND(E66*KATSAYILAR!$C$3*KATSAYILAR!$B$37,2) -> 0 | G66: ='EK DERS VERİ GİRİŞİ'!F65 -> 0 | H66: =ROUND(G66*KATSAYILAR!$C$3*KATSAYILAR!$B$38,2) -> 0 | I66: ='EK DERS VERİ GİRİŞİ'!G65 -> 0 | J66: =ROUND(I66*KATSAYILAR!$C$3*KATSAYILAR!$B$39,2) -> 0 | K66: ='EK DERS VERİ GİRİŞİ'!H65 -> 0 | L66: =ROUND(K66*KATSAYILAR!$C$3*KATSAYILAR!$B$40,2) -> 0 | M66: 0 | N66: 0 | O66: 0 | P66: =IF(O66=0,0,IF(O66<KATSAYILAR!$C$9*N66,KATSAYILAR!$C$9*N66,O66)) -> 0 | Q66: =ROUND(IF('BİLGİ GİRİŞİ'!D65="Ücretli Öğretmen",P66*KATSAYILAR!$C$22,0),2) -> 0 | R66: =ROUND(IF('BİLGİ GİRİŞİ'!D65="Ücretli Öğretmen (Emekli çalışan)",P66*KATSAYILAR!$C$24,0),2) -> 0 | S66: 0 | T66: ='BİLGİ GİRİŞİ'!F65 -> 0 | U66: =IF('BİLGİ GİRİŞİ'!G65=KATSAYILAR!$B$16,KATSAYILAR!$C$16, IF('BİLGİ GİRİŞİ'!G65=KATSAYILAR!$B$17,KATSAYILAR!$C$17, IF('BİLGİ GİRİŞİ'!G65=KATSAYILAR!$B$18,KATSAYILAR!$C$18,0))) -> 0 | V66: ='BİLGİ GİRİŞİ'!H65 -> 0 | W66: 0 | X66: =hesaplamalar!J63 -> 0 | Y66: =hesaplamalar!M63 -> 0 | Z66: =hesaplamalar!N63 -> 0 | AA66: =hesaplamalar!P63 -> 0 | AB66: =hesaplamalar!Q63 -> 0 | AC66: =hesaplamalar!T63 -> 0 | AD66: =hesaplamalar!U63 -> 0 | AE66: 0 | AF66: =ROUND(IF('BİLGİ GİRİŞİ'!D65="Ücretli Öğretmen",P66*KATSAYILAR!$C$23,0),2) -> 0 | AG66: 0 | AH66: =ROUND(IF('BİLGİ GİRİŞİ'!D65="Ücretli Öğretmen (Emekli çalışan)",P66*KATSAYILAR!$C$34,0),2) -> 0 | AI66: ='BİLGİ GİRİŞİ'!I65 -> 0 | AJ66: 0 | AK66: 0 | AM66: 0 | AO66: ='BİLGİ GİRİŞİ'!E65 -> 0
A67: ='EK DERS VERİ GİRİŞİ'!A66 -> 62 | B67: ='EK DERS VERİ GİRİŞİ'!B66 ->  | C67: ='EK DERS VERİ GİRİŞİ'!C66 ->  | D67: ='BİLGİ GİRİŞİ'!D66 -> 0 | E67: ='EK DERS VERİ GİRİŞİ'!E66 -> 0 | F67: =ROUND(E67*KATSAYILAR!$C$3*KATSAYILAR!$B$37,2) -> 0 | G67: ='EK DERS VERİ GİRİŞİ'!F66 -> 0 | H67: =ROUND(G67*KATSAYILAR!$C$3*KATSAYILAR!$B$38,2) -> 0 | I67: ='EK DERS VERİ GİRİŞİ'!G66 -> 0 | J67: =ROUND(I67*KATSAYILAR!$C$3*KATSAYILAR!$B$39,2) -> 0 | K67: ='EK DERS VERİ GİRİŞİ'!H66 -> 0 | L67: =ROUND(K67*KATSAYILAR!$C$3*KATSAYILAR!$B$40,2) -> 0 | M67: 0 | N67: 0 | O67: 0 | P67: =IF(O67=0,0,IF(O67<KATSAYILAR!$C$9*N67,KATSAYILAR!$C$9*N67,O67)) -> 0 | Q67: =ROUND(IF('BİLGİ GİRİŞİ'!D66="Ücretli Öğretmen",P67*KATSAYILAR!$C$22,0),2) -> 0 | R67: =ROUND(IF('BİLGİ GİRİŞİ'!D66="Ücretli Öğretmen (Emekli çalışan)",P67*KATSAYILAR!$C$24,0),2) -> 0 | S67: 0 | T67: ='BİLGİ GİRİŞİ'!F66 -> 0 | U67: =IF('BİLGİ GİRİŞİ'!G66=KATSAYILAR!$B$16,KATSAYILAR!$C$16, IF('BİLGİ GİRİŞİ'!G66=KATSAYILAR!$B$17,KATSAYILAR!$C$17, IF('BİLGİ GİRİŞİ'!G66=KATSAYILAR!$B$18,KATSAYILAR!$C$18,0))) -> 0 | V67: ='BİLGİ GİRİŞİ'!H66 -> 0 | W67: 0 | X67: =hesaplamalar!J64 -> 0 | Y67: =hesaplamalar!M64 -> 0 | Z67: =hesaplamalar!N64 -> 0 | AA67: =hesaplamalar!P64 -> 0 | AB67: =hesaplamalar!Q64 -> 0 | AC67: =hesaplamalar!T64 -> 0 | AD67: =hesaplamalar!U64 -> 0 | AE67: 0 | AF67: =ROUND(IF('BİLGİ GİRİŞİ'!D66="Ücretli Öğretmen",P67*KATSAYILAR!$C$23,0),2) -> 0 | AG67: 0 | AH67: =ROUND(IF('BİLGİ GİRİŞİ'!D66="Ücretli Öğretmen (Emekli çalışan)",P67*KATSAYILAR!$C$34,0),2) -> 0 | AI67: ='BİLGİ GİRİŞİ'!I66 -> 0 | AJ67: 0 | AK67: 0 | AM67: 0 | AO67: ='BİLGİ GİRİŞİ'!E66 -> 0
A68: ='EK DERS VERİ GİRİŞİ'!A67 -> 63 | B68: ='EK DERS VERİ GİRİŞİ'!B67 ->  | C68: ='EK DERS VERİ GİRİŞİ'!C67 ->  | D68: ='BİLGİ GİRİŞİ'!D67 -> 0 | E68: ='EK DERS VERİ GİRİŞİ'!E67 -> 0 | F68: =ROUND(E68*KATSAYILAR!$C$3*KATSAYILAR!$B$37,2) -> 0 | G68: ='EK DERS VERİ GİRİŞİ'!F67 -> 0 | H68: =ROUND(G68*KATSAYILAR!$C$3*KATSAYILAR!$B$38,2) -> 0 | I68: ='EK DERS VERİ GİRİŞİ'!G67 -> 0 | J68: =ROUND(I68*KATSAYILAR!$C$3*KATSAYILAR!$B$39,2) -> 0 | K68: ='EK DERS VERİ GİRİŞİ'!H67 -> 0 | L68: =ROUND(K68*KATSAYILAR!$C$3*KATSAYILAR!$B$40,2) -> 0 | M68: 0 | N68: 0 | O68: 0 | P68: =IF(O68=0,0,IF(O68<KATSAYILAR!$C$9*N68,KATSAYILAR!$C$9*N68,O68)) -> 0 | Q68: =ROUND(IF('BİLGİ GİRİŞİ'!D67="Ücretli Öğretmen",P68*KATSAYILAR!$C$22,0),2) -> 0 | R68: =ROUND(IF('BİLGİ GİRİŞİ'!D67="Ücretli Öğretmen (Emekli çalışan)",P68*KATSAYILAR!$C$24,0),2) -> 0 | S68: 0 | T68: ='BİLGİ GİRİŞİ'!F67 -> 0 | U68: =IF('BİLGİ GİRİŞİ'!G67=KATSAYILAR!$B$16,KATSAYILAR!$C$16, IF('BİLGİ GİRİŞİ'!G67=KATSAYILAR!$B$17,KATSAYILAR!$C$17, IF('BİLGİ GİRİŞİ'!G67=KATSAYILAR!$B$18,KATSAYILAR!$C$18,0))) -> 0 | V68: ='BİLGİ GİRİŞİ'!H67 -> 0 | W68: 0 | X68: =hesaplamalar!J65 -> 0 | Y68: =hesaplamalar!M65 -> 0 | Z68: =hesaplamalar!N65 -> 0 | AA68: =hesaplamalar!P65 -> 0 | AB68: =hesaplamalar!Q65 -> 0 | AC68: =hesaplamalar!T65 -> 0 | AD68: =hesaplamalar!U65 -> 0 | AE68: 0 | AF68: =ROUND(IF('BİLGİ GİRİŞİ'!D67="Ücretli Öğretmen",P68*KATSAYILAR!$C$23,0),2) -> 0 | AG68: 0 | AH68: =ROUND(IF('BİLGİ GİRİŞİ'!D67="Ücretli Öğretmen (Emekli çalışan)",P68*KATSAYILAR!$C$34,0),2) -> 0 | AI68: ='BİLGİ GİRİŞİ'!I67 -> 0 | AJ68: 0 | AK68: 0 | AM68: 0 | AO68: ='BİLGİ GİRİŞİ'!E67 -> 0
A69: ='EK DERS VERİ GİRİŞİ'!A68 -> 64 | B69: ='EK DERS VERİ GİRİŞİ'!B68 ->  | C69: ='EK DERS VERİ GİRİŞİ'!C68 ->  | D69: ='BİLGİ GİRİŞİ'!D68 -> 0 | E69: ='EK DERS VERİ GİRİŞİ'!E68 -> 0 | F69: =ROUND(E69*KATSAYILAR!$C$3*KATSAYILAR!$B$37,2) -> 0 | G69: ='EK DERS VERİ GİRİŞİ'!F68 -> 0 | H69: =ROUND(G69*KATSAYILAR!$C$3*KATSAYILAR!$B$38,2) -> 0 | I69: ='EK DERS VERİ GİRİŞİ'!G68 -> 0 | J69: =ROUND(I69*KATSAYILAR!$C$3*KATSAYILAR!$B$39,2) -> 0 | K69: ='EK DERS VERİ GİRİŞİ'!H68 -> 0 | L69: =ROUND(K69*KATSAYILAR!$C$3*KATSAYILAR!$B$40,2) -> 0 | M69: 0 | N69: 0 | O69: 0 | P69: =IF(O69=0,0,IF(O69<KATSAYILAR!$C$9*N69,KATSAYILAR!$C$9*N69,O69)) -> 0 | Q69: =ROUND(IF('BİLGİ GİRİŞİ'!D68="Ücretli Öğretmen",P69*KATSAYILAR!$C$22,0),2) -> 0 | R69: =ROUND(IF('BİLGİ GİRİŞİ'!D68="Ücretli Öğretmen (Emekli çalışan)",P69*KATSAYILAR!$C$24,0),2) -> 0 | S69: 0 | T69: ='BİLGİ GİRİŞİ'!F68 -> 0 | U69: =IF('BİLGİ GİRİŞİ'!G68=KATSAYILAR!$B$16,KATSAYILAR!$C$16, IF('BİLGİ GİRİŞİ'!G68=KATSAYILAR!$B$17,KATSAYILAR!$C$17, IF('BİLGİ GİRİŞİ'!G68=KATSAYILAR!$B$18,KATSAYILAR!$C$18,0))) -> 0 | V69: ='BİLGİ GİRİŞİ'!H68 -> 0 | W69: 0 | X69: =hesaplamalar!J66 -> 0 | Y69: =hesaplamalar!M66 -> 0 | Z69: =hesaplamalar!N66 -> 0 | AA69: =hesaplamalar!P66 -> 0 | AB69: =hesaplamalar!Q66 -> 0 | AC69: =hesaplamalar!T66 -> 0 | AD69: =hesaplamalar!U66 -> 0 | AE69: 0 | AF69: =ROUND(IF('BİLGİ GİRİŞİ'!D68="Ücretli Öğretmen",P69*KATSAYILAR!$C$23,0),2) -> 0 | AG69: 0 | AH69: =ROUND(IF('BİLGİ GİRİŞİ'!D68="Ücretli Öğretmen (Emekli çalışan)",P69*KATSAYILAR!$C$34,0),2) -> 0 | AI69: ='BİLGİ GİRİŞİ'!I68 -> 0 | AJ69: 0 | AK69: 0 | AM69: 0 | AO69: ='BİLGİ GİRİŞİ'!E68 -> 0
A70: ='EK DERS VERİ GİRİŞİ'!A69 -> 65 | B70: ='EK DERS VERİ GİRİŞİ'!B69 ->  | C70: ='EK DERS VERİ GİRİŞİ'!C69 ->  | D70: ='BİLGİ GİRİŞİ'!D69 -> 0 | E70: ='EK DERS VERİ GİRİŞİ'!E69 -> 0 | F70: =ROUND(E70*KATSAYILAR!$C$3*KATSAYILAR!$B$37,2) -> 0 | G70: ='EK DERS VERİ GİRİŞİ'!F69 -> 0 | H70: =ROUND(G70*KATSAYILAR!$C$3*KATSAYILAR!$B$38,2) -> 0 | I70: ='EK DERS VERİ GİRİŞİ'!G69 -> 0 | J70: =ROUND(I70*KATSAYILAR!$C$3*KATSAYILAR!$B$39,2) -> 0 | K70: ='EK DERS VERİ GİRİŞİ'!H69 -> 0 | L70: =ROUND(K70*KATSAYILAR!$C$3*KATSAYILAR!$B$40,2) -> 0 | M70: 0 | N70: 0 | O70: 0 | P70: =IF(O70=0,0,IF(O70<KATSAYILAR!$C$9*N70,KATSAYILAR!$C$9*N70,O70)) -> 0 | Q70: =ROUND(IF('BİLGİ GİRİŞİ'!D69="Ücretli Öğretmen",P70*KATSAYILAR!$C$22,0),2) -> 0 | R70: =ROUND(IF('BİLGİ GİRİŞİ'!D69="Ücretli Öğretmen (Emekli çalışan)",P70*KATSAYILAR!$C$24,0),2) -> 0 | S70: 0 | T70: ='BİLGİ GİRİŞİ'!F69 -> 0 | U70: =IF('BİLGİ GİRİŞİ'!G69=KATSAYILAR!$B$16,KATSAYILAR!$C$16, IF('BİLGİ GİRİŞİ'!G69=KATSAYILAR!$B$17,KATSAYILAR!$C$17, IF('BİLGİ GİRİŞİ'!G69=KATSAYILAR!$B$18,KATSAYILAR!$C$18,0))) -> 0 | V70: ='BİLGİ GİRİŞİ'!H69 -> 0 | W70: 0 | X70: =hesaplamalar!J67 -> 0 | Y70: =hesaplamalar!M67 -> 0 | Z70: =hesaplamalar!N67 -> 0 | AA70: =hesaplamalar!P67 -> 0 | AB70: =hesaplamalar!Q67 -> 0 | AC70: =hesaplamalar!T67 -> 0 | AD70: =hesaplamalar!U67 -> 0 | AE70: 0 | AF70: =ROUND(IF('BİLGİ GİRİŞİ'!D69="Ücretli Öğretmen",P70*KATSAYILAR!$C$23,0),2) -> 0 | AG70: 0 | AH70: =ROUND(IF('BİLGİ GİRİŞİ'!D69="Ücretli Öğretmen (Emekli çalışan)",P70*KATSAYILAR!$C$34,0),2) -> 0 | AI70: ='BİLGİ GİRİŞİ'!I69 -> 0 | AJ70: 0 | AK70: 0 | AM70: 0 | AO70: ='BİLGİ GİRİŞİ'!E69 -> 0
A71: ='EK DERS VERİ GİRİŞİ'!A70 -> 66 | B71: ='EK DERS VERİ GİRİŞİ'!B70 ->  | C71: ='EK DERS VERİ GİRİŞİ'!C70 ->  | D71: ='BİLGİ GİRİŞİ'!D70 -> 0 | E71: ='EK DERS VERİ GİRİŞİ'!E70 -> 0 | F71: =ROUND(E71*KATSAYILAR!$C$3*KATSAYILAR!$B$37,2) -> 0 | G71: ='EK DERS VERİ GİRİŞİ'!F70 -> 0 | H71: =ROUND(G71*KATSAYILAR!$C$3*KATSAYILAR!$B$38,2) -> 0 | I71: ='EK DERS VERİ GİRİŞİ'!G70 -> 0 | J71: =ROUND(I71*KATSAYILAR!$C$3*KATSAYILAR!$B$39,2) -> 0 | K71: ='EK DERS VERİ GİRİŞİ'!H70 -> 0 | L71: =ROUND(K71*KATSAYILAR!$C$3*KATSAYILAR!$B$40,2) -> 0 | M71: =E71+G71+I71+K71 -> 0 | N71: =ROUNDUP(M71/7.5,0) -> 0 | O71: =F71+H71+J71+L71 -> 0 | P71: =IF(O71=0,0,IF(O71<KATSAYILAR!$C$9*N71,KATSAYILAR!$C$9*N71,O71)) -> 0 | Q71: =ROUND(IF('BİLGİ GİRİŞİ'!D70="Ücretli Öğretmen",P71*KATSAYILAR!$C$22,0),2) -> 0 | R71: =ROUND(IF('BİLGİ GİRİŞİ'!D70="Ücretli Öğretmen (Emekli çalışan)",P71*KATSAYILAR!$C$24,0),2) -> 0 | S71: =O71+Q71+R71 -> 0 | T71: ='BİLGİ GİRİŞİ'!F70 -> 0 | U71: =IF('BİLGİ GİRİŞİ'!G70=KATSAYILAR!$B$16,KATSAYILAR!$C$16, IF('BİLGİ GİRİŞİ'!G70=KATSAYILAR!$B$17,KATSAYILAR!$C$17, IF('BİLGİ GİRİŞİ'!G70=KATSAYILAR!$B$18,KATSAYILAR!$C$18,0))) -> 0 | V71: ='BİLGİ GİRİŞİ'!H70 -> 0 | W71: =IF(O71-U71-V71-AF71-AH71<=0,0,O71-U71-V71-AF71-AH71) -> 0 | X71: =hesaplamalar!J68 -> 0 | Y71: =hesaplamalar!M68 -> 0 | Z71: =hesaplamalar!N68 -> 0 | AA71: =hesaplamalar!P68 -> 0 | AB71: =hesaplamalar!Q68 -> 0 | AC71: =hesaplamalar!T68 -> 0 | AD71: =hesaplamalar!U68 -> 0 | AE71: =Q71 -> 0 | AF71: =ROUND(IF('BİLGİ GİRİŞİ'!D70="Ücretli Öğretmen",P71*KATSAYILAR!$C$23,0),2) -> 0 | AG71: =R71 -> 0 | AH71: =ROUND(IF('BİLGİ GİRİŞİ'!D70="Ücretli Öğretmen (Emekli çalışan)",P71*KATSAYILAR!$C$34,0),2) -> 0 | AI71: ='BİLGİ GİRİŞİ'!I70 -> 0 | AJ71: =Z71+AD71+AE71+AF71+AG71+AH71+AI71 -> 0 | AK71: =S71-AJ71 -> 0 | AM71: =IF(AK71<>0,1,0) -> 0 | AO71: ='BİLGİ GİRİŞİ'!E70 -> 0
A72: ='EK DERS VERİ GİRİŞİ'!A71 -> 67 | B72: ='EK DERS VERİ GİRİŞİ'!B71 ->  | C72: ='EK DERS VERİ GİRİŞİ'!C71 ->  | D72: ='BİLGİ GİRİŞİ'!D71 -> 0 | E72: ='EK DERS VERİ GİRİŞİ'!E71 -> 0 | F72: =ROUND(E72*KATSAYILAR!$C$3*KATSAYILAR!$B$37,2) -> 0 | G72: ='EK DERS VERİ GİRİŞİ'!F71 -> 0 | H72: =ROUND(G72*KATSAYILAR!$C$3*KATSAYILAR!$B$38,2) -> 0 | I72: ='EK DERS VERİ GİRİŞİ'!G71 -> 0 | J72: =ROUND(I72*KATSAYILAR!$C$3*KATSAYILAR!$B$39,2) -> 0 | K72: ='EK DERS VERİ GİRİŞİ'!H71 -> 0 | L72: =ROUND(K72*KATSAYILAR!$C$3*KATSAYILAR!$B$40,2) -> 0 | M72: 0 | N72: 0 | O72: 0 | P72: =IF(O72=0,0,IF(O72<KATSAYILAR!$C$9*N72,KATSAYILAR!$C$9*N72,O72)) -> 0 | Q72: =ROUND(IF('BİLGİ GİRİŞİ'!D71="Ücretli Öğretmen",P72*KATSAYILAR!$C$22,0),2) -> 0 | R72: =ROUND(IF('BİLGİ GİRİŞİ'!D71="Ücretli Öğretmen (Emekli çalışan)",P72*KATSAYILAR!$C$24,0),2) -> 0 | S72: 0 | T72: ='BİLGİ GİRİŞİ'!F71 -> 0 | U72: =IF('BİLGİ GİRİŞİ'!G71=KATSAYILAR!$B$16,KATSAYILAR!$C$16, IF('BİLGİ GİRİŞİ'!G71=KATSAYILAR!$B$17,KATSAYILAR!$C$17, IF('BİLGİ GİRİŞİ'!G71=KATSAYILAR!$B$18,KATSAYILAR!$C$18,0))) -> 0 | V72: ='BİLGİ GİRİŞİ'!H71 -> 0 | W72: 0 | X72: =hesaplamalar!J69 -> 0 | Y72: =hesaplamalar!M69 -> 0 | Z72: =hesaplamalar!N69 -> 0 | AA72: =hesaplamalar!P69 -> 0 | AB72: =hesaplamalar!Q69 -> 0 | AC72: =hesaplamalar!T69 -> 0 | AD72: =hesaplamalar!U69 -> 0 | AE72: 0 | AF72: =ROUND(IF('BİLGİ GİRİŞİ'!D71="Ücretli Öğretmen",P72*KATSAYILAR!$C$23,0),2) -> 0 | AG72: 0 | AH72: =ROUND(IF('BİLGİ GİRİŞİ'!D71="Ücretli Öğretmen (Emekli çalışan)",P72*KATSAYILAR!$C$34,0),2) -> 0 | AI72: ='BİLGİ GİRİŞİ'!I71 -> 0 | AJ72: 0 | AK72: 0 | AM72: 0 | AO72: ='BİLGİ GİRİŞİ'!E71 -> 0
A73: ='EK DERS VERİ GİRİŞİ'!A72 -> 68 | B73: ='EK DERS VERİ GİRİŞİ'!B72 ->  | C73: ='EK DERS VERİ GİRİŞİ'!C72 ->  | D73: ='BİLGİ GİRİŞİ'!D72 -> 0 | E73: ='EK DERS VERİ GİRİŞİ'!E72 -> 0 | F73: =ROUND(E73*KATSAYILAR!$C$3*KATSAYILAR!$B$37,2) -> 0 | G73: ='EK DERS VERİ GİRİŞİ'!F72 -> 0 | H73: =ROUND(G73*KATSAYILAR!$C$3*KATSAYILAR!$B$38,2) -> 0 | I73: ='EK DERS VERİ GİRİŞİ'!G72 -> 0 | J73: =ROUND(I73*KATSAYILAR!$C$3*KATSAYILAR!$B$39,2) -> 0 | K73: ='EK DERS VERİ GİRİŞİ'!H72 -> 0 | L73: =ROUND(K73*KATSAYILAR!$C$3*KATSAYILAR!$B$40,2) -> 0 | M73: 0 | N73: 0 | O73: 0 | P73: =IF(O73=0,0,IF(O73<KATSAYILAR!$C$9*N73,KATSAYILAR!$C$9*N73,O73)) -> 0 | Q73: =ROUND(IF('BİLGİ GİRİŞİ'!D72="Ücretli Öğretmen",P73*KATSAYILAR!$C$22,0),2) -> 0 | R73: =ROUND(IF('BİLGİ GİRİŞİ'!D72="Ücretli Öğretmen (Emekli çalışan)",P73*KATSAYILAR!$C$24,0),2) -> 0 | S73: 0 | T73: ='BİLGİ GİRİŞİ'!F72 -> 0 | U73: =IF('BİLGİ GİRİŞİ'!G72=KATSAYILAR!$B$16,KATSAYILAR!$C$16, IF('BİLGİ GİRİŞİ'!G72=KATSAYILAR!$B$17,KATSAYILAR!$C$17, IF('BİLGİ GİRİŞİ'!G72=KATSAYILAR!$B$18,KATSAYILAR!$C$18,0))) -> 0 | V73: ='BİLGİ GİRİŞİ'!H72 -> 0 | W73: 0 | X73: =hesaplamalar!J70 -> 0 | Y73: =hesaplamalar!M70 -> 0 | Z73: =hesaplamalar!N70 -> 0 | AA73: =hesaplamalar!P70 -> 0 | AB73: =hesaplamalar!Q70 -> 0 | AC73: =hesaplamalar!T70 -> 0 | AD73: =hesaplamalar!U70 -> 0 | AE73: 0 | AF73: =ROUND(IF('BİLGİ GİRİŞİ'!D72="Ücretli Öğretmen",P73*KATSAYILAR!$C$23,0),2) -> 0 | AG73: 0 | AH73: =ROUND(IF('BİLGİ GİRİŞİ'!D72="Ücretli Öğretmen (Emekli çalışan)",P73*KATSAYILAR!$C$34,0),2) -> 0 | AI73: ='BİLGİ GİRİŞİ'!I72 -> 0 | AJ73: 0 | AK73: 0 | AM73: 0 | AO73: ='BİLGİ GİRİŞİ'!E72 -> 0
A74: ='EK DERS VERİ GİRİŞİ'!A73 -> 69 | B74: ='EK DERS VERİ GİRİŞİ'!B73 ->  | C74: ='EK DERS VERİ GİRİŞİ'!C73 ->  | D74: ='BİLGİ GİRİŞİ'!D73 -> 0 | E74: ='EK DERS VERİ GİRİŞİ'!E73 -> 0 | F74: =ROUND(E74*KATSAYILAR!$C$3*KATSAYILAR!$B$37,2) -> 0 | G74: ='EK DERS VERİ GİRİŞİ'!F73 -> 0 | H74: =ROUND(G74*KATSAYILAR!$C$3*KATSAYILAR!$B$38,2) -> 0 | I74: ='EK DERS VERİ GİRİŞİ'!G73 -> 0 | J74: =ROUND(I74*KATSAYILAR!$C$3*KATSAYILAR!$B$39,2) -> 0 | K74: ='EK DERS VERİ GİRİŞİ'!H73 -> 0 | L74: =ROUND(K74*KATSAYILAR!$C$3*KATSAYILAR!$B$40,2) -> 0 | M74: 0 | N74: 0 | O74: 0 | P74: =IF(O74=0,0,IF(O74<KATSAYILAR!$C$9*N74,KATSAYILAR!$C$9*N74,O74)) -> 0 | Q74: =ROUND(IF('BİLGİ GİRİŞİ'!D73="Ücretli Öğretmen",P74*KATSAYILAR!$C$22,0),2) -> 0 | R74: =ROUND(IF('BİLGİ GİRİŞİ'!D73="Ücretli Öğretmen (Emekli çalışan)",P74*KATSAYILAR!$C$24,0),2) -> 0 | S74: 0 | T74: ='BİLGİ GİRİŞİ'!F73 -> 0 | U74: =IF('BİLGİ GİRİŞİ'!G73=KATSAYILAR!$B$16,KATSAYILAR!$C$16, IF('BİLGİ GİRİŞİ'!G73=KATSAYILAR!$B$17,KATSAYILAR!$C$17, IF('BİLGİ GİRİŞİ'!G73=KATSAYILAR!$B$18,KATSAYILAR!$C$18,0))) -> 0 | V74: ='BİLGİ GİRİŞİ'!H73 -> 0 | W74: 0 | X74: =hesaplamalar!J71 -> 0 | Y74: =hesaplamalar!M71 -> 0 | Z74: =hesaplamalar!N71 -> 0 | AA74: =hesaplamalar!P71 -> 0 | AB74: =hesaplamalar!Q71 -> 0 | AC74: =hesaplamalar!T71 -> 0 | AD74: =hesaplamalar!U71 -> 0 | AE74: 0 | AF74: =ROUND(IF('BİLGİ GİRİŞİ'!D73="Ücretli Öğretmen",P74*KATSAYILAR!$C$23,0),2) -> 0 | AG74: 0 | AH74: =ROUND(IF('BİLGİ GİRİŞİ'!D73="Ücretli Öğretmen (Emekli çalışan)",P74*KATSAYILAR!$C$34,0),2) -> 0 | AI74: ='BİLGİ GİRİŞİ'!I73 -> 0 | AJ74: 0 | AK74: 0 | AM74: 0 | AO74: ='BİLGİ GİRİŞİ'!E73 -> 0
A75: ='EK DERS VERİ GİRİŞİ'!A74 -> 70 | B75: ='EK DERS VERİ GİRİŞİ'!B74 ->  | C75: ='EK DERS VERİ GİRİŞİ'!C74 ->  | D75: ='BİLGİ GİRİŞİ'!D74 -> 0 | E75: ='EK DERS VERİ GİRİŞİ'!E74 -> 0 | F75: =ROUND(E75*KATSAYILAR!$C$3*KATSAYILAR!$B$37,2) -> 0 | G75: ='EK DERS VERİ GİRİŞİ'!F74 -> 0 | H75: =ROUND(G75*KATSAYILAR!$C$3*KATSAYILAR!$B$38,2) -> 0 | I75: ='EK DERS VERİ GİRİŞİ'!G74 -> 0 | J75: =ROUND(I75*KATSAYILAR!$C$3*KATSAYILAR!$B$39,2) -> 0 | K75: ='EK DERS VERİ GİRİŞİ'!H74 -> 0 | L75: =ROUND(K75*KATSAYILAR!$C$3*KATSAYILAR!$B$40,2) -> 0 | M75: 0 | N75: 0 | O75: 0 | P75: =IF(O75=0,0,IF(O75<KATSAYILAR!$C$9*N75,KATSAYILAR!$C$9*N75,O75)) -> 0 | Q75: =ROUND(IF('BİLGİ GİRİŞİ'!D74="Ücretli Öğretmen",P75*KATSAYILAR!$C$22,0),2) -> 0 | R75: =ROUND(IF('BİLGİ GİRİŞİ'!D74="Ücretli Öğretmen (Emekli çalışan)",P75*KATSAYILAR!$C$24,0),2) -> 0 | S75: 0 | T75: ='BİLGİ GİRİŞİ'!F74 -> 0 | U75: =IF('BİLGİ GİRİŞİ'!G74=KATSAYILAR!$B$16,KATSAYILAR!$C$16, IF('BİLGİ GİRİŞİ'!G74=KATSAYILAR!$B$17,KATSAYILAR!$C$17, IF('BİLGİ GİRİŞİ'!G74=KATSAYILAR!$B$18,KATSAYILAR!$C$18,0))) -> 0 | V75: ='BİLGİ GİRİŞİ'!H74 -> 0 | W75: 0 | X75: =hesaplamalar!J72 -> 0 | Y75: =hesaplamalar!M72 -> 0 | Z75: =hesaplamalar!N72 -> 0 | AA75: =hesaplamalar!P72 -> 0 | AB75: =hesaplamalar!Q72 -> 0 | AC75: =hesaplamalar!T72 -> 0 | AD75: =hesaplamalar!U72 -> 0 | AE75: 0 | AF75: =ROUND(IF('BİLGİ GİRİŞİ'!D74="Ücretli Öğretmen",P75*KATSAYILAR!$C$23,0),2) -> 0 | AG75: 0 | AH75: =ROUND(IF('BİLGİ GİRİŞİ'!D74="Ücretli Öğretmen (Emekli çalışan)",P75*KATSAYILAR!$C$34,0),2) -> 0 | AI75: ='BİLGİ GİRİŞİ'!I74 -> 0 | AJ75: 0 | AK75: 0 | AM75: 0 | AO75: ='BİLGİ GİRİŞİ'!E74 -> 0
A76: ='EK DERS VERİ GİRİŞİ'!A75 -> 71 | B76: ='EK DERS VERİ GİRİŞİ'!B75 ->  | C76: ='EK DERS VERİ GİRİŞİ'!C75 ->  | D76: ='BİLGİ GİRİŞİ'!D75 -> 0 | E76: ='EK DERS VERİ GİRİŞİ'!E75 -> 0 | F76: =ROUND(E76*KATSAYILAR!$C$3*KATSAYILAR!$B$37,2) -> 0 | G76: ='EK DERS VERİ GİRİŞİ'!F75 -> 0 | H76: =ROUND(G76*KATSAYILAR!$C$3*KATSAYILAR!$B$38,2) -> 0 | I76: ='EK DERS VERİ GİRİŞİ'!G75 -> 0 | J76: =ROUND(I76*KATSAYILAR!$C$3*KATSAYILAR!$B$39,2) -> 0 | K76: ='EK DERS VERİ GİRİŞİ'!H75 -> 0 | L76: =ROUND(K76*KATSAYILAR!$C$3*KATSAYILAR!$B$40,2) -> 0 | M76: 0 | N76: 0 | O76: 0 | P76: =IF(O76=0,0,IF(O76<KATSAYILAR!$C$9*N76,KATSAYILAR!$C$9*N76,O76)) -> 0 | Q76: =ROUND(IF('BİLGİ GİRİŞİ'!D75="Ücretli Öğretmen",P76*KATSAYILAR!$C$22,0),2) -> 0 | R76: =ROUND(IF('BİLGİ GİRİŞİ'!D75="Ücretli Öğretmen (Emekli çalışan)",P76*KATSAYILAR!$C$24,0),2) -> 0 | S76: 0 | T76: ='BİLGİ GİRİŞİ'!F75 -> 0 | U76: =IF('BİLGİ GİRİŞİ'!G75=KATSAYILAR!$B$16,KATSAYILAR!$C$16, IF('BİLGİ GİRİŞİ'!G75=KATSAYILAR!$B$17,KATSAYILAR!$C$17, IF('BİLGİ GİRİŞİ'!G75=KATSAYILAR!$B$18,KATSAYILAR!$C$18,0))) -> 0 | V76: ='BİLGİ GİRİŞİ'!H75 -> 0 | W76: 0 | X76: =hesaplamalar!J73 -> 0 | Y76: =hesaplamalar!M73 -> 0 | Z76: =hesaplamalar!N73 -> 0 | AA76: =hesaplamalar!P73 -> 0 | AB76: =hesaplamalar!Q73 -> 0 | AC76: =hesaplamalar!T73 -> 0 | AD76: =hesaplamalar!U73 -> 0 | AE76: 0 | AF76: =ROUND(IF('BİLGİ GİRİŞİ'!D75="Ücretli Öğretmen",P76*KATSAYILAR!$C$23,0),2) -> 0 | AG76: 0 | AH76: =ROUND(IF('BİLGİ GİRİŞİ'!D75="Ücretli Öğretmen (Emekli çalışan)",P76*KATSAYILAR!$C$34,0),2) -> 0 | AI76: ='BİLGİ GİRİŞİ'!I75 -> 0 | AJ76: 0 | AK76: 0 | AM76: 0 | AO76: ='BİLGİ GİRİŞİ'!E75 -> 0
A77: ='EK DERS VERİ GİRİŞİ'!A76 -> 72 | B77: ='EK DERS VERİ GİRİŞİ'!B76 ->  | C77: ='EK DERS VERİ GİRİŞİ'!C76 ->  | D77: ='BİLGİ GİRİŞİ'!D76 -> 0 | E77: ='EK DERS VERİ GİRİŞİ'!E76 -> 0 | F77: =ROUND(E77*KATSAYILAR!$C$3*KATSAYILAR!$B$37,2) -> 0 | G77: ='EK DERS VERİ GİRİŞİ'!F76 -> 0 | H77: =ROUND(G77*KATSAYILAR!$C$3*KATSAYILAR!$B$38,2) -> 0 | I77: ='EK DERS VERİ GİRİŞİ'!G76 -> 0 | J77: =ROUND(I77*KATSAYILAR!$C$3*KATSAYILAR!$B$39,2) -> 0 | K77: ='EK DERS VERİ GİRİŞİ'!H76 -> 0 | L77: =ROUND(K77*KATSAYILAR!$C$3*KATSAYILAR!$B$40,2) -> 0 | M77: 0 | N77: 0 | O77: 0 | P77: =IF(O77=0,0,IF(O77<KATSAYILAR!$C$9*N77,KATSAYILAR!$C$9*N77,O77)) -> 0 | Q77: =ROUND(IF('BİLGİ GİRİŞİ'!D76="Ücretli Öğretmen",P77*KATSAYILAR!$C$22,0),2) -> 0 | R77: =ROUND(IF('BİLGİ GİRİŞİ'!D76="Ücretli Öğretmen (Emekli çalışan)",P77*KATSAYILAR!$C$24,0),2) -> 0 | S77: 0 | T77: ='BİLGİ GİRİŞİ'!F76 -> 0 | U77: =IF('BİLGİ GİRİŞİ'!G76=KATSAYILAR!$B$16,KATSAYILAR!$C$16, IF('BİLGİ GİRİŞİ'!G76=KATSAYILAR!$B$17,KATSAYILAR!$C$17, IF('BİLGİ GİRİŞİ'!G76=KATSAYILAR!$B$18,KATSAYILAR!$C$18,0))) -> 0 | V77: ='BİLGİ GİRİŞİ'!H76 -> 0 | W77: 0 | X77: =hesaplamalar!J74 -> 0 | Y77: =hesaplamalar!M74 -> 0 | Z77: =hesaplamalar!N74 -> 0 | AA77: =hesaplamalar!P74 -> 0 | AB77: =hesaplamalar!Q74 -> 0 | AC77: =hesaplamalar!T74 -> 0 | AD77: =hesaplamalar!U74 -> 0 | AE77: 0 | AF77: =ROUND(IF('BİLGİ GİRİŞİ'!D76="Ücretli Öğretmen",P77*KATSAYILAR!$C$23,0),2) -> 0 | AG77: 0 | AH77: =ROUND(IF('BİLGİ GİRİŞİ'!D76="Ücretli Öğretmen (Emekli çalışan)",P77*KATSAYILAR!$C$34,0),2) -> 0 | AI77: ='BİLGİ GİRİŞİ'!I76 -> 0 | AJ77: 0 | AK77: 0 | AM77: 0 | AO77: ='BİLGİ GİRİŞİ'!E76 -> 0
A78: ='EK DERS VERİ GİRİŞİ'!A77 -> 73 | B78: ='EK DERS VERİ GİRİŞİ'!B77 ->  | C78: ='EK DERS VERİ GİRİŞİ'!C77 ->  | D78: ='BİLGİ GİRİŞİ'!D77 -> 0 | E78: ='EK DERS VERİ GİRİŞİ'!E77 -> 0 | F78: =ROUND(E78*KATSAYILAR!$C$3*KATSAYILAR!$B$37,2) -> 0 | G78: ='EK DERS VERİ GİRİŞİ'!F77 -> 0 | H78: =ROUND(G78*KATSAYILAR!$C$3*KATSAYILAR!$B$38,2) -> 0 | I78: ='EK DERS VERİ GİRİŞİ'!G77 -> 0 | J78: =ROUND(I78*KATSAYILAR!$C$3*KATSAYILAR!$B$39,2) -> 0 | K78: ='EK DERS VERİ GİRİŞİ'!H77 -> 0 | L78: =ROUND(K78*KATSAYILAR!$C$3*KATSAYILAR!$B$40,2) -> 0 | M78: 0 | N78: 0 | O78: 0 | P78: =IF(O78=0,0,IF(O78<KATSAYILAR!$C$9*N78,KATSAYILAR!$C$9*N78,O78)) -> 0 | Q78: =ROUND(IF('BİLGİ GİRİŞİ'!D77="Ücretli Öğretmen",P78*KATSAYILAR!$C$22,0),2) -> 0 | R78: =ROUND(IF('BİLGİ GİRİŞİ'!D77="Ücretli Öğretmen (Emekli çalışan)",P78*KATSAYILAR!$C$24,0),2) -> 0 | S78: 0 | T78: ='BİLGİ GİRİŞİ'!F77 -> 0 | U78: =IF('BİLGİ GİRİŞİ'!G77=KATSAYILAR!$B$16,KATSAYILAR!$C$16, IF('BİLGİ GİRİŞİ'!G77=KATSAYILAR!$B$17,KATSAYILAR!$C$17, IF('BİLGİ GİRİŞİ'!G77=KATSAYILAR!$B$18,KATSAYILAR!$C$18,0))) -> 0 | V78: ='BİLGİ GİRİŞİ'!H77 -> 0 | W78: 0 | X78: =hesaplamalar!J75 -> 0 | Y78: =hesaplamalar!M75 -> 0 | Z78: =hesaplamalar!N75 -> 0 | AA78: =hesaplamalar!P75 -> 0 | AB78: =hesaplamalar!Q75 -> 0 | AC78: =hesaplamalar!T75 -> 0 | AD78: =hesaplamalar!U75 -> 0 | AE78: 0 | AF78: =ROUND(IF('BİLGİ GİRİŞİ'!D77="Ücretli Öğretmen",P78*KATSAYILAR!$C$23,0),2) -> 0 | AG78: 0 | AH78: =ROUND(IF('BİLGİ GİRİŞİ'!D77="Ücretli Öğretmen (Emekli çalışan)",P78*KATSAYILAR!$C$34,0),2) -> 0 | AI78: ='BİLGİ GİRİŞİ'!I77 -> 0 | AJ78: 0 | AK78: 0 | AM78: 0 | AO78: ='BİLGİ GİRİŞİ'!E77 -> 0
A79: ='EK DERS VERİ GİRİŞİ'!A78 -> 74 | B79: ='EK DERS VERİ GİRİŞİ'!B78 ->  | C79: ='EK DERS VERİ GİRİŞİ'!C78 ->  | D79: ='BİLGİ GİRİŞİ'!D78 -> 0 | E79: ='EK DERS VERİ GİRİŞİ'!E78 -> 0 | F79: =ROUND(E79*KATSAYILAR!$C$3*KATSAYILAR!$B$37,2) -> 0 | G79: ='EK DERS VERİ GİRİŞİ'!F78 -> 0 | H79: =ROUND(G79*KATSAYILAR!$C$3*KATSAYILAR!$B$38,2) -> 0 | I79: ='EK DERS VERİ GİRİŞİ'!G78 -> 0 | J79: =ROUND(I79*KATSAYILAR!$C$3*KATSAYILAR!$B$39,2) -> 0 | K79: ='EK DERS VERİ GİRİŞİ'!H78 -> 0 | L79: =ROUND(K79*KATSAYILAR!$C$3*KATSAYILAR!$B$40,2) -> 0 | M79: 0 | N79: 0 | O79: 0 | P79: =IF(O79=0,0,IF(O79<KATSAYILAR!$C$9*N79,KATSAYILAR!$C$9*N79,O79)) -> 0 | Q79: =ROUND(IF('BİLGİ GİRİŞİ'!D78="Ücretli Öğretmen",P79*KATSAYILAR!$C$22,0),2) -> 0 | R79: =ROUND(IF('BİLGİ GİRİŞİ'!D78="Ücretli Öğretmen (Emekli çalışan)",P79*KATSAYILAR!$C$24,0),2) -> 0 | S79: 0 | T79: ='BİLGİ GİRİŞİ'!F78 -> 0 | U79: =IF('BİLGİ GİRİŞİ'!G78=KATSAYILAR!$B$16,KATSAYILAR!$C$16, IF('BİLGİ GİRİŞİ'!G78=KATSAYILAR!$B$17,KATSAYILAR!$C$17, IF('BİLGİ GİRİŞİ'!G78=KATSAYILAR!$B$18,KATSAYILAR!$C$18,0))) -> 0 | V79: ='BİLGİ GİRİŞİ'!H78 -> 0 | W79: 0 | X79: =hesaplamalar!J76 -> 0 | Y79: =hesaplamalar!M76 -> 0 | Z79: =hesaplamalar!N76 -> 0 | AA79: =hesaplamalar!P76 -> 0 | AB79: =hesaplamalar!Q76 -> 0 | AC79: =hesaplamalar!T76 -> 0 | AD79: =hesaplamalar!U76 -> 0 | AE79: 0 | AF79: =ROUND(IF('BİLGİ GİRİŞİ'!D78="Ücretli Öğretmen",P79*KATSAYILAR!$C$23,0),2) -> 0 | AG79: 0 | AH79: =ROUND(IF('BİLGİ GİRİŞİ'!D78="Ücretli Öğretmen (Emekli çalışan)",P79*KATSAYILAR!$C$34,0),2) -> 0 | AI79: ='BİLGİ GİRİŞİ'!I78 -> 0 | AJ79: 0 | AK79: 0 | AM79: 0 | AO79: ='BİLGİ GİRİŞİ'!E78 -> 0
A80: ='EK DERS VERİ GİRİŞİ'!A79 -> 75 | B80: ='EK DERS VERİ GİRİŞİ'!B79 ->  | C80: ='EK DERS VERİ GİRİŞİ'!C79 ->  | D80: ='BİLGİ GİRİŞİ'!D79 -> 0 | E80: ='EK DERS VERİ GİRİŞİ'!E79 -> 0 | F80: =ROUND(E80*KATSAYILAR!$C$3*KATSAYILAR!$B$37,2) -> 0 | G80: ='EK DERS VERİ GİRİŞİ'!F79 -> 0 | H80: =ROUND(G80*KATSAYILAR!$C$3*KATSAYILAR!$B$38,2) -> 0 | I80: ='EK DERS VERİ GİRİŞİ'!G79 -> 0 | J80: =ROUND(I80*KATSAYILAR!$C$3*KATSAYILAR!$B$39,2) -> 0 | K80: ='EK DERS VERİ GİRİŞİ'!H79 -> 0 | L80: =ROUND(K80*KATSAYILAR!$C$3*KATSAYILAR!$B$40,2) -> 0 | M80: 0 | N80: 0 | O80: 0 | P80: =IF(O80=0,0,IF(O80<KATSAYILAR!$C$9*N80,KATSAYILAR!$C$9*N80,O80)) -> 0 | Q80: =ROUND(IF('BİLGİ GİRİŞİ'!D79="Ücretli Öğretmen",P80*KATSAYILAR!$C$22,0),2) -> 0 | R80: =ROUND(IF('BİLGİ GİRİŞİ'!D79="Ücretli Öğretmen (Emekli çalışan)",P80*KATSAYILAR!$C$24,0),2) -> 0 | S80: 0 | T80: ='BİLGİ GİRİŞİ'!F79 -> 0 | U80: =IF('BİLGİ GİRİŞİ'!G79=KATSAYILAR!$B$16,KATSAYILAR!$C$16, IF('BİLGİ GİRİŞİ'!G79=KATSAYILAR!$B$17,KATSAYILAR!$C$17, IF('BİLGİ GİRİŞİ'!G79=KATSAYILAR!$B$18,KATSAYILAR!$C$18,0))) -> 0 | V80: ='BİLGİ GİRİŞİ'!H79 -> 0 | W80: 0 | X80: =hesaplamalar!J77 -> 0 | Y80: =hesaplamalar!M77 -> 0 | Z80: =hesaplamalar!N77 -> 0 | AA80: =hesaplamalar!P77 -> 0 | AB80: =hesaplamalar!Q77 -> 0 | AC80: =hesaplamalar!T77 -> 0 | AD80: =hesaplamalar!U77 -> 0 | AE80: 0 | AF80: =ROUND(IF('BİLGİ GİRİŞİ'!D79="Ücretli Öğretmen",P80*KATSAYILAR!$C$23,0),2) -> 0 | AG80: 0 | AH80: =ROUND(IF('BİLGİ GİRİŞİ'!D79="Ücretli Öğretmen (Emekli çalışan)",P80*KATSAYILAR!$C$34,0),2) -> 0 | AI80: ='BİLGİ GİRİŞİ'!I79 -> 0 | AJ80: 0 | AK80: 0 | AM80: 0 | AO80: ='BİLGİ GİRİŞİ'!E79 -> 0
A81: ='EK DERS VERİ GİRİŞİ'!A80 -> 76 | B81: ='EK DERS VERİ GİRİŞİ'!B80 ->  | C81: ='EK DERS VERİ GİRİŞİ'!C80 ->  | D81: ='BİLGİ GİRİŞİ'!D80 -> 0 | E81: ='EK DERS VERİ GİRİŞİ'!E80 -> 0 | F81: =ROUND(E81*KATSAYILAR!$C$3*KATSAYILAR!$B$37,2) -> 0 | G81: ='EK DERS VERİ GİRİŞİ'!F80 -> 0 | H81: =ROUND(G81*KATSAYILAR!$C$3*KATSAYILAR!$B$38,2) -> 0 | I81: ='EK DERS VERİ GİRİŞİ'!G80 -> 0 | J81: =ROUND(I81*KATSAYILAR!$C$3*KATSAYILAR!$B$39,2) -> 0 | K81: ='EK DERS VERİ GİRİŞİ'!H80 -> 0 | L81: =ROUND(K81*KATSAYILAR!$C$3*KATSAYILAR!$B$40,2) -> 0 | M81: 0 | N81: 0 | O81: 0 | P81: =IF(O81=0,0,IF(O81<KATSAYILAR!$C$9*N81,KATSAYILAR!$C$9*N81,O81)) -> 0 | Q81: =ROUND(IF('BİLGİ GİRİŞİ'!D80="Ücretli Öğretmen",P81*KATSAYILAR!$C$22,0),2) -> 0 | R81: =ROUND(IF('BİLGİ GİRİŞİ'!D80="Ücretli Öğretmen (Emekli çalışan)",P81*KATSAYILAR!$C$24,0),2) -> 0 | S81: 0 | T81: ='BİLGİ GİRİŞİ'!F80 -> 0 | U81: =IF('BİLGİ GİRİŞİ'!G80=KATSAYILAR!$B$16,KATSAYILAR!$C$16, IF('BİLGİ GİRİŞİ'!G80=KATSAYILAR!$B$17,KATSAYILAR!$C$17, IF('BİLGİ GİRİŞİ'!G80=KATSAYILAR!$B$18,KATSAYILAR!$C$18,0))) -> 0 | V81: ='BİLGİ GİRİŞİ'!H80 -> 0 | W81: 0 | X81: =hesaplamalar!J78 -> 0 | Y81: =hesaplamalar!M78 -> 0 | Z81: =hesaplamalar!N78 -> 0 | AA81: =hesaplamalar!P78 -> 0 | AB81: =hesaplamalar!Q78 -> 0 | AC81: =hesaplamalar!T78 -> 0 | AD81: =hesaplamalar!U78 -> 0 | AE81: 0 | AF81: =ROUND(IF('BİLGİ GİRİŞİ'!D80="Ücretli Öğretmen",P81*KATSAYILAR!$C$23,0),2) -> 0 | AG81: 0 | AH81: =ROUND(IF('BİLGİ GİRİŞİ'!D80="Ücretli Öğretmen (Emekli çalışan)",P81*KATSAYILAR!$C$34,0),2) -> 0 | AI81: ='BİLGİ GİRİŞİ'!I80 -> 0 | AJ81: 0 | AK81: 0 | AM81: 0 | AO81: ='BİLGİ GİRİŞİ'!E80 -> 0
A82: ='EK DERS VERİ GİRİŞİ'!A81 -> 77 | B82: ='EK DERS VERİ GİRİŞİ'!B81 ->  | C82: ='EK DERS VERİ GİRİŞİ'!C81 ->  | D82: ='BİLGİ GİRİŞİ'!D81 -> 0 | E82: ='EK DERS VERİ GİRİŞİ'!E81 -> 0 | F82: =ROUND(E82*KATSAYILAR!$C$3*KATSAYILAR!$B$37,2) -> 0 | G82: ='EK DERS VERİ GİRİŞİ'!F81 -> 0 | H82: =ROUND(G82*KATSAYILAR!$C$3*KATSAYILAR!$B$38,2) -> 0 | I82: ='EK DERS VERİ GİRİŞİ'!G81 -> 0 | J82: =ROUND(I82*KATSAYILAR!$C$3*KATSAYILAR!$B$39,2) -> 0 | K82: ='EK DERS VERİ GİRİŞİ'!H81 -> 0 | L82: =ROUND(K82*KATSAYILAR!$C$3*KATSAYILAR!$B$40,2) -> 0 | M82: 0 | N82: 0 | O82: 0 | P82: =IF(O82=0,0,IF(O82<KATSAYILAR!$C$9*N82,KATSAYILAR!$C$9*N82,O82)) -> 0 | Q82: =ROUND(IF('BİLGİ GİRİŞİ'!D81="Ücretli Öğretmen",P82*KATSAYILAR!$C$22,0),2) -> 0 | R82: =ROUND(IF('BİLGİ GİRİŞİ'!D81="Ücretli Öğretmen (Emekli çalışan)",P82*KATSAYILAR!$C$24,0),2) -> 0 | S82: 0 | T82: ='BİLGİ GİRİŞİ'!F81 -> 0 | U82: =IF('BİLGİ GİRİŞİ'!G81=KATSAYILAR!$B$16,KATSAYILAR!$C$16, IF('BİLGİ GİRİŞİ'!G81=KATSAYILAR!$B$17,KATSAYILAR!$C$17, IF('BİLGİ GİRİŞİ'!G81=KATSAYILAR!$B$18,KATSAYILAR!$C$18,0))) -> 0 | V82: ='BİLGİ GİRİŞİ'!H81 -> 0 | W82: 0 | X82: =hesaplamalar!J79 -> 0 | Y82: =hesaplamalar!M79 -> 0 | Z82: =hesaplamalar!N79 -> 0 | AA82: =hesaplamalar!P79 -> 0 | AB82: =hesaplamalar!Q79 -> 0 | AC82: =hesaplamalar!T79 -> 0 | AD82: =hesaplamalar!U79 -> 0 | AE82: 0 | AF82: =ROUND(IF('BİLGİ GİRİŞİ'!D81="Ücretli Öğretmen",P82*KATSAYILAR!$C$23,0),2) -> 0 | AG82: 0 | AH82: =ROUND(IF('BİLGİ GİRİŞİ'!D81="Ücretli Öğretmen (Emekli çalışan)",P82*KATSAYILAR!$C$34,0),2) -> 0 | AI82: ='BİLGİ GİRİŞİ'!I81 -> 0 | AJ82: 0 | AK82: 0 | AM82: 0 | AO82: ='BİLGİ GİRİŞİ'!E81 -> 0
A83: ='EK DERS VERİ GİRİŞİ'!A82 -> 78 | B83: ='EK DERS VERİ GİRİŞİ'!B82 ->  | C83: ='EK DERS VERİ GİRİŞİ'!C82 ->  | D83: ='BİLGİ GİRİŞİ'!D82 -> 0 | E83: ='EK DERS VERİ GİRİŞİ'!E82 -> 0 | F83: =ROUND(E83*KATSAYILAR!$C$3*KATSAYILAR!$B$37,2) -> 0 | G83: ='EK DERS VERİ GİRİŞİ'!F82 -> 0 | H83: =ROUND(G83*KATSAYILAR!$C$3*KATSAYILAR!$B$38,2) -> 0 | I83: ='EK DERS VERİ GİRİŞİ'!G82 -> 0 | J83: =ROUND(I83*KATSAYILAR!$C$3*KATSAYILAR!$B$39,2) -> 0 | K83: ='EK DERS VERİ GİRİŞİ'!H82 -> 0 | L83: =ROUND(K83*KATSAYILAR!$C$3*KATSAYILAR!$B$40,2) -> 0 | M83: 0 | N83: 0 | O83: 0 | P83: =IF(O83=0,0,IF(O83<KATSAYILAR!$C$9*N83,KATSAYILAR!$C$9*N83,O83)) -> 0 | Q83: =ROUND(IF('BİLGİ GİRİŞİ'!D82="Ücretli Öğretmen",P83*KATSAYILAR!$C$22,0),2) -> 0 | R83: =ROUND(IF('BİLGİ GİRİŞİ'!D82="Ücretli Öğretmen (Emekli çalışan)",P83*KATSAYILAR!$C$24,0),2) -> 0 | S83: 0 | T83: ='BİLGİ GİRİŞİ'!F82 -> 0 | U83: =IF('BİLGİ GİRİŞİ'!G82=KATSAYILAR!$B$16,KATSAYILAR!$C$16, IF('BİLGİ GİRİŞİ'!G82=KATSAYILAR!$B$17,KATSAYILAR!$C$17, IF('BİLGİ GİRİŞİ'!G82=KATSAYILAR!$B$18,KATSAYILAR!$C$18,0))) -> 0 | V83: ='BİLGİ GİRİŞİ'!H82 -> 0 | W83: 0 | X83: =hesaplamalar!J80 -> 0 | Y83: =hesaplamalar!M80 -> 0 | Z83: =hesaplamalar!N80 -> 0 | AA83: =hesaplamalar!P80 -> 0 | AB83: =hesaplamalar!Q80 -> 0 | AC83: =hesaplamalar!T80 -> 0 | AD83: =hesaplamalar!U80 -> 0 | AE83: 0 | AF83: =ROUND(IF('BİLGİ GİRİŞİ'!D82="Ücretli Öğretmen",P83*KATSAYILAR!$C$23,0),2) -> 0 | AG83: 0 | AH83: =ROUND(IF('BİLGİ GİRİŞİ'!D82="Ücretli Öğretmen (Emekli çalışan)",P83*KATSAYILAR!$C$34,0),2) -> 0 | AI83: ='BİLGİ GİRİŞİ'!I82 -> 0 | AJ83: 0 | AK83: 0 | AM83: 0 | AO83: ='BİLGİ GİRİŞİ'!E82 -> 0
A84: ='EK DERS VERİ GİRİŞİ'!A83 -> 79 | B84: ='EK DERS VERİ GİRİŞİ'!B83 ->  | C84: ='EK DERS VERİ GİRİŞİ'!C83 ->  | D84: ='BİLGİ GİRİŞİ'!D83 -> 0 | E84: ='EK DERS VERİ GİRİŞİ'!E83 -> 0 | F84: =ROUND(E84*KATSAYILAR!$C$3*KATSAYILAR!$B$37,2) -> 0 | G84: ='EK DERS VERİ GİRİŞİ'!F83 -> 0 | H84: =ROUND(G84*KATSAYILAR!$C$3*KATSAYILAR!$B$38,2) -> 0 | I84: ='EK DERS VERİ GİRİŞİ'!G83 -> 0 | J84: =ROUND(I84*KATSAYILAR!$C$3*KATSAYILAR!$B$39,2) -> 0 | K84: ='EK DERS VERİ GİRİŞİ'!H83 -> 0 | L84: =ROUND(K84*KATSAYILAR!$C$3*KATSAYILAR!$B$40,2) -> 0 | M84: 0 | N84: 0 | O84: 0 | P84: =IF(O84=0,0,IF(O84<KATSAYILAR!$C$9*N84,KATSAYILAR!$C$9*N84,O84)) -> 0 | Q84: =ROUND(IF('BİLGİ GİRİŞİ'!D83="Ücretli Öğretmen",P84*KATSAYILAR!$C$22,0),2) -> 0 | R84: =ROUND(IF('BİLGİ GİRİŞİ'!D83="Ücretli Öğretmen (Emekli çalışan)",P84*KATSAYILAR!$C$24,0),2) -> 0 | S84: 0 | T84: ='BİLGİ GİRİŞİ'!F83 -> 0 | U84: =IF('BİLGİ GİRİŞİ'!G83=KATSAYILAR!$B$16,KATSAYILAR!$C$16, IF('BİLGİ GİRİŞİ'!G83=KATSAYILAR!$B$17,KATSAYILAR!$C$17, IF('BİLGİ GİRİŞİ'!G83=KATSAYILAR!$B$18,KATSAYILAR!$C$18,0))) -> 0 | V84: ='BİLGİ GİRİŞİ'!H83 -> 0 | W84: 0 | X84: =hesaplamalar!J81 -> 0 | Y84: =hesaplamalar!M81 -> 0 | Z84: =hesaplamalar!N81 -> 0 | AA84: =hesaplamalar!P81 -> 0 | AB84: =hesaplamalar!Q81 -> 0 | AC84: =hesaplamalar!T81 -> 0 | AD84: =hesaplamalar!U81 -> 0 | AE84: 0 | AF84: =ROUND(IF('BİLGİ GİRİŞİ'!D83="Ücretli Öğretmen",P84*KATSAYILAR!$C$23,0),2) -> 0 | AG84: 0 | AH84: =ROUND(IF('BİLGİ GİRİŞİ'!D83="Ücretli Öğretmen (Emekli çalışan)",P84*KATSAYILAR!$C$34,0),2) -> 0 | AI84: ='BİLGİ GİRİŞİ'!I83 -> 0 | AJ84: 0 | AK84: 0 | AM84: 0 | AO84: ='BİLGİ GİRİŞİ'!E83 -> 0
A85: ='EK DERS VERİ GİRİŞİ'!A84 -> 80 | B85: ='EK DERS VERİ GİRİŞİ'!B84 ->  | C85: ='EK DERS VERİ GİRİŞİ'!C84 ->  | D85: ='BİLGİ GİRİŞİ'!D84 -> 0 | E85: ='EK DERS VERİ GİRİŞİ'!E84 -> 0 | F85: =ROUND(E85*KATSAYILAR!$C$3*KATSAYILAR!$B$37,2) -> 0 | G85: ='EK DERS VERİ GİRİŞİ'!F84 -> 0 | H85: =ROUND(G85*KATSAYILAR!$C$3*KATSAYILAR!$B$38,2) -> 0 | I85: ='EK DERS VERİ GİRİŞİ'!G84 -> 0 | J85: =ROUND(I85*KATSAYILAR!$C$3*KATSAYILAR!$B$39,2) -> 0 | K85: ='EK DERS VERİ GİRİŞİ'!H84 -> 0 | L85: =ROUND(K85*KATSAYILAR!$C$3*KATSAYILAR!$B$40,2) -> 0 | M85: 0 | N85: 0 | O85: 0 | P85: =IF(O85=0,0,IF(O85<KATSAYILAR!$C$9*N85,KATSAYILAR!$C$9*N85,O85)) -> 0 | Q85: =ROUND(IF('BİLGİ GİRİŞİ'!D84="Ücretli Öğretmen",P85*KATSAYILAR!$C$22,0),2) -> 0 | R85: =ROUND(IF('BİLGİ GİRİŞİ'!D84="Ücretli Öğretmen (Emekli çalışan)",P85*KATSAYILAR!$C$24,0),2) -> 0 | S85: 0 | T85: ='BİLGİ GİRİŞİ'!F84 -> 0 | U85: =IF('BİLGİ GİRİŞİ'!G84=KATSAYILAR!$B$16,KATSAYILAR!$C$16, IF('BİLGİ GİRİŞİ'!G84=KATSAYILAR!$B$17,KATSAYILAR!$C$17, IF('BİLGİ GİRİŞİ'!G84=KATSAYILAR!$B$18,KATSAYILAR!$C$18,0))) -> 0 | V85: ='BİLGİ GİRİŞİ'!H84 -> 0 | W85: 0 | X85: =hesaplamalar!J82 -> 0 | Y85: =hesaplamalar!M82 -> 0 | Z85: =hesaplamalar!N82 -> 0 | AA85: =hesaplamalar!P82 -> 0 | AB85: =hesaplamalar!Q82 -> 0 | AC85: =hesaplamalar!T82 -> 0 | AD85: =hesaplamalar!U82 -> 0 | AE85: 0 | AF85: =ROUND(IF('BİLGİ GİRİŞİ'!D84="Ücretli Öğretmen",P85*KATSAYILAR!$C$23,0),2) -> 0 | AG85: 0 | AH85: =ROUND(IF('BİLGİ GİRİŞİ'!D84="Ücretli Öğretmen (Emekli çalışan)",P85*KATSAYILAR!$C$34,0),2) -> 0 | AI85: ='BİLGİ GİRİŞİ'!I84 -> 0 | AJ85: 0 | AK85: 0 | AM85: 0 | AO85: ='BİLGİ GİRİŞİ'!E84 -> 0
A86: ='EK DERS VERİ GİRİŞİ'!A85 -> 81 | B86: ='EK DERS VERİ GİRİŞİ'!B85 ->  | C86: ='EK DERS VERİ GİRİŞİ'!C85 ->  | D86: ='BİLGİ GİRİŞİ'!D85 -> 0 | E86: ='EK DERS VERİ GİRİŞİ'!E85 -> 0 | F86: =ROUND(E86*KATSAYILAR!$C$3*KATSAYILAR!$B$37,2) -> 0 | G86: ='EK DERS VERİ GİRİŞİ'!F85 -> 0 | H86: =ROUND(G86*KATSAYILAR!$C$3*KATSAYILAR!$B$38,2) -> 0 | I86: ='EK DERS VERİ GİRİŞİ'!G85 -> 0 | J86: =ROUND(I86*KATSAYILAR!$C$3*KATSAYILAR!$B$39,2) -> 0 | K86: ='EK DERS VERİ GİRİŞİ'!H85 -> 0 | L86: =ROUND(K86*KATSAYILAR!$C$3*KATSAYILAR!$B$40,2) -> 0 | M86: 0 | N86: 0 | O86: 0 | P86: =IF(O86=0,0,IF(O86<KATSAYILAR!$C$9*N86,KATSAYILAR!$C$9*N86,O86)) -> 0 | Q86: =ROUND(IF('BİLGİ GİRİŞİ'!D85="Ücretli Öğretmen",P86*KATSAYILAR!$C$22,0),2) -> 0 | R86: =ROUND(IF('BİLGİ GİRİŞİ'!D85="Ücretli Öğretmen (Emekli çalışan)",P86*KATSAYILAR!$C$24,0),2) -> 0 | S86: 0 | T86: ='BİLGİ GİRİŞİ'!F85 -> 0 | U86: =IF('BİLGİ GİRİŞİ'!G85=KATSAYILAR!$B$16,KATSAYILAR!$C$16, IF('BİLGİ GİRİŞİ'!G85=KATSAYILAR!$B$17,KATSAYILAR!$C$17, IF('BİLGİ GİRİŞİ'!G85=KATSAYILAR!$B$18,KATSAYILAR!$C$18,0))) -> 0 | V86: ='BİLGİ GİRİŞİ'!H85 -> 0 | W86: 0 | X86: =hesaplamalar!J83 -> 0 | Y86: =hesaplamalar!M83 -> 0 | Z86: =hesaplamalar!N83 -> 0 | AA86: =hesaplamalar!P83 -> 0 | AB86: =hesaplamalar!Q83 -> 0 | AC86: =hesaplamalar!T83 -> 0 | AD86: =hesaplamalar!U83 -> 0 | AE86: 0 | AF86: =ROUND(IF('BİLGİ GİRİŞİ'!D85="Ücretli Öğretmen",P86*KATSAYILAR!$C$23,0),2) -> 0 | AG86: 0 | AH86: =ROUND(IF('BİLGİ GİRİŞİ'!D85="Ücretli Öğretmen (Emekli çalışan)",P86*KATSAYILAR!$C$34,0),2) -> 0 | AI86: ='BİLGİ GİRİŞİ'!I85 -> 0 | AJ86: 0 | AK86: 0 | AM86: 0 | AO86: ='BİLGİ GİRİŞİ'!E85 -> 0
A87: ='EK DERS VERİ GİRİŞİ'!A86 -> 82 | B87: ='EK DERS VERİ GİRİŞİ'!B86 ->  | C87: ='EK DERS VERİ GİRİŞİ'!C86 ->  | D87: ='BİLGİ GİRİŞİ'!D86 -> 0 | E87: ='EK DERS VERİ GİRİŞİ'!E86 -> 0 | F87: =ROUND(E87*KATSAYILAR!$C$3*KATSAYILAR!$B$37,2) -> 0 | G87: ='EK DERS VERİ GİRİŞİ'!F86 -> 0 | H87: =ROUND(G87*KATSAYILAR!$C$3*KATSAYILAR!$B$38,2) -> 0 | I87: ='EK DERS VERİ GİRİŞİ'!G86 -> 0 | J87: =ROUND(I87*KATSAYILAR!$C$3*KATSAYILAR!$B$39,2) -> 0 | K87: ='EK DERS VERİ GİRİŞİ'!H86 -> 0 | L87: =ROUND(K87*KATSAYILAR!$C$3*KATSAYILAR!$B$40,2) -> 0 | M87: 0 | N87: 0 | O87: 0 | P87: =IF(O87=0,0,IF(O87<KATSAYILAR!$C$9*N87,KATSAYILAR!$C$9*N87,O87)) -> 0 | Q87: =ROUND(IF('BİLGİ GİRİŞİ'!D86="Ücretli Öğretmen",P87*KATSAYILAR!$C$22,0),2) -> 0 | R87: =ROUND(IF('BİLGİ GİRİŞİ'!D86="Ücretli Öğretmen (Emekli çalışan)",P87*KATSAYILAR!$C$24,0),2) -> 0 | S87: 0 | T87: ='BİLGİ GİRİŞİ'!F86 -> 0 | U87: =IF('BİLGİ GİRİŞİ'!G86=KATSAYILAR!$B$16,KATSAYILAR!$C$16, IF('BİLGİ GİRİŞİ'!G86=KATSAYILAR!$B$17,KATSAYILAR!$C$17, IF('BİLGİ GİRİŞİ'!G86=KATSAYILAR!$B$18,KATSAYILAR!$C$18,0))) -> 0 | V87: ='BİLGİ GİRİŞİ'!H86 -> 0 | W87: 0 | X87: =hesaplamalar!J84 -> 0 | Y87: =hesaplamalar!M84 -> 0 | Z87: =hesaplamalar!N84 -> 0 | AA87: =hesaplamalar!P84 -> 0 | AB87: =hesaplamalar!Q84 -> 0 | AC87: =hesaplamalar!T84 -> 0 | AD87: =hesaplamalar!U84 -> 0 | AE87: 0 | AF87: =ROUND(IF('BİLGİ GİRİŞİ'!D86="Ücretli Öğretmen",P87*KATSAYILAR!$C$23,0),2) -> 0 | AG87: 0 | AH87: =ROUND(IF('BİLGİ GİRİŞİ'!D86="Ücretli Öğretmen (Emekli çalışan)",P87*KATSAYILAR!$C$34,0),2) -> 0 | AI87: ='BİLGİ GİRİŞİ'!I86 -> 0 | AJ87: 0 | AK87: 0 | AM87: 0 | AO87: ='BİLGİ GİRİŞİ'!E86 -> 0
A88: ='EK DERS VERİ GİRİŞİ'!A87 -> 83 | B88: ='EK DERS VERİ GİRİŞİ'!B87 ->  | C88: ='EK DERS VERİ GİRİŞİ'!C87 ->  | D88: ='BİLGİ GİRİŞİ'!D87 -> 0 | E88: ='EK DERS VERİ GİRİŞİ'!E87 -> 0 | F88: =ROUND(E88*KATSAYILAR!$C$3*KATSAYILAR!$B$37,2) -> 0 | G88: ='EK DERS VERİ GİRİŞİ'!F87 -> 0 | H88: =ROUND(G88*KATSAYILAR!$C$3*KATSAYILAR!$B$38,2) -> 0 | I88: ='EK DERS VERİ GİRİŞİ'!G87 -> 0 | J88: =ROUND(I88*KATSAYILAR!$C$3*KATSAYILAR!$B$39,2) -> 0 | K88: ='EK DERS VERİ GİRİŞİ'!H87 -> 0 | L88: =ROUND(K88*KATSAYILAR!$C$3*KATSAYILAR!$B$40,2) -> 0 | M88: 0 | N88: 0 | O88: 0 | P88: =IF(O88=0,0,IF(O88<KATSAYILAR!$C$9*N88,KATSAYILAR!$C$9*N88,O88)) -> 0 | Q88: =ROUND(IF('BİLGİ GİRİŞİ'!D87="Ücretli Öğretmen",P88*KATSAYILAR!$C$22,0),2) -> 0 | R88: =ROUND(IF('BİLGİ GİRİŞİ'!D87="Ücretli Öğretmen (Emekli çalışan)",P88*KATSAYILAR!$C$24,0),2) -> 0 | S88: 0 | T88: ='BİLGİ GİRİŞİ'!F87 -> 0 | U88: =IF('BİLGİ GİRİŞİ'!G87=KATSAYILAR!$B$16,KATSAYILAR!$C$16, IF('BİLGİ GİRİŞİ'!G87=KATSAYILAR!$B$17,KATSAYILAR!$C$17, IF('BİLGİ GİRİŞİ'!G87=KATSAYILAR!$B$18,KATSAYILAR!$C$18,0))) -> 0 | V88: ='BİLGİ GİRİŞİ'!H87 -> 0 | W88: 0 | X88: =hesaplamalar!J85 -> 0 | Y88: =hesaplamalar!M85 -> 0 | Z88: =hesaplamalar!N85 -> 0 | AA88: =hesaplamalar!P85 -> 0 | AB88: =hesaplamalar!Q85 -> 0 | AC88: =hesaplamalar!T85 -> 0 | AD88: =hesaplamalar!U85 -> 0 | AE88: 0 | AF88: =ROUND(IF('BİLGİ GİRİŞİ'!D87="Ücretli Öğretmen",P88*KATSAYILAR!$C$23,0),2) -> 0 | AG88: 0 | AH88: =ROUND(IF('BİLGİ GİRİŞİ'!D87="Ücretli Öğretmen (Emekli çalışan)",P88*KATSAYILAR!$C$34,0),2) -> 0 | AI88: ='BİLGİ GİRİŞİ'!I87 -> 0 | AJ88: 0 | AK88: 0 | AM88: 0 | AO88: ='BİLGİ GİRİŞİ'!E87 -> 0
A89: ='EK DERS VERİ GİRİŞİ'!A88 -> 84 | B89: ='EK DERS VERİ GİRİŞİ'!B88 ->  | C89: ='EK DERS VERİ GİRİŞİ'!C88 ->  | D89: ='BİLGİ GİRİŞİ'!D88 -> 0 | E89: ='EK DERS VERİ GİRİŞİ'!E88 -> 0 | F89: =ROUND(E89*KATSAYILAR!$C$3*KATSAYILAR!$B$37,2) -> 0 | G89: ='EK DERS VERİ GİRİŞİ'!F88 -> 0 | H89: =ROUND(G89*KATSAYILAR!$C$3*KATSAYILAR!$B$38,2) -> 0 | I89: ='EK DERS VERİ GİRİŞİ'!G88 -> 0 | J89: =ROUND(I89*KATSAYILAR!$C$3*KATSAYILAR!$B$39,2) -> 0 | K89: ='EK DERS VERİ GİRİŞİ'!H88 -> 0 | L89: =ROUND(K89*KATSAYILAR!$C$3*KATSAYILAR!$B$40,2) -> 0 | M89: 0 | N89: 0 | O89: 0 | P89: =IF(O89=0,0,IF(O89<KATSAYILAR!$C$9*N89,KATSAYILAR!$C$9*N89,O89)) -> 0 | Q89: =ROUND(IF('BİLGİ GİRİŞİ'!D88="Ücretli Öğretmen",P89*KATSAYILAR!$C$22,0),2) -> 0 | R89: =ROUND(IF('BİLGİ GİRİŞİ'!D88="Ücretli Öğretmen (Emekli çalışan)",P89*KATSAYILAR!$C$24,0),2) -> 0 | S89: 0 | T89: ='BİLGİ GİRİŞİ'!F88 -> 0 | U89: =IF('BİLGİ GİRİŞİ'!G88=KATSAYILAR!$B$16,KATSAYILAR!$C$16, IF('BİLGİ GİRİŞİ'!G88=KATSAYILAR!$B$17,KATSAYILAR!$C$17, IF('BİLGİ GİRİŞİ'!G88=KATSAYILAR!$B$18,KATSAYILAR!$C$18,0))) -> 0 | V89: ='BİLGİ GİRİŞİ'!H88 -> 0 | W89: 0 | X89: =hesaplamalar!J86 -> 0 | Y89: =hesaplamalar!M86 -> 0 | Z89: =hesaplamalar!N86 -> 0 | AA89: =hesaplamalar!P86 -> 0 | AB89: =hesaplamalar!Q86 -> 0 | AC89: =hesaplamalar!T86 -> 0 | AD89: =hesaplamalar!U86 -> 0 | AE89: 0 | AF89: =ROUND(IF('BİLGİ GİRİŞİ'!D88="Ücretli Öğretmen",P89*KATSAYILAR!$C$23,0),2) -> 0 | AG89: 0 | AH89: =ROUND(IF('BİLGİ GİRİŞİ'!D88="Ücretli Öğretmen (Emekli çalışan)",P89*KATSAYILAR!$C$34,0),2) -> 0 | AI89: ='BİLGİ GİRİŞİ'!I88 -> 0 | AJ89: 0 | AK89: 0 | AM89: 0 | AO89: ='BİLGİ GİRİŞİ'!E88 -> 0
A90: ='EK DERS VERİ GİRİŞİ'!A89 -> 85 | B90: ='EK DERS VERİ GİRİŞİ'!B89 ->  | C90: ='EK DERS VERİ GİRİŞİ'!C89 ->  | D90: ='BİLGİ GİRİŞİ'!D89 -> 0 | E90: ='EK DERS VERİ GİRİŞİ'!E89 -> 0 | F90: =ROUND(E90*KATSAYILAR!$C$3*KATSAYILAR!$B$37,2) -> 0 | G90: ='EK DERS VERİ GİRİŞİ'!F89 -> 0 | H90: =ROUND(G90*KATSAYILAR!$C$3*KATSAYILAR!$B$38,2) -> 0 | I90: ='EK DERS VERİ GİRİŞİ'!G89 -> 0 | J90: =ROUND(I90*KATSAYILAR!$C$3*KATSAYILAR!$B$39,2) -> 0 | K90: ='EK DERS VERİ GİRİŞİ'!H89 -> 0 | L90: =ROUND(K90*KATSAYILAR!$C$3*KATSAYILAR!$B$40,2) -> 0 | M90: 0 | N90: 0 | O90: 0 | P90: =IF(O90=0,0,IF(O90<KATSAYILAR!$C$9*N90,KATSAYILAR!$C$9*N90,O90)) -> 0 | Q90: =ROUND(IF('BİLGİ GİRİŞİ'!D89="Ücretli Öğretmen",P90*KATSAYILAR!$C$22,0),2) -> 0 | R90: =ROUND(IF('BİLGİ GİRİŞİ'!D89="Ücretli Öğretmen (Emekli çalışan)",P90*KATSAYILAR!$C$24,0),2) -> 0 | S90: 0 | T90: ='BİLGİ GİRİŞİ'!F89 -> 0 | U90: =IF('BİLGİ GİRİŞİ'!G89=KATSAYILAR!$B$16,KATSAYILAR!$C$16, IF('BİLGİ GİRİŞİ'!G89=KATSAYILAR!$B$17,KATSAYILAR!$C$17, IF('BİLGİ GİRİŞİ'!G89=KATSAYILAR!$B$18,KATSAYILAR!$C$18,0))) -> 0 | V90: ='BİLGİ GİRİŞİ'!H89 -> 0 | W90: 0 | X90: =hesaplamalar!J87 -> 0 | Y90: =hesaplamalar!M87 -> 0 | Z90: =hesaplamalar!N87 -> 0 | AA90: =hesaplamalar!P87 -> 0 | AB90: =hesaplamalar!Q87 -> 0 | AC90: =hesaplamalar!T87 -> 0 | AD90: =hesaplamalar!U87 -> 0 | AE90: 0 | AF90: =ROUND(IF('BİLGİ GİRİŞİ'!D89="Ücretli Öğretmen",P90*KATSAYILAR!$C$23,0),2) -> 0 | AG90: 0 | AH90: =ROUND(IF('BİLGİ GİRİŞİ'!D89="Ücretli Öğretmen (Emekli çalışan)",P90*KATSAYILAR!$C$34,0),2) -> 0 | AI90: ='BİLGİ GİRİŞİ'!I89 -> 0 | AJ90: 0 | AK90: 0 | AM90: 0 | AO90: ='BİLGİ GİRİŞİ'!E89 -> 0
A91: ='EK DERS VERİ GİRİŞİ'!A90 -> 86 | B91: ='EK DERS VERİ GİRİŞİ'!B90 ->  | C91: ='EK DERS VERİ GİRİŞİ'!C90 ->  | D91: ='BİLGİ GİRİŞİ'!D90 -> 0 | E91: ='EK DERS VERİ GİRİŞİ'!E90 -> 0 | F91: =ROUND(E91*KATSAYILAR!$C$3*KATSAYILAR!$B$37,2) -> 0 | G91: ='EK DERS VERİ GİRİŞİ'!F90 -> 0 | H91: =ROUND(G91*KATSAYILAR!$C$3*KATSAYILAR!$B$38,2) -> 0 | I91: ='EK DERS VERİ GİRİŞİ'!G90 -> 0 | J91: =ROUND(I91*KATSAYILAR!$C$3*KATSAYILAR!$B$39,2) -> 0 | K91: ='EK DERS VERİ GİRİŞİ'!H90 -> 0 | L91: =ROUND(K91*KATSAYILAR!$C$3*KATSAYILAR!$B$40,2) -> 0 | M91: 0 | N91: 0 | O91: 0 | P91: =IF(O91=0,0,IF(O91<KATSAYILAR!$C$9*N91,KATSAYILAR!$C$9*N91,O91)) -> 0 | Q91: =ROUND(IF('BİLGİ GİRİŞİ'!D90="Ücretli Öğretmen",P91*KATSAYILAR!$C$22,0),2) -> 0 | R91: =ROUND(IF('BİLGİ GİRİŞİ'!D90="Ücretli Öğretmen (Emekli çalışan)",P91*KATSAYILAR!$C$24,0),2) -> 0 | S91: 0 | T91: ='BİLGİ GİRİŞİ'!F90 -> 0 | U91: =IF('BİLGİ GİRİŞİ'!G90=KATSAYILAR!$B$16,KATSAYILAR!$C$16, IF('BİLGİ GİRİŞİ'!G90=KATSAYILAR!$B$17,KATSAYILAR!$C$17, IF('BİLGİ GİRİŞİ'!G90=KATSAYILAR!$B$18,KATSAYILAR!$C$18,0))) -> 0 | V91: ='BİLGİ GİRİŞİ'!H90 -> 0 | W91: 0 | X91: =hesaplamalar!J88 -> 0 | Y91: =hesaplamalar!M88 -> 0 | Z91: =hesaplamalar!N88 -> 0 | AA91: =hesaplamalar!P88 -> 0 | AB91: =hesaplamalar!Q88 -> 0 | AC91: =hesaplamalar!T88 -> 0 | AD91: =hesaplamalar!U88 -> 0 | AE91: 0 | AF91: =ROUND(IF('BİLGİ GİRİŞİ'!D90="Ücretli Öğretmen",P91*KATSAYILAR!$C$23,0),2) -> 0 | AG91: 0 | AH91: =ROUND(IF('BİLGİ GİRİŞİ'!D90="Ücretli Öğretmen (Emekli çalışan)",P91*KATSAYILAR!$C$34,0),2) -> 0 | AI91: ='BİLGİ GİRİŞİ'!I90 -> 0 | AJ91: 0 | AK91: 0 | AM91: 0 | AO91: ='BİLGİ GİRİŞİ'!E90 -> 0
A92: ='EK DERS VERİ GİRİŞİ'!A91 -> 87 | B92: ='EK DERS VERİ GİRİŞİ'!B91 ->  | C92: ='EK DERS VERİ GİRİŞİ'!C91 ->  | D92: ='BİLGİ GİRİŞİ'!D91 -> 0 | E92: ='EK DERS VERİ GİRİŞİ'!E91 -> 0 | F92: =ROUND(E92*KATSAYILAR!$C$3*KATSAYILAR!$B$37,2) -> 0 | G92: ='EK DERS VERİ GİRİŞİ'!F91 -> 0 | H92: =ROUND(G92*KATSAYILAR!$C$3*KATSAYILAR!$B$38,2) -> 0 | I92: ='EK DERS VERİ GİRİŞİ'!G91 -> 0 | J92: =ROUND(I92*KATSAYILAR!$C$3*KATSAYILAR!$B$39,2) -> 0 | K92: ='EK DERS VERİ GİRİŞİ'!H91 -> 0 | L92: =ROUND(K92*KATSAYILAR!$C$3*KATSAYILAR!$B$40,2) -> 0 | M92: 0 | N92: 0 | O92: 0 | P92: =IF(O92=0,0,IF(O92<KATSAYILAR!$C$9*N92,KATSAYILAR!$C$9*N92,O92)) -> 0 | Q92: =ROUND(IF('BİLGİ GİRİŞİ'!D91="Ücretli Öğretmen",P92*KATSAYILAR!$C$22,0),2) -> 0 | R92: =ROUND(IF('BİLGİ GİRİŞİ'!D91="Ücretli Öğretmen (Emekli çalışan)",P92*KATSAYILAR!$C$24,0),2) -> 0 | S92: 0 | T92: ='BİLGİ GİRİŞİ'!F91 -> 0 | U92: =IF('BİLGİ GİRİŞİ'!G91=KATSAYILAR!$B$16,KATSAYILAR!$C$16, IF('BİLGİ GİRİŞİ'!G91=KATSAYILAR!$B$17,KATSAYILAR!$C$17, IF('BİLGİ GİRİŞİ'!G91=KATSAYILAR!$B$18,KATSAYILAR!$C$18,0))) -> 0 | V92: ='BİLGİ GİRİŞİ'!H91 -> 0 | W92: 0 | X92: =hesaplamalar!J89 -> 0 | Y92: =hesaplamalar!M89 -> 0 | Z92: =hesaplamalar!N89 -> 0 | AA92: =hesaplamalar!P89 -> 0 | AB92: =hesaplamalar!Q89 -> 0 | AC92: =hesaplamalar!T89 -> 0 | AD92: =hesaplamalar!U89 -> 0 | AE92: 0 | AF92: =ROUND(IF('BİLGİ GİRİŞİ'!D91="Ücretli Öğretmen",P92*KATSAYILAR!$C$23,0),2) -> 0 | AG92: 0 | AH92: =ROUND(IF('BİLGİ GİRİŞİ'!D91="Ücretli Öğretmen (Emekli çalışan)",P92*KATSAYILAR!$C$34,0),2) -> 0 | AI92: ='BİLGİ GİRİŞİ'!I91 -> 0 | AJ92: 0 | AK92: 0 | AM92: 0 | AO92: ='BİLGİ GİRİŞİ'!E91 -> 0
A93: ='EK DERS VERİ GİRİŞİ'!A92 -> 88 | B93: ='EK DERS VERİ GİRİŞİ'!B92 ->  | C93: ='EK DERS VERİ GİRİŞİ'!C92 ->  | D93: ='BİLGİ GİRİŞİ'!D92 -> 0 | E93: ='EK DERS VERİ GİRİŞİ'!E92 -> 0 | F93: =ROUND(E93*KATSAYILAR!$C$3*KATSAYILAR!$B$37,2) -> 0 | G93: ='EK DERS VERİ GİRİŞİ'!F92 -> 0 | H93: =ROUND(G93*KATSAYILAR!$C$3*KATSAYILAR!$B$38,2) -> 0 | I93: ='EK DERS VERİ GİRİŞİ'!G92 -> 0 | J93: =ROUND(I93*KATSAYILAR!$C$3*KATSAYILAR!$B$39,2) -> 0 | K93: ='EK DERS VERİ GİRİŞİ'!H92 -> 0 | L93: =ROUND(K93*KATSAYILAR!$C$3*KATSAYILAR!$B$40,2) -> 0 | M93: 0 | N93: 0 | O93: 0 | P93: =IF(O93=0,0,IF(O93<KATSAYILAR!$C$9*N93,KATSAYILAR!$C$9*N93,O93)) -> 0 | Q93: =ROUND(IF('BİLGİ GİRİŞİ'!D92="Ücretli Öğretmen",P93*KATSAYILAR!$C$22,0),2) -> 0 | R93: =ROUND(IF('BİLGİ GİRİŞİ'!D92="Ücretli Öğretmen (Emekli çalışan)",P93*KATSAYILAR!$C$24,0),2) -> 0 | S93: 0 | T93: ='BİLGİ GİRİŞİ'!F92 -> 0 | U93: =IF('BİLGİ GİRİŞİ'!G92=KATSAYILAR!$B$16,KATSAYILAR!$C$16, IF('BİLGİ GİRİŞİ'!G92=KATSAYILAR!$B$17,KATSAYILAR!$C$17, IF('BİLGİ GİRİŞİ'!G92=KATSAYILAR!$B$18,KATSAYILAR!$C$18,0))) -> 0 | V93: ='BİLGİ GİRİŞİ'!H92 -> 0 | W93: 0 | X93: =hesaplamalar!J90 -> 0 | Y93: =hesaplamalar!M90 -> 0 | Z93: =hesaplamalar!N90 -> 0 | AA93: =hesaplamalar!P90 -> 0 | AB93: =hesaplamalar!Q90 -> 0 | AC93: =hesaplamalar!T90 -> 0 | AD93: =hesaplamalar!U90 -> 0 | AE93: 0 | AF93: =ROUND(IF('BİLGİ GİRİŞİ'!D92="Ücretli Öğretmen",P93*KATSAYILAR!$C$23,0),2) -> 0 | AG93: 0 | AH93: =ROUND(IF('BİLGİ GİRİŞİ'!D92="Ücretli Öğretmen (Emekli çalışan)",P93*KATSAYILAR!$C$34,0),2) -> 0 | AI93: ='BİLGİ GİRİŞİ'!I92 -> 0 | AJ93: 0 | AK93: 0 | AM93: 0 | AO93: ='BİLGİ GİRİŞİ'!E92 -> 0
A94: ='EK DERS VERİ GİRİŞİ'!A93 -> 89 | B94: ='EK DERS VERİ GİRİŞİ'!B93 ->  | C94: ='EK DERS VERİ GİRİŞİ'!C93 ->  | D94: ='BİLGİ GİRİŞİ'!D93 -> 0 | E94: ='EK DERS VERİ GİRİŞİ'!E93 -> 0 | F94: =ROUND(E94*KATSAYILAR!$C$3*KATSAYILAR!$B$37,2) -> 0 | G94: ='EK DERS VERİ GİRİŞİ'!F93 -> 0 | H94: =ROUND(G94*KATSAYILAR!$C$3*KATSAYILAR!$B$38,2) -> 0 | I94: ='EK DERS VERİ GİRİŞİ'!G93 -> 0 | J94: =ROUND(I94*KATSAYILAR!$C$3*KATSAYILAR!$B$39,2) -> 0 | K94: ='EK DERS VERİ GİRİŞİ'!H93 -> 0 | L94: =ROUND(K94*KATSAYILAR!$C$3*KATSAYILAR!$B$40,2) -> 0 | M94: 0 | N94: 0 | O94: 0 | P94: =IF(O94=0,0,IF(O94<KATSAYILAR!$C$9*N94,KATSAYILAR!$C$9*N94,O94)) -> 0 | Q94: =ROUND(IF('BİLGİ GİRİŞİ'!D93="Ücretli Öğretmen",P94*KATSAYILAR!$C$22,0),2) -> 0 | R94: =ROUND(IF('BİLGİ GİRİŞİ'!D93="Ücretli Öğretmen (Emekli çalışan)",P94*KATSAYILAR!$C$24,0),2) -> 0 | S94: 0 | T94: ='BİLGİ GİRİŞİ'!F93 -> 0 | U94: =IF('BİLGİ GİRİŞİ'!G93=KATSAYILAR!$B$16,KATSAYILAR!$C$16, IF('BİLGİ GİRİŞİ'!G93=KATSAYILAR!$B$17,KATSAYILAR!$C$17, IF('BİLGİ GİRİŞİ'!G93=KATSAYILAR!$B$18,KATSAYILAR!$C$18,0))) -> 0 | V94: ='BİLGİ GİRİŞİ'!H93 -> 0 | W94: 0 | X94: =hesaplamalar!J91 -> 0 | Y94: =hesaplamalar!M91 -> 0 | Z94: =hesaplamalar!N91 -> 0 | AA94: =hesaplamalar!P91 -> 0 | AB94: =hesaplamalar!Q91 -> 0 | AC94: =hesaplamalar!T91 -> 0 | AD94: =hesaplamalar!U91 -> 0 | AE94: 0 | AF94: =ROUND(IF('BİLGİ GİRİŞİ'!D93="Ücretli Öğretmen",P94*KATSAYILAR!$C$23,0),2) -> 0 | AG94: 0 | AH94: =ROUND(IF('BİLGİ GİRİŞİ'!D93="Ücretli Öğretmen (Emekli çalışan)",P94*KATSAYILAR!$C$34,0),2) -> 0 | AI94: ='BİLGİ GİRİŞİ'!I93 -> 0 | AJ94: 0 | AK94: 0 | AM94: 0 | AO94: ='BİLGİ GİRİŞİ'!E93 -> 0
A95: ='EK DERS VERİ GİRİŞİ'!A94 -> 90 | B95: ='EK DERS VERİ GİRİŞİ'!B94 ->  | C95: ='EK DERS VERİ GİRİŞİ'!C94 ->  | D95: ='BİLGİ GİRİŞİ'!D94 -> 0 | E95: ='EK DERS VERİ GİRİŞİ'!E94 -> 0 | F95: =ROUND(E95*KATSAYILAR!$C$3*KATSAYILAR!$B$37,2) -> 0 | G95: ='EK DERS VERİ GİRİŞİ'!F94 -> 0 | H95: =ROUND(G95*KATSAYILAR!$C$3*KATSAYILAR!$B$38,2) -> 0 | I95: ='EK DERS VERİ GİRİŞİ'!G94 -> 0 | J95: =ROUND(I95*KATSAYILAR!$C$3*KATSAYILAR!$B$39,2) -> 0 | K95: ='EK DERS VERİ GİRİŞİ'!H94 -> 0 | L95: =ROUND(K95*KATSAYILAR!$C$3*KATSAYILAR!$B$40,2) -> 0 | M95: 0 | N95: 0 | O95: 0 | P95: =IF(O95=0,0,IF(O95<KATSAYILAR!$C$9*N95,KATSAYILAR!$C$9*N95,O95)) -> 0 | Q95: =ROUND(IF('BİLGİ GİRİŞİ'!D94="Ücretli Öğretmen",P95*KATSAYILAR!$C$22,0),2) -> 0 | R95: =ROUND(IF('BİLGİ GİRİŞİ'!D94="Ücretli Öğretmen (Emekli çalışan)",P95*KATSAYILAR!$C$24,0),2) -> 0 | S95: 0 | T95: ='BİLGİ GİRİŞİ'!F94 -> 0 | U95: =IF('BİLGİ GİRİŞİ'!G94=KATSAYILAR!$B$16,KATSAYILAR!$C$16, IF('BİLGİ GİRİŞİ'!G94=KATSAYILAR!$B$17,KATSAYILAR!$C$17, IF('BİLGİ GİRİŞİ'!G94=KATSAYILAR!$B$18,KATSAYILAR!$C$18,0))) -> 0 | V95: ='BİLGİ GİRİŞİ'!H94 -> 0 | W95: 0 | X95: =hesaplamalar!J92 -> 0 | Y95: =hesaplamalar!M92 -> 0 | Z95: =hesaplamalar!N92 -> 0 | AA95: =hesaplamalar!P92 -> 0 | AB95: =hesaplamalar!Q92 -> 0 | AC95: =hesaplamalar!T92 -> 0 | AD95: =hesaplamalar!U92 -> 0 | AE95: 0 | AF95: =ROUND(IF('BİLGİ GİRİŞİ'!D94="Ücretli Öğretmen",P95*KATSAYILAR!$C$23,0),2) -> 0 | AG95: 0 | AH95: =ROUND(IF('BİLGİ GİRİŞİ'!D94="Ücretli Öğretmen (Emekli çalışan)",P95*KATSAYILAR!$C$34,0),2) -> 0 | AI95: ='BİLGİ GİRİŞİ'!I94 -> 0 | AJ95: 0 | AK95: 0 | AM95: 0 | AO95: ='BİLGİ GİRİŞİ'!E94 -> 0
A96: ='EK DERS VERİ GİRİŞİ'!A95 -> 91 | B96: ='EK DERS VERİ GİRİŞİ'!B95 ->  | C96: ='EK DERS VERİ GİRİŞİ'!C95 ->  | D96: ='BİLGİ GİRİŞİ'!D95 -> 0 | E96: ='EK DERS VERİ GİRİŞİ'!E95 -> 0 | F96: =ROUND(E96*KATSAYILAR!$C$3*KATSAYILAR!$B$37,2) -> 0 | G96: ='EK DERS VERİ GİRİŞİ'!F95 -> 0 | H96: =ROUND(G96*KATSAYILAR!$C$3*KATSAYILAR!$B$38,2) -> 0 | I96: ='EK DERS VERİ GİRİŞİ'!G95 -> 0 | J96: =ROUND(I96*KATSAYILAR!$C$3*KATSAYILAR!$B$39,2) -> 0 | K96: ='EK DERS VERİ GİRİŞİ'!H95 -> 0 | L96: =ROUND(K96*KATSAYILAR!$C$3*KATSAYILAR!$B$40,2) -> 0 | M96: 0 | N96: 0 | O96: 0 | P96: =IF(O96=0,0,IF(O96<KATSAYILAR!$C$9*N96,KATSAYILAR!$C$9*N96,O96)) -> 0 | Q96: =ROUND(IF('BİLGİ GİRİŞİ'!D95="Ücretli Öğretmen",P96*KATSAYILAR!$C$22,0),2) -> 0 | R96: =ROUND(IF('BİLGİ GİRİŞİ'!D95="Ücretli Öğretmen (Emekli çalışan)",P96*KATSAYILAR!$C$24,0),2) -> 0 | S96: 0 | T96: ='BİLGİ GİRİŞİ'!F95 -> 0 | U96: =IF('BİLGİ GİRİŞİ'!G95=KATSAYILAR!$B$16,KATSAYILAR!$C$16, IF('BİLGİ GİRİŞİ'!G95=KATSAYILAR!$B$17,KATSAYILAR!$C$17, IF('BİLGİ GİRİŞİ'!G95=KATSAYILAR!$B$18,KATSAYILAR!$C$18,0))) -> 0 | V96: ='BİLGİ GİRİŞİ'!H95 -> 0 | W96: 0 | X96: =hesaplamalar!J93 -> 0 | Y96: =hesaplamalar!M93 -> 0 | Z96: =hesaplamalar!N93 -> 0 | AA96: =hesaplamalar!P93 -> 0 | AB96: =hesaplamalar!Q93 -> 0 | AC96: =hesaplamalar!T93 -> 0 | AD96: =hesaplamalar!U93 -> 0 | AE96: 0 | AF96: =ROUND(IF('BİLGİ GİRİŞİ'!D95="Ücretli Öğretmen",P96*KATSAYILAR!$C$23,0),2) -> 0 | AG96: 0 | AH96: =ROUND(IF('BİLGİ GİRİŞİ'!D95="Ücretli Öğretmen (Emekli çalışan)",P96*KATSAYILAR!$C$34,0),2) -> 0 | AI96: ='BİLGİ GİRİŞİ'!I95 -> 0 | AJ96: 0 | AK96: 0 | AM96: 0 | AO96: ='BİLGİ GİRİŞİ'!E95 -> 0
A97: ='EK DERS VERİ GİRİŞİ'!A96 -> 92 | B97: ='EK DERS VERİ GİRİŞİ'!B96 ->  | C97: ='EK DERS VERİ GİRİŞİ'!C96 ->  | D97: ='BİLGİ GİRİŞİ'!D96 -> 0 | E97: ='EK DERS VERİ GİRİŞİ'!E96 -> 0 | F97: =ROUND(E97*KATSAYILAR!$C$3*KATSAYILAR!$B$37,2) -> 0 | G97: ='EK DERS VERİ GİRİŞİ'!F96 -> 0 | H97: =ROUND(G97*KATSAYILAR!$C$3*KATSAYILAR!$B$38,2) -> 0 | I97: ='EK DERS VERİ GİRİŞİ'!G96 -> 0 | J97: =ROUND(I97*KATSAYILAR!$C$3*KATSAYILAR!$B$39,2) -> 0 | K97: ='EK DERS VERİ GİRİŞİ'!H96 -> 0 | L97: =ROUND(K97*KATSAYILAR!$C$3*KATSAYILAR!$B$40,2) -> 0 | M97: 0 | N97: 0 | O97: 0 | P97: =IF(O97=0,0,IF(O97<KATSAYILAR!$C$9*N97,KATSAYILAR!$C$9*N97,O97)) -> 0 | Q97: =ROUND(IF('BİLGİ GİRİŞİ'!D96="Ücretli Öğretmen",P97*KATSAYILAR!$C$22,0),2) -> 0 | R97: =ROUND(IF('BİLGİ GİRİŞİ'!D96="Ücretli Öğretmen (Emekli çalışan)",P97*KATSAYILAR!$C$24,0),2) -> 0 | S97: 0 | T97: ='BİLGİ GİRİŞİ'!F96 -> 0 | U97: =IF('BİLGİ GİRİŞİ'!G96=KATSAYILAR!$B$16,KATSAYILAR!$C$16, IF('BİLGİ GİRİŞİ'!G96=KATSAYILAR!$B$17,KATSAYILAR!$C$17, IF('BİLGİ GİRİŞİ'!G96=KATSAYILAR!$B$18,KATSAYILAR!$C$18,0))) -> 0 | V97: ='BİLGİ GİRİŞİ'!H96 -> 0 | W97: 0 | X97: =hesaplamalar!J94 -> 0 | Y97: =hesaplamalar!M94 -> 0 | Z97: =hesaplamalar!N94 -> 0 | AA97: =hesaplamalar!P94 -> 0 | AB97: =hesaplamalar!Q94 -> 0 | AC97: =hesaplamalar!T94 -> 0 | AD97: =hesaplamalar!U94 -> 0 | AE97: 0 | AF97: =ROUND(IF('BİLGİ GİRİŞİ'!D96="Ücretli Öğretmen",P97*KATSAYILAR!$C$23,0),2) -> 0 | AG97: 0 | AH97: =ROUND(IF('BİLGİ GİRİŞİ'!D96="Ücretli Öğretmen (Emekli çalışan)",P97*KATSAYILAR!$C$34,0),2) -> 0 | AI97: ='BİLGİ GİRİŞİ'!I96 -> 0 | AJ97: 0 | AK97: 0 | AM97: 0 | AO97: ='BİLGİ GİRİŞİ'!E96 -> 0
A98: ='EK DERS VERİ GİRİŞİ'!A97 -> 93 | B98: ='EK DERS VERİ GİRİŞİ'!B97 ->  | C98: ='EK DERS VERİ GİRİŞİ'!C97 ->  | D98: ='BİLGİ GİRİŞİ'!D97 -> 0 | E98: ='EK DERS VERİ GİRİŞİ'!E97 -> 0 | F98: =ROUND(E98*KATSAYILAR!$C$3*KATSAYILAR!$B$37,2) -> 0 | G98: ='EK DERS VERİ GİRİŞİ'!F97 -> 0 | H98: =ROUND(G98*KATSAYILAR!$C$3*KATSAYILAR!$B$38,2) -> 0 | I98: ='EK DERS VERİ GİRİŞİ'!G97 -> 0 | J98: =ROUND(I98*KATSAYILAR!$C$3*KATSAYILAR!$B$39,2) -> 0 | K98: ='EK DERS VERİ GİRİŞİ'!H97 -> 0 | L98: =ROUND(K98*KATSAYILAR!$C$3*KATSAYILAR!$B$40,2) -> 0 | M98: 0 | N98: 0 | O98: 0 | P98: =IF(O98=0,0,IF(O98<KATSAYILAR!$C$9*N98,KATSAYILAR!$C$9*N98,O98)) -> 0 | Q98: =ROUND(IF('BİLGİ GİRİŞİ'!D97="Ücretli Öğretmen",P98*KATSAYILAR!$C$22,0),2) -> 0 | R98: =ROUND(IF('BİLGİ GİRİŞİ'!D97="Ücretli Öğretmen (Emekli çalışan)",P98*KATSAYILAR!$C$24,0),2) -> 0 | S98: 0 | T98: ='BİLGİ GİRİŞİ'!F97 -> 0 | U98: =IF('BİLGİ GİRİŞİ'!G97=KATSAYILAR!$B$16,KATSAYILAR!$C$16, IF('BİLGİ GİRİŞİ'!G97=KATSAYILAR!$B$17,KATSAYILAR!$C$17, IF('BİLGİ GİRİŞİ'!G97=KATSAYILAR!$B$18,KATSAYILAR!$C$18,0))) -> 0 | V98: ='BİLGİ GİRİŞİ'!H97 -> 0 | W98: 0 | X98: =hesaplamalar!J95 -> 0 | Y98: =hesaplamalar!M95 -> 0 | Z98: =hesaplamalar!N95 -> 0 | AA98: =hesaplamalar!P95 -> 0 | AB98: =hesaplamalar!Q95 -> 0 | AC98: =hesaplamalar!T95 -> 0 | AD98: =hesaplamalar!U95 -> 0 | AE98: 0 | AF98: =ROUND(IF('BİLGİ GİRİŞİ'!D97="Ücretli Öğretmen",P98*KATSAYILAR!$C$23,0),2) -> 0 | AG98: 0 | AH98: =ROUND(IF('BİLGİ GİRİŞİ'!D97="Ücretli Öğretmen (Emekli çalışan)",P98*KATSAYILAR!$C$34,0),2) -> 0 | AI98: ='BİLGİ GİRİŞİ'!I97 -> 0 | AJ98: 0 | AK98: 0 | AM98: 0 | AO98: ='BİLGİ GİRİŞİ'!E97 -> 0
A99: ='EK DERS VERİ GİRİŞİ'!A98 -> 94 | B99: ='EK DERS VERİ GİRİŞİ'!B98 ->  | C99: ='EK DERS VERİ GİRİŞİ'!C98 ->  | D99: ='BİLGİ GİRİŞİ'!D98 -> 0 | E99: ='EK DERS VERİ GİRİŞİ'!E98 -> 0 | F99: =ROUND(E99*KATSAYILAR!$C$3*KATSAYILAR!$B$37,2) -> 0 | G99: ='EK DERS VERİ GİRİŞİ'!F98 -> 0 | H99: =ROUND(G99*KATSAYILAR!$C$3*KATSAYILAR!$B$38,2) -> 0 | I99: ='EK DERS VERİ GİRİŞİ'!G98 -> 0 | J99: =ROUND(I99*KATSAYILAR!$C$3*KATSAYILAR!$B$39,2) -> 0 | K99: ='EK DERS VERİ GİRİŞİ'!H98 -> 0 | L99: =ROUND(K99*KATSAYILAR!$C$3*KATSAYILAR!$B$40,2) -> 0 | M99: 0 | N99: 0 | O99: 0 | P99: =IF(O99=0,0,IF(O99<KATSAYILAR!$C$9*N99,KATSAYILAR!$C$9*N99,O99)) -> 0 | Q99: =ROUND(IF('BİLGİ GİRİŞİ'!D98="Ücretli Öğretmen",P99*KATSAYILAR!$C$22,0),2) -> 0 | R99: =ROUND(IF('BİLGİ GİRİŞİ'!D98="Ücretli Öğretmen (Emekli çalışan)",P99*KATSAYILAR!$C$24,0),2) -> 0 | S99: 0 | T99: ='BİLGİ GİRİŞİ'!F98 -> 0 | U99: =IF('BİLGİ GİRİŞİ'!G98=KATSAYILAR!$B$16,KATSAYILAR!$C$16, IF('BİLGİ GİRİŞİ'!G98=KATSAYILAR!$B$17,KATSAYILAR!$C$17, IF('BİLGİ GİRİŞİ'!G98=KATSAYILAR!$B$18,KATSAYILAR!$C$18,0))) -> 0 | V99: ='BİLGİ GİRİŞİ'!H98 -> 0 | W99: 0 | X99: =hesaplamalar!J96 -> 0 | Y99: =hesaplamalar!M96 -> 0 | Z99: =hesaplamalar!N96 -> 0 | AA99: =hesaplamalar!P96 -> 0 | AB99: =hesaplamalar!Q96 -> 0 | AC99: =hesaplamalar!T96 -> 0 | AD99: =hesaplamalar!U96 -> 0 | AE99: 0 | AF99: =ROUND(IF('BİLGİ GİRİŞİ'!D98="Ücretli Öğretmen",P99*KATSAYILAR!$C$23,0),2) -> 0 | AG99: 0 | AH99: =ROUND(IF('BİLGİ GİRİŞİ'!D98="Ücretli Öğretmen (Emekli çalışan)",P99*KATSAYILAR!$C$34,0),2) -> 0 | AI99: ='BİLGİ GİRİŞİ'!I98 -> 0 | AJ99: 0 | AK99: 0 | AM99: 0 | AO99: ='BİLGİ GİRİŞİ'!E98 -> 0
A100: ='EK DERS VERİ GİRİŞİ'!A99 -> 95 | B100: ='EK DERS VERİ GİRİŞİ'!B99 ->  | C100: ='EK DERS VERİ GİRİŞİ'!C99 ->  | D100: ='BİLGİ GİRİŞİ'!D99 -> 0 | E100: ='EK DERS VERİ GİRİŞİ'!E99 -> 0 | F100: =ROUND(E100*KATSAYILAR!$C$3*KATSAYILAR!$B$37,2) -> 0 | G100: ='EK DERS VERİ GİRİŞİ'!F99 -> 0 | H100: =ROUND(G100*KATSAYILAR!$C$3*KATSAYILAR!$B$38,2) -> 0 | I100: ='EK DERS VERİ GİRİŞİ'!G99 -> 0 | J100: =ROUND(I100*KATSAYILAR!$C$3*KATSAYILAR!$B$39,2) -> 0 | K100: ='EK DERS VERİ GİRİŞİ'!H99 -> 0 | L100: =ROUND(K100*KATSAYILAR!$C$3*KATSAYILAR!$B$40,2) -> 0 | M100: 0 | N100: 0 | O100: 0 | P100: =IF(O100=0,0,IF(O100<KATSAYILAR!$C$9*N100,KATSAYILAR!$C$9*N100,O100)) -> 0 | Q100: =ROUND(IF('BİLGİ GİRİŞİ'!D99="Ücretli Öğretmen",P100*KATSAYILAR!$C$22,0),2) -> 0 | R100: =ROUND(IF('BİLGİ GİRİŞİ'!D99="Ücretli Öğretmen (Emekli çalışan)",P100*KATSAYILAR!$C$24,0),2) -> 0 | S100: 0 | T100: ='BİLGİ GİRİŞİ'!F99 -> 0 | U100: =IF('BİLGİ GİRİŞİ'!G99=KATSAYILAR!$B$16,KATSAYILAR!$C$16, IF('BİLGİ GİRİŞİ'!G99=KATSAYILAR!$B$17,KATSAYILAR!$C$17, IF('BİLGİ GİRİŞİ'!G99=KATSAYILAR!$B$18,KATSAYILAR!$C$18,0))) -> 0 | V100: ='BİLGİ GİRİŞİ'!H99 -> 0 | W100: 0 | X100: =hesaplamalar!J97 -> 0 | Y100: =hesaplamalar!M97 -> 0 | Z100: =hesaplamalar!N97 -> 0 | AA100: =hesaplamalar!P97 -> 0 | AB100: =hesaplamalar!Q97 -> 0 | AC100: =hesaplamalar!T97 -> 0 | AD100: =hesaplamalar!U97 -> 0 | AE100: 0 | AF100: =ROUND(IF('BİLGİ GİRİŞİ'!D99="Ücretli Öğretmen",P100*KATSAYILAR!$C$23,0),2) -> 0 | AG100: 0 | AH100: =ROUND(IF('BİLGİ GİRİŞİ'!D99="Ücretli Öğretmen (Emekli çalışan)",P100*KATSAYILAR!$C$34,0),2) -> 0 | AI100: ='BİLGİ GİRİŞİ'!I99 -> 0 | AJ100: 0 | AK100: 0 | AM100: 0 | AO100: ='BİLGİ GİRİŞİ'!E99 -> 0
A101: ='EK DERS VERİ GİRİŞİ'!A100 -> 96 | B101: ='EK DERS VERİ GİRİŞİ'!B100 ->  | C101: ='EK DERS VERİ GİRİŞİ'!C100 ->  | D101: ='BİLGİ GİRİŞİ'!D100 -> 0 | E101: ='EK DERS VERİ GİRİŞİ'!E100 -> 0 | F101: =ROUND(E101*KATSAYILAR!$C$3*KATSAYILAR!$B$37,2) -> 0 | G101: ='EK DERS VERİ GİRİŞİ'!F100 -> 0 | H101: =ROUND(G101*KATSAYILAR!$C$3*KATSAYILAR!$B$38,2) -> 0 | I101: ='EK DERS VERİ GİRİŞİ'!G100 -> 0 | J101: =ROUND(I101*KATSAYILAR!$C$3*KATSAYILAR!$B$39,2) -> 0 | K101: ='EK DERS VERİ GİRİŞİ'!H100 -> 0 | L101: =ROUND(K101*KATSAYILAR!$C$3*KATSAYILAR!$B$40,2) -> 0 | M101: 0 | N101: 0 | O101: 0 | P101: =IF(O101=0,0,IF(O101<KATSAYILAR!$C$9*N101,KATSAYILAR!$C$9*N101,O101)) -> 0 | Q101: =ROUND(IF('BİLGİ GİRİŞİ'!D100="Ücretli Öğretmen",P101*KATSAYILAR!$C$22,0),2) -> 0 | R101: =ROUND(IF('BİLGİ GİRİŞİ'!D100="Ücretli Öğretmen (Emekli çalışan)",P101*KATSAYILAR!$C$24,0),2) -> 0 | S101: 0 | T101: ='BİLGİ GİRİŞİ'!F100 -> 0 | U101: =IF('BİLGİ GİRİŞİ'!G100=KATSAYILAR!$B$16,KATSAYILAR!$C$16, IF('BİLGİ GİRİŞİ'!G100=KATSAYILAR!$B$17,KATSAYILAR!$C$17, IF('BİLGİ GİRİŞİ'!G100=KATSAYILAR!$B$18,KATSAYILAR!$C$18,0))) -> 0 | V101: ='BİLGİ GİRİŞİ'!H100 -> 0 | W101: 0 | X101: =hesaplamalar!J98 -> 0 | Y101: =hesaplamalar!M98 -> 0 | Z101: =hesaplamalar!N98 -> 0 | AA101: =hesaplamalar!P98 -> 0 | AB101: =hesaplamalar!Q98 -> 0 | AC101: =hesaplamalar!T98 -> 0 | AD101: =hesaplamalar!U98 -> 0 | AE101: 0 | AF101: =ROUND(IF('BİLGİ GİRİŞİ'!D100="Ücretli Öğretmen",P101*KATSAYILAR!$C$23,0),2) -> 0 | AG101: 0 | AH101: =ROUND(IF('BİLGİ GİRİŞİ'!D100="Ücretli Öğretmen (Emekli çalışan)",P101*KATSAYILAR!$C$34,0),2) -> 0 | AI101: ='BİLGİ GİRİŞİ'!I100 -> 0 | AJ101: 0 | AK101: 0 | AM101: 0 | AO101: ='BİLGİ GİRİŞİ'!E100 -> 0
A102: ='EK DERS VERİ GİRİŞİ'!A101 -> 97 | B102: ='EK DERS VERİ GİRİŞİ'!B101 ->  | C102: ='EK DERS VERİ GİRİŞİ'!C101 ->  | D102: ='BİLGİ GİRİŞİ'!D101 -> 0 | E102: ='EK DERS VERİ GİRİŞİ'!E101 -> 0 | F102: =ROUND(E102*KATSAYILAR!$C$3*KATSAYILAR!$B$37,2) -> 0 | G102: ='EK DERS VERİ GİRİŞİ'!F101 -> 0 | H102: =ROUND(G102*KATSAYILAR!$C$3*KATSAYILAR!$B$38,2) -> 0 | I102: ='EK DERS VERİ GİRİŞİ'!G101 -> 0 | J102: =ROUND(I102*KATSAYILAR!$C$3*KATSAYILAR!$B$39,2) -> 0 | K102: ='EK DERS VERİ GİRİŞİ'!H101 -> 0 | L102: =ROUND(K102*KATSAYILAR!$C$3*KATSAYILAR!$B$40,2) -> 0 | M102: 0 | N102: 0 | O102: 0 | P102: =IF(O102=0,0,IF(O102<KATSAYILAR!$C$9*N102,KATSAYILAR!$C$9*N102,O102)) -> 0 | Q102: =ROUND(IF('BİLGİ GİRİŞİ'!D101="Ücretli Öğretmen",P102*KATSAYILAR!$C$22,0),2) -> 0 | R102: =ROUND(IF('BİLGİ GİRİŞİ'!D101="Ücretli Öğretmen (Emekli çalışan)",P102*KATSAYILAR!$C$24,0),2) -> 0 | S102: 0 | T102: ='BİLGİ GİRİŞİ'!F101 -> 0 | U102: =IF('BİLGİ GİRİŞİ'!G101=KATSAYILAR!$B$16,KATSAYILAR!$C$16, IF('BİLGİ GİRİŞİ'!G101=KATSAYILAR!$B$17,KATSAYILAR!$C$17, IF('BİLGİ GİRİŞİ'!G101=KATSAYILAR!$B$18,KATSAYILAR!$C$18,0))) -> 0 | V102: ='BİLGİ GİRİŞİ'!H101 -> 0 | W102: 0 | X102: =hesaplamalar!J99 -> 0 | Y102: =hesaplamalar!M99 -> 0 | Z102: =hesaplamalar!N99 -> 0 | AA102: =hesaplamalar!P99 -> 0 | AB102: =hesaplamalar!Q99 -> 0 | AC102: =hesaplamalar!T99 -> 0 | AD102: =hesaplamalar!U99 -> 0 | AE102: 0 | AF102: =ROUND(IF('BİLGİ GİRİŞİ'!D101="Ücretli Öğretmen",P102*KATSAYILAR!$C$23,0),2) -> 0 | AG102: 0 | AH102: =ROUND(IF('BİLGİ GİRİŞİ'!D101="Ücretli Öğretmen (Emekli çalışan)",P102*KATSAYILAR!$C$34,0),2) -> 0 | AI102: ='BİLGİ GİRİŞİ'!I101 -> 0 | AJ102: 0 | AK102: 0 | AM102: 0 | AO102: ='BİLGİ GİRİŞİ'!E101 -> 0
A103: ='EK DERS VERİ GİRİŞİ'!A102 -> 98 | B103: ='EK DERS VERİ GİRİŞİ'!B102 ->  | C103: ='EK DERS VERİ GİRİŞİ'!C102 ->  | D103: ='BİLGİ GİRİŞİ'!D102 -> 0 | E103: ='EK DERS VERİ GİRİŞİ'!E102 -> 0 | F103: =ROUND(E103*KATSAYILAR!$C$3*KATSAYILAR!$B$37,2) -> 0 | G103: ='EK DERS VERİ GİRİŞİ'!F102 -> 0 | H103: =ROUND(G103*KATSAYILAR!$C$3*KATSAYILAR!$B$38,2) -> 0 | I103: ='EK DERS VERİ GİRİŞİ'!G102 -> 0 | J103: =ROUND(I103*KATSAYILAR!$C$3*KATSAYILAR!$B$39,2) -> 0 | K103: ='EK DERS VERİ GİRİŞİ'!H102 -> 0 | L103: =ROUND(K103*KATSAYILAR!$C$3*KATSAYILAR!$B$40,2) -> 0 | M103: 0 | N103: 0 | O103: 0 | P103: =IF(O103=0,0,IF(O103<KATSAYILAR!$C$9*N103,KATSAYILAR!$C$9*N103,O103)) -> 0 | Q103: =ROUND(IF('BİLGİ GİRİŞİ'!D102="Ücretli Öğretmen",P103*KATSAYILAR!$C$22,0),2) -> 0 | R103: =ROUND(IF('BİLGİ GİRİŞİ'!D102="Ücretli Öğretmen (Emekli çalışan)",P103*KATSAYILAR!$C$24,0),2) -> 0 | S103: 0 | T103: ='BİLGİ GİRİŞİ'!F102 -> 0 | U103: =IF('BİLGİ GİRİŞİ'!G102=KATSAYILAR!$B$16,KATSAYILAR!$C$16, IF('BİLGİ GİRİŞİ'!G102=KATSAYILAR!$B$17,KATSAYILAR!$C$17, IF('BİLGİ GİRİŞİ'!G102=KATSAYILAR!$B$18,KATSAYILAR!$C$18,0))) -> 0 | V103: ='BİLGİ GİRİŞİ'!H102 -> 0 | W103: 0 | X103: =hesaplamalar!J100 -> 0 | Y103: =hesaplamalar!M100 -> 0 | Z103: =hesaplamalar!N100 -> 0 | AA103: =hesaplamalar!P100 -> 0 | AB103: =hesaplamalar!Q100 -> 0 | AC103: =hesaplamalar!T100 -> 0 | AD103: =hesaplamalar!U100 -> 0 | AE103: 0 | AF103: =ROUND(IF('BİLGİ GİRİŞİ'!D102="Ücretli Öğretmen",P103*KATSAYILAR!$C$23,0),2) -> 0 | AG103: 0 | AH103: =ROUND(IF('BİLGİ GİRİŞİ'!D102="Ücretli Öğretmen (Emekli çalışan)",P103*KATSAYILAR!$C$34,0),2) -> 0 | AI103: ='BİLGİ GİRİŞİ'!I102 -> 0 | AJ103: 0 | AK103: 0 | AM103: 0 | AO103: ='BİLGİ GİRİŞİ'!E102 -> 0
A104: ='EK DERS VERİ GİRİŞİ'!A103 -> 99 | B104: ='EK DERS VERİ GİRİŞİ'!B103 ->  | C104: ='EK DERS VERİ GİRİŞİ'!C103 ->  | D104: ='BİLGİ GİRİŞİ'!D103 -> 0 | E104: ='EK DERS VERİ GİRİŞİ'!E103 -> 0 | F104: =ROUND(E104*KATSAYILAR!$C$3*KATSAYILAR!$B$37,2) -> 0 | G104: ='EK DERS VERİ GİRİŞİ'!F103 -> 0 | H104: =ROUND(G104*KATSAYILAR!$C$3*KATSAYILAR!$B$38,2) -> 0 | I104: ='EK DERS VERİ GİRİŞİ'!G103 -> 0 | J104: =ROUND(I104*KATSAYILAR!$C$3*KATSAYILAR!$B$39,2) -> 0 | K104: ='EK DERS VERİ GİRİŞİ'!H103 -> 0 | L104: =ROUND(K104*KATSAYILAR!$C$3*KATSAYILAR!$B$40,2) -> 0 | M104: 0 | N104: 0 | O104: 0 | P104: =IF(O104=0,0,IF(O104<KATSAYILAR!$C$9*N104,KATSAYILAR!$C$9*N104,O104)) -> 0 | Q104: =ROUND(IF('BİLGİ GİRİŞİ'!D103="Ücretli Öğretmen",P104*KATSAYILAR!$C$22,0),2) -> 0 | R104: =ROUND(IF('BİLGİ GİRİŞİ'!D103="Ücretli Öğretmen (Emekli çalışan)",P104*KATSAYILAR!$C$24,0),2) -> 0 | S104: 0 | T104: ='BİLGİ GİRİŞİ'!F103 -> 0 | U104: =IF('BİLGİ GİRİŞİ'!G103=KATSAYILAR!$B$16,KATSAYILAR!$C$16, IF('BİLGİ GİRİŞİ'!G103=KATSAYILAR!$B$17,KATSAYILAR!$C$17, IF('BİLGİ GİRİŞİ'!G103=KATSAYILAR!$B$18,KATSAYILAR!$C$18,0))) -> 0 | V104: ='BİLGİ GİRİŞİ'!H103 -> 0 | W104: 0 | X104: =hesaplamalar!J101 -> 0 | Y104: =hesaplamalar!M101 -> 0 | Z104: =hesaplamalar!N101 -> 0 | AA104: =hesaplamalar!P101 -> 0 | AB104: =hesaplamalar!Q101 -> 0 | AC104: =hesaplamalar!T101 -> 0 | AD104: =hesaplamalar!U101 -> 0 | AE104: 0 | AF104: =ROUND(IF('BİLGİ GİRİŞİ'!D103="Ücretli Öğretmen",P104*KATSAYILAR!$C$23,0),2) -> 0 | AG104: 0 | AH104: =ROUND(IF('BİLGİ GİRİŞİ'!D103="Ücretli Öğretmen (Emekli çalışan)",P104*KATSAYILAR!$C$34,0),2) -> 0 | AI104: ='BİLGİ GİRİŞİ'!I103 -> 0 | AJ104: 0 | AK104: 0 | AM104: 0 | AO104: ='BİLGİ GİRİŞİ'!E103 -> 0
A105: ='EK DERS VERİ GİRİŞİ'!A104 -> 100 | B105: ='EK DERS VERİ GİRİŞİ'!B104 ->  | C105: ='EK DERS VERİ GİRİŞİ'!C104 ->  | D105: ='BİLGİ GİRİŞİ'!D104 -> 0 | E105: ='EK DERS VERİ GİRİŞİ'!E104 -> 0 | F105: =ROUND(E105*KATSAYILAR!$C$3*KATSAYILAR!$B$37,2) -> 0 | G105: ='EK DERS VERİ GİRİŞİ'!F104 -> 0 | H105: =ROUND(G105*KATSAYILAR!$C$3*KATSAYILAR!$B$38,2) -> 0 | I105: ='EK DERS VERİ GİRİŞİ'!G104 -> 0 | J105: =ROUND(I105*KATSAYILAR!$C$3*KATSAYILAR!$B$39,2) -> 0 | K105: ='EK DERS VERİ GİRİŞİ'!H104 -> 0 | L105: =ROUND(K105*KATSAYILAR!$C$3*KATSAYILAR!$B$40,2) -> 0 | M105: 0 | N105: 0 | O105: 0 | P105: =IF(O105=0,0,IF(O105<KATSAYILAR!$C$9*N105,KATSAYILAR!$C$9*N105,O105)) -> 0 | Q105: =ROUND(IF('BİLGİ GİRİŞİ'!D104="Ücretli Öğretmen",P105*KATSAYILAR!$C$22,0),2) -> 0 | R105: =ROUND(IF('BİLGİ GİRİŞİ'!D104="Ücretli Öğretmen (Emekli çalışan)",P105*KATSAYILAR!$C$24,0),2) -> 0 | S105: 0 | T105: ='BİLGİ GİRİŞİ'!F104 -> 0 | U105: =IF('BİLGİ GİRİŞİ'!G104=KATSAYILAR!$B$16,KATSAYILAR!$C$16, IF('BİLGİ GİRİŞİ'!G104=KATSAYILAR!$B$17,KATSAYILAR!$C$17, IF('BİLGİ GİRİŞİ'!G104=KATSAYILAR!$B$18,KATSAYILAR!$C$18,0))) -> 0 | V105: ='BİLGİ GİRİŞİ'!H104 -> 0 | W105: 0 | X105: =hesaplamalar!J102 -> 0 | Y105: =hesaplamalar!M102 -> 0 | Z105: =hesaplamalar!N102 -> 0 | AA105: =hesaplamalar!P102 -> 0 | AB105: =hesaplamalar!Q102 -> 0 | AC105: =hesaplamalar!T102 -> 0 | AD105: =hesaplamalar!U102 -> 0 | AE105: 0 | AF105: =ROUND(IF('BİLGİ GİRİŞİ'!D104="Ücretli Öğretmen",P105*KATSAYILAR!$C$23,0),2) -> 0 | AG105: 0 | AH105: =ROUND(IF('BİLGİ GİRİŞİ'!D104="Ücretli Öğretmen (Emekli çalışan)",P105*KATSAYILAR!$C$34,0),2) -> 0 | AI105: ='BİLGİ GİRİŞİ'!I104 -> 0 | AJ105: 0 | AK105: 0 | AM105: 0 | AO105: ='BİLGİ GİRİŞİ'!E104 -> 0
M106: =SUM(M6:M105) -> 615 | N106: 83 | O106: 65510.99 | P106: 65510.99 | Q106: 13429.75 | R106: 0 | S106: 78940.74 | T106: =SUM(T6:T105) -> 0 | U106: 0 | V106: 0 | W106: 56339.45 | X106: 8450.92 | Y106: 8450.92 | Z106: 0 | AA106: 65510.99 | AB106: 497.23 | AC106: 497.23 | AD106: 0 | AE106: 13429.75 | AF106: 9171.54 | AG106: 0 | AH106: 0 | AI106: 0 | AJ106: 22601.29 | AK106: =SUM(AK6:AK105) -> 56339.45

Sheet EK DERS BORDROSU
A1: =CONCATENATE(KATSAYILAR!F3," - ","ÜCRETLİ ÖĞRETMENLERİN EK DERS ÜCRET BORDROSU") -> OKUL KURUM ADI GİRİNİZ!!! - ÜCRETLİ ÖĞRETMENLERİN EK DERS ÜCRET BORDROSU | AI1: YIL / AY : | AJ1: =CONCATENATE('EK DERS VERİ GİRİŞİ'!I2," ","/"," ",'EK DERS VERİ GİRİŞİ'!I1) -> 2024 / 1
A2: Muhasebe Birimi : | C2: =KATSAYILAR!F10 -> KARABAĞLAR MAL MÜDÜRLÜĞÜ | AI2: Aylık Katsayı : | AJ2: =KATSAYILAR!C3 -> 0.760871
A3: Kurum Kodu/Adı : | C3: =KATSAYILAR!F3 -> OKUL KURUM ADI GİRİNİZ!!! | AI3: Asgari Ücret : | AJ3: =KATSAYILAR!C4 -> 20002.5
AI4: 1 Günlük Asgari Ücret : | AJ4: =KATSAYILAR!C9 -> 666.75
A5: Ç A L I Ş A N I N B İ L G İ L E R İ | G5: G E L İ R K A L E M L E R İ | T5: VERGİ MATRAHLARI VE İSTİSNALARI | AB5: K E S İ N T İ K A L E M L E R İ | AJ5: Net Ödenecek Ücret (TL)
A6: Sıra No | B6: T.C. Kimlik No | C6: Adı Soyadı | D6: Görevi | E6: Toplam Çalışma Saati | F6: Sigortalı Gün Saysı | G6: GÜNDÜZ | I6: GECE / H.S. | K6: DYK (Gündüz) | M6: DYK (Gece/H.S.) | O6: Gelir Toplamı | P6: SGK Matrahı | Q6: Devlet Katkısı | S6: TAHAKKUK TOPLAMI | T6: Gelir Vergisi Matrah-İstisna | Y6: Damga Vergisi Matrah-İstisna | AB6: Gelir Vergisi | AC6: Damga Vergisi | AD6: Devlet Katkısı | AF6: Çalışan Katkısı | AH6: İcra + Nafaka Kesintisi | AI6: Kesinti Toplamı
G7: Çalışılan Saat | H7: Tutar | I7: Çalışılan Saat | J7: Tutar | K7: Çalışılan Saat | L7: Tutar | M7: Çalışılan Saat | N7: Tutar | Q7: SGK Keseneği % 20.5 | R7: Sosyal Destek Primi %24.5 | T7: Geçen Aylar Gelir Vergisi Matrahı Toplamı | U7: Gelir Vergisi Matrahı İndirimi (Engellilik - Özel Sigorta) | V7: Bu Ay Toplam Vergi Matrahı (varsa indirim sonrası) | W7: İstisna Öncesi Gelir Vergisi | X7: =CONCATENATE("Ek Dersteki Gelir Vergisi İstisnası (üst sınır "," ",hesaplamalar!L3," ","TL.") -> Ek Dersteki Gelir Vergisi İstisnası (üst sınır 2550,32 TL. | Y7: Damga Vergisi Matrahı | Z7: İstisna Öncesi Damga Vergisi | AA7: =CONCATENATE("Ek Dersteki Damga Vergisi İstisnası (üst sınır "," ",hesaplamalar!S3," ","TL.") -> Ek Dersteki Damga Vergisi İstisnası (üst sınır 151,82 TL. | AD7: SGK Keseneği % 20.5 | AE7: Sosyal Destek Primi %24.5 | AF7: SGK Keseneği % 14 | AG7: Sosyal Destek Primi % 7.5 | AL7: A
A8: =IF(AJ8="","",SUBTOTAL(103,$AJ$8:AJ8)) -> 1 | B8: =IF('EK DERS Ücret Hesaplama'!$AM6=1,'EK DERS Ücret Hesaplama'!B6,"") -> 12345678910 | C8: =IF('EK DERS Ücret Hesaplama'!$AM6=1,'EK DERS Ücret Hesaplama'!C6,"") -> İBRAHİM KUTLUDAĞ | D8: =IF('EK DERS Ücret Hesaplama'!$AM6=1,IF('EK DERS Ücret Hesaplama'!D6="Ücretli Öğretmen","Ücretli Öğr.","Ücr.Öğr. (Emekli)"),"") -> Ücretli Öğr. | E8: =IF('EK DERS Ücret Hesaplama'!$AM6=1,'EK DERS Ücret Hesaplama'!M6,"") -> 180 | F8: =IF('EK DERS Ücret Hesaplama'!$AM6=1,'EK DERS Ücret Hesaplama'!N6,"") -> 24 | G8: =IF('EK DERS Ücret Hesaplama'!$AM6=1,'EK DERS Ücret Hesaplama'!E6,"") -> 180 | H8: =IF('EK DERS Ücret Hesaplama'!$AM6=1,'EK DERS Ücret Hesaplama'!F6,"") -> 19173.95 | I8: =IF('EK DERS Ücret Hesaplama'!$AM6=1,'EK DERS Ücret Hesaplama'!G6,"") -> 0 | J8: =IF('EK DERS Ücret Hesaplama'!$AM6=1,'EK DERS Ücret Hesaplama'!H6,"") -> 0 | K8: =IF('EK DERS Ücret Hesaplama'!$AM6=1,'EK DERS Ücret Hesaplama'!I6,"") -> 0 | L8: =IF('EK DERS Ücret Hesaplama'!$AM6=1,'EK DERS Ücret Hesaplama'!J6,"") -> 0 | M8: =IF('EK DERS Ücret Hesaplama'!$AM6=1,'EK DERS Ücret Hesaplama'!K6,"") -> 0 | N8: =IF('EK DERS Ücret Hesaplama'!$AM6=1,'EK DERS Ücret Hesaplama'!L6,"") -> 0 | O8: =IF('EK DERS Ücret Hesaplama'!$AM6=1,'EK DERS Ücret Hesaplama'!O6,"") -> 19173.95 | P8: =IF('EK DERS Ücret Hesaplama'!$AM6=1,'EK DERS Ücret Hesaplama'!P6,"") -> 19173.95 | Q8: =IF('EK DERS Ücret Hesaplama'!$AM6=1,'EK DERS Ücret Hesaplama'!Q6,"") -> 3930.66 | R8: =IF('EK DERS Ücret Hesaplama'!$AM6=1,'EK DERS Ücret Hesaplama'!R6,"") -> 0 | S8: =IF('EK DERS Ücret Hesaplama'!$AM6=1,'EK DERS Ücret Hesaplama'!S6,"") -> 23104.61 | T8: =IF('EK DERS Ücret Hesaplama'!$AM6=1,hesaplamalar!X3,"") -> 0 | U8: =IF('EK DERS Ücret Hesaplama'!$AM6=1,hesaplamalar!Y3,"") -> 0 | V8: =IF('EK DERS Ücret Hesaplama'!$AM6=1,hesaplamalar!Z3,"") -> 16489.6 | W8: =IF('EK DERS Ücret Hesaplama'!$AM6=1,hesaplamalar!AA3,"") -> 2473.44 | X8: =IF('EK DERS Ücret Hesaplama'!$AM6=1,hesaplamalar!AB3,"") -> 2473.44 | Y8: =IF('EK DERS Ücret Hesaplama'!$AM6=1,hesaplamalar!AC3,"") -> 19173.95 | Z8: =IF('EK DERS Ücret Hesaplama'!$AM6=1,hesaplamalar!AD3,"") -> 145.53 | AA8: =IF('EK DERS Ücret Hesaplama'!$AM6=1,hesaplamalar!AE3,"") -> 145.53 | AB8: =IF('EK DERS Ücret Hesaplama'!$AM6=1,hesaplamalar!AG3,"") -> 0 | AC8: =IF('EK DERS Ücret Hesaplama'!$AM6=1,hesaplamalar!AH3,"") -> 0 | AD8: =IF('EK DERS Ücret Hesaplama'!$AM6=1,'EK DERS Ücret Hesaplama'!AE6,"") -> 3930.66 | AE8: =IF('EK DERS Ücret Hesaplama'!$AM6=1,'EK DERS Ücret Hesaplama'!AG6,"") -> 0 | AF8: =IF('EK DERS Ücret Hesaplama'!$AM6=1,'EK DERS Ücret Hesaplama'!AF6,"") -> 2684.35 | AG8: =IF('EK DERS Ücret Hesaplama'!$AM6=1,'EK DERS Ücret Hesaplama'!AH6,"") -> 0 | AH8: =IF('EK DERS Ücret Hesaplama'!$AM6=1,'EK DERS Ücret Hesaplama'!AI6,"") -> 0 | AI8: =IF('EK DERS Ücret Hesaplama'!$AM6=1,'EK DERS Ücret Hesaplama'!AJ6,"") -> 6615.01 | AJ8: =IF('EK DERS Ücret Hesaplama'!$AM6=1,'EK DERS Ücret Hesaplama'!AK6,"") -> 16489.6 | AL8: =IF(AJ8="",0,1) -> 1
A9: =IF(AJ9="","",SUBTOTAL(103,$AJ$8:AJ9)) -> 2 | B9: =IF('EK DERS Ücret Hesaplama'!$AM7=1,'EK DERS Ücret Hesaplama'!B7,"") -> 12345678910 | C9: =IF('EK DERS Ücret Hesaplama'!$AM7=1,'EK DERS Ücret Hesaplama'!C7,"") -> SAMET YAĞMUR | D9: =IF('EK DERS Ücret Hesaplama'!$AM7=1,IF('EK DERS Ücret Hesaplama'!D7="Ücretli Öğretmen","Ücretli Öğr.","Ücr.Öğr. (Emekli)"),"") -> Ücretli Öğr. | E9: =IF('EK DERS Ücret Hesaplama'!$AM7=1,'EK DERS Ücret Hesaplama'!M7,"") -> 180 | F9: =IF('EK DERS Ücret Hesaplama'!$AM7=1,'EK DERS Ücret Hesaplama'!N7,"") -> 24 | G9: =IF('EK DERS Ücret Hesaplama'!$AM7=1,'EK DERS Ücret Hesaplama'!E7,"") -> 180 | H9: =IF('EK DERS Ücret Hesaplama'!$AM7=1,'EK DERS Ücret Hesaplama'!F7,"") -> 19173.95 | I9: =IF('EK DERS Ücret Hesaplama'!$AM7=1,'EK DERS Ücret Hesaplama'!G7,"") -> 0 | J9: =IF('EK DERS Ücret Hesaplama'!$AM7=1,'EK DERS Ücret Hesaplama'!H7,"") -> 0 | K9: =IF('EK DERS Ücret Hesaplama'!$AM7=1,'EK DERS Ücret Hesaplama'!I7,"") -> 0 | L9: =IF('EK DERS Ücret Hesaplama'!$AM7=1,'EK DERS Ücret Hesaplama'!J7,"") -> 0 | M9: =IF('EK DERS Ücret Hesaplama'!$AM7=1,'EK DERS Ücret Hesaplama'!K7,"") -> 0 | N9: =IF('EK DERS Ücret Hesaplama'!$AM7=1,'EK DERS Ücret Hesaplama'!L7,"") -> 0 | O9: =IF('EK DERS Ücret Hesaplama'!$AM7=1,'EK DERS Ücret Hesaplama'!O7,"") -> 19173.95 | P9: =IF('EK DERS Ücret Hesaplama'!$AM7=1,'EK DERS Ücret Hesaplama'!P7,"") -> 19173.95 | Q9: =IF('EK DERS Ücret Hesaplama'!$AM7=1,'EK DERS Ücret Hesaplama'!Q7,"") -> 3930.66 | R9: =IF('EK DERS Ücret Hesaplama'!$AM7=1,'EK DERS Ücret Hesaplama'!R7,"") -> 0 | S9: =IF('EK DERS Ücret Hesaplama'!$AM7=1,'EK DERS Ücret Hesaplama'!S7,"") -> 23104.61 | T9: =IF('EK DERS Ücret Hesaplama'!$AM7=1,hesaplamalar!X4,"") -> 0 | U9: =IF('EK DERS Ücret Hesaplama'!$AM7=1,hesaplamalar!Y4,"") -> 0 | V9: =IF('EK DERS Ücret Hesaplama'!$AM7=1,hesaplamalar!Z4,"") -> 16489.6 | W9: =IF('EK DERS Ücret Hesaplama'!$AM7=1,hesaplamalar!AA4,"") -> 2473.44 | X9: =IF('EK DERS Ücret Hesaplama'!$AM7=1,hesaplamalar!AB4,"") -> 2473.44 | Y9: =IF('EK DERS Ücret Hesaplama'!$AM7=1,hesaplamalar!AC4,"") -> 19173.95 | Z9: =IF('EK DERS Ücret Hesaplama'!$AM7=1,hesaplamalar!AD4,"") -> 145.53 | AA9: =IF('EK DERS Ücret Hesaplama'!$AM7=1,hesaplamalar!AE4,"") -> 145.53 | AB9: =IF('EK DERS Ücret Hesaplama'!$AM7=1,hesaplamalar!AG4,"") -> 0 | AC9: =IF('EK DERS Ücret Hesaplama'!$AM7=1,hesaplamalar!AH4,"") -> 0 | AD9: =IF('EK DERS Ücret Hesaplama'!$AM7=1,'EK DERS Ücret Hesaplama'!AE7,"") -> 3930.66 | AE9: =IF('EK DERS Ücret Hesaplama'!$AM7=1,'EK DERS Ücret Hesaplama'!AG7,"") -> 0 | AF9: =IF('EK DERS Ücret Hesaplama'!$AM7=1,'EK DERS Ücret Hesaplama'!AF7,"") -> 2684.35 | AG9: =IF('EK DERS Ücret Hesaplama'!$AM7=1,'EK DERS Ücret Hesaplama'!AH7,"") -> 0 | AH9: =IF('EK DERS Ücret Hesaplama'!$AM7=1,'EK DERS Ücret Hesaplama'!AI7,"") -> 0 | AI9: =IF('EK DERS Ücret Hesaplama'!$AM7=1,'EK DERS Ücret Hesaplama'!AJ7,"") -> 6615.01 | AJ9: =IF('EK DERS Ücret Hesaplama'!$AM7=1,'EK DERS Ücret Hesaplama'!AK7,"") -> 16489.6 | AL9: =IF(AJ9="",0,1) -> 1
A10: =IF(AJ10="","",SUBTOTAL(103,$AJ$8:AJ10)) -> 3 | B10: =IF('EK DERS Ücret Hesaplama'!$AM8=1,'EK DERS Ücret Hesaplama'!B8,"") -> 12345678910 | C10: =IF('EK DERS Ücret Hesaplama'!$AM8=1,'EK DERS Ücret Hesaplama'!C8,"") -> SAMET YAĞMUR | D10: =IF('EK DERS Ücret Hesaplama'!$AM8=1,IF('EK DERS Ücret Hesaplama'!D8="Ücretli Öğretmen","Ücretli Öğr.","Ücr.Öğr. (Emekli)"),"") -> Ücretli Öğr. | E10: =IF('EK DERS Ücret Hesaplama'!$AM8=1,'EK DERS Ücret Hesaplama'!M8,"") -> 155 | F10: =IF('EK DERS Ücret Hesaplama'!$AM8=1,'EK DERS Ücret Hesaplama'!N8,"") -> 21 | G10: =IF('EK DERS Ücret Hesaplama'!$AM8=1,'EK DERS Ücret Hesaplama'!E8,"") -> 155 | H10: =IF('EK DERS Ücret Hesaplama'!$AM8=1,'EK DERS Ücret Hesaplama'!F8,"") -> 16510.9 | I10: =IF('EK DERS Ücret Hesaplama'!$AM8=1,'EK DERS Ücret Hesaplama'!G8,"") -> 0 | J10: =IF('EK DERS Ücret Hesaplama'!$AM8=1,'EK DERS Ücret Hesaplama'!H8,"") -> 0 | K10: =IF('EK DERS Ücret Hesaplama'!$AM8=1,'EK DERS Ücret Hesaplama'!I8,"") -> 0 | L10: =IF('EK DERS Ücret Hesaplama'!$AM8=1,'EK DERS Ücret Hesaplama'!J8,"") -> 0 | M10: =IF('EK DERS Ücret Hesaplama'!$AM8=1,'EK DERS Ücret Hesaplama'!K8,"") -> 0 | N10: =IF('EK DERS Ücret Hesaplama'!$AM8=1,'EK DERS Ücret Hesaplama'!L8,"") -> 0 | O10: =IF('EK DERS Ücret Hesaplama'!$AM8=1,'EK DERS Ücret Hesaplama'!O8,"") -> 16510.9 | P10: =IF('EK DERS Ücret Hesaplama'!$AM8=1,'EK DERS Ücret Hesaplama'!P8,"") -> 16510.9 | Q10: =IF('EK DERS Ücret Hesaplama'!$AM8=1,'EK DERS Ücret Hesaplama'!Q8,"") -> 3384.73 | R10: =IF('EK DERS Ücret Hesaplama'!$AM8=1,'EK DERS Ücret Hesaplama'!R8,"") -> 0 | S10: =IF('EK DERS Ücret Hesaplama'!$AM8=1,'EK DERS Ücret Hesaplama'!S8,"") -> 19895.63 | T10: =IF('EK DERS Ücret Hesaplama'!$AM8=1,hesaplamalar!X5,"") -> 0 | U10: =IF('EK DERS Ücret Hesaplama'!$AM8=1,hesaplamalar!Y5,"") -> 0 | V10: =IF('EK DERS Ücret Hesaplama'!$AM8=1,hesaplamalar!Z5,"") -> 14199.37 | W10: =IF('EK DERS Ücret Hesaplama'!$AM8=1,hesaplamalar!AA5,"") -> 2129.91 | X10: =IF('EK DERS Ücret Hesaplama'!$AM8=1,hesaplamalar!AB5,"") -> 2129.91 | Y10: =IF('EK DERS Ücret Hesaplama'!$AM8=1,hesaplamalar!AC5,"") -> 16510.9 | Z10: =IF('EK DERS Ücret Hesaplama'!$AM8=1,hesaplamalar!AD5,"") -> 125.32 | AA10: =IF('EK DERS Ücret Hesaplama'!$AM8=1,hesaplamalar!AE5,"") -> 125.32 | AB10: =IF('EK DERS Ücret Hesaplama'!$AM8=1,hesaplamalar!AG5,"") -> 0 | AC10: =IF('EK DERS Ücret Hesaplama'!$AM8=1,hesaplamalar!AH5,"") -> 0 | AD10: =IF('EK DERS Ücret Hesaplama'!$AM8=1,'EK DERS Ücret Hesaplama'!AE8,"") -> 3384.73 | AE10: =IF('EK DERS Ücret Hesaplama'!$AM8=1,'EK DERS Ücret Hesaplama'!AG8,"") -> 0 | AF10: =IF('EK DERS Ücret Hesaplama'!$AM8=1,'EK DERS Ücret Hesaplama'!AF8,"") -> 2311.53 | AG10: =IF('EK DERS Ücret Hesaplama'!$AM8=1,'EK DERS Ücret Hesaplama'!AH8,"") -> 0 | AH10: =IF('EK DERS Ücret Hesaplama'!$AM8=1,'EK DERS Ücret Hesaplama'!AI8,"") -> 0 | AI10: =IF('EK DERS Ücret Hesaplama'!$AM8=1,'EK DERS Ücret Hesaplama'!AJ8,"") -> 5696.26 | AJ10: =IF('EK DERS Ücret Hesaplama'!$AM8=1,'EK DERS Ücret Hesaplama'!AK8,"") -> 14199.37 | AL10: 1
A11: =IF(AJ11="","",SUBTOTAL(103,$AJ$8:AJ11)) -> 4 | B11: =IF('EK DERS Ücret Hesaplama'!$AM9=1,'EK DERS Ücret Hesaplama'!B9,"") -> 12345678910 | C11: =IF('EK DERS Ücret Hesaplama'!$AM9=1,'EK DERS Ücret Hesaplama'!C9,"") -> SAMET YAĞMUR | D11: =IF('EK DERS Ücret Hesaplama'!$AM9=1,IF('EK DERS Ücret Hesaplama'!D9="Ücretli Öğretmen","Ücretli Öğr.","Ücr.Öğr. (Emekli)"),"") -> Ücretli Öğr. | E11: =IF('EK DERS Ücret Hesaplama'!$AM9=1,'EK DERS Ücret Hesaplama'!M9,"") -> 100 | F11: =IF('EK DERS Ücret Hesaplama'!$AM9=1,'EK DERS Ücret Hesaplama'!N9,"") -> 14 | G11: =IF('EK DERS Ücret Hesaplama'!$AM9=1,'EK DERS Ücret Hesaplama'!E9,"") -> 100 | H11: =IF('EK DERS Ücret Hesaplama'!$AM9=1,'EK DERS Ücret Hesaplama'!F9,"") -> 10652.19 | I11: =IF('EK DERS Ücret Hesaplama'!$AM9=1,'EK DERS Ücret Hesaplama'!G9,"") -> 0 | J11: =IF('EK DERS Ücret Hesaplama'!$AM9=1,'EK DERS Ücret Hesaplama'!H9,"") -> 0 | K11: =IF('EK DERS Ücret Hesaplama'!$AM9=1,'EK DERS Ücret Hesaplama'!I9,"") -> 0 | L11: =IF('EK DERS Ücret Hesaplama'!$AM9=1,'EK DERS Ücret Hesaplama'!J9,"") -> 0 | M11: =IF('EK DERS Ücret Hesaplama'!$AM9=1,'EK DERS Ücret Hesaplama'!K9,"") -> 0 | N11: =IF('EK DERS Ücret Hesaplama'!$AM9=1,'EK DERS Ücret Hesaplama'!L9,"") -> 0 | O11: =IF('EK DERS Ücret Hesaplama'!$AM9=1,'EK DERS Ücret Hesaplama'!O9,"") -> 10652.19 | P11: =IF('EK DERS Ücret Hesaplama'!$AM9=1,'EK DERS Ücret Hesaplama'!P9,"") -> 10652.19 | Q11: =IF('EK DERS Ücret Hesaplama'!$AM9=1,'EK DERS Ücret Hesaplama'!Q9,"") -> 2183.7 | R11: =IF('EK DERS Ücret Hesaplama'!$AM9=1,'EK DERS Ücret Hesaplama'!R9,"") -> 0 | S11: =IF('EK DERS Ücret Hesaplama'!$AM9=1,'EK DERS Ücret Hesaplama'!S9,"") -> 12835.89 | T11: =IF('EK DERS Ücret Hesaplama'!$AM9=1,hesaplamalar!X6,"") -> 0 | U11: =IF('EK DERS Ücret Hesaplama'!$AM9=1,hesaplamalar!Y6,"") -> 0 | V11: =IF('EK DERS Ücret Hesaplama'!$AM9=1,hesaplamalar!Z6,"") -> 9160.88 | W11: =IF('EK DERS Ücret Hesaplama'!$AM9=1,hesaplamalar!AA6,"") -> 1374.13 | X11: =IF('EK DERS Ücret Hesaplama'!$AM9=1,hesaplamalar!AB6,"") -> 1374.13 | Y11: =IF('EK DERS Ücret Hesaplama'!$AM9=1,hesaplamalar!AC6,"") -> 10652.19 | Z11: =IF('EK DERS Ücret Hesaplama'!$AM9=1,hesaplamalar!AD6,"") -> 80.85 | AA11: =IF('EK DERS Ücret Hesaplama'!$AM9=1,hesaplamalar!AE6,"") -> 80.85 | AB11: =IF('EK DERS Ücret Hesaplama'!$AM9=1,hesaplamalar!AG6,"") -> 0 | AC11: =IF('EK DERS Ücret Hesaplama'!$AM9=1,hesaplamalar!AH6,"") -> 0 | AD11: =IF('EK DERS Ücret Hesaplama'!$AM9=1,'EK DERS Ücret Hesaplama'!AE9,"") -> 2183.7 | AE11: =IF('EK DERS Ücret Hesaplama'!$AM9=1,'EK DERS Ücret Hesaplama'!AG9,"") -> 0 | AF11: =IF('EK DERS Ücret Hesaplama'!$AM9=1,'EK DERS Ücret Hesaplama'!AF9,"") -> 1491.31 | AG11: =IF('EK DERS Ücret Hesaplama'!$AM9=1,'EK DERS Ücret Hesaplama'!AH9,"") -> 0 | AH11: =IF('EK DERS Ücret Hesaplama'!$AM9=1,'EK DERS Ücret Hesaplama'!AI9,"") -> 0 | AI11: =IF('EK DERS Ücret Hesaplama'!$AM9=1,'EK DERS Ücret Hesaplama'!AJ9,"") -> 3675.01 | AJ11: =IF('EK DERS Ücret Hesaplama'!$AM9=1,'EK DERS Ücret Hesaplama'!AK9,"") -> 9160.88 | AL11: 1
A12: =IF(AJ12="","",SUBTOTAL(103,$AJ$8:AJ12)) ->  | B12: =IF('EK DERS Ücret Hesaplama'!$AM10=1,'EK DERS Ücret Hesaplama'!B10,"") ->  | C12: =IF('EK DERS Ücret Hesaplama'!$AM10=1,'EK DERS Ücret Hesaplama'!C10,"") ->  | D12: =IF('EK DERS Ücret Hesaplama'!$AM10=1,IF('EK DERS Ücret Hesaplama'!D10="Ücretli Öğretmen","Ücretli Öğr.","Ücr.Öğr. (Emekli)"),"") ->  | E12: =IF('EK DERS Ücret Hesaplama'!$AM10=1,'EK DERS Ücret Hesaplama'!M10,"") ->  | F12: =IF('EK DERS Ücret Hesaplama'!$AM10=1,'EK DERS Ücret Hesaplama'!N10,"") ->  | G12: =IF('EK DERS Ücret Hesaplama'!$AM10=1,'EK DERS Ücret Hesaplama'!E10,"") ->  | H12: =IF('EK DERS Ücret Hesaplama'!$AM10=1,'EK DERS Ücret Hesaplama'!F10,"") ->  | I12: =IF('EK DERS Ücret Hesaplama'!$AM10=1,'EK DERS Ücret Hesaplama'!G10,"") ->  | J12: =IF('EK DERS Ücret Hesaplama'!$AM10=1,'EK DERS Ücret Hesaplama'!H10,"") ->  | K12: =IF('EK DERS Ücret Hesaplama'!$AM10=1,'EK DERS Ücret Hesaplama'!I10,"") ->  | L12: =IF('EK DERS Ücret Hesaplama'!$AM10=1,'EK DERS Ücret Hesaplama'!J10,"") ->  | M12: =IF('EK DERS Ücret Hesaplama'!$AM10=1,'EK DERS Ücret Hesaplama'!K10,"") ->  | N12: =IF('EK DERS Ücret Hesaplama'!$AM10=1,'EK DERS Ücret Hesaplama'!L10,"") ->  | O12: =IF('EK DERS Ücret Hesaplama'!$AM10=1,'EK DERS Ücret Hesaplama'!O10,"") ->  | P12: =IF('EK DERS Ücret Hesaplama'!$AM10=1,'EK DERS Ücret Hesaplama'!P10,"") ->  | Q12: =IF('EK DERS Ücret Hesaplama'!$AM10=1,'EK DERS Ücret Hesaplama'!Q10,"") ->  | R12: =IF('EK DERS Ücret Hesaplama'!$AM10=1,'EK DERS Ücret Hesaplama'!R10,"") ->  | S12: =IF('EK DERS Ücret Hesaplama'!$AM10=1,'EK DERS Ücret Hesaplama'!S10,"") ->  | T12: =IF('EK DERS Ücret Hesaplama'!$AM10=1,hesaplamalar!X7,"") ->  | U12: =IF('EK DERS Ücret Hesaplama'!$AM10=1,hesaplamalar!Y7,"") ->  | V12: =IF('EK DERS Ücret Hesaplama'!$AM10=1,hesaplamalar!Z7,"") ->  | W12: =IF('EK DERS Ücret Hesaplama'!$AM10=1,hesaplamalar!AA7,"") ->  | X12: =IF('EK DERS Ücret Hesaplama'!$AM10=1,hesaplamalar!AB7,"") ->  | Y12: =IF('EK DERS Ücret Hesaplama'!$AM10=1,hesaplamalar!AC7,"") ->  | Z12: =IF('EK DERS Ücret Hesaplama'!$AM10=1,hesaplamalar!AD7,"") ->  | AA12: =IF('EK DERS Ücret Hesaplama'!$AM10=1,hesaplamalar!AE7,"") ->  | AB12: =IF('EK DERS Ücret Hesaplama'!$AM10=1,hesaplamalar!AG7,"") ->  | AC12: =IF('EK DERS Ücret Hesaplama'!$AM10=1,hesaplamalar!AH7,"") ->  | AD12: =IF('EK DERS Ücret Hesaplama'!$AM10=1,'EK DERS Ücret Hesaplama'!AE10,"") ->  | AE12: =IF('EK DERS Ücret Hesaplama'!$AM10=1,'EK DERS Ücret Hesaplama'!AG10,"") ->  | AF12: =IF('EK DERS Ücret Hesaplama'!$AM10=1,'EK DERS Ücret Hesaplama'!AF10,"") ->  | AG12: =IF('EK DERS Ücret Hesaplama'!$AM10=1,'EK DERS Ücret Hesaplama'!AH10,"") ->  | AH12: =IF('EK DERS Ücret Hesaplama'!$AM10=1,'EK DERS Ücret Hesaplama'!AI10,"") ->  | AI12: =IF('EK DERS Ücret Hesaplama'!$AM10=1,'EK DERS Ücret Hesaplama'!AJ10,"") ->  | AJ12: =IF('EK DERS Ücret Hesaplama'!$AM10=1,'EK DERS Ücret Hesaplama'!AK10,"") ->  | AL12: 0
A13: =IF(AJ13="","",SUBTOTAL(103,$AJ$8:AJ13)) ->  | B13: =IF('EK DERS Ücret Hesaplama'!$AM11=1,'EK DERS Ücret Hesaplama'!B11,"") ->  | C13: =IF('EK DERS Ücret Hesaplama'!$AM11=1,'EK DERS Ücret Hesaplama'!C11,"") ->  | D13: =IF('EK DERS Ücret Hesaplama'!$AM11=1,IF('EK DERS Ücret Hesaplama'!D11="Ücretli Öğretmen","Ücretli Öğr.","Ücr.Öğr. (Emekli)"),"") ->  | E13: =IF('EK DERS Ücret Hesaplama'!$AM11=1,'EK DERS Ücret Hesaplama'!M11,"") ->  | F13: =IF('EK DERS Ücret Hesaplama'!$AM11=1,'EK DERS Ücret Hesaplama'!N11,"") ->  | G13: =IF('EK DERS Ücret Hesaplama'!$AM11=1,'EK DERS Ücret Hesaplama'!E11,"") ->  | H13: =IF('EK DERS Ücret Hesaplama'!$AM11=1,'EK DERS Ücret Hesaplama'!F11,"") ->  | I13: =IF('EK DERS Ücret Hesaplama'!$AM11=1,'EK DERS Ücret Hesaplama'!G11,"") ->  | J13: =IF('EK DERS Ücret Hesaplama'!$AM11=1,'EK DERS Ücret Hesaplama'!H11,"") ->  | K13: =IF('EK DERS Ücret Hesaplama'!$AM11=1,'EK DERS Ücret Hesaplama'!I11,"") ->  | L13: =IF('EK DERS Ücret Hesaplama'!$AM11=1,'EK DERS Ücret Hesaplama'!J11,"") ->  | M13: =IF('EK DERS Ücret Hesaplama'!$AM11=1,'EK DERS Ücret Hesaplama'!K11,"") ->  | N13: =IF('EK DERS Ücret Hesaplama'!$AM11=1,'EK DERS Ücret Hesaplama'!L11,"") ->  | O13: =IF('EK DERS Ücret Hesaplama'!$AM11=1,'EK DERS Ücret Hesaplama'!O11,"") ->  | P13: =IF('EK DERS Ücret Hesaplama'!$AM11=1,'EK DERS Ücret Hesaplama'!P11,"") ->  | Q13: =IF('EK DERS Ücret Hesaplama'!$AM11=1,'EK DERS Ücret Hesaplama'!Q11,"") ->  | R13: =IF('EK DERS Ücret Hesaplama'!$AM11=1,'EK DERS Ücret Hesaplama'!R11,"") ->  | S13: =IF('EK DERS Ücret Hesaplama'!$AM11=1,'EK DERS Ücret Hesaplama'!S11,"") ->  | T13: =IF('EK DERS Ücret Hesaplama'!$AM11=1,hesaplamalar!X8,"") ->  | U13: =IF('EK DERS Ücret Hesaplama'!$AM11=1,hesaplamalar!Y8,"") ->  | V13: =IF('EK DERS Ücret Hesaplama'!$AM11=1,hesaplamalar!Z8,"") ->  | W13: =IF('EK DERS Ücret Hesaplama'!$AM11=1,hesaplamalar!AA8,"") ->  | X13: =IF('EK DERS Ücret Hesaplama'!$AM11=1,hesaplamalar!AB8,"") ->  | Y13: =IF('EK DERS Ücret Hesaplama'!$AM11=1,hesaplamalar!AC8,"") ->  | Z13: =IF('EK DERS Ücret Hesaplama'!$AM11=1,hesaplamalar!AD8,"") ->  | AA13: =IF('EK DERS Ücret Hesaplama'!$AM11=1,hesaplamalar!AE8,"") ->  | AB13: =IF('EK DERS Ücret Hesaplama'!$AM11=1,hesaplamalar!AG8,"") ->  | AC13: =IF('EK DERS Ücret Hesaplama'!$AM11=1,hesaplamalar!AH8,"") ->  | AD13: =IF('EK DERS Ücret Hesaplama'!$AM11=1,'EK DERS Ücret Hesaplama'!AE11,"") ->  | AE13: =IF('EK DERS Ücret Hesaplama'!$AM11=1,'EK DERS Ücret Hesaplama'!AG11,"") ->  | AF13: =IF('EK DERS Ücret Hesaplama'!$AM11=1,'EK DERS Ücret Hesaplama'!AF11,"") ->  | AG13: =IF('EK DERS Ücret Hesaplama'!$AM11=1,'EK DERS Ücret Hesaplama'!AH11,"") ->  | AH13: =IF('EK DERS Ücret Hesaplama'!$AM11=1,'EK DERS Ücret Hesaplama'!AI11,"") ->  | AI13: =IF('EK DERS Ücret Hesaplama'!$AM11=1,'EK DERS Ücret Hesaplama'!AJ11,"") ->  | AJ13: =IF('EK DERS Ücret Hesaplama'!$AM11=1,'EK DERS Ücret Hesaplama'!AK11,"") ->  | AL13: 0
A14: =IF(AJ14="","",SUBTOTAL(103,$AJ$8:AJ14)) ->  | B14: =IF('EK DERS Ücret Hesaplama'!$AM12=1,'EK DERS Ücret Hesaplama'!B12,"") ->  | C14: =IF('EK DERS Ücret Hesaplama'!$AM12=1,'EK DERS Ücret Hesaplama'!C12,"") ->  | D14: =IF('EK DERS Ücret Hesaplama'!$AM12=1,IF('EK DERS Ücret Hesaplama'!D12="Ücretli Öğretmen","Ücretli Öğr.","Ücr.Öğr. (Emekli)"),"") ->  | E14: =IF('EK DERS Ücret Hesaplama'!$AM12=1,'EK DERS Ücret Hesaplama'!M12,"") ->  | F14: =IF('EK DERS Ücret Hesaplama'!$AM12=1,'EK DERS Ücret Hesaplama'!N12,"") ->  | G14: =IF('EK DERS Ücret Hesaplama'!$AM12=1,'EK DERS Ücret Hesaplama'!E12,"") ->  | H14: =IF('EK DERS Ücret Hesaplama'!$AM12=1,'EK DERS Ücret Hesaplama'!F12,"") ->  | I14: =IF('EK DERS Ücret Hesaplama'!$AM12=1,'EK DERS Ücret Hesaplama'!G12,"") ->  | J14: =IF('EK DERS Ücret Hesaplama'!$AM12=1,'EK DERS Ücret Hesaplama'!H12,"") ->  | K14: =IF('EK DERS Ücret Hesaplama'!$AM12=1,'EK DERS Ücret Hesaplama'!I12,"") ->  | L14: =IF('EK DERS Ücret Hesaplama'!$AM12=1,'EK DERS Ücret Hesaplama'!J12,"") ->  | M14: =IF('EK DERS Ücret Hesaplama'!$AM12=1,'EK DERS Ücret Hesaplama'!K12,"") ->  | N14: =IF('EK DERS Ücret Hesaplama'!$AM12=1,'EK DERS Ücret Hesaplama'!L12,"") ->  | O14: =IF('EK DERS Ücret Hesaplama'!$AM12=1,'EK DERS Ücret Hesaplama'!O12,"") ->  | P14: =IF('EK DERS Ücret Hesaplama'!$AM12=1,'EK DERS Ücret Hesaplama'!P12,"") ->  | Q14: =IF('EK DERS Ücret Hesaplama'!$AM12=1,'EK DERS Ücret Hesaplama'!Q12,"") ->  | R14: =IF('EK DERS Ücret Hesaplama'!$AM12=1,'EK DERS Ücret Hesaplama'!R12,"") ->  | S14: =IF('EK DERS Ücret Hesaplama'!$AM12=1,'EK DERS Ücret Hesaplama'!S12,"") ->  | T14: =IF('EK DERS Ücret Hesaplama'!$AM12=1,hesaplamalar!X9,"") ->  | U14: =IF('EK DERS Ücret Hesaplama'!$AM12=1,hesaplamalar!Y9,"") ->  | V14: =IF('EK DERS Ücret Hesaplama'!$AM12=1,hesaplamalar!Z9,"") ->  | W14: =IF('EK DERS Ücret Hesaplama'!$AM12=1,hesaplamalar!AA9,"") ->  | X14: =IF('EK DERS Ücret Hesaplama'!$AM12=1,hesaplamalar!AB9,"") ->  | Y14: =IF('EK DERS Ücret Hesaplama'!$AM12=1,hesaplamalar!AC9,"") ->  | Z14: =IF('EK DERS Ücret Hesaplama'!$AM12=1,hesaplamalar!AD9,"") ->  | AA14: =IF('EK DERS Ücret Hesaplama'!$AM12=1,hesaplamalar!AE9,"") ->  | AB14: =IF('EK DERS Ücret Hesaplama'!$AM12=1,hesaplamalar!AG9,"") ->  | AC14: =IF('EK DERS Ücret Hesaplama'!$AM12=1,hesaplamalar!AH9,"") ->  | AD14: =IF('EK DERS Ücret Hesaplama'!$AM12=1,'EK DERS Ücret Hesaplama'!AE12,"") ->  | AE14: =IF('EK DERS Ücret Hesaplama'!$AM12=1,'EK DERS Ücret Hesaplama'!AG12,"") ->  | AF14: =IF('EK DERS Ücret Hesaplama'!$AM12=1,'EK DERS Ücret Hesaplama'!AF12,"") ->  | AG14: =IF('EK DERS Ücret Hesaplama'!$AM12=1,'EK DERS Ücret Hesaplama'!AH12,"") ->  | AH14: =IF('EK DERS Ücret Hesaplama'!$AM12=1,'EK DERS Ücret Hesaplama'!AI12,"") ->  | AI14: =IF('EK DERS Ücret Hesaplama'!$AM12=1,'EK DERS Ücret Hesaplama'!AJ12,"") ->  | AJ14: =IF('EK DERS Ücret Hesaplama'!$AM12=1,'EK DERS Ücret Hesaplama'!AK12,"") ->  | AL14: 0
A15: =IF(AJ15="","",SUBTOTAL(103,$AJ$8:AJ15)) ->  | B15: =IF('EK DERS Ücret Hesaplama'!$AM13=1,'EK DERS Ücret Hesaplama'!B13,"") ->  | C15: =IF('EK DERS Ücret Hesaplama'!$AM13=1,'EK DERS Ücret Hesaplama'!C13,"") ->  | D15: =IF('EK DERS Ücret Hesaplama'!$AM13=1,IF('EK DERS Ücret Hesaplama'!D13="Ücretli Öğretmen","Ücretli Öğr.","Ücr.Öğr. (Emekli)"),"") ->  | E15: =IF('EK DERS Ücret Hesaplama'!$AM13=1,'EK DERS Ücret Hesaplama'!M13,"") ->  | F15: =IF('EK DERS Ücret Hesaplama'!$AM13=1,'EK DERS Ücret Hesaplama'!N13,"") ->  | G15: =IF('EK DERS Ücret Hesaplama'!$AM13=1,'EK DERS Ücret Hesaplama'!E13,"") ->  | H15: =IF('EK DERS Ücret Hesaplama'!$AM13=1,'EK DERS Ücret Hesaplama'!F13,"") ->  | I15: =IF('EK DERS Ücret Hesaplama'!$AM13=1,'EK DERS Ücret Hesaplama'!G13,"") ->  | J15: =IF('EK DERS Ücret Hesaplama'!$AM13=1,'EK DERS Ücret Hesaplama'!H13,"") ->  | K15: =IF('EK DERS Ücret Hesaplama'!$AM13=1,'EK DERS Ücret Hesaplama'!I13,"") ->  | L15: =IF('EK DERS Ücret Hesaplama'!$AM13=1,'EK DERS Ücret Hesaplama'!J13,"") ->  | M15: =IF('EK DERS Ücret Hesaplama'!$AM13=1,'EK DERS Ücret Hesaplama'!K13,"") ->  | N15: =IF('EK DERS Ücret Hesaplama'!$AM13=1,'EK DERS Ücret Hesaplama'!L13,"") ->  | O15: =IF('EK DERS Ücret Hesaplama'!$AM13=1,'EK DERS Ücret Hesaplama'!O13,"") ->  | P15: =IF('EK DERS Ücret Hesaplama'!$AM13=1,'EK DERS Ücret Hesaplama'!P13,"") ->  | Q15: =IF('EK DERS Ücret Hesaplama'!$AM13=1,'EK DERS Ücret Hesaplama'!Q13,"") ->  | R15: =IF('EK DERS Ücret Hesaplama'!$AM13=1,'EK DERS Ücret Hesaplama'!R13,"") ->  | S15: =IF('EK DERS Ücret Hesaplama'!$AM13=1,'EK DERS Ücret Hesaplama'!S13,"") ->  | T15: =IF('EK DERS Ücret Hesaplama'!$AM13=1,hesaplamalar!X10,"") ->  | U15: =IF('EK DERS Ücret Hesaplama'!$AM13=1,hesaplamalar!Y10,"") ->  | V15: =IF('EK DERS Ücret Hesaplama'!$AM13=1,hesaplamalar!Z10,"") ->  | W15: =IF('EK DERS Ücret Hesaplama'!$AM13=1,hesaplamalar!AA10,"") ->  | X15: =IF('EK DERS Ücret Hesaplama'!$AM13=1,hesaplamalar!AB10,"") ->  | Y15: =IF('EK DERS Ücret Hesaplama'!$AM13=1,hesaplamalar!AC10,"") ->  | Z15: =IF('EK DERS Ücret Hesaplama'!$AM13=1,hesaplamalar!AD10,"") ->  | AA15: =IF('EK DERS Ücret Hesaplama'!$AM13=1,hesaplamalar!AE10,"") ->  | AB15: =IF('EK DERS Ücret Hesaplama'!$AM13=1,hesaplamalar!AG10,"") ->  | AC15: =IF('EK DERS Ücret Hesaplama'!$AM13=1,hesaplamalar!AH10,"") ->  | AD15: =IF('EK DERS Ücret Hesaplama'!$AM13=1,'EK DERS Ücret Hesaplama'!AE13,"") ->  | AE15: =IF('EK DERS Ücret Hesaplama'!$AM13=1,'EK DERS Ücret Hesaplama'!AG13,"") ->  | AF15: =IF('EK DERS Ücret Hesaplama'!$AM13=1,'EK DERS Ücret Hesaplama'!AF13,"") ->  | AG15: =IF('EK DERS Ücret Hesaplama'!$AM13=1,'EK DERS Ücret Hesaplama'!AH13,"") ->  | AH15: =IF('EK DERS Ücret Hesaplama'!$AM13=1,'EK DERS Ücret Hesaplama'!AI13,"") ->  | AI15: =IF('EK DERS Ücret Hesaplama'!$AM13=1,'EK DERS Ücret Hesaplama'!AJ13,"") ->  | AJ15: =IF('EK DERS Ücret Hesaplama'!$AM13=1,'EK DERS Ücret Hesaplama'!AK13,"") ->  | AL15: 0
A16: =IF(AJ16="","",SUBTOTAL(103,$AJ$8:AJ16)) ->  | B16: =IF('EK DERS Ücret Hesaplama'!$AM14=1,'EK DERS Ücret Hesaplama'!B14,"") ->  | C16: =IF('EK DERS Ücret Hesaplama'!$AM14=1,'EK DERS Ücret Hesaplama'!C14,"") ->  | D16: =IF('EK DERS Ücret Hesaplama'!$AM14=1,IF('EK DERS Ücret Hesaplama'!D14="Ücretli Öğretmen","Ücretli Öğr.","Ücr.Öğr. (Emekli)"),"") ->  | E16: =IF('EK DERS Ücret Hesaplama'!$AM14=1,'EK DERS Ücret Hesaplama'!M14,"") ->  | F16: =IF('EK DERS Ücret Hesaplama'!$AM14=1,'EK DERS Ücret Hesaplama'!N14,"") ->  | G16: =IF('EK DERS Ücret Hesaplama'!$AM14=1,'EK DERS Ücret Hesaplama'!E14,"") ->  | H16: =IF('EK DERS Ücret Hesaplama'!$AM14=1,'EK DERS Ücret Hesaplama'!F14,"") ->  | I16: =IF('EK DERS Ücret Hesaplama'!$AM14=1,'EK DERS Ücret Hesaplama'!G14,"") ->  | J16: =IF('EK DERS Ücret Hesaplama'!$AM14=1,'EK DERS Ücret Hesaplama'!H14,"") ->  | K16: =IF('EK DERS Ücret Hesaplama'!$AM14=1,'EK DERS Ücret Hesaplama'!I14,"") ->  | L16: =IF('EK DERS Ücret Hesaplama'!$AM14=1,'EK DERS Ücret Hesaplama'!J14,"") ->  | M16: =IF('EK DERS Ücret Hesaplama'!$AM14=1,'EK DERS Ücret Hesaplama'!K14,"") ->  | N16: =IF('EK DERS Ücret Hesaplama'!$AM14=1,'EK DERS Ücret Hesaplama'!L14,"") ->  | O16: =IF('EK DERS Ücret Hesaplama'!$AM14=1,'EK DERS Ücret Hesaplama'!O14,"") ->  | P16: =IF('EK DERS Ücret Hesaplama'!$AM14=1,'EK DERS Ücret Hesaplama'!P14,"") ->  | Q16: =IF('EK DERS Ücret Hesaplama'!$AM14=1,'EK DERS Ücret Hesaplama'!Q14,"") ->  | R16: =IF('EK DERS Ücret Hesaplama'!$AM14=1,'EK DERS Ücret Hesaplama'!R14,"") ->  | S16: =IF('EK DERS Ücret Hesaplama'!$AM14=1,'EK DERS Ücret Hesaplama'!S14,"") ->  | T16: =IF('EK DERS Ücret Hesaplama'!$AM14=1,hesaplamalar!X11,"") ->  | U16: =IF('EK DERS Ücret Hesaplama'!$AM14=1,hesaplamalar!Y11,"") ->  | V16: =IF('EK DERS Ücret Hesaplama'!$AM14=1,hesaplamalar!Z11,"") ->  | W16: =IF('EK DERS Ücret Hesaplama'!$AM14=1,hesaplamalar!AA11,"") ->  | X16: =IF('EK DERS Ücret Hesaplama'!$AM14=1,hesaplamalar!AB11,"") ->  | Y16: =IF('EK DERS Ücret Hesaplama'!$AM14=1,hesaplamalar!AC11,"") ->  | Z16: =IF('EK DERS Ücret Hesaplama'!$AM14=1,hesaplamalar!AD11,"") ->  | AA16: =IF('EK DERS Ücret Hesaplama'!$AM14=1,hesaplamalar!AE11,"") ->  | AB16: =IF('EK DERS Ücret Hesaplama'!$AM14=1,hesaplamalar!AG11,"") ->  | AC16: =IF('EK DERS Ücret Hesaplama'!$AM14=1,hesaplamalar!AH11,"") ->  | AD16: =IF('EK DERS Ücret Hesaplama'!$AM14=1,'EK DERS Ücret Hesaplama'!AE14,"") ->  | AE16: =IF('EK DERS Ücret Hesaplama'!$AM14=1,'EK DERS Ücret Hesaplama'!AG14,"") ->  | AF16: =IF('EK DERS Ücret Hesaplama'!$AM14=1,'EK DERS Ücret Hesaplama'!AF14,"") ->  | AG16: =IF('EK DERS Ücret Hesaplama'!$AM14=1,'EK DERS Ücret Hesaplama'!AH14,"") ->  | AH16: =IF('EK DERS Ücret Hesaplama'!$AM14=1,'EK DERS Ücret Hesaplama'!AI14,"") ->  | AI16: =IF('EK DERS Ücret Hesaplama'!$AM14=1,'EK DERS Ücret Hesaplama'!AJ14,"") ->  | AJ16: =IF('EK DERS Ücret Hesaplama'!$AM14=1,'EK DERS Ücret Hesaplama'!AK14,"") ->  | AL16: 0
A17: =IF(AJ17="","",SUBTOTAL(103,$AJ$8:AJ17)) ->  | B17: =IF('EK DERS Ücret Hesaplama'!$AM15=1,'EK DERS Ücret Hesaplama'!B15,"") ->  | C17: =IF('EK DERS Ücret Hesaplama'!$AM15=1,'EK DERS Ücret Hesaplama'!C15,"") ->  | D17: =IF('EK DERS Ücret Hesaplama'!$AM15=1,IF('EK DERS Ücret Hesaplama'!D15="Ücretli Öğretmen","Ücretli Öğr.","Ücr.Öğr. (Emekli)"),"") ->  | E17: =IF('EK DERS Ücret Hesaplama'!$AM15=1,'EK DERS Ücret Hesaplama'!M15,"") ->  | F17: =IF('EK DERS Ücret Hesaplama'!$AM15=1,'EK DERS Ücret Hesaplama'!N15,"") ->  | G17: =IF('EK DERS Ücret Hesaplama'!$AM15=1,'EK DERS Ücret Hesaplama'!E15,"") ->  | H17: =IF('EK DERS Ücret Hesaplama'!$AM15=1,'EK DERS Ücret Hesaplama'!F15,"") ->  | I17: =IF('EK DERS Ücret Hesaplama'!$AM15=1,'EK DERS Ücret Hesaplama'!G15,"") ->  | J17: =IF('EK DERS Ücret Hesaplama'!$AM15=1,'EK DERS Ücret Hesaplama'!H15,"") ->  | K17: =IF('EK DERS Ücret Hesaplama'!$AM15=1,'EK DERS Ücret Hesaplama'!I15,"") ->  | L17: =IF('EK DERS Ücret Hesaplama'!$AM15=1,'EK DERS Ücret Hesaplama'!J15,"") ->  | M17: =IF('EK DERS Ücret Hesaplama'!$AM15=1,'EK DERS Ücret Hesaplama'!K15,"") ->  | N17: =IF('EK DERS Ücret Hesaplama'!$AM15=1,'EK DERS Ücret Hesaplama'!L15,"") ->  | O17: =IF('EK DERS Ücret Hesaplama'!$AM15=1,'EK DERS Ücret Hesaplama'!O15,"") ->  | P17: =IF('EK DERS Ücret Hesaplama'!$AM15=1,'EK DERS Ücret Hesaplama'!P15,"") ->  | Q17: =IF('EK DERS Ücret Hesaplama'!$AM15=1,'EK DERS Ücret Hesaplama'!Q15,"") ->  | R17: =IF('EK DERS Ücret Hesaplama'!$AM15=1,'EK DERS Ücret Hesaplama'!R15,"") ->  | S17: =IF('EK DERS Ücret Hesaplama'!$AM15=1,'EK DERS Ücret Hesaplama'!S15,"") ->  | T17: =IF('EK DERS Ücret Hesaplama'!$AM15=1,hesaplamalar!X12,"") ->  | U17: =IF('EK DERS Ücret Hesaplama'!$AM15=1,hesaplamalar!Y12,"") ->  | V17: =IF('EK DERS Ücret Hesaplama'!$AM15=1,hesaplamalar!Z12,"") ->  | W17: =IF('EK DERS Ücret Hesaplama'!$AM15=1,hesaplamalar!AA12,"") ->  | X17: =IF('EK DERS Ücret Hesaplama'!$AM15=1,hesaplamalar!AB12,"") ->  | Y17: =IF('EK DERS Ücret Hesaplama'!$AM15=1,hesaplamalar!AC12,"") ->  | Z17: =IF('EK DERS Ücret Hesaplama'!$AM15=1,hesaplamalar!AD12,"") ->  | AA17: =IF('EK DERS Ücret Hesaplama'!$AM15=1,hesaplamalar!AE12,"") ->  | AB17: =IF('EK DERS Ücret Hesaplama'!$AM15=1,hesaplamalar!AG12,"") ->  | AC17: =IF('EK DERS Ücret Hesaplama'!$AM15=1,hesaplamalar!AH12,"") ->  | AD17: =IF('EK DERS Ücret Hesaplama'!$AM15=1,'EK DERS Ücret Hesaplama'!AE15,"") ->  | AE17: =IF('EK DERS Ücret Hesaplama'!$AM15=1,'EK DERS Ücret Hesaplama'!AG15,"") ->  | AF17: =IF('EK DERS Ücret Hesaplama'!$AM15=1,'EK DERS Ücret Hesaplama'!AF15,"") ->  | AG17: =IF('EK DERS Ücret Hesaplama'!$AM15=1,'EK DERS Ücret Hesaplama'!AH15,"") ->  | AH17: =IF('EK DERS Ücret Hesaplama'!$AM15=1,'EK DERS Ücret Hesaplama'!AI15,"") ->  | AI17: =IF('EK DERS Ücret Hesaplama'!$AM15=1,'EK DERS Ücret Hesaplama'!AJ15,"") ->  | AJ17: =IF('EK DERS Ücret Hesaplama'!$AM15=1,'EK DERS Ücret Hesaplama'!AK15,"") ->  | AL17: 0
A18: =IF(AJ18="","",SUBTOTAL(103,$AJ$8:AJ18)) ->  | B18: =IF('EK DERS Ücret Hesaplama'!$AM16=1,'EK DERS Ücret Hesaplama'!B16,"") ->  | C18: =IF('EK DERS Ücret Hesaplama'!$AM16=1,'EK DERS Ücret Hesaplama'!C16,"") ->  | D18: =IF('EK DERS Ücret Hesaplama'!$AM16=1,IF('EK DERS Ücret Hesaplama'!D16="Ücretli Öğretmen","Ücretli Öğr.","Ücr.Öğr. (Emekli)"),"") ->  | E18: =IF('EK DERS Ücret Hesaplama'!$AM16=1,'EK DERS Ücret Hesaplama'!M16,"") ->  | F18: =IF('EK DERS Ücret Hesaplama'!$AM16=1,'EK DERS Ücret Hesaplama'!N16,"") ->  | G18: =IF('EK DERS Ücret Hesaplama'!$AM16=1,'EK DERS Ücret Hesaplama'!E16,"") ->  | H18: =IF('EK DERS Ücret Hesaplama'!$AM16=1,'EK DERS Ücret Hesaplama'!F16,"") ->  | I18: =IF('EK DERS Ücret Hesaplama'!$AM16=1,'EK DERS Ücret Hesaplama'!G16,"") ->  | J18: =IF('EK DERS Ücret Hesaplama'!$AM16=1,'EK DERS Ücret Hesaplama'!H16,"") ->  | K18: =IF('EK DERS Ücret Hesaplama'!$AM16=1,'EK DERS Ücret Hesaplama'!I16,"") ->  | L18: =IF('EK DERS Ücret Hesaplama'!$AM16=1,'EK DERS Ücret Hesaplama'!J16,"") ->  | M18: =IF('EK DERS Ücret Hesaplama'!$AM16=1,'EK DERS Ücret Hesaplama'!K16,"") ->  | N18: =IF('EK DERS Ücret Hesaplama'!$AM16=1,'EK DERS Ücret Hesaplama'!L16,"") ->  | O18: =IF('EK DERS Ücret Hesaplama'!$AM16=1,'EK DERS Ücret Hesaplama'!O16,"") ->  | P18: =IF('EK DERS Ücret Hesaplama'!$AM16=1,'EK DERS Ücret Hesaplama'!P16,"") ->  | Q18: =IF('EK DERS Ücret Hesaplama'!$AM16=1,'EK DERS Ücret Hesaplama'!Q16,"") ->  | R18: =IF('EK DERS Ücret Hesaplama'!$AM16=1,'EK DERS Ücret Hesaplama'!R16,"") ->  | S18: =IF('EK DERS Ücret Hesaplama'!$AM16=1,'EK DERS Ücret Hesaplama'!S16,"") ->  | T18: =IF('EK DERS Ücret Hesaplama'!$AM16=1,hesaplamalar!X13,"") ->  | U18: =IF('EK DERS Ücret Hesaplama'!$AM16=1,hesaplamalar!Y13,"") ->  | V18: =IF('EK DERS Ücret Hesaplama'!$AM16=1,hesaplamalar!Z13,"") ->  | W18: =IF('EK DERS Ücret Hesaplama'!$AM16=1,hesaplamalar!AA13,"") ->  | X18: =IF('EK DERS Ücret Hesaplama'!$AM16=1,hesaplamalar!AB13,"") ->  | Y18: =IF('EK DERS Ücret Hesaplama'!$AM16=1,hesaplamalar!AC13,"") ->  | Z18: =IF('EK DERS Ücret Hesaplama'!$AM16=1,hesaplamalar!AD13,"") ->  | AA18: =IF('EK DERS Ücret Hesaplama'!$AM16=1,hesaplamalar!AE13,"") ->  | AB18: =IF('EK DERS Ücret Hesaplama'!$AM16=1,hesaplamalar!AG13,"") ->  | AC18: =IF('EK DERS Ücret Hesaplama'!$AM16=1,hesaplamalar!AH13,"") ->  | AD18: =IF('EK DERS Ücret Hesaplama'!$AM16=1,'EK DERS Ücret Hesaplama'!AE16,"") ->  | AE18: =IF('EK DERS Ücret Hesaplama'!$AM16=1,'EK DERS Ücret Hesaplama'!AG16,"") ->  | AF18: =IF('EK DERS Ücret Hesaplama'!$AM16=1,'EK DERS Ücret Hesaplama'!AF16,"") ->  | AG18: =IF('EK DERS Ücret Hesaplama'!$AM16=1,'EK DERS Ücret Hesaplama'!AH16,"") ->  | AH18: =IF('EK DERS Ücret Hesaplama'!$AM16=1,'EK DERS Ücret Hesaplama'!AI16,"") ->  | AI18: =IF('EK DERS Ücret Hesaplama'!$AM16=1,'EK DERS Ücret Hesaplama'!AJ16,"") ->  | AJ18: =IF('EK DERS Ücret Hesaplama'!$AM16=1,'EK DERS Ücret Hesaplama'!AK16,"") ->  | AL18: 0
A19: =IF(AJ19="","",SUBTOTAL(103,$AJ$8:AJ19)) ->  | B19: =IF('EK DERS Ücret Hesaplama'!$AM17=1,'EK DERS Ücret Hesaplama'!B17,"") ->  | C19: =IF('EK DERS Ücret Hesaplama'!$AM17=1,'EK DERS Ücret Hesaplama'!C17,"") ->  | D19: =IF('EK DERS Ücret Hesaplama'!$AM17=1,IF('EK DERS Ücret Hesaplama'!D17="Ücretli Öğretmen","Ücretli Öğr.","Ücr.Öğr. (Emekli)"),"") ->  | E19: =IF('EK DERS Ücret Hesaplama'!$AM17=1,'EK DERS Ücret Hesaplama'!M17,"") ->  | F19: =IF('EK DERS Ücret Hesaplama'!$AM17=1,'EK DERS Ücret Hesaplama'!N17,"") ->  | G19: =IF('EK DERS Ücret Hesaplama'!$AM17=1,'EK DERS Ücret Hesaplama'!E17,"") ->  | H19: =IF('EK DERS Ücret Hesaplama'!$AM17=1,'EK DERS Ücret Hesaplama'!F17,"") ->  | I19: =IF('EK DERS Ücret Hesaplama'!$AM17=1,'EK DERS Ücret Hesaplama'!G17,"") ->  | J19: =IF('EK DERS Ücret Hesaplama'!$AM17=1,'EK DERS Ücret Hesaplama'!H17,"") ->  | K19: =IF('EK DERS Ücret Hesaplama'!$AM17=1,'EK DERS Ücret Hesaplama'!I17,"") ->  | L19: =IF('EK DERS Ücret Hesaplama'!$AM17=1,'EK DERS Ücret Hesaplama'!J17,"") ->  | M19: =IF('EK DERS Ücret Hesaplama'!$AM17=1,'EK DERS Ücret Hesaplama'!K17,"") ->  | N19: =IF('EK DERS Ücret Hesaplama'!$AM17=1,'EK DERS Ücret Hesaplama'!L17,"") ->  | O19: =IF('EK DERS Ücret Hesaplama'!$AM17=1,'EK DERS Ücret Hesaplama'!O17,"") ->  | P19: =IF('EK DERS Ücret Hesaplama'!$AM17=1,'EK DERS Ücret Hesaplama'!P17,"") ->  | Q19: =IF('EK DERS Ücret Hesaplama'!$AM17=1,'EK DERS Ücret Hesaplama'!Q17,"") ->  | R19: =IF('EK DERS Ücret Hesaplama'!$AM17=1,'EK DERS Ücret Hesaplama'!R17,"") ->  | S19: =IF('EK DERS Ücret Hesaplama'!$AM17=1,'EK DERS Ücret Hesaplama'!S17,"") ->  | T19: =IF('EK DERS Ücret Hesaplama'!$AM17=1,hesaplamalar!X14,"") ->  | U19: =IF('EK DERS Ücret Hesaplama'!$AM17=1,hesaplamalar!Y14,"") ->  | V19: =IF('EK DERS Ücret Hesaplama'!$AM17=1,hesaplamalar!Z14,"") ->  | W19: =IF('EK DERS Ücret Hesaplama'!$AM17=1,hesaplamalar!AA14,"") ->  | X19: =IF('EK DERS Ücret Hesaplama'!$AM17=1,hesaplamalar!AB14,"") ->  | Y19: =IF('EK DERS Ücret Hesaplama'!$AM17=1,hesaplamalar!AC14,"") ->  | Z19: =IF('EK DERS Ücret Hesaplama'!$AM17=1,hesaplamalar!AD14,"") ->  | AA19: =IF('EK DERS Ücret Hesaplama'!$AM17=1,hesaplamalar!AE14,"") ->  | AB19: =IF('EK DERS Ücret Hesaplama'!$AM17=1,hesaplamalar!AG14,"") ->  | AC19: =IF('EK DERS Ücret Hesaplama'!$AM17=1,hesaplamalar!AH14,"") ->  | AD19: =IF('EK DERS Ücret Hesaplama'!$AM17=1,'EK DERS Ücret Hesaplama'!AE17,"") ->  | AE19: =IF('EK DERS Ücret Hesaplama'!$AM17=1,'EK DERS Ücret Hesaplama'!AG17,"") ->  | AF19: =IF('EK DERS Ücret Hesaplama'!$AM17=1,'EK DERS Ücret Hesaplama'!AF17,"") ->  | AG19: =IF('EK DERS Ücret Hesaplama'!$AM17=1,'EK DERS Ücret Hesaplama'!AH17,"") ->  | AH19: =IF('EK DERS Ücret Hesaplama'!$AM17=1,'EK DERS Ücret Hesaplama'!AI17,"") ->  | AI19: =IF('EK DERS Ücret Hesaplama'!$AM17=1,'EK DERS Ücret Hesaplama'!AJ17,"") ->  | AJ19: =IF('EK DERS Ücret Hesaplama'!$AM17=1,'EK DERS Ücret Hesaplama'!AK17,"") ->  | AL19: 0
A20: =IF(AJ20="","",SUBTOTAL(103,$AJ$8:AJ20)) ->  | B20: =IF('EK DERS Ücret Hesaplama'!$AM18=1,'EK DERS Ücret Hesaplama'!B18,"") ->  | C20: =IF('EK DERS Ücret Hesaplama'!$AM18=1,'EK DERS Ücret Hesaplama'!C18,"") ->  | D20: =IF('EK DERS Ücret Hesaplama'!$AM18=1,IF('EK DERS Ücret Hesaplama'!D18="Ücretli Öğretmen","Ücretli Öğr.","Ücr.Öğr. (Emekli)"),"") ->  | E20: =IF('EK DERS Ücret Hesaplama'!$AM18=1,'EK DERS Ücret Hesaplama'!M18,"") ->  | F20: =IF('EK DERS Ücret Hesaplama'!$AM18=1,'EK DERS Ücret Hesaplama'!N18,"") ->  | G20: =IF('EK DERS Ücret Hesaplama'!$AM18=1,'EK DERS Ücret Hesaplama'!E18,"") ->  | H20: =IF('EK DERS Ücret Hesaplama'!$AM18=1,'EK DERS Ücret Hesaplama'!F18,"") ->  | I20: =IF('EK DERS Ücret Hesaplama'!$AM18=1,'EK DERS Ücret Hesaplama'!G18,"") ->  | J20: =IF('EK DERS Ücret Hesaplama'!$AM18=1,'EK DERS Ücret Hesaplama'!H18,"") ->  | K20: =IF('EK DERS Ücret Hesaplama'!$AM18=1,'EK DERS Ücret Hesaplama'!I18,"") ->  | L20: =IF('EK DERS Ücret Hesaplama'!$AM18=1,'EK DERS Ücret Hesaplama'!J18,"") ->  | M20: =IF('EK DERS Ücret Hesaplama'!$AM18=1,'EK DERS Ücret Hesaplama'!K18,"") ->  | N20: =IF('EK DERS Ücret Hesaplama'!$AM18=1,'EK DERS Ücret Hesaplama'!L18,"") ->  | O20: =IF('EK DERS Ücret Hesaplama'!$AM18=1,'EK DERS Ücret Hesaplama'!O18,"") ->  | P20: =IF('EK DERS Ücret Hesaplama'!$AM18=1,'EK DERS Ücret Hesaplama'!P18,"") ->  | Q20: =IF('EK DERS Ücret Hesaplama'!$AM18=1,'EK DERS Ücret Hesaplama'!Q18,"") ->  | R20: =IF('EK DERS Ücret Hesaplama'!$AM18=1,'EK DERS Ücret Hesaplama'!R18,"") ->  | S20: =IF('EK DERS Ücret Hesaplama'!$AM18=1,'EK DERS Ücret Hesaplama'!S18,"") ->  | T20: =IF('EK DERS Ücret Hesaplama'!$AM18=1,hesaplamalar!X15,"") ->  | U20: =IF('EK DERS Ücret Hesaplama'!$AM18=1,hesaplamalar!Y15,"") ->  | V20: =IF('EK DERS Ücret Hesaplama'!$AM18=1,hesaplamalar!Z15,"") ->  | W20: =IF('EK DERS Ücret Hesaplama'!$AM18=1,hesaplamalar!AA15,"") ->  | X20: =IF('EK DERS Ücret Hesaplama'!$AM18=1,hesaplamalar!AB15,"") ->  | Y20: =IF('EK DERS Ücret Hesaplama'!$AM18=1,hesaplamalar!AC15,"") ->  | Z20: =IF('EK DERS Ücret Hesaplama'!$AM18=1,hesaplamalar!AD15,"") ->  | AA20: =IF('EK DERS Ücret Hesaplama'!$AM18=1,hesaplamalar!AE15,"") ->  | AB20: =IF('EK DERS Ücret Hesaplama'!$AM18=1,hesaplamalar!AG15,"") ->  | AC20: =IF('EK DERS Ücret Hesaplama'!$AM18=1,hesaplamalar!AH15,"") ->  | AD20: =IF('EK DERS Ücret Hesaplama'!$AM18=1,'EK DERS Ücret Hesaplama'!AE18,"") ->  | AE20: =IF('EK DERS Ücret Hesaplama'!$AM18=1,'EK DERS Ücret Hesaplama'!AG18,"") ->  | AF20: =IF('EK DERS Ücret Hesaplama'!$AM18=1,'EK DERS Ücret Hesaplama'!AF18,"") ->  | AG20: =IF('EK DERS Ücret Hesaplama'!$AM18=1,'EK DERS Ücret Hesaplama'!AH18,"") ->  | AH20: =IF('EK DERS Ücret Hesaplama'!$AM18=1,'EK DERS Ücret Hesaplama'!AI18,"") ->  | AI20: =IF('EK DERS Ücret Hesaplama'!$AM18=1,'EK DERS Ücret Hesaplama'!AJ18,"") ->  | AJ20: =IF('EK DERS Ücret Hesaplama'!$AM18=1,'EK DERS Ücret Hesaplama'!AK18,"") ->  | AL20: 0
A21: =IF(AJ21="","",SUBTOTAL(103,$AJ$8:AJ21)) ->  | B21: =IF('EK DERS Ücret Hesaplama'!$AM19=1,'EK DERS Ücret Hesaplama'!B19,"") ->  | C21: =IF('EK DERS Ücret Hesaplama'!$AM19=1,'EK DERS Ücret Hesaplama'!C19,"") ->  | D21: =IF('EK DERS Ücret Hesaplama'!$AM19=1,IF('EK DERS Ücret Hesaplama'!D19="Ücretli Öğretmen","Ücretli Öğr.","Ücr.Öğr. (Emekli)"),"") ->  | E21: =IF('EK DERS Ücret Hesaplama'!$AM19=1,'EK DERS Ücret Hesaplama'!M19,"") ->  | F21: =IF('EK DERS Ücret Hesaplama'!$AM19=1,'EK DERS Ücret Hesaplama'!N19,"") ->  | G21: =IF('EK DERS Ücret Hesaplama'!$AM19=1,'EK DERS Ücret Hesaplama'!E19,"") ->  | H21: =IF('EK DERS Ücret Hesaplama'!$AM19=1,'EK DERS Ücret Hesaplama'!F19,"") ->  | I21: =IF('EK DERS Ücret Hesaplama'!$AM19=1,'EK DERS Ücret Hesaplama'!G19,"") ->  | J21: =IF('EK DERS Ücret Hesaplama'!$AM19=1,'EK DERS Ücret Hesaplama'!H19,"") ->  | K21: =IF('EK DERS Ücret Hesaplama'!$AM19=1,'EK DERS Ücret Hesaplama'!I19,"") ->  | L21: =IF('EK DERS Ücret Hesaplama'!$AM19=1,'EK DERS Ücret Hesaplama'!J19,"") ->  | M21: =IF('EK DERS Ücret Hesaplama'!$AM19=1,'EK DERS Ücret Hesaplama'!K19,"") ->  | N21: =IF('EK DERS Ücret Hesaplama'!$AM19=1,'EK DERS Ücret Hesaplama'!L19,"") ->  | O21: =IF('EK DERS Ücret Hesaplama'!$AM19=1,'EK DERS Ücret Hesaplama'!O19,"") ->  | P21: =IF('EK DERS Ücret Hesaplama'!$AM19=1,'EK DERS Ücret Hesaplama'!P19,"") ->  | Q21: =IF('EK DERS Ücret Hesaplama'!$AM19=1,'EK DERS Ücret Hesaplama'!Q19,"") ->  | R21: =IF('EK DERS Ücret Hesaplama'!$AM19=1,'EK DERS Ücret Hesaplama'!R19,"") ->  | S21: =IF('EK DERS Ücret Hesaplama'!$AM19=1,'EK DERS Ücret Hesaplama'!S19,"") ->  | T21: =IF('EK DERS Ücret Hesaplama'!$AM19=1,hesaplamalar!X16,"") ->  | U21: =IF('EK DERS Ücret Hesaplama'!$AM19=1,hesaplamalar!Y16,"") ->  | V21: =IF('EK DERS Ücret Hesaplama'!$AM19=1,hesaplamalar!Z16,"") ->  | W21: =IF('EK DERS Ücret Hesaplama'!$AM19=1,hesaplamalar!AA16,"") ->  | X21: =IF('EK DERS Ücret Hesaplama'!$AM19=1,hesaplamalar!AB16,"") ->  | Y21: =IF('EK DERS Ücret Hesaplama'!$AM19=1,hesaplamalar!AC16,"") ->  | Z21: =IF('EK DERS Ücret Hesaplama'!$AM19=1,hesaplamalar!AD16,"") ->  | AA21: =IF('EK DERS Ücret Hesaplama'!$AM19=1,hesaplamalar!AE16,"") ->  | AB21: =IF('EK DERS Ücret Hesaplama'!$AM19=1,hesaplamalar!AG16,"") ->  | AC21: =IF('EK DERS Ücret Hesaplama'!$AM19=1,hesaplamalar!AH16,"") ->  | AD21: =IF('EK DERS Ücret Hesaplama'!$AM19=1,'EK DERS Ücret Hesaplama'!AE19,"") ->  | AE21: =IF('EK DERS Ücret Hesaplama'!$AM19=1,'EK DERS Ücret Hesaplama'!AG19,"") ->  | AF21: =IF('EK DERS Ücret Hesaplama'!$AM19=1,'EK DERS Ücret Hesaplama'!AF19,"") ->  | AG21: =IF('EK DERS Ücret Hesaplama'!$AM19=1,'EK DERS Ücret Hesaplama'!AH19,"") ->  | AH21: =IF('EK DERS Ücret Hesaplama'!$AM19=1,'EK DERS Ücret Hesaplama'!AI19,"") ->  | AI21: =IF('EK DERS Ücret Hesaplama'!$AM19=1,'EK DERS Ücret Hesaplama'!AJ19,"") ->  | AJ21: =IF('EK DERS Ücret Hesaplama'!$AM19=1,'EK DERS Ücret Hesaplama'!AK19,"") ->  | AL21: 0
A22: =IF(AJ22="","",SUBTOTAL(103,$AJ$8:AJ22)) ->  | B22: =IF('EK DERS Ücret Hesaplama'!$AM20=1,'EK DERS Ücret Hesaplama'!B20,"") ->  | C22: =IF('EK DERS Ücret Hesaplama'!$AM20=1,'EK DERS Ücret Hesaplama'!C20,"") ->  | D22: =IF('EK DERS Ücret Hesaplama'!$AM20=1,IF('EK DERS Ücret Hesaplama'!D20="Ücretli Öğretmen","Ücretli Öğr.","Ücr.Öğr. (Emekli)"),"") ->  | E22: =IF('EK DERS Ücret Hesaplama'!$AM20=1,'EK DERS Ücret Hesaplama'!M20,"") ->  | F22: =IF('EK DERS Ücret Hesaplama'!$AM20=1,'EK DERS Ücret Hesaplama'!N20,"") ->  | G22: =IF('EK DERS Ücret Hesaplama'!$AM20=1,'EK DERS Ücret Hesaplama'!E20,"") ->  | H22: =IF('EK DERS Ücret Hesaplama'!$AM20=1,'EK DERS Ücret Hesaplama'!F20,"") ->  | I22: =IF('EK DERS Ücret Hesaplama'!$AM20=1,'EK DERS Ücret Hesaplama'!G20,"") ->  | J22: =IF('EK DERS Ücret Hesaplama'!$AM20=1,'EK DERS Ücret Hesaplama'!H20,"") ->  | K22: =IF('EK DERS Ücret Hesaplama'!$AM20=1,'EK DERS Ücret Hesaplama'!I20,"") ->  | L22: =IF('EK DERS Ücret Hesaplama'!$AM20=1,'EK DERS Ücret Hesaplama'!J20,"") ->  | M22: =IF('EK DERS Ücret Hesaplama'!$AM20=1,'EK DERS Ücret Hesaplama'!K20,"") ->  | N22: =IF('EK DERS Ücret Hesaplama'!$AM20=1,'EK DERS Ücret Hesaplama'!L20,"") ->  | O22: =IF('EK DERS Ücret Hesaplama'!$AM20=1,'EK DERS Ücret Hesaplama'!O20,"") ->  | P22: =IF('EK DERS Ücret Hesaplama'!$AM20=1,'EK DERS Ücret Hesaplama'!P20,"") ->  | Q22: =IF('EK DERS Ücret Hesaplama'!$AM20=1,'EK DERS Ücret Hesaplama'!Q20,"") ->  | R22: =IF('EK DERS Ücret Hesaplama'!$AM20=1,'EK DERS Ücret Hesaplama'!R20,"") ->  | S22: =IF('EK DERS Ücret Hesaplama'!$AM20=1,'EK DERS Ücret Hesaplama'!S20,"") ->  | T22: =IF('EK DERS Ücret Hesaplama'!$AM20=1,hesaplamalar!X17,"") ->  | U22: =IF('EK DERS Ücret Hesaplama'!$AM20=1,hesaplamalar!Y17,"") ->  | V22: =IF('EK DERS Ücret Hesaplama'!$AM20=1,hesaplamalar!Z17,"") ->  | W22: =IF('EK DERS Ücret Hesaplama'!$AM20=1,hesaplamalar!AA17,"") ->  | X22: =IF('EK DERS Ücret Hesaplama'!$AM20=1,hesaplamalar!AB17,"") ->  | Y22: =IF('EK DERS Ücret Hesaplama'!$AM20=1,hesaplamalar!AC17,"") ->  | Z22: =IF('EK DERS Ücret Hesaplama'!$AM20=1,hesaplamalar!AD17,"") ->  | AA22: =IF('EK DERS Ücret Hesaplama'!$AM20=1,hesaplamalar!AE17,"") ->  | AB22: =IF('EK DERS Ücret Hesaplama'!$AM20=1,hesaplamalar!AG17,"") ->  | AC22: =IF('EK DERS Ücret Hesaplama'!$AM20=1,hesaplamalar!AH17,"") ->  | AD22: =IF('EK DERS Ücret Hesaplama'!$AM20=1,'EK DERS Ücret Hesaplama'!AE20,"") ->  | AE22: =IF('EK DERS Ücret Hesaplama'!$AM20=1,'EK DERS Ücret Hesaplama'!AG20,"") ->  | AF22: =IF('EK DERS Ücret Hesaplama'!$AM20=1,'EK DERS Ücret Hesaplama'!AF20,"") ->  | AG22: =IF('EK DERS Ücret Hesaplama'!$AM20=1,'EK DERS Ücret Hesaplama'!AH20,"") ->  | AH22: =IF('EK DERS Ücret Hesaplama'!$AM20=1,'EK DERS Ücret Hesaplama'!AI20,"") ->  | AI22: =IF('EK DERS Ücret Hesaplama'!$AM20=1,'EK DERS Ücret Hesaplama'!AJ20,"") ->  | AJ22: =IF('EK DERS Ücret Hesaplama'!$AM20=1,'EK DERS Ücret Hesaplama'!AK20,"") ->  | AL22: 0
A23: =IF(AJ23="","",SUBTOTAL(103,$AJ$8:AJ23)) ->  | B23: =IF('EK DERS Ücret Hesaplama'!$AM21=1,'EK DERS Ücret Hesaplama'!B21,"") ->  | C23: =IF('EK DERS Ücret Hesaplama'!$AM21=1,'EK DERS Ücret Hesaplama'!C21,"") ->  | D23: =IF('EK DERS Ücret Hesaplama'!$AM21=1,IF('EK DERS Ücret Hesaplama'!D21="Ücretli Öğretmen","Ücretli Öğr.","Ücr.Öğr. (Emekli)"),"") ->  | E23: =IF('EK DERS Ücret Hesaplama'!$AM21=1,'EK DERS Ücret Hesaplama'!M21,"") ->  | F23: =IF('EK DERS Ücret Hesaplama'!$AM21=1,'EK DERS Ücret Hesaplama'!N21,"") ->  | G23: =IF('EK DERS Ücret Hesaplama'!$AM21=1,'EK DERS Ücret Hesaplama'!E21,"") ->  | H23: =IF('EK DERS Ücret Hesaplama'!$AM21=1,'EK DERS Ücret Hesaplama'!F21,"") ->  | I23: =IF('EK DERS Ücret Hesaplama'!$AM21=1,'EK DERS Ücret Hesaplama'!G21,"") ->  | J23: =IF('EK DERS Ücret Hesaplama'!$AM21=1,'EK DERS Ücret Hesaplama'!H21,"") ->  | K23: =IF('EK DERS Ücret Hesaplama'!$AM21=1,'EK DERS Ücret Hesaplama'!I21,"") ->  | L23: =IF('EK DERS Ücret Hesaplama'!$AM21=1,'EK DERS Ücret Hesaplama'!J21,"") ->  | M23: =IF('EK DERS Ücret Hesaplama'!$AM21=1,'EK DERS Ücret Hesaplama'!K21,"") ->  | N23: =IF('EK DERS Ücret Hesaplama'!$AM21=1,'EK DERS Ücret Hesaplama'!L21,"") ->  | O23: =IF('EK DERS Ücret Hesaplama'!$AM21=1,'EK DERS Ücret Hesaplama'!O21,"") ->  | P23: =IF('EK DERS Ücret Hesaplama'!$AM21=1,'EK DERS Ücret Hesaplama'!P21,"") ->  | Q23: =IF('EK DERS Ücret Hesaplama'!$AM21=1,'EK DERS Ücret Hesaplama'!Q21,"") ->  | R23: =IF('EK DERS Ücret Hesaplama'!$AM21=1,'EK DERS Ücret Hesaplama'!R21,"") ->  | S23: =IF('EK DERS Ücret Hesaplama'!$AM21=1,'EK DERS Ücret Hesaplama'!S21,"") ->  | T23: =IF('EK DERS Ücret Hesaplama'!$AM21=1,hesaplamalar!X18,"") ->  | U23: =IF('EK DERS Ücret Hesaplama'!$AM21=1,hesaplamalar!Y18,"") ->  | V23: =IF('EK DERS Ücret Hesaplama'!$AM21=1,hesaplamalar!Z18,"") ->  | W23: =IF('EK DERS Ücret Hesaplama'!$AM21=1,hesaplamalar!AA18,"") ->  | X23: =IF('EK DERS Ücret Hesaplama'!$AM21=1,hesaplamalar!AB18,"") ->  | Y23: =IF('EK DERS Ücret Hesaplama'!$AM21=1,hesaplamalar!AC18,"") ->  | Z23: =IF('EK DERS Ücret Hesaplama'!$AM21=1,hesaplamalar!AD18,"") ->  | AA23: =IF('EK DERS Ücret Hesaplama'!$AM21=1,hesaplamalar!AE18,"") ->  | AB23: =IF('EK DERS Ücret Hesaplama'!$AM21=1,hesaplamalar!AG18,"") ->  | AC23: =IF('EK DERS Ücret Hesaplama'!$AM21=1,hesaplamalar!AH18,"") ->  | AD23: =IF('EK DERS Ücret Hesaplama'!$AM21=1,'EK DERS Ücret Hesaplama'!AE21,"") ->  | AE23: =IF('EK DERS Ücret Hesaplama'!$AM21=1,'EK DERS Ücret Hesaplama'!AG21,"") ->  | AF23: =IF('EK DERS Ücret Hesaplama'!$AM21=1,'EK DERS Ücret Hesaplama'!AF21,"") ->  | AG23: =IF('EK DERS Ücret Hesaplama'!$AM21=1,'EK DERS Ücret Hesaplama'!AH21,"") ->  | AH23: =IF('EK DERS Ücret Hesaplama'!$AM21=1,'EK DERS Ücret Hesaplama'!AI21,"") ->  | AI23: =IF('EK DERS Ücret Hesaplama'!$AM21=1,'EK DERS Ücret Hesaplama'!AJ21,"") ->  | AJ23: =IF('EK DERS Ücret Hesaplama'!$AM21=1,'EK DERS Ücret Hesaplama'!AK21,"") ->  | AL23: 0
A24: =IF(AJ24="","",SUBTOTAL(103,$AJ$8:AJ24)) ->  | B24: =IF('EK DERS Ücret Hesaplama'!$AM22=1,'EK DERS Ücret Hesaplama'!B22,"") ->  | C24: =IF('EK DERS Ücret Hesaplama'!$AM22=1,'EK DERS Ücret Hesaplama'!C22,"") ->  | D24: =IF('EK DERS Ücret Hesaplama'!$AM22=1,IF('EK DERS Ücret Hesaplama'!D22="Ücretli Öğretmen","Ücretli Öğr.","Ücr.Öğr. (Emekli)"),"") ->  | E24: =IF('EK DERS Ücret Hesaplama'!$AM22=1,'EK DERS Ücret Hesaplama'!M22,"") ->  | F24: =IF('EK DERS Ücret Hesaplama'!$AM22=1,'EK DERS Ücret Hesaplama'!N22,"") ->  | G24: =IF('EK DERS Ücret Hesaplama'!$AM22=1,'EK DERS Ücret Hesaplama'!E22,"") ->  | H24: =IF('EK DERS Ücret Hesaplama'!$AM22=1,'EK DERS Ücret Hesaplama'!F22,"") ->  | I24: =IF('EK DERS Ücret Hesaplama'!$AM22=1,'EK DERS Ücret Hesaplama'!G22,"") ->  | J24: =IF('EK DERS Ücret Hesaplama'!$AM22=1,'EK DERS Ücret Hesaplama'!H22,"") ->  | K24: =IF('EK DERS Ücret Hesaplama'!$AM22=1,'EK DERS Ücret Hesaplama'!I22,"") ->  | L24: =IF('EK DERS Ücret Hesaplama'!$AM22=1,'EK DERS Ücret Hesaplama'!J22,"") ->  | M24: =IF('EK DERS Ücret Hesaplama'!$AM22=1,'EK DERS Ücret Hesaplama'!K22,"") ->  | N24: =IF('EK DERS Ücret Hesaplama'!$AM22=1,'EK DERS Ücret Hesaplama'!L22,"") ->  | O24: =IF('EK DERS Ücret Hesaplama'!$AM22=1,'EK DERS Ücret Hesaplama'!O22,"") ->  | P24: =IF('EK DERS Ücret Hesaplama'!$AM22=1,'EK DERS Ücret Hesaplama'!P22,"") ->  | Q24: =IF('EK DERS Ücret Hesaplama'!$AM22=1,'EK DERS Ücret Hesaplama'!Q22,"") ->  | R24: =IF('EK DERS Ücret Hesaplama'!$AM22=1,'EK DERS Ücret Hesaplama'!R22,"") ->  | S24: =IF('EK DERS Ücret Hesaplama'!$AM22=1,'EK DERS Ücret Hesaplama'!S22,"") ->  | T24: =IF('EK DERS Ücret Hesaplama'!$AM22=1,hesaplamalar!X19,"") ->  | U24: =IF('EK DERS Ücret Hesaplama'!$AM22=1,hesaplamalar!Y19,"") ->  | V24: =IF('EK DERS Ücret Hesaplama'!$AM22=1,hesaplamalar!Z19,"") ->  | W24: =IF('EK DERS Ücret Hesaplama'!$AM22=1,hesaplamalar!AA19,"") ->  | X24: =IF('EK DERS Ücret Hesaplama'!$AM22=1,hesaplamalar!AB19,"") ->  | Y24: =IF('EK DERS Ücret Hesaplama'!$AM22=1,hesaplamalar!AC19,"") ->  | Z24: =IF('EK DERS Ücret Hesaplama'!$AM22=1,hesaplamalar!AD19,"") ->  | AA24: =IF('EK DERS Ücret Hesaplama'!$AM22=1,hesaplamalar!AE19,"") ->  | AB24: =IF('EK DERS Ücret Hesaplama'!$AM22=1,hesaplamalar!AG19,"") ->  | AC24: =IF('EK DERS Ücret Hesaplama'!$AM22=1,hesaplamalar!AH19,"") ->  | AD24: =IF('EK DERS Ücret Hesaplama'!$AM22=1,'EK DERS Ücret Hesaplama'!AE22,"") ->  | AE24: =IF('EK DERS Ücret Hesaplama'!$AM22=1,'EK DERS Ücret Hesaplama'!AG22,"") ->  | AF24: =IF('EK DERS Ücret Hesaplama'!$AM22=1,'EK DERS Ücret Hesaplama'!AF22,"") ->  | AG24: =IF('EK DERS Ücret Hesaplama'!$AM22=1,'EK DERS Ücret Hesaplama'!AH22,"") ->  | AH24: =IF('EK DERS Ücret Hesaplama'!$AM22=1,'EK DERS Ücret Hesaplama'!AI22,"") ->  | AI24: =IF('EK DERS Ücret Hesaplama'!$AM22=1,'EK DERS Ücret Hesaplama'!AJ22,"") ->  | AJ24: =IF('EK DERS Ücret Hesaplama'!$AM22=1,'EK DERS Ücret Hesaplama'!AK22,"") ->  | AL24: 0
A25: =IF(AJ25="","",SUBTOTAL(103,$AJ$8:AJ25)) ->  | B25: =IF('EK DERS Ücret Hesaplama'!$AM23=1,'EK DERS Ücret Hesaplama'!B23,"") ->  | C25: =IF('EK DERS Ücret Hesaplama'!$AM23=1,'EK DERS Ücret Hesaplama'!C23,"") ->  | D25: =IF('EK DERS Ücret Hesaplama'!$AM23=1,IF('EK DERS Ücret Hesaplama'!D23="Ücretli Öğretmen","Ücretli Öğr.","Ücr.Öğr. (Emekli)"),"") ->  | E25: =IF('EK DERS Ücret Hesaplama'!$AM23=1,'EK DERS Ücret Hesaplama'!M23,"") ->  | F25: =IF('EK DERS Ücret Hesaplama'!$AM23=1,'EK DERS Ücret Hesaplama'!N23,"") ->  | G25: =IF('EK DERS Ücret Hesaplama'!$AM23=1,'EK DERS Ücret Hesaplama'!E23,"") ->  | H25: =IF('EK DERS Ücret Hesaplama'!$AM23=1,'EK DERS Ücret Hesaplama'!F23,"") ->  | I25: =IF('EK DERS Ücret Hesaplama'!$AM23=1,'EK DERS Ücret Hesaplama'!G23,"") ->  | J25: =IF('EK DERS Ücret Hesaplama'!$AM23=1,'EK DERS Ücret Hesaplama'!H23,"") ->  | K25: =IF('EK DERS Ücret Hesaplama'!$AM23=1,'EK DERS Ücret Hesaplama'!I23,"") ->  | L25: =IF('EK DERS Ücret Hesaplama'!$AM23=1,'EK DERS Ücret Hesaplama'!J23,"") ->  | M25: =IF('EK DERS Ücret Hesaplama'!$AM23=1,'EK DERS Ücret Hesaplama'!K23,"") ->  | N25: =IF('EK DERS Ücret Hesaplama'!$AM23=1,'EK DERS Ücret Hesaplama'!L23,"") ->  | O25: =IF('EK DERS Ücret Hesaplama'!$AM23=1,'EK DERS Ücret Hesaplama'!O23,"") ->  | P25: =IF('EK DERS Ücret Hesaplama'!$AM23=1,'EK DERS Ücret Hesaplama'!P23,"") ->  | Q25: =IF('EK DERS Ücret Hesaplama'!$AM23=1,'EK DERS Ücret Hesaplama'!Q23,"") ->  | R25: =IF('EK DERS Ücret Hesaplama'!$AM23=1,'EK DERS Ücret Hesaplama'!R23,"") ->  | S25: =IF('EK DERS Ücret Hesaplama'!$AM23=1,'EK DERS Ücret Hesaplama'!S23,"") ->  | T25: =IF('EK DERS Ücret Hesaplama'!$AM23=1,hesaplamalar!X20,"") ->  | U25: =IF('EK DERS Ücret Hesaplama'!$AM23=1,hesaplamalar!Y20,"") ->  | V25: =IF('EK DERS Ücret Hesaplama'!$AM23=1,hesaplamalar!Z20,"") ->  | W25: =IF('EK DERS Ücret Hesaplama'!$AM23=1,hesaplamalar!AA20,"") ->  | X25: =IF('EK DERS Ücret Hesaplama'!$AM23=1,hesaplamalar!AB20,"") ->  | Y25: =IF('EK DERS Ücret Hesaplama'!$AM23=1,hesaplamalar!AC20,"") ->  | Z25: =IF('EK DERS Ücret Hesaplama'!$AM23=1,hesaplamalar!AD20,"") ->  | AA25: =IF('EK DERS Ücret Hesaplama'!$AM23=1,hesaplamalar!AE20,"") ->  | AB25: =IF('EK DERS Ücret Hesaplama'!$AM23=1,hesaplamalar!AG20,"") ->  | AC25: =IF('EK DERS Ücret Hesaplama'!$AM23=1,hesaplamalar!AH20,"") ->  | AD25: =IF('EK DERS Ücret Hesaplama'!$AM23=1,'EK DERS Ücret Hesaplama'!AE23,"") ->  | AE25: =IF('EK DERS Ücret Hesaplama'!$AM23=1,'EK DERS Ücret Hesaplama'!AG23,"") ->  | AF25: =IF('EK DERS Ücret Hesaplama'!$AM23=1,'EK DERS Ücret Hesaplama'!AF23,"") ->  | AG25: =IF('EK DERS Ücret Hesaplama'!$AM23=1,'EK DERS Ücret Hesaplama'!AH23,"") ->  | AH25: =IF('EK DERS Ücret Hesaplama'!$AM23=1,'EK DERS Ücret Hesaplama'!AI23,"") ->  | AI25: =IF('EK DERS Ücret Hesaplama'!$AM23=1,'EK DERS Ücret Hesaplama'!AJ23,"") ->  | AJ25: =IF('EK DERS Ücret Hesaplama'!$AM23=1,'EK DERS Ücret Hesaplama'!AK23,"") ->  | AL25: 0
A26: =IF(AJ26="","",SUBTOTAL(103,$AJ$8:AJ26)) ->  | B26: =IF('EK DERS Ücret Hesaplama'!$AM24=1,'EK DERS Ücret Hesaplama'!B24,"") ->  | C26: =IF('EK DERS Ücret Hesaplama'!$AM24=1,'EK DERS Ücret Hesaplama'!C24,"") ->  | D26: =IF('EK DERS Ücret Hesaplama'!$AM24=1,IF('EK DERS Ücret Hesaplama'!D24="Ücretli Öğretmen","Ücretli Öğr.","Ücr.Öğr. (Emekli)"),"") ->  | E26: =IF('EK DERS Ücret Hesaplama'!$AM24=1,'EK DERS Ücret Hesaplama'!M24,"") ->  | F26: =IF('EK DERS Ücret Hesaplama'!$AM24=1,'EK DERS Ücret Hesaplama'!N24,"") ->  | G26: =IF('EK DERS Ücret Hesaplama'!$AM24=1,'EK DERS Ücret Hesaplama'!E24,"") ->  | H26: =IF('EK DERS Ücret Hesaplama'!$AM24=1,'EK DERS Ücret Hesaplama'!F24,"") ->  | I26: =IF('EK DERS Ücret Hesaplama'!$AM24=1,'EK DERS Ücret Hesaplama'!G24,"") ->  | J26: =IF('EK DERS Ücret Hesaplama'!$AM24=1,'EK DERS Ücret Hesaplama'!H24,"") ->  | K26: =IF('EK DERS Ücret Hesaplama'!$AM24=1,'EK DERS Ücret Hesaplama'!I24,"") ->  | L26: =IF('EK DERS Ücret Hesaplama'!$AM24=1,'EK DERS Ücret Hesaplama'!J24,"") ->  | M26: =IF('EK DERS Ücret Hesaplama'!$AM24=1,'EK DERS Ücret Hesaplama'!K24,"") ->  | N26: =IF('EK DERS Ücret Hesaplama'!$AM24=1,'EK DERS Ücret Hesaplama'!L24,"") ->  | O26: =IF('EK DERS Ücret Hesaplama'!$AM24=1,'EK DERS Ücret Hesaplama'!O24,"") ->  | P26: =IF('EK DERS Ücret Hesaplama'!$AM24=1,'EK DERS Ücret Hesaplama'!P24,"") ->  | Q26: =IF('EK DERS Ücret Hesaplama'!$AM24=1,'EK DERS Ücret Hesaplama'!Q24,"") ->  | R26: =IF('EK DERS Ücret Hesaplama'!$AM24=1,'EK DERS Ücret Hesaplama'!R24,"") ->  | S26: =IF('EK DERS Ücret Hesaplama'!$AM24=1,'EK DERS Ücret Hesaplama'!S24,"") ->  | T26: =IF('EK DERS Ücret Hesaplama'!$AM24=1,hesaplamalar!X21,"") ->  | U26: =IF('EK DERS Ücret Hesaplama'!$AM24=1,hesaplamalar!Y21,"") ->  | V26: =IF('EK DERS Ücret Hesaplama'!$AM24=1,hesaplamalar!Z21,"") ->  | W26: =IF('EK DERS Ücret Hesaplama'!$AM24=1,hesaplamalar!AA21,"") ->  | X26: =IF('EK DERS Ücret Hesaplama'!$AM24=1,hesaplamalar!AB21,"") ->  | Y26: =IF('EK DERS Ücret Hesaplama'!$AM24=1,hesaplamalar!AC21,"") ->  | Z26: =IF('EK DERS Ücret Hesaplama'!$AM24=1,hesaplamalar!AD21,"") ->  | AA26: =IF('EK DERS Ücret Hesaplama'!$AM24=1,hesaplamalar!AE21,"") ->  | AB26: =IF('EK DERS Ücret Hesaplama'!$AM24=1,hesaplamalar!AG21,"") ->  | AC26: =IF('EK DERS Ücret Hesaplama'!$AM24=1,hesaplamalar!AH21,"") ->  | AD26: =IF('EK DERS Ücret Hesaplama'!$AM24=1,'EK DERS Ücret Hesaplama'!AE24,"") ->  | AE26: =IF('EK DERS Ücret Hesaplama'!$AM24=1,'EK DERS Ücret Hesaplama'!AG24,"") ->  | AF26: =IF('EK DERS Ücret Hesaplama'!$AM24=1,'EK DERS Ücret Hesaplama'!AF24,"") ->  | AG26: =IF('EK DERS Ücret Hesaplama'!$AM24=1,'EK DERS Ücret Hesaplama'!AH24,"") ->  | AH26: =IF('EK DERS Ücret Hesaplama'!$AM24=1,'EK DERS Ücret Hesaplama'!AI24,"") ->  | AI26: =IF('EK DERS Ücret Hesaplama'!$AM24=1,'EK DERS Ücret Hesaplama'!AJ24,"") ->  | AJ26: =IF('EK DERS Ücret Hesaplama'!$AM24=1,'EK DERS Ücret Hesaplama'!AK24,"") ->  | AL26: 0
A27: =IF(AJ27="","",SUBTOTAL(103,$AJ$8:AJ27)) ->  | B27: =IF('EK DERS Ücret Hesaplama'!$AM25=1,'EK DERS Ücret Hesaplama'!B25,"") ->  | C27: =IF('EK DERS Ücret Hesaplama'!$AM25=1,'EK DERS Ücret Hesaplama'!C25,"") ->  | D27: =IF('EK DERS Ücret Hesaplama'!$AM25=1,IF('EK DERS Ücret Hesaplama'!D25="Ücretli Öğretmen","Ücretli Öğr.","Ücr.Öğr. (Emekli)"),"") ->  | E27: =IF('EK DERS Ücret Hesaplama'!$AM25=1,'EK DERS Ücret Hesaplama'!M25,"") ->  | F27: =IF('EK DERS Ücret Hesaplama'!$AM25=1,'EK DERS Ücret Hesaplama'!N25,"") ->  | G27: =IF('EK DERS Ücret Hesaplama'!$AM25=1,'EK DERS Ücret Hesaplama'!E25,"") ->  | H27: =IF('EK DERS Ücret Hesaplama'!$AM25=1,'EK DERS Ücret Hesaplama'!F25,"") ->  | I27: =IF('EK DERS Ücret Hesaplama'!$AM25=1,'EK DERS Ücret Hesaplama'!G25,"") ->  | J27: =IF('EK DERS Ücret Hesaplama'!$AM25=1,'EK DERS Ücret Hesaplama'!H25,"") ->  | K27: =IF('EK DERS Ücret Hesaplama'!$AM25=1,'EK DERS Ücret Hesaplama'!I25,"") ->  | L27: =IF('EK DERS Ücret Hesaplama'!$AM25=1,'EK DERS Ücret Hesaplama'!J25,"") ->  | M27: =IF('EK DERS Ücret Hesaplama'!$AM25=1,'EK DERS Ücret Hesaplama'!K25,"") ->  | N27: =IF('EK DERS Ücret Hesaplama'!$AM25=1,'EK DERS Ücret Hesaplama'!L25,"") ->  | O27: =IF('EK DERS Ücret Hesaplama'!$AM25=1,'EK DERS Ücret Hesaplama'!O25,"") ->  | P27: =IF('EK DERS Ücret Hesaplama'!$AM25=1,'EK DERS Ücret Hesaplama'!P25,"") ->  | Q27: =IF('EK DERS Ücret Hesaplama'!$AM25=1,'EK DERS Ücret Hesaplama'!Q25,"") ->  | R27: =IF('EK DERS Ücret Hesaplama'!$AM25=1,'EK DERS Ücret Hesaplama'!R25,"") ->  | S27: =IF('EK DERS Ücret Hesaplama'!$AM25=1,'EK DERS Ücret Hesaplama'!S25,"") ->  | T27: =IF('EK DERS Ücret Hesaplama'!$AM25=1,hesaplamalar!X22,"") ->  | U27: =IF('EK DERS Ücret Hesaplama'!$AM25=1,hesaplamalar!Y22,"") ->  | V27: =IF('EK DERS Ücret Hesaplama'!$AM25=1,hesaplamalar!Z22,"") ->  | W27: =IF('EK DERS Ücret Hesaplama'!$AM25=1,hesaplamalar!AA22,"") ->  | X27: =IF('EK DERS Ücret Hesaplama'!$AM25=1,hesaplamalar!AB22,"") ->  | Y27: =IF('EK DERS Ücret Hesaplama'!$AM25=1,hesaplamalar!AC22,"") ->  | Z27: =IF('EK DERS Ücret Hesaplama'!$AM25=1,hesaplamalar!AD22,"") ->  | AA27: =IF('EK DERS Ücret Hesaplama'!$AM25=1,hesaplamalar!AE22,"") ->  | AB27: =IF('EK DERS Ücret Hesaplama'!$AM25=1,hesaplamalar!AG22,"") ->  | AC27: =IF('EK DERS Ücret Hesaplama'!$AM25=1,hesaplamalar!AH22,"") ->  | AD27: =IF('EK DERS Ücret Hesaplama'!$AM25=1,'EK DERS Ücret Hesaplama'!AE25,"") ->  | AE27: =IF('EK DERS Ücret Hesaplama'!$AM25=1,'EK DERS Ücret Hesaplama'!AG25,"") ->  | AF27: =IF('EK DERS Ücret Hesaplama'!$AM25=1,'EK DERS Ücret Hesaplama'!AF25,"") ->  | AG27: =IF('EK DERS Ücret Hesaplama'!$AM25=1,'EK DERS Ücret Hesaplama'!AH25,"") ->  | AH27: =IF('EK DERS Ücret Hesaplama'!$AM25=1,'EK DERS Ücret Hesaplama'!AI25,"") ->  | AI27: =IF('EK DERS Ücret Hesaplama'!$AM25=1,'EK DERS Ücret Hesaplama'!AJ25,"") ->  | AJ27: =IF('EK DERS Ücret Hesaplama'!$AM25=1,'EK DERS Ücret Hesaplama'!AK25,"") ->  | AL27: 0
A28: =IF(AJ28="","",SUBTOTAL(103,$AJ$8:AJ28)) ->  | B28: =IF('EK DERS Ücret Hesaplama'!$AM26=1,'EK DERS Ücret Hesaplama'!B26,"") ->  | C28: =IF('EK DERS Ücret Hesaplama'!$AM26=1,'EK DERS Ücret Hesaplama'!C26,"") ->  | D28: =IF('EK DERS Ücret Hesaplama'!$AM26=1,IF('EK DERS Ücret Hesaplama'!D26="Ücretli Öğretmen","Ücretli Öğr.","Ücr.Öğr. (Emekli)"),"") ->  | E28: =IF('EK DERS Ücret Hesaplama'!$AM26=1,'EK DERS Ücret Hesaplama'!M26,"") ->  | F28: =IF('EK DERS Ücret Hesaplama'!$AM26=1,'EK DERS Ücret Hesaplama'!N26,"") ->  | G28: =IF('EK DERS Ücret Hesaplama'!$AM26=1,'EK DERS Ücret Hesaplama'!E26,"") ->  | H28: =IF('EK DERS Ücret Hesaplama'!$AM26=1,'EK DERS Ücret Hesaplama'!F26,"") ->  | I28: =IF('EK DERS Ücret Hesaplama'!$AM26=1,'EK DERS Ücret Hesaplama'!G26,"") ->  | J28: =IF('EK DERS Ücret Hesaplama'!$AM26=1,'EK DERS Ücret Hesaplama'!H26,"") ->  | K28: =IF('EK DERS Ücret Hesaplama'!$AM26=1,'EK DERS Ücret Hesaplama'!I26,"") ->  | L28: =IF('EK DERS Ücret Hesaplama'!$AM26=1,'EK DERS Ücret Hesaplama'!J26,"") ->  | M28: =IF('EK DERS Ücret Hesaplama'!$AM26=1,'EK DERS Ücret Hesaplama'!K26,"") ->  | N28: =IF('EK DERS Ücret Hesaplama'!$AM26=1,'EK DERS Ücret Hesaplama'!L26,"") ->  | O28: =IF('EK DERS Ücret Hesaplama'!$AM26=1,'EK DERS Ücret Hesaplama'!O26,"") ->  | P28: =IF('EK DERS Ücret Hesaplama'!$AM26=1,'EK DERS Ücret Hesaplama'!P26,"") ->  | Q28: =IF('EK DERS Ücret Hesaplama'!$AM26=1,'EK DERS Ücret Hesaplama'!Q26,"") ->  | R28: =IF('EK DERS Ücret Hesaplama'!$AM26=1,'EK DERS Ücret Hesaplama'!R26,"") ->  | S28: =IF('EK DERS Ücret Hesaplama'!$AM26=1,'EK DERS Ücret Hesaplama'!S26,"") ->  | T28: =IF('EK DERS Ücret Hesaplama'!$AM26=1,hesaplamalar!X23,"") ->  | U28: =IF('EK DERS Ücret Hesaplama'!$AM26=1,hesaplamalar!Y23,"") ->  | V28: =IF('EK DERS Ücret Hesaplama'!$AM26=1,hesaplamalar!Z23,"") ->  | W28: =IF('EK DERS Ücret Hesaplama'!$AM26=1,hesaplamalar!AA23,"") ->  | X28: =IF('EK DERS Ücret Hesaplama'!$AM26=1,hesaplamalar!AB23,"") ->  | Y28: =IF('EK DERS Ücret Hesaplama'!$AM26=1,hesaplamalar!AC23,"") ->  | Z28: =IF('EK DERS Ücret Hesaplama'!$AM26=1,hesaplamalar!AD23,"") ->  | AA28: =IF('EK DERS Ücret Hesaplama'!$AM26=1,hesaplamalar!AE23,"") ->  | AB28: =IF('EK DERS Ücret Hesaplama'!$AM26=1,hesaplamalar!AG23,"") ->  | AC28: =IF('EK DERS Ücret Hesaplama'!$AM26=1,hesaplamalar!AH23,"") ->  | AD28: =IF('EK DERS Ücret Hesaplama'!$AM26=1,'EK DERS Ücret Hesaplama'!AE26,"") ->  | AE28: =IF('EK DERS Ücret Hesaplama'!$AM26=1,'EK DERS Ücret Hesaplama'!AG26,"") ->  | AF28: =IF('EK DERS Ücret Hesaplama'!$AM26=1,'EK DERS Ücret Hesaplama'!AF26,"") ->  | AG28: =IF('EK DERS Ücret Hesaplama'!$AM26=1,'EK DERS Ücret Hesaplama'!AH26,"") ->  | AH28: =IF('EK DERS Ücret Hesaplama'!$AM26=1,'EK DERS Ücret Hesaplama'!AI26,"") ->  | AI28: =IF('EK DERS Ücret Hesaplama'!$AM26=1,'EK DERS Ücret Hesaplama'!AJ26,"") ->  | AJ28: =IF('EK DERS Ücret Hesaplama'!$AM26=1,'EK DERS Ücret Hesaplama'!AK26,"") ->  | AL28: 0
A29: =IF(AJ29="","",SUBTOTAL(103,$AJ$8:AJ29)) ->  | B29: =IF('EK DERS Ücret Hesaplama'!$AM27=1,'EK DERS Ücret Hesaplama'!B27,"") ->  | C29: =IF('EK DERS Ücret Hesaplama'!$AM27=1,'EK DERS Ücret Hesaplama'!C27,"") ->  | D29: =IF('EK DERS Ücret Hesaplama'!$AM27=1,IF('EK DERS Ücret Hesaplama'!D27="Ücretli Öğretmen","Ücretli Öğr.","Ücr.Öğr. (Emekli)"),"") ->  | E29: =IF('EK DERS Ücret Hesaplama'!$AM27=1,'EK DERS Ücret Hesaplama'!M27,"") ->  | F29: =IF('EK DERS Ücret Hesaplama'!$AM27=1,'EK DERS Ücret Hesaplama'!N27,"") ->  | G29: =IF('EK DERS Ücret Hesaplama'!$AM27=1,'EK DERS Ücret Hesaplama'!E27,"") ->  | H29: =IF('EK DERS Ücret Hesaplama'!$AM27=1,'EK DERS Ücret Hesaplama'!F27,"") ->  | I29: =IF('EK DERS Ücret Hesaplama'!$AM27=1,'EK DERS Ücret Hesaplama'!G27,"") ->  | J29: =IF('EK DERS Ücret Hesaplama'!$AM27=1,'EK DERS Ücret Hesaplama'!H27,"") ->  | K29: =IF('EK DERS Ücret Hesaplama'!$AM27=1,'EK DERS Ücret Hesaplama'!I27,"") ->  | L29: =IF('EK DERS Ücret Hesaplama'!$AM27=1,'EK DERS Ücret Hesaplama'!J27,"") ->  | M29: =IF('EK DERS Ücret Hesaplama'!$AM27=1,'EK DERS Ücret Hesaplama'!K27,"") ->  | N29: =IF('EK DERS Ücret Hesaplama'!$AM27=1,'EK DERS Ücret Hesaplama'!L27,"") ->  | O29: =IF('EK DERS Ücret Hesaplama'!$AM27=1,'EK DERS Ücret Hesaplama'!O27,"") ->  | P29: =IF('EK DERS Ücret Hesaplama'!$AM27=1,'EK DERS Ücret Hesaplama'!P27,"") ->  | Q29: =IF('EK DERS Ücret Hesaplama'!$AM27=1,'EK DERS Ücret Hesaplama'!Q27,"") ->  | R29: =IF('EK DERS Ücret Hesaplama'!$AM27=1,'EK DERS Ücret Hesaplama'!R27,"") ->  | S29: =IF('EK DERS Ücret Hesaplama'!$AM27=1,'EK DERS Ücret Hesaplama'!S27,"") ->  | T29: =IF('EK DERS Ücret Hesaplama'!$AM27=1,hesaplamalar!X24,"") ->  | U29: =IF('EK DERS Ücret Hesaplama'!$AM27=1,hesaplamalar!Y24,"") ->  | V29: =IF('EK DERS Ücret Hesaplama'!$AM27=1,hesaplamalar!Z24,"") ->  | W29: =IF('EK DERS Ücret Hesaplama'!$AM27=1,hesaplamalar!AA24,"") ->  | X29: =IF('EK DERS Ücret Hesaplama'!$AM27=1,hesaplamalar!AB24,"") ->  | Y29: =IF('EK DERS Ücret Hesaplama'!$AM27=1,hesaplamalar!AC24,"") ->  | Z29: =IF('EK DERS Ücret Hesaplama'!$AM27=1,hesaplamalar!AD24,"") ->  | AA29: =IF('EK DERS Ücret Hesaplama'!$AM27=1,hesaplamalar!AE24,"") ->  | AB29: =IF('EK DERS Ücret Hesaplama'!$AM27=1,hesaplamalar!AG24,"") ->  | AC29: =IF('EK DERS Ücret Hesaplama'!$AM27=1,hesaplamalar!AH24,"") ->  | AD29: =IF('EK DERS Ücret Hesaplama'!$AM27=1,'EK DERS Ücret Hesaplama'!AE27,"") ->  | AE29: =IF('EK DERS Ücret Hesaplama'!$AM27=1,'EK DERS Ücret Hesaplama'!AG27,"") ->  | AF29: =IF('EK DERS Ücret Hesaplama'!$AM27=1,'EK DERS Ücret Hesaplama'!AF27,"") ->  | AG29: =IF('EK DERS Ücret Hesaplama'!$AM27=1,'EK DERS Ücret Hesaplama'!AH27,"") ->  | AH29: =IF('EK DERS Ücret Hesaplama'!$AM27=1,'EK DERS Ücret Hesaplama'!AI27,"") ->  | AI29: =IF('EK DERS Ücret Hesaplama'!$AM27=1,'EK DERS Ücret Hesaplama'!AJ27,"") ->  | AJ29: =IF('EK DERS Ücret Hesaplama'!$AM27=1,'EK DERS Ücret Hesaplama'!AK27,"") ->  | AL29: 0
A30: =IF(AJ30="","",SUBTOTAL(103,$AJ$8:AJ30)) ->  | B30: =IF('EK DERS Ücret Hesaplama'!$AM28=1,'EK DERS Ücret Hesaplama'!B28,"") ->  | C30: =IF('EK DERS Ücret Hesaplama'!$AM28=1,'EK DERS Ücret Hesaplama'!C28,"") ->  | D30: =IF('EK DERS Ücret Hesaplama'!$AM28=1,IF('EK DERS Ücret Hesaplama'!D28="Ücretli Öğretmen","Ücretli Öğr.","Ücr.Öğr. (Emekli)"),"") ->  | E30: =IF('EK DERS Ücret Hesaplama'!$AM28=1,'EK DERS Ücret Hesaplama'!M28,"") ->  | F30: =IF('EK DERS Ücret Hesaplama'!$AM28=1,'EK DERS Ücret Hesaplama'!N28,"") ->  | G30: =IF('EK DERS Ücret Hesaplama'!$AM28=1,'EK DERS Ücret Hesaplama'!E28,"") ->  | H30: =IF('EK DERS Ücret Hesaplama'!$AM28=1,'EK DERS Ücret Hesaplama'!F28,"") ->  | I30: =IF('EK DERS Ücret Hesaplama'!$AM28=1,'EK DERS Ücret Hesaplama'!G28,"") ->  | J30: =IF('EK DERS Ücret Hesaplama'!$AM28=1,'EK DERS Ücret Hesaplama'!H28,"") ->  | K30: =IF('EK DERS Ücret Hesaplama'!$AM28=1,'EK DERS Ücret Hesaplama'!I28,"") ->  | L30: =IF('EK DERS Ücret Hesaplama'!$AM28=1,'EK DERS Ücret Hesaplama'!J28,"") ->  | M30: =IF('EK DERS Ücret Hesaplama'!$AM28=1,'EK DERS Ücret Hesaplama'!K28,"") ->  | N30: =IF('EK DERS Ücret Hesaplama'!$AM28=1,'EK DERS Ücret Hesaplama'!L28,"") ->  | O30: =IF('EK DERS Ücret Hesaplama'!$AM28=1,'EK DERS Ücret Hesaplama'!O28,"") ->  | P30: =IF('EK DERS Ücret Hesaplama'!$AM28=1,'EK DERS Ücret Hesaplama'!P28,"") ->  | Q30: =IF('EK DERS Ücret Hesaplama'!$AM28=1,'EK DERS Ücret Hesaplama'!Q28,"") ->  | R30: =IF('EK DERS Ücret Hesaplama'!$AM28=1,'EK DERS Ücret Hesaplama'!R28,"") ->  | S30: =IF('EK DERS Ücret Hesaplama'!$AM28=1,'EK DERS Ücret Hesaplama'!S28,"") ->  | T30: =IF('EK DERS Ücret Hesaplama'!$AM28=1,hesaplamalar!X25,"") ->  | U30: =IF('EK DERS Ücret Hesaplama'!$AM28=1,hesaplamalar!Y25,"") ->  | V30: =IF('EK DERS Ücret Hesaplama'!$AM28=1,hesaplamalar!Z25,"") ->  | W30: =IF('EK DERS Ücret Hesaplama'!$AM28=1,hesaplamalar!AA25,"") ->  | X30: =IF('EK DERS Ücret Hesaplama'!$AM28=1,hesaplamalar!AB25,"") ->  | Y30: =IF('EK DERS Ücret Hesaplama'!$AM28=1,hesaplamalar!AC25,"") ->  | Z30: =IF('EK DERS Ücret Hesaplama'!$AM28=1,hesaplamalar!AD25,"") ->  | AA30: =IF('EK DERS Ücret Hesaplama'!$AM28=1,hesaplamalar!AE25,"") ->  | AB30: =IF('EK DERS Ücret Hesaplama'!$AM28=1,hesaplamalar!AG25,"") ->  | AC30: =IF('EK DERS Ücret Hesaplama'!$AM28=1,hesaplamalar!AH25,"") ->  | AD30: =IF('EK DERS Ücret Hesaplama'!$AM28=1,'EK DERS Ücret Hesaplama'!AE28,"") ->  | AE30: =IF('EK DERS Ücret Hesaplama'!$AM28=1,'EK DERS Ücret Hesaplama'!AG28,"") ->  | AF30: =IF('EK DERS Ücret Hesaplama'!$AM28=1,'EK DERS Ücret Hesaplama'!AF28,"") ->  | AG30: =IF('EK DERS Ücret Hesaplama'!$AM28=1,'EK DERS Ücret Hesaplama'!AH28,"") ->  | AH30: =IF('EK DERS Ücret Hesaplama'!$AM28=1,'EK DERS Ücret Hesaplama'!AI28,"") ->  | AI30: =IF('EK DERS Ücret Hesaplama'!$AM28=1,'EK DERS Ücret Hesaplama'!AJ28,"") ->  | AJ30: =IF('EK DERS Ücret Hesaplama'!$AM28=1,'EK DERS Ücret Hesaplama'!AK28,"") ->  | AL30: 0
A31: =IF(AJ31="","",SUBTOTAL(103,$AJ$8:AJ31)) ->  | B31: =IF('EK DERS Ücret Hesaplama'!$AM29=1,'EK DERS Ücret Hesaplama'!B29,"") ->  | C31: =IF('EK DERS Ücret Hesaplama'!$AM29=1,'EK DERS Ücret Hesaplama'!C29,"") ->  | D31: =IF('EK DERS Ücret Hesaplama'!$AM29=1,IF('EK DERS Ücret Hesaplama'!D29="Ücretli Öğretmen","Ücretli Öğr.","Ücr.Öğr. (Emekli)"),"") ->  | E31: =IF('EK DERS Ücret Hesaplama'!$AM29=1,'EK DERS Ücret Hesaplama'!M29,"") ->  | F31: =IF('EK DERS Ücret Hesaplama'!$AM29=1,'EK DERS Ücret Hesaplama'!N29,"") ->  | G31: =IF('EK DERS Ücret Hesaplama'!$AM29=1,'EK DERS Ücret Hesaplama'!E29,"") ->  | H31: =IF('EK DERS Ücret Hesaplama'!$AM29=1,'EK DERS Ücret Hesaplama'!F29,"") ->  | I31: =IF('EK DERS Ücret Hesaplama'!$AM29=1,'EK DERS Ücret Hesaplama'!G29,"") ->  | J31: =IF('EK DERS Ücret Hesaplama'!$AM29=1,'EK DERS Ücret Hesaplama'!H29,"") ->  | K31: =IF('EK DERS Ücret Hesaplama'!$AM29=1,'EK DERS Ücret Hesaplama'!I29,"") ->  | L31: =IF('EK DERS Ücret Hesaplama'!$AM29=1,'EK DERS Ücret Hesaplama'!J29,"") ->  | M31: =IF('EK DERS Ücret Hesaplama'!$AM29=1,'EK DERS Ücret Hesaplama'!K29,"") ->  | N31: =IF('EK DERS Ücret Hesaplama'!$AM29=1,'EK DERS Ücret Hesaplama'!L29,"") ->  | O31: =IF('EK DERS Ücret Hesaplama'!$AM29=1,'EK DERS Ücret Hesaplama'!O29,"") ->  | P31: =IF('EK DERS Ücret Hesaplama'!$AM29=1,'EK DERS Ücret Hesaplama'!P29,"") ->  | Q31: =IF('EK DERS Ücret Hesaplama'!$AM29=1,'EK DERS Ücret Hesaplama'!Q29,"") ->  | R31: =IF('EK DERS Ücret Hesaplama'!$AM29=1,'EK DERS Ücret Hesaplama'!R29,"") ->  | S31: =IF('EK DERS Ücret Hesaplama'!$AM29=1,'EK DERS Ücret Hesaplama'!S29,"") ->  | T31: =IF('EK DERS Ücret Hesaplama'!$AM29=1,hesaplamalar!X26,"") ->  | U31: =IF('EK DERS Ücret Hesaplama'!$AM29=1,hesaplamalar!Y26,"") ->  | V31: =IF('EK DERS Ücret Hesaplama'!$AM29=1,hesaplamalar!Z26,"") ->  | W31: =IF('EK DERS Ücret Hesaplama'!$AM29=1,hesaplamalar!AA26,"") ->  | X31: =IF('EK DERS Ücret Hesaplama'!$AM29=1,hesaplamalar!AB26,"") ->  | Y31: =IF('EK DERS Ücret Hesaplama'!$AM29=1,hesaplamalar!AC26,"") ->  | Z31: =IF('EK DERS Ücret Hesaplama'!$AM29=1,hesaplamalar!AD26,"") ->  | AA31: =IF('EK DERS Ücret Hesaplama'!$AM29=1,hesaplamalar!AE26,"") ->  | AB31: =IF('EK DERS Ücret Hesaplama'!$AM29=1,hesaplamalar!AG26,"") ->  | AC31: =IF('EK DERS Ücret Hesaplama'!$AM29=1,hesaplamalar!AH26,"") ->  | AD31: =IF('EK DERS Ücret Hesaplama'!$AM29=1,'EK DERS Ücret Hesaplama'!AE29,"") ->  | AE31: =IF('EK DERS Ücret Hesaplama'!$AM29=1,'EK DERS Ücret Hesaplama'!AG29,"") ->  | AF31: =IF('EK DERS Ücret Hesaplama'!$AM29=1,'EK DERS Ücret Hesaplama'!AF29,"") ->  | AG31: =IF('EK DERS Ücret Hesaplama'!$AM29=1,'EK DERS Ücret Hesaplama'!AH29,"") ->  | AH31: =IF('EK DERS Ücret Hesaplama'!$AM29=1,'EK DERS Ücret Hesaplama'!AI29,"") ->  | AI31: =IF('EK DERS Ücret Hesaplama'!$AM29=1,'EK DERS Ücret Hesaplama'!AJ29,"") ->  | AJ31: =IF('EK DERS Ücret Hesaplama'!$AM29=1,'EK DERS Ücret Hesaplama'!AK29,"") ->  | AL31: 0
A32: =IF(AJ32="","",SUBTOTAL(103,$AJ$8:AJ32)) ->  | B32: =IF('EK DERS Ücret Hesaplama'!$AM30=1,'EK DERS Ücret Hesaplama'!B30,"") ->  | C32: =IF('EK DERS Ücret Hesaplama'!$AM30=1,'EK DERS Ücret Hesaplama'!C30,"") ->  | D32: =IF('EK DERS Ücret Hesaplama'!$AM30=1,IF('EK DERS Ücret Hesaplama'!D30="Ücretli Öğretmen","Ücretli Öğr.","Ücr.Öğr. (Emekli)"),"") ->  | E32: =IF('EK DERS Ücret Hesaplama'!$AM30=1,'EK DERS Ücret Hesaplama'!M30,"") ->  | F32: =IF('EK DERS Ücret Hesaplama'!$AM30=1,'EK DERS Ücret Hesaplama'!N30,"") ->  | G32: =IF('EK DERS Ücret Hesaplama'!$AM30=1,'EK DERS Ücret Hesaplama'!E30,"") ->  | H32: =IF('EK DERS Ücret Hesaplama'!$AM30=1,'EK DERS Ücret Hesaplama'!F30,"") ->  | I32: =IF('EK DERS Ücret Hesaplama'!$AM30=1,'EK DERS Ücret Hesaplama'!G30,"") ->  | J32: =IF('EK DERS Ücret Hesaplama'!$AM30=1,'EK DERS Ücret Hesaplama'!H30,"") ->  | K32: =IF('EK DERS Ücret Hesaplama'!$AM30=1,'EK DERS Ücret Hesaplama'!I30,"") ->  | L32: =IF('EK DERS Ücret Hesaplama'!$AM30=1,'EK DERS Ücret Hesaplama'!J30,"") ->  | M32: =IF('EK DERS Ücret Hesaplama'!$AM30=1,'EK DERS Ücret Hesaplama'!K30,"") ->  | N32: =IF('EK DERS Ücret Hesaplama'!$AM30=1,'EK DERS Ücret Hesaplama'!L30,"") ->  | O32: =IF('EK DERS Ücret Hesaplama'!$AM30=1,'EK DERS Ücret Hesaplama'!O30,"") ->  | P32: =IF('EK DERS Ücret Hesaplama'!$AM30=1,'EK DERS Ücret Hesaplama'!P30,"") ->  | Q32: =IF('EK DERS Ücret Hesaplama'!$AM30=1,'EK DERS Ücret Hesaplama'!Q30,"") ->  | R32: =IF('EK DERS Ücret Hesaplama'!$AM30=1,'EK DERS Ücret Hesaplama'!R30,"") ->  | S32: =IF('EK DERS Ücret Hesaplama'!$AM30=1,'EK DERS Ücret Hesaplama'!S30,"") ->  | T32: =IF('EK DERS Ücret Hesaplama'!$AM30=1,hesaplamalar!X27,"") ->  | U32: =IF('EK DERS Ücret Hesaplama'!$AM30=1,hesaplamalar!Y27,"") ->  | V32: =IF('EK DERS Ücret Hesaplama'!$AM30=1,hesaplamalar!Z27,"") ->  | W32: =IF('EK DERS Ücret Hesaplama'!$AM30=1,hesaplamalar!AA27,"") ->  | X32: =IF('EK DERS Ücret Hesaplama'!$AM30=1,hesaplamalar!AB27,"") ->  | Y32: =IF('EK DERS Ücret Hesaplama'!$AM30=1,hesaplamalar!AC27,"") ->  | Z32: =IF('EK DERS Ücret Hesaplama'!$AM30=1,hesaplamalar!AD27,"") ->  | AA32: =IF('EK DERS Ücret Hesaplama'!$AM30=1,hesaplamalar!AE27,"") ->  | AB32: =IF('EK DERS Ücret Hesaplama'!$AM30=1,hesaplamalar!AG27,"") ->  | AC32: =IF('EK DERS Ücret Hesaplama'!$AM30=1,hesaplamalar!AH27,"") ->  | AD32: =IF('EK DERS Ücret Hesaplama'!$AM30=1,'EK DERS Ücret Hesaplama'!AE30,"") ->  | AE32: =IF('EK DERS Ücret Hesaplama'!$AM30=1,'EK DERS Ücret Hesaplama'!AG30,"") ->  | AF32: =IF('EK DERS Ücret Hesaplama'!$AM30=1,'EK DERS Ücret Hesaplama'!AF30,"") ->  | AG32: =IF('EK DERS Ücret Hesaplama'!$AM30=1,'EK DERS Ücret Hesaplama'!AH30,"") ->  | AH32: =IF('EK DERS Ücret Hesaplama'!$AM30=1,'EK DERS Ücret Hesaplama'!AI30,"") ->  | AI32: =IF('EK DERS Ücret Hesaplama'!$AM30=1,'EK DERS Ücret Hesaplama'!AJ30,"") ->  | AJ32: =IF('EK DERS Ücret Hesaplama'!$AM30=1,'EK DERS Ücret Hesaplama'!AK30,"") ->  | AL32: 0
A33: =IF(AJ33="","",SUBTOTAL(103,$AJ$8:AJ33)) ->  | B33: =IF('EK DERS Ücret Hesaplama'!$AM31=1,'EK DERS Ücret Hesaplama'!B31,"") ->  | C33: =IF('EK DERS Ücret Hesaplama'!$AM31=1,'EK DERS Ücret Hesaplama'!C31,"") ->  | D33: =IF('EK DERS Ücret Hesaplama'!$AM31=1,IF('EK DERS Ücret Hesaplama'!D31="Ücretli Öğretmen","Ücretli Öğr.","Ücr.Öğr. (Emekli)"),"") ->  | E33: =IF('EK DERS Ücret Hesaplama'!$AM31=1,'EK DERS Ücret Hesaplama'!M31,"") ->  | F33: =IF('EK DERS Ücret Hesaplama'!$AM31=1,'EK DERS Ücret Hesaplama'!N31,"") ->  | G33: =IF('EK DERS Ücret Hesaplama'!$AM31=1,'EK DERS Ücret Hesaplama'!E31,"") ->  | H33: =IF('EK DERS Ücret Hesaplama'!$AM31=1,'EK DERS Ücret Hesaplama'!F31,"") ->  | I33: =IF('EK DERS Ücret Hesaplama'!$AM31=1,'EK DERS Ücret Hesaplama'!G31,"") ->  | J33: =IF('EK DERS Ücret Hesaplama'!$AM31=1,'EK DERS Ücret Hesaplama'!H31,"") ->  | K33: =IF('EK DERS Ücret Hesaplama'!$AM31=1,'EK DERS Ücret Hesaplama'!I31,"") ->  | L33: =IF('EK DERS Ücret Hesaplama'!$AM31=1,'EK DERS Ücret Hesaplama'!J31,"") ->  | M33: =IF('EK DERS Ücret Hesaplama'!$AM31=1,'EK DERS Ücret Hesaplama'!K31,"") ->  | N33: =IF('EK DERS Ücret Hesaplama'!$AM31=1,'EK DERS Ücret Hesaplama'!L31,"") ->  | O33: =IF('EK DERS Ücret Hesaplama'!$AM31=1,'EK DERS Ücret Hesaplama'!O31,"") ->  | P33: =IF('EK DERS Ücret Hesaplama'!$AM31=1,'EK DERS Ücret Hesaplama'!P31,"") ->  | Q33: =IF('EK DERS Ücret Hesaplama'!$AM31=1,'EK DERS Ücret Hesaplama'!Q31,"") ->  | R33: =IF('EK DERS Ücret Hesaplama'!$AM31=1,'EK DERS Ücret Hesaplama'!R31,"") ->  | S33: =IF('EK DERS Ücret Hesaplama'!$AM31=1,'EK DERS Ücret Hesaplama'!S31,"") ->  | T33: =IF('EK DERS Ücret Hesaplama'!$AM31=1,hesaplamalar!X28,"") ->  | U33: =IF('EK DERS Ücret Hesaplama'!$AM31=1,hesaplamalar!Y28,"") ->  | V33: =IF('EK DERS Ücret Hesaplama'!$AM31=1,hesaplamalar!Z28,"") ->  | W33: =IF('EK DERS Ücret Hesaplama'!$AM31=1,hesaplamalar!AA28,"") ->  | X33: =IF('EK DERS Ücret Hesaplama'!$AM31=1,hesaplamalar!AB28,"") ->  | Y33: =IF('EK DERS Ücret Hesaplama'!$AM31=1,hesaplamalar!AC28,"") ->  | Z33: =IF('EK DERS Ücret Hesaplama'!$AM31=1,hesaplamalar!AD28,"") ->  | AA33: =IF('EK DERS Ücret Hesaplama'!$AM31=1,hesaplamalar!AE28,"") ->  | AB33: =IF('EK DERS Ücret Hesaplama'!$AM31=1,hesaplamalar!AG28,"") ->  | AC33: =IF('EK DERS Ücret Hesaplama'!$AM31=1,hesaplamalar!AH28,"") ->  | AD33: =IF('EK DERS Ücret Hesaplama'!$AM31=1,'EK DERS Ücret Hesaplama'!AE31,"") ->  | AE33: =IF('EK DERS Ücret Hesaplama'!$AM31=1,'EK DERS Ücret Hesaplama'!AG31,"") ->  | AF33: =IF('EK DERS Ücret Hesaplama'!$AM31=1,'EK DERS Ücret Hesaplama'!AF31,"") ->  | AG33: =IF('EK DERS Ücret Hesaplama'!$AM31=1,'EK DERS Ücret Hesaplama'!AH31,"") ->  | AH33: =IF('EK DERS Ücret Hesaplama'!$AM31=1,'EK DERS Ücret Hesaplama'!AI31,"") ->  | AI33: =IF('EK DERS Ücret Hesaplama'!$AM31=1,'EK DERS Ücret Hesaplama'!AJ31,"") ->  | AJ33: =IF('EK DERS Ücret Hesaplama'!$AM31=1,'EK DERS Ücret Hesaplama'!AK31,"") ->  | AL33: 0
A34: =IF(AJ34="","",SUBTOTAL(103,$AJ$8:AJ34)) ->  | B34: =IF('EK DERS Ücret Hesaplama'!$AM32=1,'EK DERS Ücret Hesaplama'!B32,"") ->  | C34: =IF('EK DERS Ücret Hesaplama'!$AM32=1,'EK DERS Ücret Hesaplama'!C32,"") ->  | D34: =IF('EK DERS Ücret Hesaplama'!$AM32=1,IF('EK DERS Ücret Hesaplama'!D32="Ücretli Öğretmen","Ücretli Öğr.","Ücr.Öğr. (Emekli)"),"") ->  | E34: =IF('EK DERS Ücret Hesaplama'!$AM32=1,'EK DERS Ücret Hesaplama'!M32,"") ->  | F34: =IF('EK DERS Ücret Hesaplama'!$AM32=1,'EK DERS Ücret Hesaplama'!N32,"") ->  | G34: =IF('EK DERS Ücret Hesaplama'!$AM32=1,'EK DERS Ücret Hesaplama'!E32,"") ->  | H34: =IF('EK DERS Ücret Hesaplama'!$AM32=1,'EK DERS Ücret Hesaplama'!F32,"") ->  | I34: =IF('EK DERS Ücret Hesaplama'!$AM32=1,'EK DERS Ücret Hesaplama'!G32,"") ->  | J34: =IF('EK DERS Ücret Hesaplama'!$AM32=1,'EK DERS Ücret Hesaplama'!H32,"") ->  | K34: =IF('EK DERS Ücret Hesaplama'!$AM32=1,'EK DERS Ücret Hesaplama'!I32,"") ->  | L34: =IF('EK DERS Ücret Hesaplama'!$AM32=1,'EK DERS Ücret Hesaplama'!J32,"") ->  | M34: =IF('EK DERS Ücret Hesaplama'!$AM32=1,'EK DERS Ücret Hesaplama'!K32,"") ->  | N34: =IF('EK DERS Ücret Hesaplama'!$AM32=1,'EK DERS Ücret Hesaplama'!L32,"") ->  | O34: =IF('EK DERS Ücret Hesaplama'!$AM32=1,'EK DERS Ücret Hesaplama'!O32,"") ->  | P34: =IF('EK DERS Ücret Hesaplama'!$AM32=1,'EK DERS Ücret Hesaplama'!P32,"") ->  | Q34: =IF('EK DERS Ücret Hesaplama'!$AM32=1,'EK DERS Ücret Hesaplama'!Q32,"") ->  | R34: =IF('EK DERS Ücret Hesaplama'!$AM32=1,'EK DERS Ücret Hesaplama'!R32,"") ->  | S34: =IF('EK DERS Ücret Hesaplama'!$AM32=1,'EK DERS Ücret Hesaplama'!S32,"") ->  | T34: =IF('EK DERS Ücret Hesaplama'!$AM32=1,hesaplamalar!X29,"") ->  | U34: =IF('EK DERS Ücret Hesaplama'!$AM32=1,hesaplamalar!Y29,"") ->  | V34: =IF('EK DERS Ücret Hesaplama'!$AM32=1,hesaplamalar!Z29,"") ->  | W34: =IF('EK DERS Ücret Hesaplama'!$AM32=1,hesaplamalar!AA29,"") ->  | X34: =IF('EK DERS Ücret Hesaplama'!$AM32=1,hesaplamalar!AB29,"") ->  | Y34: =IF('EK DERS Ücret Hesaplama'!$AM32=1,hesaplamalar!AC29,"") ->  | Z34: =IF('EK DERS Ücret Hesaplama'!$AM32=1,hesaplamalar!AD29,"") ->  | AA34: =IF('EK DERS Ücret Hesaplama'!$AM32=1,hesaplamalar!AE29,"") ->  | AB34: =IF('EK DERS Ücret Hesaplama'!$AM32=1,hesaplamalar!AG29,"") ->  | AC34: =IF('EK DERS Ücret Hesaplama'!$AM32=1,hesaplamalar!AH29,"") ->  | AD34: =IF('EK DERS Ücret Hesaplama'!$AM32=1,'EK DERS Ücret Hesaplama'!AE32,"") ->  | AE34: =IF('EK DERS Ücret Hesaplama'!$AM32=1,'EK DERS Ücret Hesaplama'!AG32,"") ->  | AF34: =IF('EK DERS Ücret Hesaplama'!$AM32=1,'EK DERS Ücret Hesaplama'!AF32,"") ->  | AG34: =IF('EK DERS Ücret Hesaplama'!$AM32=1,'EK DERS Ücret Hesaplama'!AH32,"") ->  | AH34: =IF('EK DERS Ücret Hesaplama'!$AM32=1,'EK DERS Ücret Hesaplama'!AI32,"") ->  | AI34: =IF('EK DERS Ücret Hesaplama'!$AM32=1,'EK DERS Ücret Hesaplama'!AJ32,"") ->  | AJ34: =IF('EK DERS Ücret Hesaplama'!$AM32=1,'EK DERS Ücret Hesaplama'!AK32,"") ->  | AL34: 0
A35: =IF(AJ35="","",SUBTOTAL(103,$AJ$8:AJ35)) ->  | B35: =IF('EK DERS Ücret Hesaplama'!$AM33=1,'EK DERS Ücret Hesaplama'!B33,"") ->  | C35: =IF('EK DERS Ücret Hesaplama'!$AM33=1,'EK DERS Ücret Hesaplama'!C33,"") ->  | D35: =IF('EK DERS Ücret Hesaplama'!$AM33=1,IF('EK DERS Ücret Hesaplama'!D33="Ücretli Öğretmen","Ücretli Öğr.","Ücr.Öğr. (Emekli)"),"") ->  | E35: =IF('EK DERS Ücret Hesaplama'!$AM33=1,'EK DERS Ücret Hesaplama'!M33,"") ->  | F35: =IF('EK DERS Ücret Hesaplama'!$AM33=1,'EK DERS Ücret Hesaplama'!N33,"") ->  | G35: =IF('EK DERS Ücret Hesaplama'!$AM33=1,'EK DERS Ücret Hesaplama'!E33,"") ->  | H35: =IF('EK DERS Ücret Hesaplama'!$AM33=1,'EK DERS Ücret Hesaplama'!F33,"") ->  | I35: =IF('EK DERS Ücret Hesaplama'!$AM33=1,'EK DERS Ücret Hesaplama'!G33,"") ->  | J35: =IF('EK DERS Ücret Hesaplama'!$AM33=1,'EK DERS Ücret Hesaplama'!H33,"") ->  | K35: =IF('EK DERS Ücret Hesaplama'!$AM33=1,'EK DERS Ücret Hesaplama'!I33,"") ->  | L35: =IF('EK DERS Ücret Hesaplama'!$AM33=1,'EK DERS Ücret Hesaplama'!J33,"") ->  | M35: =IF('EK DERS Ücret Hesaplama'!$AM33=1,'EK DERS Ücret Hesaplama'!K33,"") ->  | N35: =IF('EK DERS Ücret Hesaplama'!$AM33=1,'EK DERS Ücret Hesaplama'!L33,"") ->  | O35: =IF('EK DERS Ücret Hesaplama'!$AM33=1,'EK DERS Ücret Hesaplama'!O33,"") ->  | P35: =IF('EK DERS Ücret Hesaplama'!$AM33=1,'EK DERS Ücret Hesaplama'!P33,"") ->  | Q35: =IF('EK DERS Ücret Hesaplama'!$AM33=1,'EK DERS Ücret Hesaplama'!Q33,"") ->  | R35: =IF('EK DERS Ücret Hesaplama'!$AM33=1,'EK DERS Ücret Hesaplama'!R33,"") ->  | S35: =IF('EK DERS Ücret Hesaplama'!$AM33=1,'EK DERS Ücret Hesaplama'!S33,"") ->  | T35: =IF('EK DERS Ücret Hesaplama'!$AM33=1,hesaplamalar!X30,"") ->  | U35: =IF('EK DERS Ücret Hesaplama'!$AM33=1,hesaplamalar!Y30,"") ->  | V35: =IF('EK DERS Ücret Hesaplama'!$AM33=1,hesaplamalar!Z30,"") ->  | W35: =IF('EK DERS Ücret Hesaplama'!$AM33=1,hesaplamalar!AA30,"") ->  | X35: =IF('EK DERS Ücret Hesaplama'!$AM33=1,hesaplamalar!AB30,"") ->  | Y35: =IF('EK DERS Ücret Hesaplama'!$AM33=1,hesaplamalar!AC30,"") ->  | Z35: =IF('EK DERS Ücret Hesaplama'!$AM33=1,hesaplamalar!AD30,"") ->  | AA35: =IF('EK DERS Ücret Hesaplama'!$AM33=1,hesaplamalar!AE30,"") ->  | AB35: =IF('EK DERS Ücret Hesaplama'!$AM33=1,hesaplamalar!AG30,"") ->  | AC35: =IF('EK DERS Ücret Hesaplama'!$AM33=1,hesaplamalar!AH30,"") ->  | AD35: =IF('EK DERS Ücret Hesaplama'!$AM33=1,'EK DERS Ücret Hesaplama'!AE33,"") ->  | AE35: =IF('EK DERS Ücret Hesaplama'!$AM33=1,'EK DERS Ücret Hesaplama'!AG33,"") ->  | AF35: =IF('EK DERS Ücret Hesaplama'!$AM33=1,'EK DERS Ücret Hesaplama'!AF33,"") ->  | AG35: =IF('EK DERS Ücret Hesaplama'!$AM33=1,'EK DERS Ücret Hesaplama'!AH33,"") ->  | AH35: =IF('EK DERS Ücret Hesaplama'!$AM33=1,'EK DERS Ücret Hesaplama'!AI33,"") ->  | AI35: =IF('EK DERS Ücret Hesaplama'!$AM33=1,'EK DERS Ücret Hesaplama'!AJ33,"") ->  | AJ35: =IF('EK DERS Ücret Hesaplama'!$AM33=1,'EK DERS Ücret Hesaplama'!AK33,"") ->  | AL35: 0
A36: =IF(AJ36="","",SUBTOTAL(103,$AJ$8:AJ36)) ->  | B36: =IF('EK DERS Ücret Hesaplama'!$AM34=1,'EK DERS Ücret Hesaplama'!B34,"") ->  | C36: =IF('EK DERS Ücret Hesaplama'!$AM34=1,'EK DERS Ücret Hesaplama'!C34,"") ->  | D36: =IF('EK DERS Ücret Hesaplama'!$AM34=1,IF('EK DERS Ücret Hesaplama'!D34="Ücretli Öğretmen","Ücretli Öğr.","Ücr.Öğr. (Emekli)"),"") ->  | E36: =IF('EK DERS Ücret Hesaplama'!$AM34=1,'EK DERS Ücret Hesaplama'!M34,"") ->  | F36: =IF('EK DERS Ücret Hesaplama'!$AM34=1,'EK DERS Ücret Hesaplama'!N34,"") ->  | G36: =IF('EK DERS Ücret Hesaplama'!$AM34=1,'EK DERS Ücret Hesaplama'!E34,"") ->  | H36: =IF('EK DERS Ücret Hesaplama'!$AM34=1,'EK DERS Ücret Hesaplama'!F34,"") ->  | I36: =IF('EK DERS Ücret Hesaplama'!$AM34=1,'EK DERS Ücret Hesaplama'!G34,"") ->  | J36: =IF('EK DERS Ücret Hesaplama'!$AM34=1,'EK DERS Ücret Hesaplama'!H34,"") ->  | K36: =IF('EK DERS Ücret Hesaplama'!$AM34=1,'EK DERS Ücret Hesaplama'!I34,"") ->  | L36: =IF('EK DERS Ücret Hesaplama'!$AM34=1,'EK DERS Ücret Hesaplama'!J34,"") ->  | M36: =IF('EK DERS Ücret Hesaplama'!$AM34=1,'EK DERS Ücret Hesaplama'!K34,"") ->  | N36: =IF('EK DERS Ücret Hesaplama'!$AM34=1,'EK DERS Ücret Hesaplama'!L34,"") ->  | O36: =IF('EK DERS Ücret Hesaplama'!$AM34=1,'EK DERS Ücret Hesaplama'!O34,"") ->  | P36: =IF('EK DERS Ücret Hesaplama'!$AM34=1,'EK DERS Ücret Hesaplama'!P34,"") ->  | Q36: =IF('EK DERS Ücret Hesaplama'!$AM34=1,'EK DERS Ücret Hesaplama'!Q34,"") ->  | R36: =IF('EK DERS Ücret Hesaplama'!$AM34=1,'EK DERS Ücret Hesaplama'!R34,"") ->  | S36: =IF('EK DERS Ücret Hesaplama'!$AM34=1,'EK DERS Ücret Hesaplama'!S34,"") ->  | T36: =IF('EK DERS Ücret Hesaplama'!$AM34=1,hesaplamalar!X31,"") ->  | U36: =IF('EK DERS Ücret Hesaplama'!$AM34=1,hesaplamalar!Y31,"") ->  | V36: =IF('EK DERS Ücret Hesaplama'!$AM34=1,hesaplamalar!Z31,"") ->  | W36: =IF('EK DERS Ücret Hesaplama'!$AM34=1,hesaplamalar!AA31,"") ->  | X36: =IF('EK DERS Ücret Hesaplama'!$AM34=1,hesaplamalar!AB31,"") ->  | Y36: =IF('EK DERS Ücret Hesaplama'!$AM34=1,hesaplamalar!AC31,"") ->  | Z36: =IF('EK DERS Ücret Hesaplama'!$AM34=1,hesaplamalar!AD31,"") ->  | AA36: =IF('EK DERS Ücret Hesaplama'!$AM34=1,hesaplamalar!AE31,"") ->  | AB36: =IF('EK DERS Ücret Hesaplama'!$AM34=1,hesaplamalar!AG31,"") ->  | AC36: =IF('EK DERS Ücret Hesaplama'!$AM34=1,hesaplamalar!AH31,"") ->  | AD36: =IF('EK DERS Ücret Hesaplama'!$AM34=1,'EK DERS Ücret Hesaplama'!AE34,"") ->  | AE36: =IF('EK DERS Ücret Hesaplama'!$AM34=1,'EK DERS Ücret Hesaplama'!AG34,"") ->  | AF36: =IF('EK DERS Ücret Hesaplama'!$AM34=1,'EK DERS Ücret Hesaplama'!AF34,"") ->  | AG36: =IF('EK DERS Ücret Hesaplama'!$AM34=1,'EK DERS Ücret Hesaplama'!AH34,"") ->  | AH36: =IF('EK DERS Ücret Hesaplama'!$AM34=1,'EK DERS Ücret Hesaplama'!AI34,"") ->  | AI36: =IF('EK DERS Ücret Hesaplama'!$AM34=1,'EK DERS Ücret Hesaplama'!AJ34,"") ->  | AJ36: =IF('EK DERS Ücret Hesaplama'!$AM34=1,'EK DERS Ücret Hesaplama'!AK34,"") ->  | AL36: 0
A37: =IF(AJ37="","",SUBTOTAL(103,$AJ$8:AJ37)) ->  | B37: =IF('EK DERS Ücret Hesaplama'!$AM35=1,'EK DERS Ücret Hesaplama'!B35,"") ->  | C37: =IF('EK DERS Ücret Hesaplama'!$AM35=1,'EK DERS Ücret Hesaplama'!C35,"") ->  | D37: =IF('EK DERS Ücret Hesaplama'!$AM35=1,IF('EK DERS Ücret Hesaplama'!D35="Ücretli Öğretmen","Ücretli Öğr.","Ücr.Öğr. (Emekli)"),"") ->  | E37: =IF('EK DERS Ücret Hesaplama'!$AM35=1,'EK DERS Ücret Hesaplama'!M35,"") ->  | F37: =IF('EK DERS Ücret Hesaplama'!$AM35=1,'EK DERS Ücret Hesaplama'!N35,"") ->  | G37: =IF('EK DERS Ücret Hesaplama'!$AM35=1,'EK DERS Ücret Hesaplama'!E35,"") ->  | H37: =IF('EK DERS Ücret Hesaplama'!$AM35=1,'EK DERS Ücret Hesaplama'!F35,"") ->  | I37: =IF('EK DERS Ücret Hesaplama'!$AM35=1,'EK DERS Ücret Hesaplama'!G35,"") ->  | J37: =IF('EK DERS Ücret Hesaplama'!$AM35=1,'EK DERS Ücret Hesaplama'!H35,"") ->  | K37: =IF('EK DERS Ücret Hesaplama'!$AM35=1,'EK DERS Ücret Hesaplama'!I35,"") ->  | L37: =IF('EK DERS Ücret Hesaplama'!$AM35=1,'EK DERS Ücret Hesaplama'!J35,"") ->  | M37: =IF('EK DERS Ücret Hesaplama'!$AM35=1,'EK DERS Ücret Hesaplama'!K35,"") ->  | N37: =IF('EK DERS Ücret Hesaplama'!$AM35=1,'EK DERS Ücret Hesaplama'!L35,"") ->  | O37: =IF('EK DERS Ücret Hesaplama'!$AM35=1,'EK DERS Ücret Hesaplama'!O35,"") ->  | P37: =IF('EK DERS Ücret Hesaplama'!$AM35=1,'EK DERS Ücret Hesaplama'!P35,"") ->  | Q37: =IF('EK DERS Ücret Hesaplama'!$AM35=1,'EK DERS Ücret Hesaplama'!Q35,"") ->  | R37: =IF('EK DERS Ücret Hesaplama'!$AM35=1,'EK DERS Ücret Hesaplama'!R35,"") ->  | S37: =IF('EK DERS Ücret Hesaplama'!$AM35=1,'EK DERS Ücret Hesaplama'!S35,"") ->  | T37: =IF('EK DERS Ücret Hesaplama'!$AM35=1,hesaplamalar!X32,"") ->  | U37: =IF('EK DERS Ücret Hesaplama'!$AM35=1,hesaplamalar!Y32,"") ->  | V37: =IF('EK DERS Ücret Hesaplama'!$AM35=1,hesaplamalar!Z32,"") ->  | W37: =IF('EK DERS Ücret Hesaplama'!$AM35=1,hesaplamalar!AA32,"") ->  | X37: =IF('EK DERS Ücret Hesaplama'!$AM35=1,hesaplamalar!AB32,"") ->  | Y37: =IF('EK DERS Ücret Hesaplama'!$AM35=1,hesaplamalar!AC32,"") ->  | Z37: =IF('EK DERS Ücret Hesaplama'!$AM35=1,hesaplamalar!AD32,"") ->  | AA37: =IF('EK DERS Ücret Hesaplama'!$AM35=1,hesaplamalar!AE32,"") ->  | AB37: =IF('EK DERS Ücret Hesaplama'!$AM35=1,hesaplamalar!AG32,"") ->  | AC37: =IF('EK DERS Ücret Hesaplama'!$AM35=1,hesaplamalar!AH32,"") ->  | AD37: =IF('EK DERS Ücret Hesaplama'!$AM35=1,'EK DERS Ücret Hesaplama'!AE35,"") ->  | AE37: =IF('EK DERS Ücret Hesaplama'!$AM35=1,'EK DERS Ücret Hesaplama'!AG35,"") ->  | AF37: =IF('EK DERS Ücret Hesaplama'!$AM35=1,'EK DERS Ücret Hesaplama'!AF35,"") ->  | AG37: =IF('EK DERS Ücret Hesaplama'!$AM35=1,'EK DERS Ücret Hesaplama'!AH35,"") ->  | AH37: =IF('EK DERS Ücret Hesaplama'!$AM35=1,'EK DERS Ücret Hesaplama'!AI35,"") ->  | AI37: =IF('EK DERS Ücret Hesaplama'!$AM35=1,'EK DERS Ücret Hesaplama'!AJ35,"") ->  | AJ37: =IF('EK DERS Ücret Hesaplama'!$AM35=1,'EK DERS Ücret Hesaplama'!AK35,"") ->  | AL37: 0
A38: =IF(AJ38="","",SUBTOTAL(103,$AJ$8:AJ38)) ->  | B38: =IF('EK DERS Ücret Hesaplama'!$AM36=1,'EK DERS Ücret Hesaplama'!B36,"") ->  | C38: =IF('EK DERS Ücret Hesaplama'!$AM36=1,'EK DERS Ücret Hesaplama'!C36,"") ->  | D38: =IF('EK DERS Ücret Hesaplama'!$AM36=1,IF('EK DERS Ücret Hesaplama'!D36="Ücretli Öğretmen","Ücretli Öğr.","Ücr.Öğr. (Emekli)"),"") ->  | E38: =IF('EK DERS Ücret Hesaplama'!$AM36=1,'EK DERS Ücret Hesaplama'!M36,"") ->  | F38: =IF('EK DERS Ücret Hesaplama'!$AM36=1,'EK DERS Ücret Hesaplama'!N36,"") ->  | G38: =IF('EK DERS Ücret Hesaplama'!$AM36=1,'EK DERS Ücret Hesaplama'!E36,"") ->  | H38: =IF('EK DERS Ücret Hesaplama'!$AM36=1,'EK DERS Ücret Hesaplama'!F36,"") ->  | I38: =IF('EK DERS Ücret Hesaplama'!$AM36=1,'EK DERS Ücret Hesaplama'!G36,"") ->  | J38: =IF('EK DERS Ücret Hesaplama'!$AM36=1,'EK DERS Ücret Hesaplama'!H36,"") ->  | K38: =IF('EK DERS Ücret Hesaplama'!$AM36=1,'EK DERS Ücret Hesaplama'!I36,"") ->  | L38: =IF('EK DERS Ücret Hesaplama'!$AM36=1,'EK DERS Ücret Hesaplama'!J36,"") ->  | M38: =IF('EK DERS Ücret Hesaplama'!$AM36=1,'EK DERS Ücret Hesaplama'!K36,"") ->  | N38: =IF('EK DERS Ücret Hesaplama'!$AM36=1,'EK DERS Ücret Hesaplama'!L36,"") ->  | O38: =IF('EK DERS Ücret Hesaplama'!$AM36=1,'EK DERS Ücret Hesaplama'!O36,"") ->  | P38: =IF('EK DERS Ücret Hesaplama'!$AM36=1,'EK DERS Ücret Hesaplama'!P36,"") ->  | Q38: =IF('EK DERS Ücret Hesaplama'!$AM36=1,'EK DERS Ücret Hesaplama'!Q36,"") ->  | R38: =IF('EK DERS Ücret Hesaplama'!$AM36=1,'EK DERS Ücret Hesaplama'!R36,"") ->  | S38: =IF('EK DERS Ücret Hesaplama'!$AM36=1,'EK DERS Ücret Hesaplama'!S36,"") ->  | T38: =IF('EK DERS Ücret Hesaplama'!$AM36=1,hesaplamalar!X33,"") ->  | U38: =IF('EK DERS Ücret Hesaplama'!$AM36=1,hesaplamalar!Y33,"") ->  | V38: =IF('EK DERS Ücret Hesaplama'!$AM36=1,hesaplamalar!Z33,"") ->  | W38: =IF('EK DERS Ücret Hesaplama'!$AM36=1,hesaplamalar!AA33,"") ->  | X38: =IF('EK DERS Ücret Hesaplama'!$AM36=1,hesaplamalar!AB33,"") ->  | Y38: =IF('EK DERS Ücret Hesaplama'!$AM36=1,hesaplamalar!AC33,"") ->  | Z38: =IF('EK DERS Ücret Hesaplama'!$AM36=1,hesaplamalar!AD33,"") ->  | AA38: =IF('EK DERS Ücret Hesaplama'!$AM36=1,hesaplamalar!AE33,"") ->  | AB38: =IF('EK DERS Ücret Hesaplama'!$AM36=1,hesaplamalar!AG33,"") ->  | AC38: =IF('EK DERS Ücret Hesaplama'!$AM36=1,hesaplamalar!AH33,"") ->  | AD38: =IF('EK DERS Ücret Hesaplama'!$AM36=1,'EK DERS Ücret Hesaplama'!AE36,"") ->  | AE38: =IF('EK DERS Ücret Hesaplama'!$AM36=1,'EK DERS Ücret Hesaplama'!AG36,"") ->  | AF38: =IF('EK DERS Ücret Hesaplama'!$AM36=1,'EK DERS Ücret Hesaplama'!AF36,"") ->  | AG38: =IF('EK DERS Ücret Hesaplama'!$AM36=1,'EK DERS Ücret Hesaplama'!AH36,"") ->  | AH38: =IF('EK DERS Ücret Hesaplama'!$AM36=1,'EK DERS Ücret Hesaplama'!AI36,"") ->  | AI38: =IF('EK DERS Ücret Hesaplama'!$AM36=1,'EK DERS Ücret Hesaplama'!AJ36,"") ->  | AJ38: =IF('EK DERS Ücret Hesaplama'!$AM36=1,'EK DERS Ücret Hesaplama'!AK36,"") ->  | AL38: 0
A39: =IF(AJ39="","",SUBTOTAL(103,$AJ$8:AJ39)) ->  | B39: =IF('EK DERS Ücret Hesaplama'!$AM37=1,'EK DERS Ücret Hesaplama'!B37,"") ->  | C39: =IF('EK DERS Ücret Hesaplama'!$AM37=1,'EK DERS Ücret Hesaplama'!C37,"") ->  | D39: =IF('EK DERS Ücret Hesaplama'!$AM37=1,IF('EK DERS Ücret Hesaplama'!D37="Ücretli Öğretmen","Ücretli Öğr.","Ücr.Öğr. (Emekli)"),"") ->  | E39: =IF('EK DERS Ücret Hesaplama'!$AM37=1,'EK DERS Ücret Hesaplama'!M37,"") ->  | F39: =IF('EK DERS Ücret Hesaplama'!$AM37=1,'EK DERS Ücret Hesaplama'!N37,"") ->  | G39: =IF('EK DERS Ücret Hesaplama'!$AM37=1,'EK DERS Ücret Hesaplama'!E37,"") ->  | H39: =IF('EK DERS Ücret Hesaplama'!$AM37=1,'EK DERS Ücret Hesaplama'!F37,"") ->  | I39: =IF('EK DERS Ücret Hesaplama'!$AM37=1,'EK DERS Ücret Hesaplama'!G37,"") ->  | J39: =IF('EK DERS Ücret Hesaplama'!$AM37=1,'EK DERS Ücret Hesaplama'!H37,"") ->  | K39: =IF('EK DERS Ücret Hesaplama'!$AM37=1,'EK DERS Ücret Hesaplama'!I37,"") ->  | L39: =IF('EK DERS Ücret Hesaplama'!$AM37=1,'EK DERS Ücret Hesaplama'!J37,"") ->  | M39: =IF('EK DERS Ücret Hesaplama'!$AM37=1,'EK DERS Ücret Hesaplama'!K37,"") ->  | N39: =IF('EK DERS Ücret Hesaplama'!$AM37=1,'EK DERS Ücret Hesaplama'!L37,"") ->  | O39: =IF('EK DERS Ücret Hesaplama'!$AM37=1,'EK DERS Ücret Hesaplama'!O37,"") ->  | P39: =IF('EK DERS Ücret Hesaplama'!$AM37=1,'EK DERS Ücret Hesaplama'!P37,"") ->  | Q39: =IF('EK DERS Ücret Hesaplama'!$AM37=1,'EK DERS Ücret Hesaplama'!Q37,"") ->  | R39: =IF('EK DERS Ücret Hesaplama'!$AM37=1,'EK DERS Ücret Hesaplama'!R37,"") ->  | S39: =IF('EK DERS Ücret Hesaplama'!$AM37=1,'EK DERS Ücret Hesaplama'!S37,"") ->  | T39: =IF('EK DERS Ücret Hesaplama'!$AM37=1,hesaplamalar!X34,"") ->  | U39: =IF('EK DERS Ücret Hesaplama'!$AM37=1,hesaplamalar!Y34,"") ->  | V39: =IF('EK DERS Ücret Hesaplama'!$AM37=1,hesaplamalar!Z34,"") ->  | W39: =IF('EK DERS Ücret Hesaplama'!$AM37=1,hesaplamalar!AA34,"") ->  | X39: =IF('EK DERS Ücret Hesaplama'!$AM37=1,hesaplamalar!AB34,"") ->  | Y39: =IF('EK DERS Ücret Hesaplama'!$AM37=1,hesaplamalar!AC34,"") ->  | Z39: =IF('EK DERS Ücret Hesaplama'!$AM37=1,hesaplamalar!AD34,"") ->  | AA39: =IF('EK DERS Ücret Hesaplama'!$AM37=1,hesaplamalar!AE34,"") ->  | AB39: =IF('EK DERS Ücret Hesaplama'!$AM37=1,hesaplamalar!AG34,"") ->  | AC39: =IF('EK DERS Ücret Hesaplama'!$AM37=1,hesaplamalar!AH34,"") ->  | AD39: =IF('EK DERS Ücret Hesaplama'!$AM37=1,'EK DERS Ücret Hesaplama'!AE37,"") ->  | AE39: =IF('EK DERS Ücret Hesaplama'!$AM37=1,'EK DERS Ücret Hesaplama'!AG37,"") ->  | AF39: =IF('EK DERS Ücret Hesaplama'!$AM37=1,'EK DERS Ücret Hesaplama'!AF37,"") ->  | AG39: =IF('EK DERS Ücret Hesaplama'!$AM37=1,'EK DERS Ücret Hesaplama'!AH37,"") ->  | AH39: =IF('EK DERS Ücret Hesaplama'!$AM37=1,'EK DERS Ücret Hesaplama'!AI37,"") ->  | AI39: =IF('EK DERS Ücret Hesaplama'!$AM37=1,'EK DERS Ücret Hesaplama'!AJ37,"") ->  | AJ39: =IF('EK DERS Ücret Hesaplama'!$AM37=1,'EK DERS Ücret Hesaplama'!AK37,"") ->  | AL39: 0
A40: =IF(AJ40="","",SUBTOTAL(103,$AJ$8:AJ40)) ->  | B40: =IF('EK DERS Ücret Hesaplama'!$AM38=1,'EK DERS Ücret Hesaplama'!B38,"") ->  | C40: =IF('EK DERS Ücret Hesaplama'!$AM38=1,'EK DERS Ücret Hesaplama'!C38,"") ->  | D40: =IF('EK DERS Ücret Hesaplama'!$AM38=1,IF('EK DERS Ücret Hesaplama'!D38="Ücretli Öğretmen","Ücretli Öğr.","Ücr.Öğr. (Emekli)"),"") ->  | E40: =IF('EK DERS Ücret Hesaplama'!$AM38=1,'EK DERS Ücret Hesaplama'!M38,"") ->  | F40: =IF('EK DERS Ücret Hesaplama'!$AM38=1,'EK DERS Ücret Hesaplama'!N38,"") ->  | G40: =IF('EK DERS Ücret Hesaplama'!$AM38=1,'EK DERS Ücret Hesaplama'!E38,"") ->  | H40: =IF('EK DERS Ücret Hesaplama'!$AM38=1,'EK DERS Ücret Hesaplama'!F38,"") ->  | I40: =IF('EK DERS Ücret Hesaplama'!$AM38=1,'EK DERS Ücret Hesaplama'!G38,"") ->  | J40: =IF('EK DERS Ücret Hesaplama'!$AM38=1,'EK DERS Ücret Hesaplama'!H38,"") ->  | K40: =IF('EK DERS Ücret Hesaplama'!$AM38=1,'EK DERS Ücret Hesaplama'!I38,"") ->  | L40: =IF('EK DERS Ücret Hesaplama'!$AM38=1,'EK DERS Ücret Hesaplama'!J38,"") ->  | M40: =IF('EK DERS Ücret Hesaplama'!$AM38=1,'EK DERS Ücret Hesaplama'!K38,"") ->  | N40: =IF('EK DERS Ücret Hesaplama'!$AM38=1,'EK DERS Ücret Hesaplama'!L38,"") ->  | O40: =IF('EK DERS Ücret Hesaplama'!$AM38=1,'EK DERS Ücret Hesaplama'!O38,"") ->  | P40: =IF('EK DERS Ücret Hesaplama'!$AM38=1,'EK DERS Ücret Hesaplama'!P38,"") ->  | Q40: =IF('EK DERS Ücret Hesaplama'!$AM38=1,'EK DERS Ücret Hesaplama'!Q38,"") ->  | R40: =IF('EK DERS Ücret Hesaplama'!$AM38=1,'EK DERS Ücret Hesaplama'!R38,"") ->  | S40: =IF('EK DERS Ücret Hesaplama'!$AM38=1,'EK DERS Ücret Hesaplama'!S38,"") ->  | T40: =IF('EK DERS Ücret Hesaplama'!$AM38=1,hesaplamalar!X35,"") ->  | U40: =IF('EK DERS Ücret Hesaplama'!$AM38=1,hesaplamalar!Y35,"") ->  | V40: =IF('EK DERS Ücret Hesaplama'!$AM38=1,hesaplamalar!Z35,"") ->  | W40: =IF('EK DERS Ücret Hesaplama'!$AM38=1,hesaplamalar!AA35,"") ->  | X40: =IF('EK DERS Ücret Hesaplama'!$AM38=1,hesaplamalar!AB35,"") ->  | Y40: =IF('EK DERS Ücret Hesaplama'!$AM38=1,hesaplamalar!AC35,"") ->  | Z40: =IF('EK DERS Ücret Hesaplama'!$AM38=1,hesaplamalar!AD35,"") ->  | AA40: =IF('EK DERS Ücret Hesaplama'!$AM38=1,hesaplamalar!AE35,"") ->  | AB40: =IF('EK DERS Ücret Hesaplama'!$AM38=1,hesaplamalar!AG35,"") ->  | AC40: =IF('EK DERS Ücret Hesaplama'!$AM38=1,hesaplamalar!AH35,"") ->  | AD40: =IF('EK DERS Ücret Hesaplama'!$AM38=1,'EK DERS Ücret Hesaplama'!AE38,"") ->  | AE40: =IF('EK DERS Ücret Hesaplama'!$AM38=1,'EK DERS Ücret Hesaplama'!AG38,"") ->  | AF40: =IF('EK DERS Ücret Hesaplama'!$AM38=1,'EK DERS Ücret Hesaplama'!AF38,"") ->  | AG40: =IF('EK DERS Ücret Hesaplama'!$AM38=1,'EK DERS Ücret Hesaplama'!AH38,"") ->  | AH40: =IF('EK DERS Ücret Hesaplama'!$AM38=1,'EK DERS Ücret Hesaplama'!AI38,"") ->  | AI40: =IF('EK DERS Ücret Hesaplama'!$AM38=1,'EK DERS Ücret Hesaplama'!AJ38,"") ->  | AJ40: =IF('EK DERS Ücret Hesaplama'!$AM38=1,'EK DERS Ücret Hesaplama'!AK38,"") ->  | AL40: 0
A41: =IF(AJ41="","",SUBTOTAL(103,$AJ$8:AJ41)) ->  | B41: =IF('EK DERS Ücret Hesaplama'!$AM39=1,'EK DERS Ücret Hesaplama'!B39,"") ->  | C41: =IF('EK DERS Ücret Hesaplama'!$AM39=1,'EK DERS Ücret Hesaplama'!C39,"") ->  | D41: =IF('EK DERS Ücret Hesaplama'!$AM39=1,IF('EK DERS Ücret Hesaplama'!D39="Ücretli Öğretmen","Ücretli Öğr.","Ücr.Öğr. (Emekli)"),"") ->  | E41: =IF('EK DERS Ücret Hesaplama'!$AM39=1,'EK DERS Ücret Hesaplama'!M39,"") ->  | F41: =IF('EK DERS Ücret Hesaplama'!$AM39=1,'EK DERS Ücret Hesaplama'!N39,"") ->  | G41: =IF('EK DERS Ücret Hesaplama'!$AM39=1,'EK DERS Ücret Hesaplama'!E39,"") ->  | H41: =IF('EK DERS Ücret Hesaplama'!$AM39=1,'EK DERS Ücret Hesaplama'!F39,"") ->  | I41: =IF('EK DERS Ücret Hesaplama'!$AM39=1,'EK DERS Ücret Hesaplama'!G39,"") ->  | J41: =IF('EK DERS Ücret Hesaplama'!$AM39=1,'EK DERS Ücret Hesaplama'!H39,"") ->  | K41: =IF('EK DERS Ücret Hesaplama'!$AM39=1,'EK DERS Ücret Hesaplama'!I39,"") ->  | L41: =IF('EK DERS Ücret Hesaplama'!$AM39=1,'EK DERS Ücret Hesaplama'!J39,"") ->  | M41: =IF('EK DERS Ücret Hesaplama'!$AM39=1,'EK DERS Ücret Hesaplama'!K39,"") ->  | N41: =IF('EK DERS Ücret Hesaplama'!$AM39=1,'EK DERS Ücret Hesaplama'!L39,"") ->  | O41: =IF('EK DERS Ücret Hesaplama'!$AM39=1,'EK DERS Ücret Hesaplama'!O39,"") ->  | P41: =IF('EK DERS Ücret Hesaplama'!$AM39=1,'EK DERS Ücret Hesaplama'!P39,"") ->  | Q41: =IF('EK DERS Ücret Hesaplama'!$AM39=1,'EK DERS Ücret Hesaplama'!Q39,"") ->  | R41: =IF('EK DERS Ücret Hesaplama'!$AM39=1,'EK DERS Ücret Hesaplama'!R39,"") ->  | S41: =IF('EK DERS Ücret Hesaplama'!$AM39=1,'EK DERS Ücret Hesaplama'!S39,"") ->  | T41: =IF('EK DERS Ücret Hesaplama'!$AM39=1,hesaplamalar!X36,"") ->  | U41: =IF('EK DERS Ücret Hesaplama'!$AM39=1,hesaplamalar!Y36,"") ->  | V41: =IF('EK DERS Ücret Hesaplama'!$AM39=1,hesaplamalar!Z36,"") ->  | W41: =IF('EK DERS Ücret Hesaplama'!$AM39=1,hesaplamalar!AA36,"") ->  | X41: =IF('EK DERS Ücret Hesaplama'!$AM39=1,hesaplamalar!AB36,"") ->  | Y41: =IF('EK DERS Ücret Hesaplama'!$AM39=1,hesaplamalar!AC36,"") ->  | Z41: =IF('EK DERS Ücret Hesaplama'!$AM39=1,hesaplamalar!AD36,"") ->  | AA41: =IF('EK DERS Ücret Hesaplama'!$AM39=1,hesaplamalar!AE36,"") ->  | AB41: =IF('EK DERS Ücret Hesaplama'!$AM39=1,hesaplamalar!AG36,"") ->  | AC41: =IF('EK DERS Ücret Hesaplama'!$AM39=1,hesaplamalar!AH36,"") ->  | AD41: =IF('EK DERS Ücret Hesaplama'!$AM39=1,'EK DERS Ücret Hesaplama'!AE39,"") ->  | AE41: =IF('EK DERS Ücret Hesaplama'!$AM39=1,'EK DERS Ücret Hesaplama'!AG39,"") ->  | AF41: =IF('EK DERS Ücret Hesaplama'!$AM39=1,'EK DERS Ücret Hesaplama'!AF39,"") ->  | AG41: =IF('EK DERS Ücret Hesaplama'!$AM39=1,'EK DERS Ücret Hesaplama'!AH39,"") ->  | AH41: =IF('EK DERS Ücret Hesaplama'!$AM39=1,'EK DERS Ücret Hesaplama'!AI39,"") ->  | AI41: =IF('EK DERS Ücret Hesaplama'!$AM39=1,'EK DERS Ücret Hesaplama'!AJ39,"") ->  | AJ41: =IF('EK DERS Ücret Hesaplama'!$AM39=1,'EK DERS Ücret Hesaplama'!AK39,"") ->  | AL41: 0
A42: =IF(AJ42="","",SUBTOTAL(103,$AJ$8:AJ42)) ->  | B42: =IF('EK DERS Ücret Hesaplama'!$AM40=1,'EK DERS Ücret Hesaplama'!B40,"") ->  | C42: =IF('EK DERS Ücret Hesaplama'!$AM40=1,'EK DERS Ücret Hesaplama'!C40,"") ->  | D42: =IF('EK DERS Ücret Hesaplama'!$AM40=1,IF('EK DERS Ücret Hesaplama'!D40="Ücretli Öğretmen","Ücretli Öğr.","Ücr.Öğr. (Emekli)"),"") ->  | E42: =IF('EK DERS Ücret Hesaplama'!$AM40=1,'EK DERS Ücret Hesaplama'!M40,"") ->  | F42: =IF('EK DERS Ücret Hesaplama'!$AM40=1,'EK DERS Ücret Hesaplama'!N40,"") ->  | G42: =IF('EK DERS Ücret Hesaplama'!$AM40=1,'EK DERS Ücret Hesaplama'!E40,"") ->  | H42: =IF('EK DERS Ücret Hesaplama'!$AM40=1,'EK DERS Ücret Hesaplama'!F40,"") ->  | I42: =IF('EK DERS Ücret Hesaplama'!$AM40=1,'EK DERS Ücret Hesaplama'!G40,"") ->  | J42: =IF('EK DERS Ücret Hesaplama'!$AM40=1,'EK DERS Ücret Hesaplama'!H40,"") ->  | K42: =IF('EK DERS Ücret Hesaplama'!$AM40=1,'EK DERS Ücret Hesaplama'!I40,"") ->  | L42: =IF('EK DERS Ücret Hesaplama'!$AM40=1,'EK DERS Ücret Hesaplama'!J40,"") ->  | M42: =IF('EK DERS Ücret Hesaplama'!$AM40=1,'EK DERS Ücret Hesaplama'!K40,"") ->  | N42: =IF('EK DERS Ücret Hesaplama'!$AM40=1,'EK DERS Ücret Hesaplama'!L40,"") ->  | O42: =IF('EK DERS Ücret Hesaplama'!$AM40=1,'EK DERS Ücret Hesaplama'!O40,"") ->  | P42: =IF('EK DERS Ücret Hesaplama'!$AM40=1,'EK DERS Ücret Hesaplama'!P40,"") ->  | Q42: =IF('EK DERS Ücret Hesaplama'!$AM40=1,'EK DERS Ücret Hesaplama'!Q40,"") ->  | R42: =IF('EK DERS Ücret Hesaplama'!$AM40=1,'EK DERS Ücret Hesaplama'!R40,"") ->  | S42: =IF('EK DERS Ücret Hesaplama'!$AM40=1,'EK DERS Ücret Hesaplama'!S40,"") ->  | T42: =IF('EK DERS Ücret Hesaplama'!$AM40=1,hesaplamalar!X37,"") ->  | U42: =IF('EK DERS Ücret Hesaplama'!$AM40=1,hesaplamalar!Y37,"") ->  | V42: =IF('EK DERS Ücret Hesaplama'!$AM40=1,hesaplamalar!Z37,"") ->  | W42: =IF('EK DERS Ücret Hesaplama'!$AM40=1,hesaplamalar!AA37,"") ->  | X42: =IF('EK DERS Ücret Hesaplama'!$AM40=1,hesaplamalar!AB37,"") ->  | Y42: =IF('EK DERS Ücret Hesaplama'!$AM40=1,hesaplamalar!AC37,"") ->  | Z42: =IF('EK DERS Ücret Hesaplama'!$AM40=1,hesaplamalar!AD37,"") ->  | AA42: =IF('EK DERS Ücret Hesaplama'!$AM40=1,hesaplamalar!AE37,"") ->  | AB42: =IF('EK DERS Ücret Hesaplama'!$AM40=1,hesaplamalar!AG37,"") ->  | AC42: =IF('EK DERS Ücret Hesaplama'!$AM40=1,hesaplamalar!AH37,"") ->  | AD42: =IF('EK DERS Ücret Hesaplama'!$AM40=1,'EK DERS Ücret Hesaplama'!AE40,"") ->  | AE42: =IF('EK DERS Ücret Hesaplama'!$AM40=1,'EK DERS Ücret Hesaplama'!AG40,"") ->  | AF42: =IF('EK DERS Ücret Hesaplama'!$AM40=1,'EK DERS Ücret Hesaplama'!AF40,"") ->  | AG42: =IF('EK DERS Ücret Hesaplama'!$AM40=1,'EK DERS Ücret Hesaplama'!AH40,"") ->  | AH42: =IF('EK DERS Ücret Hesaplama'!$AM40=1,'EK DERS Ücret Hesaplama'!AI40,"") ->  | AI42: =IF('EK DERS Ücret Hesaplama'!$AM40=1,'EK DERS Ücret Hesaplama'!AJ40,"") ->  | AJ42: =IF('EK DERS Ücret Hesaplama'!$AM40=1,'EK DERS Ücret Hesaplama'!AK40,"") ->  | AL42: 0
A43: =IF(AJ43="","",SUBTOTAL(103,$AJ$8:AJ43)) ->  | B43: =IF('EK DERS Ücret Hesaplama'!$AM41=1,'EK DERS Ücret Hesaplama'!B41,"") ->  | C43: =IF('EK DERS Ücret Hesaplama'!$AM41=1,'EK DERS Ücret Hesaplama'!C41,"") ->  | D43: =IF('EK DERS Ücret Hesaplama'!$AM41=1,IF('EK DERS Ücret Hesaplama'!D41="Ücretli Öğretmen","Ücretli Öğr.","Ücr.Öğr. (Emekli)"),"") ->  | E43: =IF('EK DERS Ücret Hesaplama'!$AM41=1,'EK DERS Ücret Hesaplama'!M41,"") ->  | F43: =IF('EK DERS Ücret Hesaplama'!$AM41=1,'EK DERS Ücret Hesaplama'!N41,"") ->  | G43: =IF('EK DERS Ücret Hesaplama'!$AM41=1,'EK DERS Ücret Hesaplama'!E41,"") ->  | H43: =IF('EK DERS Ücret Hesaplama'!$AM41=1,'EK DERS Ücret Hesaplama'!F41,"") ->  | I43: =IF('EK DERS Ücret Hesaplama'!$AM41=1,'EK DERS Ücret Hesaplama'!G41,"") ->  | J43: =IF('EK DERS Ücret Hesaplama'!$AM41=1,'EK DERS Ücret Hesaplama'!H41,"") ->  | K43: =IF('EK DERS Ücret Hesaplama'!$AM41=1,'EK DERS Ücret Hesaplama'!I41,"") ->  | L43: =IF('EK DERS Ücret Hesaplama'!$AM41=1,'EK DERS Ücret Hesaplama'!J41,"") ->  | M43: =IF('EK DERS Ücret Hesaplama'!$AM41=1,'EK DERS Ücret Hesaplama'!K41,"") ->  | N43: =IF('EK DERS Ücret Hesaplama'!$AM41=1,'EK DERS Ücret Hesaplama'!L41,"") ->  | O43: =IF('EK DERS Ücret Hesaplama'!$AM41=1,'EK DERS Ücret Hesaplama'!O41,"") ->  | P43: =IF('EK DERS Ücret Hesaplama'!$AM41=1,'EK DERS Ücret Hesaplama'!P41,"") ->  | Q43: =IF('EK DERS Ücret Hesaplama'!$AM41=1,'EK DERS Ücret Hesaplama'!Q41,"") ->  | R43: =IF('EK DERS Ücret Hesaplama'!$AM41=1,'EK DERS Ücret Hesaplama'!R41,"") ->  | S43: =IF('EK DERS Ücret Hesaplama'!$AM41=1,'EK DERS Ücret Hesaplama'!S41,"") ->  | T43: =IF('EK DERS Ücret Hesaplama'!$AM41=1,hesaplamalar!X38,"") ->  | U43: =IF('EK DERS Ücret Hesaplama'!$AM41=1,hesaplamalar!Y38,"") ->  | V43: =IF('EK DERS Ücret Hesaplama'!$AM41=1,hesaplamalar!Z38,"") ->  | W43: =IF('EK DERS Ücret Hesaplama'!$AM41=1,hesaplamalar!AA38,"") ->  | X43: =IF('EK DERS Ücret Hesaplama'!$AM41=1,hesaplamalar!AB38,"") ->  | Y43: =IF('EK DERS Ücret Hesaplama'!$AM41=1,hesaplamalar!AC38,"") ->  | Z43: =IF('EK DERS Ücret Hesaplama'!$AM41=1,hesaplamalar!AD38,"") ->  | AA43: =IF('EK DERS Ücret Hesaplama'!$AM41=1,hesaplamalar!AE38,"") ->  | AB43: =IF('EK DERS Ücret Hesaplama'!$AM41=1,hesaplamalar!AG38,"") ->  | AC43: =IF('EK DERS Ücret Hesaplama'!$AM41=1,hesaplamalar!AH38,"") ->  | AD43: =IF('EK DERS Ücret Hesaplama'!$AM41=1,'EK DERS Ücret Hesaplama'!AE41,"") ->  | AE43: =IF('EK DERS Ücret Hesaplama'!$AM41=1,'EK DERS Ücret Hesaplama'!AG41,"") ->  | AF43: =IF('EK DERS Ücret Hesaplama'!$AM41=1,'EK DERS Ücret Hesaplama'!AF41,"") ->  | AG43: =IF('EK DERS Ücret Hesaplama'!$AM41=1,'EK DERS Ücret Hesaplama'!AH41,"") ->  | AH43: =IF('EK DERS Ücret Hesaplama'!$AM41=1,'EK DERS Ücret Hesaplama'!AI41,"") ->  | AI43: =IF('EK DERS Ücret Hesaplama'!$AM41=1,'EK DERS Ücret Hesaplama'!AJ41,"") ->  | AJ43: =IF('EK DERS Ücret Hesaplama'!$AM41=1,'EK DERS Ücret Hesaplama'!AK41,"") ->  | AL43: 0
A44: =IF(AJ44="","",SUBTOTAL(103,$AJ$8:AJ44)) ->  | B44: =IF('EK DERS Ücret Hesaplama'!$AM42=1,'EK DERS Ücret Hesaplama'!B42,"") ->  | C44: =IF('EK DERS Ücret Hesaplama'!$AM42=1,'EK DERS Ücret Hesaplama'!C42,"") ->  | D44: =IF('EK DERS Ücret Hesaplama'!$AM42=1,IF('EK DERS Ücret Hesaplama'!D42="Ücretli Öğretmen","Ücretli Öğr.","Ücr.Öğr. (Emekli)"),"") ->  | E44: =IF('EK DERS Ücret Hesaplama'!$AM42=1,'EK DERS Ücret Hesaplama'!M42,"") ->  | F44: =IF('EK DERS Ücret Hesaplama'!$AM42=1,'EK DERS Ücret Hesaplama'!N42,"") ->  | G44: =IF('EK DERS Ücret Hesaplama'!$AM42=1,'EK DERS Ücret Hesaplama'!E42,"") ->  | H44: =IF('EK DERS Ücret Hesaplama'!$AM42=1,'EK DERS Ücret Hesaplama'!F42,"") ->  | I44: =IF('EK DERS Ücret Hesaplama'!$AM42=1,'EK DERS Ücret Hesaplama'!G42,"") ->  | J44: =IF('EK DERS Ücret Hesaplama'!$AM42=1,'EK DERS Ücret Hesaplama'!H42,"") ->  | K44: =IF('EK DERS Ücret Hesaplama'!$AM42=1,'EK DERS Ücret Hesaplama'!I42,"") ->  | L44: =IF('EK DERS Ücret Hesaplama'!$AM42=1,'EK DERS Ücret Hesaplama'!J42,"") ->  | M44: =IF('EK DERS Ücret Hesaplama'!$AM42=1,'EK DERS Ücret Hesaplama'!K42,"") ->  | N44: =IF('EK DERS Ücret Hesaplama'!$AM42=1,'EK DERS Ücret Hesaplama'!L42,"") ->  | O44: =IF('EK DERS Ücret Hesaplama'!$AM42=1,'EK DERS Ücret Hesaplama'!O42,"") ->  | P44: =IF('EK DERS Ücret Hesaplama'!$AM42=1,'EK DERS Ücret Hesaplama'!P42,"") ->  | Q44: =IF('EK DERS Ücret Hesaplama'!$AM42=1,'EK DERS Ücret Hesaplama'!Q42,"") ->  | R44: =IF('EK DERS Ücret Hesaplama'!$AM42=1,'EK DERS Ücret Hesaplama'!R42,"") ->  | S44: =IF('EK DERS Ücret Hesaplama'!$AM42=1,'EK DERS Ücret Hesaplama'!S42,"") ->  | T44: =IF('EK DERS Ücret Hesaplama'!$AM42=1,hesaplamalar!X39,"") ->  | U44: =IF('EK DERS Ücret Hesaplama'!$AM42=1,hesaplamalar!Y39,"") ->  | V44: =IF('EK DERS Ücret Hesaplama'!$AM42=1,hesaplamalar!Z39,"") ->  | W44: =IF('EK DERS Ücret Hesaplama'!$AM42=1,hesaplamalar!AA39,"") ->  | X44: =IF('EK DERS Ücret Hesaplama'!$AM42=1,hesaplamalar!AB39,"") ->  | Y44: =IF('EK DERS Ücret Hesaplama'!$AM42=1,hesaplamalar!AC39,"") ->  | Z44: =IF('EK DERS Ücret Hesaplama'!$AM42=1,hesaplamalar!AD39,"") ->  | AA44: =IF('EK DERS Ücret Hesaplama'!$AM42=1,hesaplamalar!AE39,"") ->  | AB44: =IF('EK DERS Ücret Hesaplama'!$AM42=1,hesaplamalar!AG39,"") ->  | AC44: =IF('EK DERS Ücret Hesaplama'!$AM42=1,hesaplamalar!AH39,"") ->  | AD44: =IF('EK DERS Ücret Hesaplama'!$AM42=1,'EK DERS Ücret Hesaplama'!AE42,"") ->  | AE44: =IF('EK DERS Ücret Hesaplama'!$AM42=1,'EK DERS Ücret Hesaplama'!AG42,"") ->  | AF44: =IF('EK DERS Ücret Hesaplama'!$AM42=1,'EK DERS Ücret Hesaplama'!AF42,"") ->  | AG44: =IF('EK DERS Ücret Hesaplama'!$AM42=1,'EK DERS Ücret Hesaplama'!AH42,"") ->  | AH44: =IF('EK DERS Ücret Hesaplama'!$AM42=1,'EK DERS Ücret Hesaplama'!AI42,"") ->  | AI44: =IF('EK DERS Ücret Hesaplama'!$AM42=1,'EK DERS Ücret Hesaplama'!AJ42,"") ->  | AJ44: =IF('EK DERS Ücret Hesaplama'!$AM42=1,'EK DERS Ücret Hesaplama'!AK42,"") ->  | AL44: 0
